Workbook

Sheet ProjectInformation
A1: CPN DATA
A2: INFORMATION ADDED BY DESIGNER
A3: Section Engineer | B3: Flattery
A4: Design Team | B4: Bell
B5: Hain
A6: County | B6: WAPELLO
A7: Project Number | B7: NHSX-063-2(155)--3H-90
A8: English or Metric | B8: ENGLISH
A9: Revised
A10: Bridge Block
A11: File No. | B11: 29590

Sheet PrintSheets
B94: FILE NO. | I94: =IF(ProjectInformation!$B$11<>"",ProjectInformation!$B$11,"") -> 29590 | P94: =UPPER(ProjectInformation!B8) -> ENGLISH | W94: DESIGN TEAM | AF94: =IF(AND(ProjectInformation!$B$3<>"",ProjectInformation!$B$4<>"",ProjectInformation!$B$5<>""),ProjectInformation!$B$3&"\"&ProjectInformation!$B$4&"\"&ProjectInformation!$B$5,IF(AND(ProjectInformation!$B$3<>"",ProjectInformation!$B$4<>""),ProjectInformation!$B$3&"\"&ProjectInformation!$B$4,IF(ProjectInformation!$B$3<>"",ProjectInformation!$B$3,""))) -> Flattery\Bell\Hain | BN94: =IF(ProjectInformation!$B$6<>"",ProjectInformation!$B$6,"") -> WAPELLO | CX94: COUNTY | DD94: PROJECT NUMBER | DP94: =IF(ProjectInformation!$B$7<>"",ProjectInformation!$B$7,"") -> NHSX-063-2(155)--3H-90 | ET94: SHEET NUMBER | FD94: C.1 | FJ94: =IF(FP94<>"","REVISED","") ->  | FP94: =IF(ProjectInformation!$B$9<>"",ProjectInformation!$B$9,"") -> 
B95: 7/17/2019 11:53:54 AM dhain c:\pw_work\pwmain\dhain\d0824036\90063155_C01.xlsm
B189: FILE NO. | I189: =IF(ProjectInformation!$B$11<>"",ProjectInformation!$B$11,"") -> 29590 | P189: =UPPER(ProjectInformation!B8) -> ENGLISH | W189: DESIGN TEAM | AF189: =IF(AND(ProjectInformation!$B$3<>"",ProjectInformation!$B$4<>"",ProjectInformation!$B$5<>""),ProjectInformation!$B$3&"\"&ProjectInformation!$B$4&"\"&ProjectInformation!$B$5,IF(AND(ProjectInformation!$B$3<>"",ProjectInformation!$B$4<>""),ProjectInformation!$B$3&"\"&ProjectInformation!$B$4,IF(ProjectInformation!$B$3<>"",ProjectInformation!$B$3,""))) -> Flattery\Bell\Hain | BN189: =IF(ProjectInformation!$B$6<>"",ProjectInformation!$B$6,"") -> WAPELLO | CX189: COUNTY | DD189: PROJECT NUMBER | DP189: =IF(ProjectInformation!$B$7<>"",ProjectInformation!$B$7,"") -> NHSX-063-2(155)--3H-90 | ET189: SHEET NUMBER | FD189: =IF($FD$94<>"","C."& MID(OFFSET($FD$189,-95,0),3,LEN(OFFSET($FD$189,-95,0))-2)+1,"") -> C.2 | FJ189: =IF(FP189<>"","REVISED","") ->  | FP189: =IF(ProjectInformation!$B$9<>"",ProjectInformation!$B$9,"") -> 
B190: 7/17/2019 11:53:54 AM dhain c:\pw_work\pwmain\dhain\d0824036\90063155_C01.xlsm
B284: FILE NO. | I284: =IF(ProjectInformation!$B$11<>"",ProjectInformation!$B$11,"") -> 29590 | P284: =UPPER(ProjectInformation!B8) -> ENGLISH | W284: DESIGN TEAM | AF284: =IF(AND(ProjectInformation!$B$3<>"",ProjectInformation!$B$4<>"",ProjectInformation!$B$5<>""),ProjectInformation!$B$3&"\"&ProjectInformation!$B$4&"\"&ProjectInformation!$B$5,IF(AND(ProjectInformation!$B$3<>"",ProjectInformation!$B$4<>""),ProjectInformation!$B$3&"\"&ProjectInformation!$B$4,IF(ProjectInformation!$B$3<>"",ProjectInformation!$B$3,""))) -> Flattery\Bell\Hain | BN284: =IF(ProjectInformation!$B$6<>"",ProjectInformation!$B$6,"") -> WAPELLO | CX284: COUNTY | DD284: PROJECT NUMBER | DP284: =IF(ProjectInformation!$B$7<>"",ProjectInformation!$B$7,"") -> NHSX-063-2(155)--3H-90 | ET284: SHEET NUMBER | FD284: =IF($FD$189<>"","C."& MID(OFFSET($FD$284,-95,0),3,LEN(OFFSET($FD$284,-95,0))-2)+1,"") -> C.3 | FJ284: =IF(FP284<>"","REVISED","") ->  | FP284: =IF(ProjectInformation!$B$9<>"",ProjectInformation!$B$9,"") -> 
B285: 7/17/2019 11:53:55 AM dhain c:\pw_work\pwmain\dhain\d0824036\90063155_C01.xlsm
B379: FILE NO. | I379: =IF(ProjectInformation!$B$11<>"",ProjectInformation!$B$11,"") -> 29590 | P379: =UPPER(ProjectInformation!B8) -> ENGLISH | W379: DESIGN TEAM | AF379: =IF(AND(ProjectInformation!$B$3<>"",ProjectInformation!$B$4<>"",ProjectInformation!$B$5<>""),ProjectInformation!$B$3&"\"&ProjectInformation!$B$4&"\"&ProjectInformation!$B$5,IF(AND(ProjectInformation!$B$3<>"",ProjectInformation!$B$4<>""),ProjectInformation!$B$3&"\"&ProjectInformation!$B$4,IF(ProjectInformation!$B$3<>"",ProjectInformation!$B$3,""))) -> Flattery\Bell\Hain | BN379: =IF(ProjectInformation!$B$6<>"",ProjectInformation!$B$6,"") -> WAPELLO | CX379: COUNTY | DD379: PROJECT NUMBER | DP379: =IF(ProjectInformation!$B$7<>"",ProjectInformation!$B$7,"") -> NHSX-063-2(155)--3H-90 | ET379: SHEET NUMBER | FD379: =IF($FD$284<>"","C."& MID(OFFSET($FD$379,-95,0),3,LEN(OFFSET($FD$379,-95,0))-2)+1,"") -> C.4 | FJ379: =IF(FP379<>"","REVISED","") ->  | FP379: =IF(ProjectInformation!$B$9<>"",ProjectInformation!$B$9,"") -> 
B380: 7/17/2019 11:53:55 AM dhain c:\pw_work\pwmain\dhain\d0824036\90063155_C01.xlsm
B474: FILE NO. | I474: =IF(ProjectInformation!$B$11<>"",ProjectInformation!$B$11,"") -> 29590 | P474: =UPPER(ProjectInformation!B8) -> ENGLISH | W474: DESIGN TEAM | AF474: =IF(AND(ProjectInformation!$B$3<>"",ProjectInformation!$B$4<>"",ProjectInformation!$B$5<>""),ProjectInformation!$B$3&"\"&ProjectInformation!$B$4&"\"&ProjectInformation!$B$5,IF(AND(ProjectInformation!$B$3<>"",ProjectInformation!$B$4<>""),ProjectInformation!$B$3&"\"&ProjectInformation!$B$4,IF(ProjectInformation!$B$3<>"",ProjectInformation!$B$3,""))) -> Flattery\Bell\Hain | BN474: =IF(ProjectInformation!$B$6<>"",ProjectInformation!$B$6,"") -> WAPELLO | CX474: COUNTY | DD474: PROJECT NUMBER | DP474: =IF(ProjectInformation!$B$7<>"",ProjectInformation!$B$7,"") -> NHSX-063-2(155)--3H-90 | ET474: SHEET NUMBER | FD474: =IF($FD$379<>"","C."& MID(OFFSET($FD$474,-95,0),3,LEN(OFFSET($FD$474,-95,0))-2)+1,"") -> C.5 | FJ474: =IF(FP474<>"","REVISED","") ->  | FP474: =IF(ProjectInformation!$B$9<>"",ProjectInformation!$B$9,"") -> 
B475: 7/17/2019 11:53:56 AM dhain c:\pw_work\pwmain\dhain\d0824036\90063155_C01.xlsm
B569: FILE NO. | I569: =IF(ProjectInformation!$B$11<>"",ProjectInformation!$B$11,"") -> 29590 | P569: =UPPER(ProjectInformation!B8) -> ENGLISH | W569: DESIGN TEAM | AF569: =IF(AND(ProjectInformation!$B$3<>"",ProjectInformation!$B$4<>"",ProjectInformation!$B$5<>""),ProjectInformation!$B$3&"\"&ProjectInformation!$B$4&"\"&ProjectInformation!$B$5,IF(AND(ProjectInformation!$B$3<>"",ProjectInformation!$B$4<>""),ProjectInformation!$B$3&"\"&ProjectInformation!$B$4,IF(ProjectInformation!$B$3<>"",ProjectInformation!$B$3,""))) -> Flattery\Bell\Hain | BN569: =IF(ProjectInformation!$B$6<>"",ProjectInformation!$B$6,"") -> WAPELLO | CX569: COUNTY | DD569: PROJECT NUMBER | DP569: =IF(ProjectInformation!$B$7<>"",ProjectInformation!$B$7,"") -> NHSX-063-2(155)--3H-90 | ET569: SHEET NUMBER | FD569: =IF($FD$474<>"","C."& MID(OFFSET($FD$569,-95,0),3,LEN(OFFSET($FD$569,-95,0))-2)+1,"") -> C.6 | FJ569: =IF(FP569<>"","REVISED","") ->  | FP569: =IF(ProjectInformation!$B$9<>"",ProjectInformation!$B$9,"") -> 
B570: 7/17/2019 11:53:56 AM dhain c:\pw_work\pwmain\dhain\d0824036\90063155_C01.xlsm
B664: FILE NO. | I664: =IF(ProjectInformation!$B$11<>"",ProjectInformation!$B$11,"") -> 29590 | P664: =UPPER(ProjectInformation!B8) -> ENGLISH | W664: DESIGN TEAM | AF664: =IF(AND(ProjectInformation!$B$3<>"",ProjectInformation!$B$4<>"",ProjectInformation!$B$5<>""),ProjectInformation!$B$3&"\"&ProjectInformation!$B$4&"\"&ProjectInformation!$B$5,IF(AND(ProjectInformation!$B$3<>"",ProjectInformation!$B$4<>""),ProjectInformation!$B$3&"\"&ProjectInformation!$B$4,IF(ProjectInformation!$B$3<>"",ProjectInformation!$B$3,""))) -> Flattery\Bell\Hain | BN664: =IF(ProjectInformation!$B$6<>"",ProjectInformation!$B$6,"") -> WAPELLO | CX664: COUNTY | DD664: PROJECT NUMBER | DP664: =IF(ProjectInformation!$B$7<>"",ProjectInformation!$B$7,"") -> NHSX-063-2(155)--3H-90 | ET664: SHEET NUMBER | FD664: =IF($FD$569<>"","C."& MID(OFFSET($FD$664,-95,0),3,LEN(OFFSET($FD$664,-95,0))-2)+1,"") -> C.7 | FJ664: =IF(FP664<>"","REVISED","") ->  | FP664: =IF(ProjectInformation!$B$9<>"",ProjectInformation!$B$9,"") -> 
B665: 7/17/2019 11:53:57 AM dhain c:\pw_work\pwmain\dhain\d0824036\90063155_C01.xlsm
B759: FILE NO. | I759: =IF(ProjectInformation!$B$11<>"",ProjectInformation!$B$11,"") -> 29590 | P759: =UPPER(ProjectInformation!B8) -> ENGLISH | W759: DESIGN TEAM | AF759: =IF(AND(ProjectInformation!$B$3<>"",ProjectInformation!$B$4<>"",ProjectInformation!$B$5<>""),ProjectInformation!$B$3&"\"&ProjectInformation!$B$4&"\"&ProjectInformation!$B$5,IF(AND(ProjectInformation!$B$3<>"",ProjectInformation!$B$4<>""),ProjectInformation!$B$3&"\"&ProjectInformation!$B$4,IF(ProjectInformation!$B$3<>"",ProjectInformation!$B$3,""))) -> Flattery\Bell\Hain | BN759: =IF(ProjectInformation!$B$6<>"",ProjectInformation!$B$6,"") -> WAPELLO | CX759: COUNTY | DD759: PROJECT NUMBER | DP759: =IF(ProjectInformation!$B$7<>"",ProjectInformation!$B$7,"") -> NHSX-063-2(155)--3H-90 | ET759: SHEET NUMBER | FD759: =IF($FD$664<>"","C."& MID(OFFSET($FD$759,-95,0),3,LEN(OFFSET($FD$759,-95,0))-2)+1,"") -> C.8 | FJ759: =IF(FP759<>"","REVISED","") ->  | FP759: =IF(ProjectInformation!$B$9<>"",ProjectInformation!$B$9,"") -> 
B760: 7/17/2019 11:53:57 AM dhain c:\pw_work\pwmain\dhain\d0824036\90063155_C01.xlsm
B854: FILE NO. | I854: =IF(ProjectInformation!$B$11<>"",ProjectInformation!$B$11,"") -> 29590 | P854: =UPPER(ProjectInformation!B8) -> ENGLISH | W854: DESIGN TEAM | AF854: =IF(AND(ProjectInformation!$B$3<>"",ProjectInformation!$B$4<>"",ProjectInformation!$B$5<>""),ProjectInformation!$B$3&"\"&ProjectInformation!$B$4&"\"&ProjectInformation!$B$5,IF(AND(ProjectInformation!$B$3<>"",ProjectInformation!$B$4<>""),ProjectInformation!$B$3&"\"&ProjectInformation!$B$4,IF(ProjectInformation!$B$3<>"",ProjectInformation!$B$3,""))) -> Flattery\Bell\Hain | BN854: =IF(ProjectInformation!$B$6<>"",ProjectInformation!$B$6,"") -> WAPELLO | CX854: COUNTY | DD854: PROJECT NUMBER | DP854: =IF(ProjectInformation!$B$7<>"",ProjectInformation!$B$7,"") -> NHSX-063-2(155)--3H-90 | ET854: SHEET NUMBER | FD854: =IF($FD$759<>"","C."& MID(OFFSET($FD$854,-95,0),3,LEN(OFFSET($FD$854,-95,0))-2)+1,"") -> C.9 | FJ854: =IF(FP854<>"","REVISED","") ->  | FP854: =IF(ProjectInformation!$B$9<>"",ProjectInformation!$B$9,"") -> 
B855: 7/17/2019 11:53:58 AM dhain c:\pw_work\pwmain\dhain\d0824036\90063155_C01.xlsm
B949: FILE NO. | I949: =IF(ProjectInformation!$B$11<>"",ProjectInformation!$B$11,"") -> 29590 | P949: =UPPER(ProjectInformation!B8) -> ENGLISH | W949: DESIGN TEAM | AF949: =IF(AND(ProjectInformation!$B$3<>"",ProjectInformation!$B$4<>"",ProjectInformation!$B$5<>""),ProjectInformation!$B$3&"\"&ProjectInformation!$B$4&"\"&ProjectInformation!$B$5,IF(AND(ProjectInformation!$B$3<>"",ProjectInformation!$B$4<>""),ProjectInformation!$B$3&"\"&ProjectInformation!$B$4,IF(ProjectInformation!$B$3<>"",ProjectInformation!$B$3,""))) -> Flattery\Bell\Hain | BN949: =IF(ProjectInformation!$B$6<>"",ProjectInformation!$B$6,"") -> WAPELLO | CX949: COUNTY | DD949: PROJECT NUMBER | DP949: =IF(ProjectInformation!$B$7<>"",ProjectInformation!$B$7,"") -> NHSX-063-2(155)--3H-90 | ET949: SHEET NUMBER | FD949: =IF($FD$854<>"","C."& MID(OFFSET($FD$949,-95,0),3,LEN(OFFSET($FD$949,-95,0))-2)+1,"") -> C.10 | FJ949: =IF(FP949<>"","REVISED","") ->  | FP949: =IF(ProjectInformation!$B$9<>"",ProjectInformation!$B$9,"") -> 
B950: 7/17/2019 11:53:58 AM dhain c:\pw_work\pwmain\dhain\d0824036\90063155_C01.xlsm
B1044: FILE NO. | I1044: =IF(ProjectInformation!$B$11<>"",ProjectInformation!$B$11,"") -> 29590 | P1044: =UPPER(ProjectInformation!B8) -> ENGLISH | W1044: DESIGN TEAM | AF1044: =IF(AND(ProjectInformation!$B$3<>"",ProjectInformation!$B$4<>"",ProjectInformation!$B$5<>""),ProjectInformation!$B$3&"\"&ProjectInformation!$B$4&"\"&ProjectInformation!$B$5,IF(AND(ProjectInformation!$B$3<>"",ProjectInformation!$B$4<>""),ProjectInformation!$B$3&"\"&ProjectInformation!$B$4,IF(ProjectInformation!$B$3<>"",ProjectInformation!$B$3,""))) -> Flattery\Bell\Hain | BN1044: =IF(ProjectInformation!$B$6<>"",ProjectInformation!$B$6,"") -> WAPELLO | CX1044: COUNTY | DD1044: PROJECT NUMBER | DP1044: =IF(ProjectInformation!$B$7<>"",ProjectInformation!$B$7,"") -> NHSX-063-2(155)--3H-90 | ET1044: SHEET NUMBER | FD1044: =IF($FD$949<>"","C."& MID(OFFSET($FD$1044,-95,0),3,LEN(OFFSET($FD$1044,-95,0))-2)+1,"") -> C.11 | FJ1044: =IF(FP1044<>"","REVISED","") ->  | FP1044: =IF(ProjectInformation!$B$9<>"",ProjectInformation!$B$9,"") -> 
B1045: 7/17/2019 11:53:59 AM dhain c:\pw_work\pwmain\dhain\d0824036\90063155_C01.xlsm
B1139: FILE NO. | I1139: =IF(ProjectInformation!$B$11<>"",ProjectInformation!$B$11,"") -> 29590 | P1139: =UPPER(ProjectInformation!B8) -> ENGLISH | W1139: DESIGN TEAM | AF1139: =IF(AND(ProjectInformation!$B$3<>"",ProjectInformation!$B$4<>"",ProjectInformation!$B$5<>""),ProjectInformation!$B$3&"\"&ProjectInformation!$B$4&"\"&ProjectInformation!$B$5,IF(AND(ProjectInformation!$B$3<>"",ProjectInformation!$B$4<>""),ProjectInformation!$B$3&"\"&ProjectInformation!$B$4,IF(ProjectInformation!$B$3<>"",ProjectInformation!$B$3,""))) -> Flattery\Bell\Hain | BN1139: =IF(ProjectInformation!$B$6<>"",ProjectInformation!$B$6,"") -> WAPELLO | CX1139: COUNTY | DD1139: PROJECT NUMBER | DP1139: =IF(ProjectInformation!$B$7<>"",ProjectInformation!$B$7,"") -> NHSX-063-2(155)--3H-90 | ET1139: SHEET NUMBER | FD1139: =IF($FD$1044<>"","C."& MID(OFFSET($FD$1139,-95,0),3,LEN(OFFSET($FD$1139,-95,0))-2)+1,"") -> C.12 | FJ1139: =IF(FP1139<>"","REVISED","") ->  | FP1139: =IF(ProjectInformation!$B$9<>"",ProjectInformation!$B$9,"") -> 
B1140: 7/17/2019 11:53:59 AM dhain c:\pw_work\pwmain\dhain\d0824036\90063155_C01.xlsm
B1234: FILE NO. | I1234: =IF(ProjectInformation!$B$11<>"",ProjectInformation!$B$11,"") -> 29590 | P1234: =UPPER(ProjectInformation!B8) -> ENGLISH | W1234: DESIGN TEAM | AF1234: =IF(AND(ProjectInformation!$B$3<>"",ProjectInformation!$B$4<>"",ProjectInformation!$B$5<>""),ProjectInformation!$B$3&"\"&ProjectInformation!$B$4&"\"&ProjectInformation!$B$5,IF(AND(ProjectInformation!$B$3<>"",ProjectInformation!$B$4<>""),ProjectInformation!$B$3&"\"&ProjectInformation!$B$4,IF(ProjectInformation!$B$3<>"",ProjectInformation!$B$3,""))) -> Flattery\Bell\Hain | BN1234: =IF(ProjectInformation!$B$6<>"",ProjectInformation!$B$6,"") -> WAPELLO | CX1234: COUNTY | DD1234: PROJECT NUMBER | DP1234: =IF(ProjectInformation!$B$7<>"",ProjectInformation!$B$7,"") -> NHSX-063-2(155)--3H-90 | ET1234: SHEET NUMBER | FD1234: =IF($FD$1139<>"","C."& MID(OFFSET($FD$1234,-95,0),3,LEN(OFFSET($FD$1234,-95,0))-2)+1,"") -> C.13 | FJ1234: =IF(FP1234<>"","REVISED","") ->  | FP1234: =IF(ProjectInformation!$B$9<>"",ProjectInformation!$B$9,"") -> 
B1235: 7/17/2019 11:54:00 AM dhain c:\pw_work\pwmain\dhain\d0824036\90063155_C01.xlsm
B1329: FILE NO. | I1329: =IF(ProjectInformation!$B$11<>"",ProjectInformation!$B$11,"") -> 29590 | P1329: =UPPER(ProjectInformation!B8) -> ENGLISH | W1329: DESIGN TEAM | AF1329: =IF(AND(ProjectInformation!$B$3<>"",ProjectInformation!$B$4<>"",ProjectInformation!$B$5<>""),ProjectInformation!$B$3&"\"&ProjectInformation!$B$4&"\"&ProjectInformation!$B$5,IF(AND(ProjectInformation!$B$3<>"",ProjectInformation!$B$4<>""),ProjectInformation!$B$3&"\"&ProjectInformation!$B$4,IF(ProjectInformation!$B$3<>"",ProjectInformation!$B$3,""))) -> Flattery\Bell\Hain | BN1329: =IF(ProjectInformation!$B$6<>"",ProjectInformation!$B$6,"") -> WAPELLO | CX1329: COUNTY | DD1329: PROJECT NUMBER | DP1329: =IF(ProjectInformation!$B$7<>"",ProjectInformation!$B$7,"") -> NHSX-063-2(155)--3H-90 | ET1329: SHEET NUMBER | FD1329: =IF($FD$1234<>"","C."& MID(OFFSET($FD$1329,-95,0),3,LEN(OFFSET($FD$1329,-95,0))-2)+1,"") -> C.14 | FJ1329: =IF(FP1329<>"","REVISED","") ->  | FP1329: =IF(ProjectInformation!$B$9<>"",ProjectInformation!$B$9,"") -> 
B1330: 7/17/2019 11:54:00 AM dhain c:\pw_work\pwmain\dhain\d0824036\90063155_C01.xlsm

Sheet DE100_1A
A1: TabTitle | B1: =C15 -> ESTIMATED PROJECT QUANTITIES (1 DIVISION PROJECT)
A2: Number of Tab Columns | B2: 6
A3: DE Starter Row Number | B3: 22
A4: TabSheet Starter Row Number | B4: 9
A5: TabSheet Header Row Count | B5: 8
A6: Top Header Cell | B6: J15
A7: Bottom Header Cell | B7: O22
A8: DESheet Row Count | B8: 64
A9: Fixed Empty Rows | B9: 5
A10: Usable Empty Rows | B10: 0
A11: Total Rows Placed | B11: 69 | C11: xlCenter | D11: xlCenter | E11: xlLeft(1) | F11: xlLeft(1) | G11: xlRight(1) | H11: xlRight(1) | J11: =C11 -> xlCenter | K11: =D11 -> xlCenter | L11: xlLeft(1) | M11: xlLeft(1) | N11: xlRight(1) | O11: xlRight(1)
A12: Total Rows Needed | B12: =SUM(B8:B10) -> 69 | C12: General | D12: General | E12: General | F12: General | G12: General | H12: General | J12: =C12 -> General | K12: General | L12: General | M12: General | N12: General | O12: General
A13: Last Tab DE Starter Row | B13: 22 | C13: =CELL("width",C13) -> 12 | D13: 16 | E13: 83 | F13: 11 | G13: 16 | H13: 16 | J13: =CELL("width",J13) -> 0 | K13: 0 | L13: 0 | M13: 0 | N13: 0 | O13: 0
A14: Last Tab Tabsheet Starter Row | B14: 9 | C14: A | D14: B | E14: C | F14: D | G14: E | H14: F | J14: =LOWER(C14) -> a | K14: =LOWER(D14) -> b | L14: c | M14: d | N14: e | O14: f
A15: Last Copy Starter Row | B15: 1 | C15: ESTIMATED PROJECT QUANTITIES (1 DIVISION PROJECT) | J15: 100-1A
A16: Tab Loop Number | B16: 2 | J16: =B17 -> 1997-07-15
A17: Revision Date | B17: 1997-07-15 | J17: =C15 -> ESTIMATED PROJECT QUANTITIES (1 DIVISION PROJECT)
A18: Tabulation Width | B18: 2
A19: Horizontal Grid Lines | B19: Yes | C19: ="This Data Entry Sheet fills Tab "&J15&" effective "&TEXT(B17,"mm-dd-yy") -> This Data Entry Sheet fills Tab 100-1A effective 07-15-97
C20: Item No. | D20: Item Code | E20: Item | F20: Unit | G20: Total | H20: As Built Qty.
J21: =C20 -> Item No. | K21: =D20 -> Item Code | L21: =E20 -> Item | M21: Unit | N21: =G20 -> Total | O21: =H20 -> As Built Qty.
C22: 1 | D22: 2101-0850001 | E22: CLEARING AND GRUBBING | F22: ACRE | G22: 42.3
C23: 2 | D23: 2102-0425071 | E23: SPECIAL BACKFILL | F23: CY | G23: 35.1
C24: 3 | D24: 2102-2624980 | E24: CONTRACTOR FURNISHED SELECT TREATMENT | F24: CY | G24: 47,748.3
C25: 4 | D25: 2102-2625001 | E25: EMBANKMENT-IN-PLACE, CONTRACTOR FURNISHED | F25: CY | G25: 47,074.0
C26: 5 | D26: 2102-2710070 | E26: EXCAVATION, CLASS 10, ROADWAY AND BORROW | F26: CY | G26: 132,853.0
C27: 6 | D27: 2102-2712015 | E27: EXCAVATION, CLASS 12, BOULDERS OR ROCK FRAGMENTS | F27: CY | G27: 15.0
C28: 7 | D28: 2102-4560000 | E28: LOCATING TILE LINES | F28: STA | G28: 152.00
C29: 8 | D29: 2105-8425015 | E29: TOPSOIL, STRIP, SALVAGE AND SPREAD | F29: CY | G29: 52,340.0
C30: 9 | D30: 2107-0425020 | E30: COMPACTING BACKFILL ADJACENT TO BRIDGES, CULVERTS OR STRUCTU RES | F30: CY | G30: 102.0
C31: 10 | D31: 2107-0875100 | E31: COMPACTION WITH MOISTURE CONTROL | F31: CY | G31: 149,265.0
C32: 11 | D32: 2111-8174100 | E32: GRANULAR SUBBASE | F32: SY | G32: 69,390.2
C33: 12 | D33: 2115-0100000 | E33: MODIFIED SUBBASE | F33: CY | G33: 1,616.9
C34: 13 | D34: 2121-7425010 | E34: GRANULAR SHOULDERS, TYPE A | F34: TON | G34: 1,370.8
C35: 14 | D35: 2122-5190006 | E35: PAVED SHOULDER, P.C. CONCRETE, 6 IN. | F35: SY | G35: 144.6
C36: 15 | D36: 2122-5190010 | E36: PAVED SHOULDER, P.C. CONCRETE, 10 IN. | F36: SY | G36: 13,473.0
C37: 16 | D37: 2123-7450000 | E37: SHOULDER CONSTRUCTION, EARTH | F37: STA | G37: 284.10
C38: 17 | D38: 2301-1003100 | E38: STANDARD OR SLIP-FORM PORTLAND CEMENT CONCRETE PAVEMENT, QM- C, CLASS | F38: SY | G38: 47,601.6
E39: 3 DURABILITY, 10 IN.
C40: 18 | D40: 2301-4875006 | E40: MEDIAN, P.C. CONCRETE, 6 IN. | F40: SY | G40: 7,618.9
C41: 19 | D41: 2301-6911722 | E41: PORTLAND CEMENT CONCRETE PAVEMENT SAMPLES | F41: LS | G41: 1.00
C42: 20 | D42: 2315-8275025 | E42: SURFACING, DRIVEWAY, CLASS A CRUSHED STONE | F42: TON | G42: 94.3
C43: 21 | D43: 2401-6745625 | E43: REMOVAL OF EXISTING BRIDGE | F43: LS | G43: 1.00
C44: 22 | D44: 2402-0425040 | E44: FLOODED BACKFILL | F44: CY | G44: 3,751.5
C45: 23 | D45: 2402-2720100 | E45: EXCAVATION, CLASS 20, FOR ROADWAY PIPE CULVERT | F45: CY | G45: 3,781.7
C46: 24 | D46: 2416-0100018 | E46: APRONS, CONCRETE, 18 IN. DIA. | F46: EACH | G46: 4
C47: 25 | D47: 2416-0100030 | E47: APRONS, CONCRETE, 30 IN. DIA. | F47: EACH | G47: 2
C48: 26 | D48: 2416-0100048 | E48: APRONS, CONCRETE, 48 IN. DIA. | F48: EACH | G48: 2
C49: 27 | D49: 2416-0102224 | E49: APRON, LOW CLEARANCE CONCRETE, EQUIVALENT DIAMETER 24 IN. | F49: EACH | G49: 4
C50: 28 | D50: 2416-1180030 | E50: CULVERT, CONCRETE ROADWAY PIPE, 30 IN. DIA. | F50: LF | G50: 224
C51: 29 | D51: 2416-1180048 | E51: CULVERT, CONCRETE ROADWAY PIPE, 48 IN. DIA. | F51: LF | G51: 168
C52: 30 | D52: 2416-1200224 | E52: CULVERT, LOW CLEARANCE CONCRETE ROADWAY PIPE, EQUIVALENT DIA METER 24 | F52: LF | G52: 52
E53: IN.
C54: 31 | D54: 2422-0360000 | E54: UNCLASSIFIED APRONS, 12 IN. | F54: EACH | G54: 2
C55: 32 | D55: 2422-0360000 | E55: UNCLASSIFIED APRONS, 30 IN. ARCH | F55: EACH | G55: 2
C56: 33 | D56: 2422-1720000 | E56: UNCLASSIFIED PIPE CULVERT, 12 IN. | F56: LF | G56: 36
C57: 34 | D57: 2422-1720000 | E57: UNCLASSIFIED PIPE CULVERT, 30 IN. ARCH | F57: LF | G57: 88
C58: 35 | D58: 2435-0250800 | E58: INTAKE, SW-508 | F58: EACH | G58: 8
C59: 36 | D59: 2435-0251000 | E59: INTAKE, SW-510 | F59: EACH | G59: 7
C60: 37 | D60: 2435-0256200 | E60: INTAKE, SW-562 | F60: EACH | G60: 1
C61: 38 | D61: 2502-2308100 | E61: TRENCH DRAIN | F61: LF | G61: 415.0
C62: 39 | D62: 2502-8212034 | E62: SUBDRAIN, LONGITUDINAL, (SHOULDER) 4 IN. DIA. | F62: LF | G62: 16,325.0
C63: 40 | D63: 2502-8221306 | E63: SUBDRAIN OUTLET, DR-306 | F63: EACH | G63: 66
C64: 41 | D64: 2503-0110018 | E64: STORM SEWER GRAVITY MAIN, TRENCHED, 18 IN. | F64: LF | G64: 1,183.0
C65: 42 | D65: 2503-0500402 | E65: BRIDGE END DRAIN, DR-402 | F65: EACH | G65: 2
C66: 43 | D66: 2505-4008120 | E66: REMOVAL OF STEEL BEAM GUARDRAIL | F66: LF | G66: 3,432.8
C67: 44 | D67: 2505-4008300 | E67: STEEL BEAM GUARDRAIL | F67: LF | G67: 175.0
C68: 45 | D68: 2505-4008410 | E68: STEEL BEAM GUARDRAIL BARRIER TRANSITION SECTION, BA-201 | F68: EACH | G68: 2
C69: 46 | D69: 2505-4021010 | E69: STEEL BEAM GUARDRAIL END ANCHOR, BOLTED | F69: EACH | G69: 2
C70: 47 | D70: 2505-4021020 | E70: STEEL BEAM GUARDRAIL END ANCHOR, W-BEAM | F70: EACH | G70: 1
C71: 48 | D71: 2505-4021720 | E71: STEEL BEAM GUARDRAIL TANGENT END TERMINAL, BA-205 | F71: EACH | G71: 3
C72: 49 | D72: 2506-4984000 | E72: FLOWABLE MORTAR | F72: CY | G72: 10.2
C73: 50 | D73: 2510-6745850 | E73: REMOVAL OF PAVEMENT | F73: SY | G73: 33,352.7
C74: 51 | D74: 2511-0300000 | E74: REMOVAL OF RECREATIONAL TRAIL | F74: SY | G74: 2,222.2
C75: 52 | D75: 2511-0302700 | E75: RECREATIONAL TRAIL, PORTLAND CEMENT CONCRETE, 7 IN. | F75: SY | G75: 1,901.0
C76: 53 | D76: 2511-0310100 | E76: SPECIAL COMPACTION OF SUBGRADE FOR RECREATIONAL TRAIL | F76: STA | G76: 17.00
C77: 54 | D77: 2518-6891810 | E77: PERMANENT ROAD CLOSURE, RURAL, SI-181 | F77: LF | G77: 22
C78: 55 | D78: 2518-6910000 | E78: SAFETY CLOSURE | F78: EACH | G78: 18
C79: 56 | D79: 2526-8285000 | E79: CONSTRUCTION SURVEY | F79: LS | G79: 1.00
C80: 57 | D80: 2527-9263118 | E80: PAINTED PAVEMENT MARKINGS, WATERBORNE | F80: STA | G80: 516.3
C81: 58 | D81: 2527-9263146 | E81: PAINTED SYMBOLS AND LEGENDS, WATERBORNE | F81: EACH | G81: 7
C82: 59 | D82: 2528-8445110 | E82: TRAFFIC CONTROL | F82: LS | G82: 1.00
C83: 60 | D83: 2533-4980005 | E83: MOBILIZATION | F83: LS | G83: 1.00
C84: 61 | D84: 2548-0000200 | E84: MILLED SHOULDER RUMBLE STRIPS, PCC SURFACE | F84: STA | G84: 144.4
C85: 62 | D85: 2590-0000020 | E85: PROJECT MANAGEMENT | F85: LS | G85: 1.00

Sheet DE100_1D
A1: TabTitle | B1: =C15 -> PROJECT DESCRIPTION
A2: Number of Tab Columns | B2: 1
A3: DE Starter Row Number | B3: 18
A4: TabSheet Starter Row Number | B4: 5
A5: TabSheet Header Row Count | B5: 4
A6: Top Header Cell | B6: E15
A7: Bottom Header Cell | B7: E18
A8: DESheet Row Count | B8: 6
A9: Fixed Empty Rows | B9: 2
A10: Usable Empty Rows | B10: 0
A11: Total Rows Placed | B11: 8 | C11: xlLeft(1) | E11: =C11 -> xlLeft(1)
A12: Total Rows Needed | B12: =SUM(B8:B10) -> 8 | C12: General | E12: =C12 -> General
A13: Last Tab DE Starter Row | B13: 18 | C13: =CELL("width",C13) -> 159 | E13: =CELL("width",E13) -> 0
A14: Last Tab Tabsheet Starter Row | B14: 5 | C14: A | E14: a
A15: Last Copy Starter Row | B15: 1 | C15: PROJECT DESCRIPTION | E15: 100-1D
A16: Tab Loop Number | B16: 2 | E16: =B17 -> 2005-10-18
A17: Revision Date | B17: 2005-10-18 | C17: ="This Data Entry Sheet fills Tab "&E15&" effective "&TEXT(B17,"mm-dd-yy") -> This Data Entry Sheet fills Tab 100-1D effective 10-18-05 | E17: =C15 -> PROJECT DESCRIPTION
A18: Tabulation Width | B18: 2 | C18: This project involves the two-lane to four-lane PCC reconstruction of US 63 from Wapello County Road J-12/ River Road North to the
A19: Horizontal Grid Lines | B19: No | C19: roundabout at US 34/63.
C20: A new bridge will be built over the Jefferson Drainage Ditch.
C21: The Ottumwa Bike/ Pedestrian Trail will be reconstructed and a new RCB will be built.
C22: Mary St. at US 63 will be reconstructed.
C23: Rabbit Run Road will be reconstructed.

Sheet DE100_4A
A1: TabTitle | B1: =C15 -> ESTIMATE REFERENCE INFORMATION
A2: Number of Tab Columns | B2: 3
A3: DE Starter Row Number | B3: 20
A4: TabSheet Starter Row Number | B4: 7
A5: TabSheet Header Row Count | B5: 6
A6: Top Header Cell | B6: G15
A7: Bottom Header Cell | B7: I20
A8: DESheet Row Count | B8: 202
A9: Fixed Empty Rows | B9: 20
A10: Usable Empty Rows | B10: 0
A11: Total Rows Placed | B11: 222 | C11: xlCenter | D11: xlCenter | E11: xlLeft(1) | G11: =C11 -> xlCenter | H11: xlCenter | I11: xlLeft(1)
A12: Total Rows Needed | B12: =SUM(B8:B10) -> 222 | C12: General | D12: General | E12: General | G12: General | H12: General | I12: General
A13: Last Tab DE Starter Row | B13: 188 | C13: =CELL("width",C13) -> 12 | D13: 16 | E13: 129 | G13: =CELL("width",G13) -> 0 | H13: 0 | I13: 0
A14: Last Tab Tabsheet Starter Row | B14: 187 | C14: A | D14: B | E14: C | G14: =LOWER(C14) -> a | H14: =LOWER(D14) -> b | I14: =LOWER(E14) -> c
A15: Last Copy Starter Row | B15: 181 | C15: ESTIMATE REFERENCE INFORMATION | G15: 100-4A
A16: Tab Loop Number | B16: 4 | G16: =B17 -> 2002-10-29
A17: Revision Date | B17: 2002-10-29 | C17: ="This Data Entry Sheet fills Tab "&G15&" effective "&TEXT(B17,"mm-dd-yy") -> This Data Entry Sheet fills Tab 100-4A effective 10-29-02 | G17: =C15 -> ESTIMATE REFERENCE INFORMATION
A18: Tabulation Width | B18: 2 | C18: Item No. | D18: Item Code | E18: Description
A19: Horizontal Grid Lines | B19: Yes | G19: =C18 -> Item No. | H19: =D18 -> Item Code | I19: =E18 -> Description
C20: 1 | D20: 2101-0850001 | E20: CLEARING AND GRUBBING
E21: Includes all disturbed areas. | G21: 30.0
C22: - | D22: - | E22: - | G22: 47,178.1
C23: 2 | D23: 2102-0425071 | E23: SPECIAL BACKFILL | G23: 63,743.0
E24: See Tab. 112-9M in the C Sheets for locations and details. | G24: 132,853.0
G25: 52,340.0
C26: - | D26: - | E26: - | G26: 151,225.0
C27: 3 | D27: 2102-2624980 | E27: CONTRACTOR FURNISHED SELECT TREATMENT | G27: 48,949.1
E28: See Typical Cross-sections in the B sheets and Tab. 103-11 in the C sheets for locations and details | G28: 2,085.0
C29: - | D29: - | E29: - | G29: 0.0
C30: 4 | D30: 2102-2625001 | E30: EMBANKMENT-IN-PLACE, CONTRACTOR FURNISHED | G30: 0.0
C31: 5 | D31: 2102-2710070 | E31: EXCAVATION, CLASS 10, ROADWAY AND BORROW | G31: 146.20
E32: See Tab. 107-28 in the T sheets for locations and details. | G32: 47,160.3
C33: - | D33: - | E33: -
C34: 6 | D34: 2102-2712015 | E34: EXCAVATION, CLASS 12, BOULDERS OR ROCK FRAGMENTS | G34: 7,795.6
E35: See Tab. 103-7 in the CS sheets for locations and details. | G35: 144
C36: - | D36: - | E36: - | G36: 229.2
C37: 7 | D37: 2102-4560000 | E37: LOCATING TILE LINES | G37: 3,432.8
E38: Estimated at twice the length of project. | G38: 35,420.0
C39: - | D39: - | E39: - | G39: 2,222.2
C40: 8 | D40: 2105-8425015 | E40: TOPSOIL, STRIP, SALVAGE AND SPREAD | G40: 0.0
E41: See Tab. 107-28 in the T sheets for locations and details. | G41: 1
G42: 9
C43: - | D43: - | E43: - | G43: 1.00
C44: 9 | D44: 2107-0425020 | E44: COMPACTING BACKFILL ADJACENT TO BRIDGES, CULVERTS OR STRUCTU RES | G44: See Proposal
E45: See Tab. 104-4 in the CD sheets for locations and details. | G45: 1.00
C46: - | D46: - | E46: -
C47: 10 | D47: 2107-0875100 | E47: COMPACTION WITH MOISTURE CONTROL
E48: See Tab. 107-28 in the T sheets for locations and details.
C50: - | D50: - | E50: -
C51: 11 | D51: 2111-8174100 | E51: GRANULAR SUBBASE
C52: 12 | D52: 2115-0100000 | E52: MODIFIED SUBBASE
E53: See Tab. 100-24 in the C Sheets for locations and details.
C54: - | D54: - | E54: -
C55: 13 | D55: 2121-7425010 | E55: GRANULAR SHOULDERS, TYPE A
E56: See Tab. 112-9M and Tab. 113-3M in the C sheets for locations and details.
C57: - | D57: - | E57: -
C58: 14 | D58: 2122-5190006 | E58: PAVED SHOULDER, P.C. CONCRETE, 6 IN.
E59: See 7156M in the B sheets and Tab. 112-9M in the C sheets for locations and details.
C60: - | D60: - | E60: -
C61: 15 | D61: 2122-5190010 | E61: PAVED SHOULDER, P.C. CONCRETE, 10 IN.
E62: See Tab. 112-9M in the C Sheets for locations and details.
C64: - | D64: - | E64: -
C65: 16 | D65: 2123-7450000 | E65: SHOULDER CONSTRUCTION, EARTH
E66: See Tab. 112-9M in the C sheets for locations and details.
E68: Approximately 19,563 CY of topsoil is available on the project for Earth Shoulder Fill.
C69: - | D69: - | E69: -
C70: 17 | D70: 2301-1003100 | E70: STANDARD OR SLIP-FORM PORTLAND CEMENT CONCRETE PAVEMENT, QM- C, CLASS 3 DURABILITY, 10 IN.
E71: See Tab 100-24 in the C Sheets for locations and details.
C72: - | D72: - | E72: -
C73: 18 | D73: 2301-4875006 | E73: MEDIAN, P.C. CONCRETE, 6 IN.
E74: See Typicals in the B sheets and Tab. 112-5 in the C sheets for locations and details.
C75: - | D75: - | E75: -
C76: 19 | D76: 2301-6911722 | E76: PORTLAND CEMENT CONCRETE PAVEMENT SAMPLES
E77: - -
C78: - | D78: - | E78: -
C79: 20 | D79: 2315-8275025 | E79: SURFACING, DRIVEWAY, CLASS A CRUSHED STONE
E80: See Tab. 102-3 in the C sheets for locations and details.
C81: - | D81: - | E81: -
C82: 21 | D82: 2401-6745625 | E82: REMOVAL OF EXISTING BRIDGE
E83: REMOVAL OF EXISTING BRIDGE" INCLUDES ALL COSTS ASSOCIATED WITH REMOVING THE EXISTING 250' x 30' CONTINUOUS
E84: STEEL BEAM BRIDGE, DESIGN NO. 1862 AND BRIDGE MAINTENANCE NO. 9033.0S063. ELECTRONIC PLANS OF THE EXISTING
E85: STRUCTURE ARE AVAILABLE TO THE CONTRACTOR AS PART OF THE E-FILES SUPPLIED WITH THE CONTRACT DOCUMENTS.
E87: REMOVALS SHALL BE IN ACCORDANCE WITH SECTION 2401, OF THE STANDARD SPECIFICATIONS. ANY DAMAGE TO OTHER PORTIONS
E88: OF THE EXISTING STRUCTURE NOT NOTED FOR REMOVAL SHALL BE THE RESPONSIBILITY OF THE BRIDGE CONTRACTOR AND SHALL
E89: BE REPAIRED AT NO EXTRA COST TO THE STATE.
E91: A SCRAPE SAMPLE WAS TAKEN FROM AN AREA OF THIS BRIDGE TO GET AN INDICATION OF THE EXISTENCE OF AND LEVEL OF
E92: TOTAL LEAD AND TOTAL CHROMIUM. ANALYSIS OF TOTAL LEAD ON THIS SAMPLE WAS 500 PARTS PER MILLION (PPM). ANALYSIS
E93: OF TOTAL CHROMIUM ON THIS SAMPLE WAS 3000 PPM. THESE ANALYSES SHOW THE EXISTENCE OF THESE TWO TOXIC
E94: CONSTITUENTS. LEVELS INDICATED BY THESE TESTS COULD CREATE CONDITIONS ABOVE REGULATORY LIMITS FOR HEALTH AND
E95: SAFETY REQUIREMENTS.
E97: NO OTHER CONSTITUENTS WERE ANALYZED. THE BIDDER SHOULD NOT RELY ON THE IOWA DOT'S TESTING AND ANALYSIS FOR ANY
E98: PURPOSE OTHER THAN AS AN INDICATION OF THE EXISTENCE OF THESE TWO TOXIC CONSTITUENTS.
C100: - | D100: - | E100: -
C104: 22 | D104: 2402-0425040 | E104: FLOODED BACKFILL
E105: See Tab. 104-3 and 104-4 in the CD Sheets for locations and details.
C107: - | D107: - | E107: -
C108: 23 | D108: 2402-2720100 | E108: EXCAVATION, CLASS 20, FOR ROADWAY PIPE CULVERT
E109: See Tab. 104-3 in the CD Sheets for locations and details.
C111: - | D111: - | E111: -
C112: 24 | D112: 2416-0100018 | E112: APRONS, CONCRETE, 18 IN. DIA.
E113: See Tab 104-5B in the M SHeets for locations and details.
C115: - | D115: - | E115: -
C116: 25 | D116: 2416-0100030 | E116: APRONS, CONCRETE, 30 IN. DIA.
C117: 26 | D117: 2416-0100048 | E117: APRONS, CONCRETE, 48 IN. DIA.
C118: 27 | D118: 2416-0102224 | E118: APRON, LOW CLEARANCE CONCRETE, EQUIVALENT DIAMETER 24 IN.
C119: 28 | D119: 2416-1180030 | E119: CULVERT, CONCRETE ROADWAY PIPE, 30 IN. DIA.
C120: 29 | D120: 2416-1180048 | E120: CULVERT, CONCRETE ROADWAY PIPE, 48 IN. DIA.
C121: 30 | D121: 2416-1200224 | E121: CULVERT, LOW CLEARANCE CONCRETE ROADWAY PIPE, EQUIVALENT DIA METER 24 IN.
E122: See Tab. 104-3 in the CD Sheets for locations and details.
C123: - | D123: - | E123: -
C124: 31 | D124: 2422-0360000 | E124: UNCLASSIFIED APRONS, 12 IN.
E125: See Tab. 102-3 in the C Sheets for locations and details.
C127: - | D127: - | E127: -
C128: 32 | D128: 2422-0360000 | E128: UNCLASSIFIED APRONS, 30 IN. ARCH
E129: See Tab. 104-3 in the CD Sheets for locations and details.
C131: - | D131: - | E131: -
C132: 33 | D132: 2422-1720000 | E132: UNCLASSIFIED PIPE CULVERT, 12 IN.
E133: See Tab. 102-3 in the C Sheets for locations and details.
C135: - | D135: - | E135: -
C136: 34 | D136: 2422-1720000 | E136: UNCLASSIFIED PIPE CULVERT, 30 IN. ARCH
E137: See Tab. 104-3 in the CD Sheets for locations and details.
C139: - | D139: - | E139: -
C140: 35 | D140: 2435-0250800 | E140: INTAKE, SW-508
C141: 36 | D141: 2435-0251000 | E141: INTAKE, SW-510
E142: See Tab 104-5B in the M SHeets for locations and details.
C143: - | D143: - | E143: -
C144: 37 | D144: 2435-0256200 | E144: INTAKE, SW-562
E145: See Tab 104-5A in the CD Sheets for locations and details.
C146: - | D146: - | E146: -
C147: 38 | D147: 2502-2308100 | E147: TRENCH DRAIN
E148: See Tab 104-14M in the C Sheets for locations and details.
C149: - | D149: - | E149: -
C150: 39 | D150: 2502-8212034 | E150: SUBDRAIN, LONGITUDINAL, (SHOULDER) 4 IN. DIA.
C151: 40 | D151: 2502-8221306 | E151: SUBDRAIN OUTLET, DR-306
E152: See Tab. 104-9 in the CS Sheets for locations an details.
C153: - | D153: - | E153: -
C154: 41 | D154: 2503-0110018 | E154: STORM SEWER GRAVITY MAIN, TRENCHED, 18 IN.
E155: See Tab 104-5B in the M SHeets for locations and details.
C157: - | D157: - | E157: -
C158: 42 | D158: 2503-0500402 | E158: BRIDGE END DRAIN, DR-402
E159: See Tab. 104-8A in the C sheets for locations and details.
C160: - | D160: - | E160: -
C161: 43 | D161: 2505-4008120 | E161: REMOVAL OF STEEL BEAM GUARDRAIL
E162: See Tab. 110-7A in the C sheets for locations and details.
C163: - | D163: - | E163: -
C164: 44 | D164: 2505-4008300 | E164: STEEL BEAM GUARDRAIL
E165: See Tab 108-8A and 108-8C in the C Sheets for locations and details.
C167: - | D167: - | E167: -
C168: 45 | D168: 2505-4008410 | E168: STEEL BEAM GUARDRAIL BARRIER TRANSITION SECTION, BA-201
C169: 46 | D169: 2505-4021010 | E169: STEEL BEAM GUARDRAIL END ANCHOR, BOLTED
E170: See Tab. 108-8A in the C Sheets for locations and details.
C171: - | D171: - | E171: -
C172: 47 | D172: 2505-4021020 | E172: STEEL BEAM GUARDRAIL END ANCHOR, W-BEAM
E173: See Tab. 108-8C in the C Sheets for locations and details.
C174: - | D174: - | E174: -
C175: 48 | D175: 2505-4021720 | E175: STEEL BEAM GUARDRAIL TANGENT END TERMINAL, BA-205
E176: See Tab 108-8A and 108-8C in the C Sheets for locations and details.
C178: - | D178: - | E178: -
C179: 49 | D179: 2506-4984000 | E179: FLOWABLE MORTAR
E180: See Tab. 104-3 in the CD Sheets for locations and details.
E182: See Tab 104-3 in the CD sheets for locations and details.
C183: - | D183: - | E183: -
C184: 50 | D184: 2510-6745850 | E184: REMOVAL OF PAVEMENT
E185: See Tab. 110-1 and Tab. 102-5 in the C sheets for locations and details.
C186: - | D186: - | E186: -
C188: 51 | D188: 2511-0300000 | E188: REMOVAL OF RECREATIONAL TRAIL
E189: See Tab. 110-5 in the C sheets for locations and details
C190: - | D190: - | E190: -
C191: 52 | D191: 2511-0302700 | E191: RECREATIONAL TRAIL, PORTLAND CEMENT CONCRETE, 7 IN.
C192: 53 | D192: 2511-0310100 | E192: SPECIAL COMPACTION OF SUBGRADE FOR RECREATIONAL TRAIL
E193: See Tab. 113-3M in the C Sheets for locations and details.
C194: - | D194: - | E194: -
C195: 54 | D195: 2518-6891810 | E195: PERMANENT ROAD CLOSURE, RURAL, SI-181
E196: See Tab. 102-4 in the C sheets for locations and details.
C197: - | D197: - | E197: -
C198: 55 | D198: 2518-6910000 | E198: SAFETY CLOSURE
E199: See Tab. 108-13A in the C sheets and Tab. 113-2 in the J sheets for locations and details.
C200: - | D200: - | E200: -
C201: 56 | D201: 2526-8285000 | E201: CONSTRUCTION SURVEY
E202: - -
C203: - | D203: - | E203: -
C204: 57 | D204: 2527-9263118 | E204: PAINTED PAVEMENT MARKINGS, WATERBORNE
E205: See Tab. 108-22 in the C sheets and the U sheets for locations and details.
C206: - | D206: - | E206: -
C207: 58 | D207: 2527-9263146 | E207: PAINTED SYMBOLS AND LEGENDS, WATERBORNE
E208: See Tab. 108-29 in the C Sheets for locations and details.
C209: - | D209: - | E209: -
C210: 59 | D210: 2528-8445110 | E210: TRAFFIC CONTROL
E211: - -
C212: - | D212: - | E212: -
C213: 60 | D213: 2533-4980005 | E213: MOBILIZATION
E214: - -
C215: - | D215: - | E215: -
C216: 61 | D216: 2548-0000200 | E216: MILLED SHOULDER RUMBLE STRIPS, PCC SURFACE
E217: See Tab. 112-10 in the C Sheets for locations and details.
C218: - | D218: - | E218: -
C219: 62 | D219: 2590-0000020 | E219: PROJECT MANAGEMENT
E220: Bid item is for all tied projects in the contract.
C221: - | D221: - | E221: -

Sheet DE100_24
A1: TabTitle | B1: =C16 -> PCC PAVEMENT
A2: Number of Tab Columns | B2: 21
A3: DE Starter Row Number | B3: 55
A4: TabSheet Starter Row Number | B4: 41
A5: TabSheet Header Row Count | B5: 40
A6: Top Header Cell | B6: Y15
A7: Bottom Header Cell | B7: AS54
A8: DESheet Row Count | B8: 36
A9: Fixed Empty Rows | B9: 15
A10: Usable Empty Rows | B10: 0
A11: Total Rows Placed | B11: 51 | C11: xlLeft(1) | D11: xlLeft(1) | E11: xlRight(1) | F11: xlRight(1) | G11: xlRight(1) | H11: xlRight(1) | I11: xlRight(1) | J11: xlRight(1) | K11: xlRight(1) | L11: xlRight(1) | M11: xlRight(1) | N11: xlRight(1) | O11: xlRight(1) | P11: xlRight(1) | Q11: xlRight(1) | R11: xlRight(1) | S11: xlRight(1) | T11: xlRight(1) | U11: xlRight(1) | V11: xlRight(1) | W11: xlLeft(1) | Y11: =C11 -> xlLeft(1) | Z11: xlLeft(1) | AA11: xlRight(1) | AB11: xlRight(1) | AC11: xlRight(1) | AD11: xlRight(1) | AE11: xlRight(1) | AF11: xlRight(1) | AG11: xlRight(1) | AH11: xlRight(1) | AI11: xlRight(1) | AJ11: xlRight(1) | AK11: xlRight(1) | AL11: xlRight(1) | AM11: xlRight(1) | AN11: xlRight(1) | AO11: =S11 -> xlRight(1) | AP11: xlRight(1) | AQ11: xlRight(1) | AR11: xlRight(1) | AS11: xlLeft(1)
A12: Total Rows Needed | B12: =SUM(B8:B10) -> 51 | C12: General | D12: General | E12: #+00.00 | F12: #+00.00 | G12: 0.0 | H12: 0.0 | I12: 0.0 | J12: 0.0 | K12: 0.0 | L12: 0.0 | M12: 0.0 | N12: 0.0 | O12: 0.0 | P12: 0.0 | Q12: 0.0 | R12: 0.0 | S12: 0.0 | T12: 0.0 | U12: 0.0 | V12: 0.0 | W12: General | Y12: General | Z12: General | AA12: #+00.00 | AB12: #+00.00 | AC12: 0.0 | AD12: 0.0 | AE12: 0.0 | AF12: 0.0 | AG12: 0.0 | AH12: 0.0 | AI12: 0.0 | AJ12: 0.0 | AK12: 0.0 | AL12: 0.0 | AM12: 0.0 | AN12: 0.0 | AO12: 0.0 | AP12: 0.0 | AQ12: 0.0 | AR12: 0.0 | AS12: General
A13: Last Tab DE Starter Row | B13: 105 | C13: =CELL("width",C13) -> 34 | D13: 11 | E13: 16 | F13: 16 | G13: 9 | H13: 9 | I13: 9 | J13: 10 | K13: 10 | L13: 10 | M13: 10 | N13: 10 | O13: 10 | P13: 10 | Q13: 10 | R13: 10 | S13: 10 | T13: 10 | U13: 10 | V13: 10 | W13: 76 | Y13: =CELL("width",Y13) -> 0 | Z13: 0 | AA13: 0 | AB13: 0 | AC13: 0 | AD13: 0 | AE13: 0 | AF13: 0 | AG13: 0 | AH13: 0 | AI13: 0 | AJ13: 0 | AK13: 0 | AL13: 0 | AM13: 0 | AN13: 0 | AO13: 0 | AP13: 0 | AQ13: 0 | AR13: 0 | AS13: 0
A14: Last Tab TabSheet Starter Row | B14: 131 | C14: A | D14: B | E14: C | F14: D | G14: E | H14: F | I14: G | J14: H | K14: I | L14: J | M14: K | N14: L | O14: M | P14: N | Q14: O | R14: P | S14: Q | T14: R | U14: S | V14: T | W14: U | Y14: =LOWER(C14) -> a | Z14: b | AA14: c | AB14: d | AC14: e | AD14: f | AE14: g | AF14: h | AG14: i | AH14: j | AI14: k | AJ14: l | AK14: m | AL14: n | AM14: o | AN14: p | AO14: q | AP14: r | AQ14: s | AR14: t | AS14: u
A15: Last Copy Starter Row | B15: 91 | R15: =SUBTOTAL(9,R55:R6003) -> 95203.16713 | S15: =SUBTOTAL(9,S55:S6003) -> 0 | U15: =SUBTOTAL(9,U54:U6003) -> 3233.832748 | V15: =SUBTOTAL(9,V54:V6003) -> 138780.3189 | Y15: 100-24
A16: Tab Loop Number | B16: 3 | C16: PCC PAVEMENT | Y16: =B17 -> 2015-04-21
A17: Revision Date | B17: 2015-04-21 | Y17: =C16 -> PCC PAVEMENT
A18: Tabulation Width | B18: 4 | C18: ="This Data Entry Sheet fills Tab "&Y15&" effective "&TEXT(B17,"mm-dd-yy") -> This Data Entry Sheet fills Tab 100-24 effective 04-21-15
A19: Horizontal Grid Lines | B19: Yes
W38: Does not include raised island area or curb. Refer to tabulation 112-4 for quantities. | AS38: =W38 -> Does not include raised island area or curb. Refer to tabulation 112-4 for quantities.
W41: Refer to PV-410, PV-411, PV-412, and PV-414. | AS41: =W41 -> Refer to PV-410, PV-411, PV-412, and PV-414.
W43: Quantity includes Pavement Header. | AS43: =W43 -> Quantity includes Pavement Header.
C49: Location | G49: Mainline | J49: Area | R49: Total Area By Pavement Thickness | T49: Special Backfill | U49: Modified Subbase | V49: Granular Subbase | W49: Remarks | Y49: =C49 -> Location | AC49: =G49 -> Mainline | AF49: =J49 -> Area | AN49: =R49 -> Total Area By Pavement Thickness | AP49: =T49 -> Special Backfill | AQ49: =U49 -> Modified Subbase | AR49: =V49 -> Granular Subbase | AS49: =W49 -> Remarks
C50: Road Identification | D50: Direction of Travel | E50: Station to Station | G50: Width | H50: Length | I50: Area | Y50: =C50 -> Road Identification | Z50: =D50 -> Direction of Travel | AA50: =E50 -> Station to Station | AC50: =G50 -> Width | AD50: =H50 -> Length | AE50: =I50 -> Area
R53: SY | AN53: =R53 -> SY
G54: FT | H54: FT | I54: SY | J54: SY | K54: SY | L54: SY | M54: SY | N54: SY | O54: SY | P54: SY | Q54: SY | R54: 10 IN | S54: 10½ IN | T54: TONS | U54: CY | V54: SY | AC54: =G54 -> FT | AD54: FT | AE54: SY | AF54: SY | AG54: SY | AH54: SY | AI54: SY | AJ54: SY | AK54: SY | AL54: SY | AM54: SY | AN54: =R54 -> 10 IN | AO54: =S54 -> 10½ IN | AP54: =T54 -> TONS | AQ54: =U54 -> CY | AR54: =V54 -> SY
H55: =IF(AND($E55<>"",$F55<>""),$F55-$E55,"") ->  | I55: =IF(AND($G55<>"",$H55<>""),$G55*$H55/9,"") -> 
C56: US 63 | D56: NB | E56: 84155 | F56: 84362.82 | G56: 30-26 | H56: 207.82 | I56: =H56*28/9 -> 646.5511111 | R56: =SUM(I56:Q56) -> 646.5511111 | V56: =R56+((3+4)*H56/9) -> 808.1888889
C57: US 63 | D57: NB | E57: 84362.82 | F57: 85260.95 | G57: 26 | H57: 898.13 | I57: 2594.597778 | Q57: =4039.07/9 -> 448.7855556 | R57: =SUM(I57:Q57) -> 3043.383333 | V57: =R57+((3+4)*H57/9) -> 3741.928889
C58: US 63 | D58: NB | E58: 85260.95 | F58: 87000.62 | G58: 26 | H58: 1739.67 | I58: =IF(AND($G58<>"",$H58<>""),$G58*$H58/9,"") -> 5025.713333 | R58: 5025.713333 | V58: =R58+((3+4+7)*H58/9)+960.2+72.655 -> 8764.721667
C59: BRIDGE
C60: US 63 | D60: NB | E60: 87310.53 | F60: 88161 | G60: 26 | H60: 850.47 | I60: 2456.913333 | R60: 2456.913333 | V60: =R60+((3+4+7)*H60/9)+504.96 -> 4284.826667
C61: US 63 | D61: NB | E61: 88161 | F61: 88239 | G61: 26 | H61: 78 | I61: 225.3333333 | Q61: 104 | R61: 329.3333333 | V61: =R61+(4*H61/9) -> 364
C62: US 63 | D62: NB | E62: 88239 | F62: 89405 | G62: 26 | H62: 1166 | I62: 3368.444444 | R62: 3368.444444 | V62: =R62+((3+4+7)*H62/9)+672.06 -> 5854.282222
C63: US 63 | D63: NB | E63: 89405 | F63: 89754 | G63: 26 | H63: 349 | I63: =G63*H63/9 -> 1008.222222 | Q63: 385.27 | R63: 1393.492222 | V63: =R63+((3+4+1)*H63/9)+20 -> 1723.714444
C64: US 63 | D64: NB | E64: 89754 | F64: 90164.56 | G64: 26 | H64: 410.56 | I64: =G64*H64/9 -> 1186.062222 | R64: 1186.062222 | V64: =R64+((3+4+7)*H64/9)+226.94 -> 2051.651111
C65: US 63 | D65: NB | E65: 90164.56 | F65: 90499.63 | G65: 26 | H65: 335.07 | I65: =G65*H65/9 -> 967.98 | R65: 967.98 | V65: =R65+((3+4+4)*H65/9)+236.23 -> 1613.74
C66: US 63 | D66: NB | E66: 90499.63 | F66: 91420 | G66: 26 | H66: 920.37 | I66: =G66*H66/9 -> 2658.846667 | R66: 2658.846667 | V66: =R66+((3+4+0.8125)*H66/9)+766.97 -> 4224.748958
C67: US 63 | D67: NB | E67: 91420 | F67: 91745 | G67: 26-24 | H67: 325 | I67: =25*H67/9 -> 902.7777778 | R67: 902.7777778 | V67: =R67+((3+4+0.25)*H67/9)+273.486 -> 1438.069333
C69: US 63 | D69: SB | E69: 84155 | F69: 84362.82 | G69: 26 | H69: 207.82 | I69: 600.3688889 | R69: 600.3688889 | V69: =R69+((3+4)*H69/9) -> 762.0066667
C70: US 63 | D70: SB | E70: 84362.82 | F70: 85260.95 | G70: 26 | H70: 898.13 | I70: 2594.597778 | Q70: 345.84 | R70: 2940.437778 | V70: =R70+((3+4)*H70/9) -> 3638.983333
C71: US 63 | D71: SB | E71: 85260.95 | F71: 87000.62 | G71: 26 | H71: 1739.67 | I71: 5025.713333 | R71: 5025.713333 | V71: =R71+((3+4+7)*H71/9)+960.2 -> 8692.066667
C72: BRIDGE
C73: US 63 | D73: SB | E73: 87310.53 | F73: 88161 | G73: 26 | H73: 850.47 | I73: 2456.913333 | R73: 2456.913333 | V73: =R73+((3+4+7)*H73/9)+504.96 -> 4284.826667
C74: US 63 | D74: SB | E74: 88161 | F74: 88560 | G74: 26 | H74: 399 | I74: 1152.666667 | Q74: 450.08 | R74: 1602.746667 | V74: =R74+((3+4+1)*H74/9)+19.9 -> 1977.313333
C75: US 63 | D75: SB | E75: 88560 | F75: 89676 | G75: 26 | H75: 1116 | I75: 3224 | R75: 3224 | V75: =R75+((3+4+7)*H75/9)+648.81 -> 5608.81
C76: US 63 | D76: SB | E76: 89676 | F76: 89754 | G76: 26 | H76: 78 | I76: 225.3333333 | Q76: 104 | R76: 329.3333333 | V76: =R76+((4)*H76/9) -> 364
C77: US 63 | D77: SB | E77: 89754 | F77: 90146.24 | G77: 26 | H77: 392.24 | I77: 1133.137778 | R77: 1133.137778 | V77: =R77+((3+4+7)*H77/9)+226.94 -> 1970.228889
C78: US 63 | D78: SB | E78: 90146.24 | F78: 90463.71 | G78: 26 | H78: 317.47 | I78: 917.1355556 | R78: 917.1355556 | V78: =R78+((3+4+4)*H78/9)+236.23 -> 1541.384444 | W78: Includes Gore
C79: US 63 | D79: SB | E79: 90463.71 | F79: 91420 | G79: 26 | H79: 956.29 | I79: 2762.615556 | R79: 2762.615556 | V79: =R79+((3+4+0.8125)*H79/9)+766.97 -> 4359.698403
C80: US 63 | D80: SB | E80: 91420 | F80: 91745 | G80: 12 | H80: 325 | I80: 433.3333333 | O80: 352.34 | R80: =SUM(I80:P80) -> 785.6733333 | V80: =R80+((3+4+0.25)*H80/9)+273.49 -> 1320.968889
C82: RAMP | D82: SB | E82: 91598.22 | F82: 91853.53 | G82: 15 | H82: 255.31 | I82: 425.5166667 | R82: =SUM(I82:P82) -> 425.5166667 | U82: =(R82+((3+3+4+4)*H82/9))*((12/12)/3) -> 274.2218519
C84: RABBIT RUN RD | D84: EB/WB | E84: 882038 | F84: 882606 | G84: 24 | H84: 568 | I84: 1514.666667 | J84: 503.7 | K84: 220.3 | R84: 2238.666667 | U84: =(R84+((3)*(651.02+681.17)/9))*((12/12)/3) -> 894.2433333
C85: RABBIT RUN RD RETURNS (AT EXISTING RABBIT RUN RD) | J85: 72.8069 | K85: 72.8 | R85: =SUM(I85:Q85) -> 145.6069 | U85: =R85*((12/12)/3) -> 48.53563333
C87: MARY STREET | D87: EB/WB | E87: 896815 | F87: 896973.46 | G87: 33 | H87: 158.46 | I87: 581.02 | J87: 206.9 | K87: 246.3 | R87: 1034.22 | U87: =(R87+(3*(326.27+170.31)/9))*((12/12)/3) -> 399.9155556
C90: TOTALS: | R90: =SUM(R56:R88) -> 47601.58357 | U90: =SUM(U56:U88) -> 1616.916374 | V90: =SUM(V56:V88) -> 69390.15947
H122: =IF(AND($E122<>"",$F122<>""),$F122-$E122,"") ->  | I122: =IF(AND($G122<>"",$H122<>""),$G122*$H122/9,"") -> 
H186: =IF(AND($E186<>"",$F186<>""),$F186-$E186,"") ->  | I186: =IF(AND($G186<>"",$H186<>""),$G186*$H186/9,"") -> 
H250: =IF(AND($E250<>"",$F250<>""),$F250-$E250,"") ->  | I250: =IF(AND($G250<>"",$H250<>""),$G250*$H250/9,"") -> 
H314: =IF(AND($E314<>"",$F314<>""),$F314-$E314,"") ->  | I314: =IF(AND($G314<>"",$H314<>""),$G314*$H314/9,"") -> 
H378: =IF(AND($E378<>"",$F378<>""),$F378-$E378,"") ->  | I378: =IF(AND($G378<>"",$H378<>""),$G378*$H378/9,"") -> 
H442: =IF(AND($E442<>"",$F442<>""),$F442-$E442,"") ->  | I442: =IF(AND($G442<>"",$H442<>""),$G442*$H442/9,"") -> 
H506: =IF(AND($E506<>"",$F506<>""),$F506-$E506,"") ->  | I506: =IF(AND($G506<>"",$H506<>""),$G506*$H506/9,"") -> 
H570: =IF(AND($E570<>"",$F570<>""),$F570-$E570,"") ->  | I570: =IF(AND($G570<>"",$H570<>""),$G570*$H570/9,"") -> 
H634: =IF(AND($E634<>"",$F634<>""),$F634-$E634,"") ->  | I634: =IF(AND($G634<>"",$H634<>""),$G634*$H634/9,"") -> 
H698: =IF(AND($E698<>"",$F698<>""),$F698-$E698,"") ->  | I698: =IF(AND($G698<>"",$H698<>""),$G698*$H698/9,"") -> 
H762: =IF(AND($E762<>"",$F762<>""),$F762-$E762,"") ->  | I762: =IF(AND($G762<>"",$H762<>""),$G762*$H762/9,"") -> 
H826: =IF(AND($E826<>"",$F826<>""),$F826-$E826,"") ->  | I826: =IF(AND($G826<>"",$H826<>""),$G826*$H826/9,"") -> 
H890: =IF(AND($E890<>"",$F890<>""),$F890-$E890,"") ->  | I890: =IF(AND($G890<>"",$H890<>""),$G890*$H890/9,"") -> 
H954: =IF(AND($E954<>"",$F954<>""),$F954-$E954,"") ->  | I954: =IF(AND($G954<>"",$H954<>""),$G954*$H954/9,"") -> 
H1018: =IF(AND($E1018<>"",$F1018<>""),$F1018-$E1018,"") ->  | I1018: =IF(AND($G1018<>"",$H1018<>""),$G1018*$H1018/9,"") -> 
H1082: =IF(AND($E1082<>"",$F1082<>""),$F1082-$E1082,"") ->  | I1082: =IF(AND($G1082<>"",$H1082<>""),$G1082*$H1082/9,"") -> 
H1146: =IF(AND($E1146<>"",$F1146<>""),$F1146-$E1146,"") ->  | I1146: =IF(AND($G1146<>"",$H1146<>""),$G1146*$H1146/9,"") -> 
H1210: =IF(AND($E1210<>"",$F1210<>""),$F1210-$E1210,"") ->  | I1210: =IF(AND($G1210<>"",$H1210<>""),$G1210*$H1210/9,"") -> 
H1274: =IF(AND($E1274<>"",$F1274<>""),$F1274-$E1274,"") ->  | I1274: =IF(AND($G1274<>"",$H1274<>""),$G1274*$H1274/9,"") -> 
H1338: =IF(AND($E1338<>"",$F1338<>""),$F1338-$E1338,"") ->  | I1338: =IF(AND($G1338<>"",$H1338<>""),$G1338*$H1338/9,"") -> 
H1402: =IF(AND($E1402<>"",$F1402<>""),$F1402-$E1402,"") ->  | I1402: =IF(AND($G1402<>"",$H1402<>""),$G1402*$H1402/9,"") -> 
H1466: =IF(AND($E1466<>"",$F1466<>""),$F1466-$E1466,"") ->  | I1466: =IF(AND($G1466<>"",$H1466<>""),$G1466*$H1466/9,"") -> 
H1530: =IF(AND($E1530<>"",$F1530<>""),$F1530-$E1530,"") ->  | I1530: =IF(AND($G1530<>"",$H1530<>""),$G1530*$H1530/9,"") -> 
H1594: =IF(AND($E1594<>"",$F1594<>""),$F1594-$E1594,"") ->  | I1594: =IF(AND($G1594<>"",$H1594<>""),$G1594*$H1594/9,"") -> 
H1658: =IF(AND($E1658<>"",$F1658<>""),$F1658-$E1658,"") ->  | I1658: =IF(AND($G1658<>"",$H1658<>""),$G1658*$H1658/9,"") -> 
H1722: =IF(AND($E1722<>"",$F1722<>""),$F1722-$E1722,"") ->  | I1722: =IF(AND($G1722<>"",$H1722<>""),$G1722*$H1722/9,"") -> 
H1786: =IF(AND($E1786<>"",$F1786<>""),$F1786-$E1786,"") ->  | I1786: =IF(AND($G1786<>"",$H1786<>""),$G1786*$H1786/9,"") -> 
H1850: =IF(AND($E1850<>"",$F1850<>""),$F1850-$E1850,"") ->  | I1850: =IF(AND($G1850<>"",$H1850<>""),$G1850*$H1850/9,"") -> 
H1914: =IF(AND($E1914<>"",$F1914<>""),$F1914-$E1914,"") ->  | I1914: =IF(AND($G1914<>"",$H1914<>""),$G1914*$H1914/9,"") -> 
H1978: =IF(AND($E1978<>"",$F1978<>""),$F1978-$E1978,"") ->  | I1978: =IF(AND($G1978<>"",$H1978<>""),$G1978*$H1978/9,"") -> 
H2042: =IF(AND($E2042<>"",$F2042<>""),$F2042-$E2042,"") ->  | I2042: =IF(AND($G2042<>"",$H2042<>""),$G2042*$H2042/9,"") -> 
H2106: =IF(AND($E2106<>"",$F2106<>""),$F2106-$E2106,"") ->  | I2106: =IF(AND($G2106<>"",$H2106<>""),$G2106*$H2106/9,"") -> 
H2170: =IF(AND($E2170<>"",$F2170<>""),$F2170-$E2170,"") ->  | I2170: =IF(AND($G2170<>"",$H2170<>""),$G2170*$H2170/9,"") -> 
H2234: =IF(AND($E2234<>"",$F2234<>""),$F2234-$E2234,"") ->  | I2234: =IF(AND($G2234<>"",$H2234<>""),$G2234*$H2234/9,"") -> 
H2298: =IF(AND($E2298<>"",$F2298<>""),$F2298-$E2298,"") ->  | I2298: =IF(AND($G2298<>"",$H2298<>""),$G2298*$H2298/9,"") -> 
H2362: =IF(AND($E2362<>"",$F2362<>""),$F2362-$E2362,"") ->  | I2362: =IF(AND($G2362<>"",$H2362<>""),$G2362*$H2362/9,"") -> 
H2426: =IF(AND($E2426<>"",$F2426<>""),$F2426-$E2426,"") ->  | I2426: =IF(AND($G2426<>"",$H2426<>""),$G2426*$H2426/9,"") -> 
H2490: =IF(AND($E2490<>"",$F2490<>""),$F2490-$E2490,"") ->  | I2490: =IF(AND($G2490<>"",$H2490<>""),$G2490*$H2490/9,"") -> 
H2554: =IF(AND($E2554<>"",$F2554<>""),$F2554-$E2554,"") ->  | I2554: =IF(AND($G2554<>"",$H2554<>""),$G2554*$H2554/9,"") -> 
H2618: =IF(AND($E2618<>"",$F2618<>""),$F2618-$E2618,"") ->  | I2618: =IF(AND($G2618<>"",$H2618<>""),$G2618*$H2618/9,"") -> 
H2682: =IF(AND($E2682<>"",$F2682<>""),$F2682-$E2682,"") ->  | I2682: =IF(AND($G2682<>"",$H2682<>""),$G2682*$H2682/9,"") -> 
H2746: =IF(AND($E2746<>"",$F2746<>""),$F2746-$E2746,"") ->  | I2746: =IF(AND($G2746<>"",$H2746<>""),$G2746*$H2746/9,"") -> 
H2810: =IF(AND($E2810<>"",$F2810<>""),$F2810-$E2810,"") ->  | I2810: =IF(AND($G2810<>"",$H2810<>""),$G2810*$H2810/9,"") -> 
H2874: =IF(AND($E2874<>"",$F2874<>""),$F2874-$E2874,"") ->  | I2874: =IF(AND($G2874<>"",$H2874<>""),$G2874*$H2874/9,"") -> 
H2938: =IF(AND($E2938<>"",$F2938<>""),$F2938-$E2938,"") ->  | I2938: =IF(AND($G2938<>"",$H2938<>""),$G2938*$H2938/9,"") -> 
H3002: =IF(AND($E3002<>"",$F3002<>""),$F3002-$E3002,"") ->  | I3002: =IF(AND($G3002<>"",$H3002<>""),$G3002*$H3002/9,"") -> 
H3066: =IF(AND($E3066<>"",$F3066<>""),$F3066-$E3066,"") ->  | I3066: =IF(AND($G3066<>"",$H3066<>""),$G3066*$H3066/9,"") -> 
H3130: =IF(AND($E3130<>"",$F3130<>""),$F3130-$E3130,"") ->  | I3130: =IF(AND($G3130<>"",$H3130<>""),$G3130*$H3130/9,"") -> 
H3194: =IF(AND($E3194<>"",$F3194<>""),$F3194-$E3194,"") ->  | I3194: =IF(AND($G3194<>"",$H3194<>""),$G3194*$H3194/9,"") -> 
H3258: =IF(AND($E3258<>"",$F3258<>""),$F3258-$E3258,"") ->  | I3258: =IF(AND($G3258<>"",$H3258<>""),$G3258*$H3258/9,"") -> 
H3322: =IF(AND($E3322<>"",$F3322<>""),$F3322-$E3322,"") ->  | I3322: =IF(AND($G3322<>"",$H3322<>""),$G3322*$H3322/9,"") -> 
H3386: =IF(AND($E3386<>"",$F3386<>""),$F3386-$E3386,"") ->  | I3386: =IF(AND($G3386<>"",$H3386<>""),$G3386*$H3386/9,"") -> 
H3450: =IF(AND($E3450<>"",$F3450<>""),$F3450-$E3450,"") ->  | I3450: =IF(AND($G3450<>"",$H3450<>""),$G3450*$H3450/9,"") -> 
H3514: =IF(AND($E3514<>"",$F3514<>""),$F3514-$E3514,"") ->  | I3514: =IF(AND($G3514<>"",$H3514<>""),$G3514*$H3514/9,"") -> 
H3578: =IF(AND($E3578<>"",$F3578<>""),$F3578-$E3578,"") ->  | I3578: =IF(AND($G3578<>"",$H3578<>""),$G3578*$H3578/9,"") -> 
H3642: =IF(AND($E3642<>"",$F3642<>""),$F3642-$E3642,"") ->  | I3642: =IF(AND($G3642<>"",$H3642<>""),$G3642*$H3642/9,"") -> 
H3706: =IF(AND($E3706<>"",$F3706<>""),$F3706-$E3706,"") ->  | I3706: =IF(AND($G3706<>"",$H3706<>""),$G3706*$H3706/9,"") -> 
H3770: =IF(AND($E3770<>"",$F3770<>""),$F3770-$E3770,"") ->  | I3770: =IF(AND($G3770<>"",$H3770<>""),$G3770*$H3770/9,"") -> 
H3834: =IF(AND($E3834<>"",$F3834<>""),$F3834-$E3834,"") ->  | I3834: =IF(AND($G3834<>"",$H3834<>""),$G3834*$H3834/9,"") -> 
H3898: =IF(AND($E3898<>"",$F3898<>""),$F3898-$E3898,"") ->  | I3898: =IF(AND($G3898<>"",$H3898<>""),$G3898*$H3898/9,"") -> 
H3962: =IF(AND($E3962<>"",$F3962<>""),$F3962-$E3962,"") ->  | I3962: =IF(AND($G3962<>"",$H3962<>""),$G3962*$H3962/9,"") -> 
H4026: =IF(AND($E4026<>"",$F4026<>""),$F4026-$E4026,"") ->  | I4026: =IF(AND($G4026<>"",$H4026<>""),$G4026*$H4026/9,"") -> 
H4090: =IF(AND($E4090<>"",$F4090<>""),$F4090-$E4090,"") ->  | I4090: =IF(AND($G4090<>"",$H4090<>""),$G4090*$H4090/9,"") -> 
H4154: =IF(AND($E4154<>"",$F4154<>""),$F4154-$E4154,"") ->  | I4154: =IF(AND($G4154<>"",$H4154<>""),$G4154*$H4154/9,"") -> 
H4218: =IF(AND($E4218<>"",$F4218<>""),$F4218-$E4218,"") ->  | I4218: =IF(AND($G4218<>"",$H4218<>""),$G4218*$H4218/9,"") -> 
H4282: =IF(AND($E4282<>"",$F4282<>""),$F4282-$E4282,"") ->  | I4282: =IF(AND($G4282<>"",$H4282<>""),$G4282*$H4282/9,"") -> 
H4346: =IF(AND($E4346<>"",$F4346<>""),$F4346-$E4346,"") ->  | I4346: =IF(AND($G4346<>"",$H4346<>""),$G4346*$H4346/9,"") -> 
H4410: =IF(AND($E4410<>"",$F4410<>""),$F4410-$E4410,"") ->  | I4410: =IF(AND($G4410<>"",$H4410<>""),$G4410*$H4410/9,"") -> 
H4474: =IF(AND($E4474<>"",$F4474<>""),$F4474-$E4474,"") ->  | I4474: =IF(AND($G4474<>"",$H4474<>""),$G4474*$H4474/9,"") -> 
H4538: =IF(AND($E4538<>"",$F4538<>""),$F4538-$E4538,"") ->  | I4538: =IF(AND($G4538<>"",$H4538<>""),$G4538*$H4538/9,"") -> 
H4602: =IF(AND($E4602<>"",$F4602<>""),$F4602-$E4602,"") ->  | I4602: =IF(AND($G4602<>"",$H4602<>""),$G4602*$H4602/9,"") -> 
H4666: =IF(AND($E4666<>"",$F4666<>""),$F4666-$E4666,"") ->  | I4666: =IF(AND($G4666<>"",$H4666<>""),$G4666*$H4666/9,"") -> 
H4730: =IF(AND($E4730<>"",$F4730<>""),$F4730-$E4730,"") ->  | I4730: =IF(AND($G4730<>"",$H4730<>""),$G4730*$H4730/9,"") -> 
H4794: =IF(AND($E4794<>"",$F4794<>""),$F4794-$E4794,"") ->  | I4794: =IF(AND($G4794<>"",$H4794<>""),$G4794*$H4794/9,"") -> 
H4858: =IF(AND($E4858<>"",$F4858<>""),$F4858-$E4858,"") ->  | I4858: =IF(AND($G4858<>"",$H4858<>""),$G4858*$H4858/9,"") -> 
H4922: =IF(AND($E4922<>"",$F4922<>""),$F4922-$E4922,"") ->  | I4922: =IF(AND($G4922<>"",$H4922<>""),$G4922*$H4922/9,"") -> 
H4986: =IF(AND($E4986<>"",$F4986<>""),$F4986-$E4986,"") ->  | I4986: =IF(AND($G4986<>"",$H4986<>""),$G4986*$H4986/9,"") -> 
H5050: =IF(AND($E5050<>"",$F5050<>""),$F5050-$E5050,"") ->  | I5050: =IF(AND($G5050<>"",$H5050<>""),$G5050*$H5050/9,"") -> 
H5114: =IF(AND($E5114<>"",$F5114<>""),$F5114-$E5114,"") ->  | I5114: =IF(AND($G5114<>"",$H5114<>""),$G5114*$H5114/9,"") -> 
H5178: =IF(AND($E5178<>"",$F5178<>""),$F5178-$E5178,"") ->  | I5178: =IF(AND($G5178<>"",$H5178<>""),$G5178*$H5178/9,"") -> 
H5242: =IF(AND($E5242<>"",$F5242<>""),$F5242-$E5242,"") ->  | I5242: =IF(AND($G5242<>"",$H5242<>""),$G5242*$H5242/9,"") -> 
H5306: =IF(AND($E5306<>"",$F5306<>""),$F5306-$E5306,"") ->  | I5306: =IF(AND($G5306<>"",$H5306<>""),$G5306*$H5306/9,"") -> 
H5370: =IF(AND($E5370<>"",$F5370<>""),$F5370-$E5370,"") ->  | I5370: =IF(AND($G5370<>"",$H5370<>""),$G5370*$H5370/9,"") -> 
H5434: =IF(AND($E5434<>"",$F5434<>""),$F5434-$E5434,"") ->  | I5434: =IF(AND($G5434<>"",$H5434<>""),$G5434*$H5434/9,"") -> 
H5498: =IF(AND($E5498<>"",$F5498<>""),$F5498-$E5498,"") ->  | I5498: =IF(AND($G5498<>"",$H5498<>""),$G5498*$H5498/9,"") -> 
H5562: =IF(AND($E5562<>"",$F5562<>""),$F5562-$E5562,"") ->  | I5562: =IF(AND($G5562<>"",$H5562<>""),$G5562*$H5562/9,"") -> 
H5626: =IF(AND($E5626<>"",$F5626<>""),$F5626-$E5626,"") ->  | I5626: =IF(AND($G5626<>"",$H5626<>""),$G5626*$H5626/9,"") -> 
H5690: =IF(AND($E5690<>"",$F5690<>""),$F5690-$E5690,"") ->  | I5690: =IF(AND($G5690<>"",$H5690<>""),$G5690*$H5690/9,"") -> 
H5754: =IF(AND($E5754<>"",$F5754<>""),$F5754-$E5754,"") ->  | I5754: =IF(AND($G5754<>"",$H5754<>""),$G5754*$H5754/9,"") -> 
H5818: =IF(AND($E5818<>"",$F5818<>""),$F5818-$E5818,"") ->  | I5818: =IF(AND($G5818<>"",$H5818<>""),$G5818*$H5818/9,"") -> 
H5882: =IF(AND($E5882<>"",$F5882<>""),$F5882-$E5882,"") ->  | I5882: =IF(AND($G5882<>"",$H5882<>""),$G5882*$H5882/9,"") -> 
H5946: =IF(AND($E5946<>"",$F5946<>""),$F5946-$E5946,"") ->  | I5946: =IF(AND($G5946<>"",$H5946<>""),$G5946*$H5946/9,"") -> 

Sheet DE100_27
A1: TabTitle | B1: =C15 -> PROPOSED POSTED SPEED LIMIT
A2: Number of Tab Columns | B2: 7
A3: DE Starter Row Number | B3: 21
A4: TabSheet Starter Row Number | B4: 8
A5: TabSheet Header Row Count | B5: 7
A6: Top Header Cell | B6: K15
A7: Bottom Header Cell | B7: Q21
A8: DESheet Row Count | B8: 4
A9: Fixed Empty Rows | B9: 5
A10: Usable Empty Rows | B10: 0
A11: Total Rows Placed | B11: 9 | C11: xlLeft(1) | D11: xlRight(1) | E11: xlRight(1) | F11: xlLeft(1) | G11: xlLeft(1) | H11: xlLeft(1) | I11: xlLeft(1) | K11: =C11 -> xlLeft(1) | L11: xlRight(1) | M11: xlRight(1) | N11: xlLeft(1) | O11: xlLeft(1) | P11: xlLeft(1) | Q11: xlLeft(1)
A12: Total Rows Needed | B12: =SUM(B8:B10) -> 9 | C12: General | D12: #+00.00 | E12: #+00.00 | F12: General | G12: General | H12: General | I12: General | K12: General | L12: #+00.00 | M12: #+00.00 | N12: General | O12: General | P12: General | Q12: General
A13: Last Tab DE Starter Row | B13: 21 | C13: =CELL("width",C13) -> 30 | D13: 16 | E13: 16 | F13: 14 | G13: 14 | H13: 14 | I13: 50 | K13: =CELL("width",K13) -> 0 | L13: 0 | M13: 0 | N13: 0 | O13: 0 | P13: 0 | Q13: 0
A14: Last Tab Tabsheet Starter Row | B14: 8 | C14: A | D14: B | E14: C | F14: D | G14: E | H14: F | I14: G | K14: =LOWER(C14) -> a | L14: b | M14: c | N14: d | O14: e | P14: f | Q14: g
A15: Last Copy Starter Row | B15: 1 | C15: PROPOSED POSTED SPEED LIMIT | K15: 100-27
A16: Tab Loop Number | B16: 2 | K16: =B17 -> 2018-04-17
A17: Revision Date | B17: 2018-04-17 | C17: ="This Data Entry Sheet fills Tab "&K15&" effective "&TEXT(B17,"mm-dd-yy") -> This Data Entry Sheet fills Tab 100-27 effective 04-17-18 | K17: =C15 -> PROPOSED POSTED SPEED LIMIT
A18: Tabulation Width | B18: 2 | C18: Road Identification | D18: Begin Station | E18: End Station | F18: Proposed Posted Speed Limit | I18: Remarks
A19: Horizontal Grid Lines | B19: Yes | K19: =C18 -> Road Identification | L19: =D18 -> Begin Station | M19: =E18 -> End Station | N19: =F18 -> Proposed Posted Speed Limit | Q19: =I18 -> Remarks
F20: 35 or less | G20: 40 - 45 | H20: over 45
N21: =F20 -> 35 or less | O21: =G20 -> 40 - 45 | P21: =H20 -> over 45
C22: US 63 | D22: 84155 | E22: 91745 | G22: X
C23: MARY ST | D23: 869815 | E23: 897015 | F23: X
C24: RABBIT RUN RD | D24: 882000 | E24: 882600 | F24: X

Sheet DE102_3
A1: TabTitle | B1: =C16 -> ACCESS POINTS AND SAFETY RAMPS
A2: Number of Tab Columns | B2: 19
A3: DE Starter Row Number | B3: 33
A4: TabSheet Starter Row Number | B4: 19
A5: TabSheet Header Row Count | B5: 18
A6: Top Header Cell | B6: Y15
A7: Bottom Header Cell | B7: AQ32
A8: DESheet Row Count | B8: 13
A9: Fixed Empty Rows | B9: 10
A10: Usable Empty Rows | B10: 0
A11: Total Rows Placed | B11: 25 | C11: xlRight(1) | D11: xlLeft(1) | E11: xlLeft(1) | F11: xlLeft(1) | G11: xlRight(1) | H11: xlRight(1) | I11: xlRight(1) | J11: xlRight(1) | K11: xlRight(1) | L11: xlRight(1) | M11: xlRight(1) | N11: xlRight(1) | O11: xlRight(1) | P11: xlRight(1) | Q11: xlRight(1) | S11: xlRight(1) | U11: xlRight(1) | V11: xlRight(1) | W11: xlLeft(1) | Y11: =C11 -> xlRight(1) | Z11: xlLeft(1) | AA11: xlLeft(1) | AB11: xlLeft(1) | AC11: xlRight(1) | AD11: xlRight(1) | AE11: xlRight(1) | AF11: xlRight(1) | AG11: xlRight(1) | AH11: xlRight(1) | AI11: xlRight(1) | AJ11: xlRight(1) | AK11: xlRight(1) | AL11: xlRight(1) | AM11: xlRight(1) | AN11: =S11 -> xlRight(1) | AO11: =U11 -> xlRight(1) | AP11: xlRight(1) | AQ11: xlLeft(1)
A12: Total Rows Needed | B12: =SUM(B8:B10) -> 23 | C12: #+00.00 | D12: General | E12: General | F12: General | G12: 0.0 | H12: 0.0 | I12: 0.0 | J12: 0.0 | K12: 0.0 | L12: 0.0 | M12: 0.0 | N12: 0.0 | O12: 0.0 | P12: 0.0 | Q12: 0 | S12: 0.0 | U12: 0.0 | V12: 0.000 | W12: General | Y12: #+00.00 | Z12: General | AA12: General | AB12: General | AC12: 0.0 | AD12: 0.0 | AE12: 0.0 | AF12: 0.0 | AG12: 0.0 | AH12: 0.0 | AI12: 0.0 | AJ12: 0.0 | AK12: 0.0 | AL12: 0.0 | AM12: 0 | AN12: =S12 -> 0.0 | AO12: 0.0 | AP12: 0.000 | AQ12: General
A13: Last Tab DE Starter Row | B13: 33 | C13: =CELL("width",C13) -> 16 | D13: 6 | E13: 20 | F13: 12 | G13: 12 | H13: 12 | I13: 8 | J13: 8 | K13: 8 | L13: 8 | M13: 10 | N13: 10 | O13: 10 | P13: 10 | Q13: 10 | S13: =CELL("width",S13) -> 10 | U13: =CELL("width",U13) -> 10 | V13: =CELL("width",V13) -> 12 | W13: =CELL("width",W13) -> 34 | Y13: =CELL("width",Y13) -> 0 | Z13: 0 | AA13: 0 | AB13: 0 | AC13: 0 | AD13: 0 | AE13: 0 | AF13: 0 | AG13: 0 | AH13: 0 | AI13: 0 | AJ13: 0 | AK13: 0 | AL13: 0 | AM13: 0 | AN13: 0 | AO13: 0 | AP13: 0 | AQ13: 0
A14: Last Tab Tabsheet Starter Row | B14: 19 | C14: A | D14: B | E14: C | F14: D | G14: E | H14: F | I14: G | J14: H | K14: I | L14: J | M14: K | N14: L | O14: M | P14: N | Q14: O | S14: P | U14: Q | V14: R | W14: S | Y14: =LOWER(C14) -> a | Z14: b | AA14: c | AB14: d | AC14: e | AD14: f | AE14: g | AF14: h | AG14: i | AH14: j | AI14: k | AJ14: l | AK14: m | AL14: n | AM14: o | AN14: =LOWER(S14) -> p | AO14: =LOWER(U14) -> q | AP14: =LOWER(V14) -> r | AQ14: =LOWER(W14) -> s
A15: Last Copy Starter Row | B15: 1 | M15: Totals: | N15: =SUBTOTAL(9,N33:N5998) -> 0 | Q15: =SUBTOTAL(9,Q33:Q5998) -> 0 | S15: =SUBTOTAL(9,S33:S5998) -> 0 | U15: =SUBTOTAL(9,U33:U5998) -> 0 | V15: =SUBTOTAL(9,V33:V5998) -> 200.279471 | Y15: 102-3 | AT15: =E26 -> Type
A16: Tab Loop Number | B16: 2 | C16: ACCESS POINTS AND SAFETY RAMPS | Y16: =B17 -> 2018-10-16 | AT16: A
A17: Revision Date | B17: 2018-10-16 | Y17: =C16 -> ACCESS POINTS AND SAFETY RAMPS | AT17: B
A18: Tabulation Width | B18: 3 | AT18: C
A19: Horizontal Grid Lines | B19: Yes | C19: Refer to Cross-Sections | AT19: Safety Ramp
C20: Length of Unclassified Pipe calculated is based on using Corrugated Metal Pipe. | Y20: =C19 -> Refer to Cross-Sections | AT20: Predetermined
C21: Refer to MI-210 | Y21: =C20&H20 -> Length of Unclassified Pipe calculated is based on using Corrugated Metal Pipe.
C22: Refer to EW-501. | Y22: =C21 -> Refer to MI-210
C23: Refer to EW-501 or EW-502. | Y23: =C22 -> Refer to EW-501.
C24: *Predetermined for access point not constructed with this project. | Y24: =C23 -> Refer to EW-501 or EW-502.
C25: ="This Data Entry Sheet fills Tab "&Y15&" effective "&TEXT(B17,"mm-dd-yy") -> This Data Entry Sheet fills Tab 102-3 effective 10-16-18 | Y25: =C24 -> *Predetermined for access point not constructed with this project.
C26: Location | E26: Type | F26: Length of Opening | L26: Pipe Culvert | Q26: Aprons | R26: Driveway Surface Area | V26: Driveway Surfacing Material | W26: Remarks | Y26: =C26 -> Location | AA26: =E26 -> Type | AB26: =F26 -> Length of Opening | AE26: =I26 ->  | AF26: =J26 ->  | AG26: =K26 ->  | AH26: =L26 -> Pipe Culvert | AM26: Aprons | AN26: =R26 -> Driveway Surface Area | AP26: =V26 -> Driveway Surfacing Material | AQ26: =W26 -> Remarks
C28: Station | D28: Side | E28: A, B, C, Safety Ramp, or Predetermined* | F28: Case | G28: 1½" Dropped Curb | H28: 3" Dropped Curb | R28: HMA Sq. Ft. from Microstation | S28: HMA | T28: PCC Sq. Ft. from Microstation | U28: PCC | Y28: =C28 -> Station | Z28: Side | AA28: A, B, C, Safety Ramp, or Predetermined* | AB28: Case | AC28: 1½" Dropped Curb | AD28: 3" Dropped Curb
M29: Size | N29: Pipe Length | O29: Lt. | P29: Rt. | AH29: =L28 -> 0 | AI29: =M29 -> Size | AJ29: =N29 -> Pipe Length | AK29: =O29 -> Lt. | AL29: =P29 -> Rt. | AN29: =S28 -> HMA | AO29: =U28 -> PCC
F32: 1 or 2 | G32: LF | H32: LF | I32: FT | J32: FT | K32: FT | L32: FT | M32: IN | N32: LF | O32: LF | P32: LF | Q32: No. | R32: SF | S32: SY | T32: SF | U32: SY | V32: TON | AB32: =F32 -> 1 or 2 | AC32: LF | AD32: LF | AE32: FT | AF32: FT | AG32: FT | AH32: FT | AI32: IN | AJ32: LF | AK32: LF | AL32: LF | AM32: No. | AN32: =S32 -> SY | AO32: =U32 -> SY | AP32: =V32 -> TON
Q33: =IF(M33<>"",2,"") ->  | S33: =IF(R33<>"",R33/9,"") ->  | U33: =IF(T33<>"",T33/9,"") -> 
C34: US 63
C35: 89715 | D35: Rt. | E35: Safety Ramp | I35: 24 | V35: —
C36: 91325 | D36: Rt. | E36: C | I36: 24 | V36: =1476.9156*(3/12)*140/2000 -> 25.846023
C38: MARY ST | Q38: =IF(M38<>"",2,"") ->  | S38: =IF(R38<>"",R38/9,"") ->  | U38: =IF(T38<>"",T38/9,"") -> 
C39: (1) | E39: C | I39: 24 | V39: =1583.86*(3/12)*140/2000 -> 27.71755 | W39: (1) 8967+76.87, 49' Lt.
C41: TRAILHEAD PARKING
C42: (2) | V42: =2661.495*(3/12)*140/2000 -> 46.5761625 | W42: (2) 3+11.00
C44: TOTAL: | V44: =SUM(V35:V42) -> 100.1397355
Q95: =IF(M95<>"",2,"") ->  | S95: =IF(R95<>"",R95/9,"") ->  | U95: =IF(T95<>"",T95/9,"") -> 
Q159: =IF(M159<>"",2,"") ->  | S159: =IF(R159<>"",R159/9,"") ->  | U159: =IF(T159<>"",T159/9,"") -> 
Q223: =IF(M223<>"",2,"") ->  | S223: =IF(R223<>"",R223/9,"") ->  | U223: =IF(T223<>"",T223/9,"") -> 
Q287: =IF(M287<>"",2,"") ->  | S287: =IF(R287<>"",R287/9,"") ->  | U287: =IF(T287<>"",T287/9,"") -> 
Q351: =IF(M351<>"",2,"") ->  | S351: =IF(R351<>"",R351/9,"") ->  | U351: =IF(T351<>"",T351/9,"") -> 
Q415: =IF(M415<>"",2,"") ->  | S415: =IF(R415<>"",R415/9,"") ->  | U415: =IF(T415<>"",T415/9,"") -> 
Q479: =IF(M479<>"",2,"") ->  | S479: =IF(R479<>"",R479/9,"") ->  | U479: =IF(T479<>"",T479/9,"") -> 
Q543: =IF(M543<>"",2,"") ->  | S543: =IF(R543<>"",R543/9,"") ->  | U543: =IF(T543<>"",T543/9,"") -> 
Q607: =IF(M607<>"",2,"") ->  | S607: =IF(R607<>"",R607/9,"") ->  | U607: =IF(T607<>"",T607/9,"") -> 
Q671: =IF(M671<>"",2,"") ->  | S671: =IF(R671<>"",R671/9,"") ->  | U671: =IF(T671<>"",T671/9,"") -> 
Q735: =IF(M735<>"",2,"") ->  | S735: =IF(R735<>"",R735/9,"") ->  | U735: =IF(T735<>"",T735/9,"") -> 
Q799: =IF(M799<>"",2,"") ->  | S799: =IF(R799<>"",R799/9,"") ->  | U799: =IF(T799<>"",T799/9,"") -> 
Q863: =IF(M863<>"",2,"") ->  | S863: =IF(R863<>"",R863/9,"") ->  | U863: =IF(T863<>"",T863/9,"") -> 
Q927: =IF(M927<>"",2,"") ->  | S927: =IF(R927<>"",R927/9,"") ->  | U927: =IF(T927<>"",T927/9,"") -> 
Q991: =IF(M991<>"",2,"") ->  | S991: =IF(R991<>"",R991/9,"") ->  | U991: =IF(T991<>"",T991/9,"") -> 
Q1055: =IF(M1055<>"",2,"") ->  | S1055: =IF(R1055<>"",R1055/9,"") ->  | U1055: =IF(T1055<>"",T1055/9,"") -> 
Q1119: =IF(M1119<>"",2,"") ->  | S1119: =IF(R1119<>"",R1119/9,"") ->  | U1119: =IF(T1119<>"",T1119/9,"") -> 
Q1183: =IF(M1183<>"",2,"") ->  | S1183: =IF(R1183<>"",R1183/9,"") ->  | U1183: =IF(T1183<>"",T1183/9,"") -> 
Q1247: =IF(M1247<>"",2,"") ->  | S1247: =IF(R1247<>"",R1247/9,"") ->  | U1247: =IF(T1247<>"",T1247/9,"") -> 
Q1311: =IF(M1311<>"",2,"") ->  | S1311: =IF(R1311<>"",R1311/9,"") ->  | U1311: =IF(T1311<>"",T1311/9,"") -> 
Q1375: =IF(M1375<>"",2,"") ->  | S1375: =IF(R1375<>"",R1375/9,"") ->  | U1375: =IF(T1375<>"",T1375/9,"") -> 
Q1439: =IF(M1439<>"",2,"") ->  | S1439: =IF(R1439<>"",R1439/9,"") ->  | U1439: =IF(T1439<>"",T1439/9,"") -> 
Q1503: =IF(M1503<>"",2,"") ->  | S1503: =IF(R1503<>"",R1503/9,"") ->  | U1503: =IF(T1503<>"",T1503/9,"") -> 
Q1567: =IF(M1567<>"",2,"") ->  | S1567: =IF(R1567<>"",R1567/9,"") ->  | U1567: =IF(T1567<>"",T1567/9,"") -> 
Q1631: =IF(M1631<>"",2,"") ->  | S1631: =IF(R1631<>"",R1631/9,"") ->  | U1631: =IF(T1631<>"",T1631/9,"") -> 
Q1695: =IF(M1695<>"",2,"") ->  | S1695: =IF(R1695<>"",R1695/9,"") ->  | U1695: =IF(T1695<>"",T1695/9,"") -> 
Q1759: =IF(M1759<>"",2,"") ->  | S1759: =IF(R1759<>"",R1759/9,"") ->  | U1759: =IF(T1759<>"",T1759/9,"") -> 
Q1823: =IF(M1823<>"",2,"") ->  | S1823: =IF(R1823<>"",R1823/9,"") ->  | U1823: =IF(T1823<>"",T1823/9,"") -> 
Q1887: =IF(M1887<>"",2,"") ->  | S1887: =IF(R1887<>"",R1887/9,"") ->  | U1887: =IF(T1887<>"",T1887/9,"") -> 
Q1951: =IF(M1951<>"",2,"") ->  | S1951: =IF(R1951<>"",R1951/9,"") ->  | U1951: =IF(T1951<>"",T1951/9,"") -> 
... 39 more rows

Sheet DE102_4
A1: TabTitle | B1: =C16 -> LOCATIONS OF ROAD CLOSURE BARRICADES
A2: Number of Tab Columns | B2: 6
A3: DE Starter Row Number | B3: 26
A4: TabSheet Starter Row Number | B4: 12
A5: TabSheet Header Row Count | B5: 11
A6: Top Header Cell | B6: K15
A7: Bottom Header Cell | B7: P25
A8: DESheet Row Count | B8: 9
A9: Fixed Empty Rows | B9: 10
A10: Usable Empty Rows | B10: 0
A11: Total Rows Placed | B11: 19 | C11: xlRight(1) | D11: xlRight(1) | F11: xlRight(1) | G11: xlRight(1) | H11: xlRight(1) | I11: xlLeft(1) | K11: =C11 -> xlRight(1) | L11: =D11 -> xlRight(1) | M11: =F11 -> xlRight(1) | N11: xlRight(1) | O11: xlRight(1) | P11: xlLeft(1)
A12: Total Rows Needed | B12: =SUM(B8:B10) -> 19 | C12: General | D12: #+00.00 | F12: 0.0 | G12: 0 | H12: 0 | I12: General | K12: =C12 -> General | L12: =D12 -> #+00.00 | M12: 0.0 | N12: 0 | O12: 0 | P12: General
A13: Last Tab DE Starter Row | B13: 26 | C13: =CELL("width",C13) -> 6 | D13: =CELL("width",D13) -> 16 | F13: =CELL("width",F13) -> 10 | G13: =CELL("width",G13) -> 10 | H13: =CELL("width",H13) -> 10 | I13: =CELL("width",I13) -> 22 | K13: =CELL("width",K13) -> 0 | L13: 0 | M13: 0 | N13: 0 | O13: 0 | P13: 0
A14: Last Tab Tabsheet Starter Row | B14: 12 | C14: A | D14: B | F14: C | G14: D | H14: E | I14: F | K14: =LOWER(C14) -> a | L14: =LOWER(D14) -> b | M14: =LOWER(F14) -> c | N14: =LOWER(G14) -> d | O14: =LOWER(H14) -> e | P14: =LOWER(I14) -> f
A15: Last Copy Starter Row | B15: 1 | F15: Totals: | G15: =SUBTOTAL(9,G26:G5997) -> 22 | H15: =SUBTOTAL(9,H26:H5997) -> 0 | K15: 102-4 | R15: Standard Road Plan
A16: Tab Loop Number | B16: 2 | C16: LOCATIONS OF ROAD CLOSURE BARRICADES | K16: =B17 -> 2011-10-18 | R16: SI-181
A17: Revision Date | B17: 2011-10-18 | K17: =C16 -> LOCATIONS OF ROAD CLOSURE BARRICADES | R17: SI-182
A18: Tabulation Width | B18: 1
A19: Horizontal Grid Lines | B19: Yes
C20: Refer to SI-181 and SI-182.
C21: ="This Data Entry Sheet fills Tab "&K15&" effective "&TEXT(B17,"mm-dd-yy") -> This Data Entry Sheet fills Tab 102-4 effective 10-18-11 | K21: =C20 -> Refer to SI-181 and SI-182.
C22: Location | E22: Standard Road Plan | G22: SI-181 | H22: SI-182 | I22: Remarks | K22: =C22 -> Location | M22: =F22 -> 0 | N22: =G22 -> SI-181 | O22: =H22 -> SI-182 | P22: =I22 -> Remarks
C25: No. | D25: Station | F25: LF | G25: LF | H25: No. | K25: =C25 -> No. | L25: =D25 -> Station | M25: =F25 -> LF | N25: =G25 -> LF | O25: =H25 -> No.
G26: =IF(E26="SI-181",EVEN(F26),"") ->  | H26: =IF(E26="SI-182",1,"") -> 
D27: 89060 | E27: SI-181 | F27: 22 | G27: 22 | I27: (1)
C31: NOTE:
C32: (1) Barricade on Existing Rabbit Run Rd at Sta. 890+60.00 (ML063) 104' RT.
G87: =IF(E87="SI-181",EVEN(F87),"") ->  | H87: =IF(E87="SI-182",1,"") -> 
G151: =IF(E151="SI-181",EVEN(F151),"") ->  | H151: =IF(E151="SI-182",1,"") -> 
G215: =IF(E215="SI-181",EVEN(F215),"") ->  | H215: =IF(E215="SI-182",1,"") -> 
G279: =IF(E279="SI-181",EVEN(F279),"") ->  | H279: =IF(E279="SI-182",1,"") -> 
G343: =IF(E343="SI-181",EVEN(F343),"") ->  | H343: =IF(E343="SI-182",1,"") -> 
G407: =IF(E407="SI-181",EVEN(F407),"") ->  | H407: =IF(E407="SI-182",1,"") -> 
G471: =IF(E471="SI-181",EVEN(F471),"") ->  | H471: =IF(E471="SI-182",1,"") -> 
G535: =IF(E535="SI-181",EVEN(F535),"") ->  | H535: =IF(E535="SI-182",1,"") -> 
G599: =IF(E599="SI-181",EVEN(F599),"") ->  | H599: =IF(E599="SI-182",1,"") -> 
G663: =IF(E663="SI-181",EVEN(F663),"") ->  | H663: =IF(E663="SI-182",1,"") -> 
G727: =IF(E727="SI-181",EVEN(F727),"") ->  | H727: =IF(E727="SI-182",1,"") -> 
G791: =IF(E791="SI-181",EVEN(F791),"") ->  | H791: =IF(E791="SI-182",1,"") -> 
G855: =IF(E855="SI-181",EVEN(F855),"") ->  | H855: =IF(E855="SI-182",1,"") -> 
G919: =IF(E919="SI-181",EVEN(F919),"") ->  | H919: =IF(E919="SI-182",1,"") -> 
G983: =IF(E983="SI-181",EVEN(F983),"") ->  | H983: =IF(E983="SI-182",1,"") -> 
G1047: =IF(E1047="SI-181",EVEN(F1047),"") ->  | H1047: =IF(E1047="SI-182",1,"") -> 
G1111: =IF(E1111="SI-181",EVEN(F1111),"") ->  | H1111: =IF(E1111="SI-182",1,"") -> 
G1175: =IF(E1175="SI-181",EVEN(F1175),"") ->  | H1175: =IF(E1175="SI-182",1,"") -> 
G1239: =IF(E1239="SI-181",EVEN(F1239),"") ->  | H1239: =IF(E1239="SI-182",1,"") -> 
G1303: =IF(E1303="SI-181",EVEN(F1303),"") ->  | H1303: =IF(E1303="SI-182",1,"") -> 
G1367: =IF(E1367="SI-181",EVEN(F1367),"") ->  | H1367: =IF(E1367="SI-182",1,"") -> 
G1431: =IF(E1431="SI-181",EVEN(F1431),"") ->  | H1431: =IF(E1431="SI-182",1,"") -> 
G1495: =IF(E1495="SI-181",EVEN(F1495),"") ->  | H1495: =IF(E1495="SI-182",1,"") -> 
G1559: =IF(E1559="SI-181",EVEN(F1559),"") ->  | H1559: =IF(E1559="SI-182",1,"") -> 
G1623: =IF(E1623="SI-181",EVEN(F1623),"") ->  | H1623: =IF(E1623="SI-182",1,"") -> 
G1687: =IF(E1687="SI-181",EVEN(F1687),"") ->  | H1687: =IF(E1687="SI-182",1,"") -> 
G1751: =IF(E1751="SI-181",EVEN(F1751),"") ->  | H1751: =IF(E1751="SI-182",1,"") -> 
G1815: =IF(E1815="SI-181",EVEN(F1815),"") ->  | H1815: =IF(E1815="SI-182",1,"") -> 
G1879: =IF(E1879="SI-181",EVEN(F1879),"") ->  | H1879: =IF(E1879="SI-182",1,"") -> 
G1943: =IF(E1943="SI-181",EVEN(F1943),"") ->  | H1943: =IF(E1943="SI-182",1,"") -> 
G2007: =IF(E2007="SI-181",EVEN(F2007),"") ->  | H2007: =IF(E2007="SI-182",1,"") -> 
G2071: =IF(E2071="SI-181",EVEN(F2071),"") ->  | H2071: =IF(E2071="SI-182",1,"") -> 
G2135: =IF(E2135="SI-181",EVEN(F2135),"") ->  | H2135: =IF(E2135="SI-182",1,"") -> 
G2199: =IF(E2199="SI-181",EVEN(F2199),"") ->  | H2199: =IF(E2199="SI-182",1,"") -> 
G2263: =IF(E2263="SI-181",EVEN(F2263),"") ->  | H2263: =IF(E2263="SI-182",1,"") -> 
G2327: =IF(E2327="SI-181",EVEN(F2327),"") ->  | H2327: =IF(E2327="SI-182",1,"") -> 
G2391: =IF(E2391="SI-181",EVEN(F2391),"") ->  | H2391: =IF(E2391="SI-182",1,"") -> 
G2455: =IF(E2455="SI-181",EVEN(F2455),"") ->  | H2455: =IF(E2455="SI-182",1,"") -> 
G2519: =IF(E2519="SI-181",EVEN(F2519),"") ->  | H2519: =IF(E2519="SI-182",1,"") -> 
G2583: =IF(E2583="SI-181",EVEN(F2583),"") ->  | H2583: =IF(E2583="SI-182",1,"") -> 
G2647: =IF(E2647="SI-181",EVEN(F2647),"") ->  | H2647: =IF(E2647="SI-182",1,"") -> 
G2711: =IF(E2711="SI-181",EVEN(F2711),"") ->  | H2711: =IF(E2711="SI-182",1,"") -> 
G2775: =IF(E2775="SI-181",EVEN(F2775),"") ->  | H2775: =IF(E2775="SI-182",1,"") -> 
G2839: =IF(E2839="SI-181",EVEN(F2839),"") ->  | H2839: =IF(E2839="SI-182",1,"") -> 
G2903: =IF(E2903="SI-181",EVEN(F2903),"") ->  | H2903: =IF(E2903="SI-182",1,"") -> 
G2967: =IF(E2967="SI-181",EVEN(F2967),"") ->  | H2967: =IF(E2967="SI-182",1,"") -> 
G3031: =IF(E3031="SI-181",EVEN(F3031),"") ->  | H3031: =IF(E3031="SI-182",1,"") -> 
G3095: =IF(E3095="SI-181",EVEN(F3095),"") ->  | H3095: =IF(E3095="SI-182",1,"") -> 
G3159: =IF(E3159="SI-181",EVEN(F3159),"") ->  | H3159: =IF(E3159="SI-182",1,"") -> 
G3223: =IF(E3223="SI-181",EVEN(F3223),"") ->  | H3223: =IF(E3223="SI-182",1,"") -> 
G3287: =IF(E3287="SI-181",EVEN(F3287),"") ->  | H3287: =IF(E3287="SI-182",1,"") -> 
G3351: =IF(E3351="SI-181",EVEN(F3351),"") ->  | H3351: =IF(E3351="SI-182",1,"") -> 
G3415: =IF(E3415="SI-181",EVEN(F3415),"") ->  | H3415: =IF(E3415="SI-182",1,"") -> 
G3479: =IF(E3479="SI-181",EVEN(F3479),"") ->  | H3479: =IF(E3479="SI-182",1,"") -> 
G3543: =IF(E3543="SI-181",EVEN(F3543),"") ->  | H3543: =IF(E3543="SI-182",1,"") -> 
G3607: =IF(E3607="SI-181",EVEN(F3607),"") ->  | H3607: =IF(E3607="SI-182",1,"") -> 
G3671: =IF(E3671="SI-181",EVEN(F3671),"") ->  | H3671: =IF(E3671="SI-182",1,"") -> 
G3735: =IF(E3735="SI-181",EVEN(F3735),"") ->  | H3735: =IF(E3735="SI-182",1,"") -> 
G3799: =IF(E3799="SI-181",EVEN(F3799),"") ->  | H3799: =IF(E3799="SI-182",1,"") -> 
G3863: =IF(E3863="SI-181",EVEN(F3863),"") ->  | H3863: =IF(E3863="SI-182",1,"") -> 
G3927: =IF(E3927="SI-181",EVEN(F3927),"") ->  | H3927: =IF(E3927="SI-182",1,"") -> 
G3991: =IF(E3991="SI-181",EVEN(F3991),"") ->  | H3991: =IF(E3991="SI-182",1,"") -> 
G4055: =IF(E4055="SI-181",EVEN(F4055),"") ->  | H4055: =IF(E4055="SI-182",1,"") -> 
G4119: =IF(E4119="SI-181",EVEN(F4119),"") ->  | H4119: =IF(E4119="SI-182",1,"") -> 
G4183: =IF(E4183="SI-181",EVEN(F4183),"") ->  | H4183: =IF(E4183="SI-182",1,"") -> 
G4247: =IF(E4247="SI-181",EVEN(F4247),"") ->  | H4247: =IF(E4247="SI-182",1,"") -> 
G4311: =IF(E4311="SI-181",EVEN(F4311),"") ->  | H4311: =IF(E4311="SI-182",1,"") -> 
G4375: =IF(E4375="SI-181",EVEN(F4375),"") ->  | H4375: =IF(E4375="SI-182",1,"") -> 
G4439: =IF(E4439="SI-181",EVEN(F4439),"") ->  | H4439: =IF(E4439="SI-182",1,"") -> 
G4503: =IF(E4503="SI-181",EVEN(F4503),"") ->  | H4503: =IF(E4503="SI-182",1,"") -> 
G4567: =IF(E4567="SI-181",EVEN(F4567),"") ->  | H4567: =IF(E4567="SI-182",1,"") -> 
G4631: =IF(E4631="SI-181",EVEN(F4631),"") ->  | H4631: =IF(E4631="SI-182",1,"") -> 
G4695: =IF(E4695="SI-181",EVEN(F4695),"") ->  | H4695: =IF(E4695="SI-182",1,"") -> 
G4759: =IF(E4759="SI-181",EVEN(F4759),"") ->  | H4759: =IF(E4759="SI-182",1,"") -> 
G4823: =IF(E4823="SI-181",EVEN(F4823),"") ->  | H4823: =IF(E4823="SI-182",1,"") -> 
G4887: =IF(E4887="SI-181",EVEN(F4887),"") ->  | H4887: =IF(E4887="SI-182",1,"") -> 
G4951: =IF(E4951="SI-181",EVEN(F4951),"") ->  | H4951: =IF(E4951="SI-182",1,"") -> 
G5015: =IF(E5015="SI-181",EVEN(F5015),"") ->  | H5015: =IF(E5015="SI-182",1,"") -> 
G5079: =IF(E5079="SI-181",EVEN(F5079),"") ->  | H5079: =IF(E5079="SI-182",1,"") -> 
G5143: =IF(E5143="SI-181",EVEN(F5143),"") ->  | H5143: =IF(E5143="SI-182",1,"") -> 
G5207: =IF(E5207="SI-181",EVEN(F5207),"") ->  | H5207: =IF(E5207="SI-182",1,"") -> 
G5271: =IF(E5271="SI-181",EVEN(F5271),"") ->  | H5271: =IF(E5271="SI-182",1,"") -> 
G5335: =IF(E5335="SI-181",EVEN(F5335),"") ->  | H5335: =IF(E5335="SI-182",1,"") -> 
G5399: =IF(E5399="SI-181",EVEN(F5399),"") ->  | H5399: =IF(E5399="SI-182",1,"") -> 
G5463: =IF(E5463="SI-181",EVEN(F5463),"") ->  | H5463: =IF(E5463="SI-182",1,"") -> 
G5527: =IF(E5527="SI-181",EVEN(F5527),"") ->  | H5527: =IF(E5527="SI-182",1,"") -> 
G5591: =IF(E5591="SI-181",EVEN(F5591),"") ->  | H5591: =IF(E5591="SI-182",1,"") -> 
G5655: =IF(E5655="SI-181",EVEN(F5655),"") ->  | H5655: =IF(E5655="SI-182",1,"") -> 
G5719: =IF(E5719="SI-181",EVEN(F5719),"") ->  | H5719: =IF(E5719="SI-182",1,"") -> 
G5783: =IF(E5783="SI-181",EVEN(F5783),"") ->  | H5783: =IF(E5783="SI-182",1,"") -> 
G5847: =IF(E5847="SI-181",EVEN(F5847),"") ->  | H5847: =IF(E5847="SI-182",1,"") -> 
G5911: =IF(E5911="SI-181",EVEN(F5911),"") ->  | H5911: =IF(E5911="SI-182",1,"") -> 
G5975: =IF(E5975="SI-181",EVEN(F5975),"") ->  | H5975: =IF(E5975="SI-182",1,"") -> 

Sheet DE102_5
A1: TabTitle | B1: =C15 -> EXISTING PAVEMENT
A2: Number of Tab Columns | B2: 22
A3: DE Starter Row Number | B3: 23
A4: TabSheet Starter Row Number | B4: 10
A5: TabSheet Header Row Count | B5: 9
A6: Top Header Cell | B6: Z15
A7: Bottom Header Cell | B7: AU23
A8: DESheet Row Count | B8: 10
A9: Fixed Empty Rows | B9: 5
A10: Usable Empty Rows | B10: 0
A11: Total Rows Placed | B11: 15 | C11: xlRight(1) | D11: xlRight(1) | E11: xlRight(1) | F11: xlRight(1) | G11: xlRight(1) | H11: xlRight(1) | I11: xlRight(1) | J11: xlRight(1) | K11: xlLeft(1) | L11: xlLeft(1) | M11: xlRight(1) | N11: xlLeft(1) | O11: xlRight(1) | P11: xlLeft(1) | Q11: xlRight(1) | R11: xlLeft(1) | S11: xlRight(1) | T11: xlLeft(1) | U11: xlLeft(1) | V11: xlRight(1) | W11: xlRight(1) | X11: xlLeft(1) | Z11: =C11 -> xlRight(1) | AA11: xlRight(1) | AB11: xlRight(1) | AC11: xlRight(1) | AD11: xlRight(1) | AE11: xlRight(1) | AF11: xlRight(1) | AG11: xlRight(1) | AH11: xlLeft(1) | AI11: xlLeft(1) | AJ11: xlRight(1) | AK11: xlLeft(1) | AL11: xlRight(1) | AM11: xlLeft(1) | AN11: xlRight(1) | AO11: xlLeft(1) | AP11: =S11 -> xlRight(1) | AQ11: xlLeft(1) | AR11: xlLeft(1) | AS11: xlRight(1) | AT11: xlRight(1) | AU11: xlLeft(1)
A12: Total Rows Needed | B12: =SUM(B8:B10) -> 15 | C12: General | D12: General | E12: General | F12: General | G12: General | H12: General | I12: General | J12: General | K12: General | L12: General | M12: General | N12: General | O12: General | P12: General | Q12: General | R12: General | S12: General | T12: General | U12: General | V12: General | W12: General | X12: General | Z12: General | AA12: General | AB12: General | AC12: General | AD12: General | AE12: General | AF12: General | AG12: General | AH12: General | AI12: General | AJ12: General | AK12: General | AL12: General | AM12: General | AN12: General | AO12: General | AP12: General | AQ12: General | AR12: General | AS12: General | AT12: General | AU12: General
A13: Last Tab DE Starter Row | B13: 23 | C13: =CELL("width",C13) -> 8 | D13: 10 | E13: 10 | F13: 10 | G13: 12 | H13: 12 | I13: 10 | J13: 9 | K13: 30 | L13: 10 | M13: 10 | N13: 10 | O13: 10 | P13: 10 | Q13: 10 | R13: 10 | S13: 10 | T13: 35 | U13: 12 | V13: 12 | W13: 16 | X13: 42 | Z13: =CELL("width",Z13) -> 0 | AA13: 0 | AB13: 0 | AC13: 0 | AD13: 0 | AE13: 0 | AF13: 0 | AG13: 0 | AH13: 0 | AI13: 0 | AJ13: 0 | AK13: 0 | AL13: 0 | AM13: 0 | AN13: 0 | AO13: 0 | AP13: 0 | AQ13: 0 | AR13: 0 | AS13: 0 | AT13: 0 | AU13: 0
A14: Last Tab Tabsheet Starter Row | B14: 10 | C14: A | D14: B | E14: C | F14: D | G14: E | H14: F | I14: G | J14: H | K14: I | L14: J | M14: K | N14: L | O14: M | P14: N | Q14: O | R14: P | S14: Q | T14: R | U14: S | V14: T | W14: U | X14: V | Z14: =LOWER(C14) -> a | AA14: b | AB14: c | AC14: d | AD14: e | AE14: f | AF14: g | AG14: h | AH14: =LOWER(J14) -> h | AI14: i | AJ14: j | AK14: k | AL14: l | AM14: m | AN14: n | AO14: o | AP14: p | AQ14: q | AR14: r | AS14: s | AT14: t | AU14: u | AV14: =LOWER(Y14) -> 
A15: Last Copy Starter Row | B15: 1 | C15: EXISTING PAVEMENT | Z15: 102-5
A16: Tab Loop Number | B16: 2 | Z16: =B17 -> 2017-04-18
A17: Revision Date | B17: 2017-04-18 | C17: ="This Data Entry Sheet fills Tab "&Z15&" effective "&TEXT(B17,"mm-dd-yy") -> This Data Entry Sheet fills Tab 102-5 effective 04-18-17 | Z17: =C15 -> EXISTING PAVEMENT
A18: Tabulation Width | B18: 4 | C18: No. | D18: Location | I18: Year | J18: Type | K18: Project Number | L18: Surface | N18: Base | P18: Subbase | R18: Removal | T18: Coarse Aggregate | W18: Reinforcement | X18: Remarks
A19: Horizontal Grid Lines | B19: Yes | Z19: =C18 -> No. | AA19: =D18 -> Location | AF19: =I18 -> Year | AG19: =J18 -> Type | AH19: =K18 -> Project Number | AI19: =L18 -> Surface | AK19: =N18 -> Base | AM19: =P18 -> Subbase | AO19: =R18 -> Removal | AQ19: =T18 -> Coarse Aggregate | AT19: =W18 -> Reinforcement | AU19: =X18 -> Remarks
D20: County | E20: Route | F20: Dir. of Travel | G20: Begin Ref. Loc. Sign | H20: End Ref. Loc. Sign | L20: Type | M20: Depth | N20: Type | O20: Depth | P20: Type | Q20: Depth | R20: Type | S20: Depth | T20: Source | U20: Type | V20: Durability Class | W20: Type
AA21: =D20 -> County | AB21: =E20 -> Route | AC21: =F20 -> Dir. of Travel | AD21: =G20 -> Begin Ref. Loc. Sign | AE21: =H20 -> End Ref. Loc. Sign | AI21: =L20 -> Type | AJ21: Depth | AK21: Type | AL21: Depth | AM21: Type | AN21: Depth | AO21: Type | AP21: Depth | AQ21: Source | AR21: Type | AS21: Durability Class | AT21: Type
M22: IN | O22: IN | Q22: IN | S22: IN
AJ23: =M22 -> IN | AL23: =O22 -> IN | AN23: =Q22 -> IN | AP23: =S22 -> IN
D24: 90 | E24: US 063 | F24: 1 | G24: 31.33 | H24: 33.02 | I24: 2007 | K24: NHSN-63-1(64)--2R-26 | L24: HMA | M24: 1.5 | N24: HMA | O24: 3 | T24: LYLE MINE | U24: C. LST.
I25: 2007 | J25: W | K25: NHSN-63-1(64)--2R-26 | L25: HMA | M25: 1.5 | N25: HMA | O25: 2 | P25: HMA | Q25: 3 | T25: LYLE MINE | U25: C. LST.
I26: 1966 | K26: FU-63-2(1)--90-7 | L26: PCC | M26: 10 | T26: DOUDS MINE | U26: C. LST. | V26: 2
D28: 90 | E28: US 063 | F28: 1 | G28: 33.02 | H28: 33.82 | I28: 2007 | K28: NHSN-63-1(64)--2R-26 | L28: HMA | M28: 1.5 | N28: HMA | O28: 3 | T28: LYLE MINE | U28: C. LST.
I29: 2007 | J29: W | K29: NHSN-63-1(64)--2R-26 | L29: HMA | M29: 1.5 | N29: HMA | O29: 2 | P29: HMA | Q29: 3 | T29: LYLE MINE | U29: C. LST.
I30: 1966 | K30: FU-63-2(1)--90-7 | L30: PCC | M30: 10 | N30: GSB | O30: 4 | T30: DOUDS STONE | U30: C. LST. | V30: 2
D32: 90 | E32: US 063 | F32: 2 | G32: 33.45 | H32: 33.82 | I32: 1966 | K32: FU-63-2(1)--90-7 | L32: PCC | M32: 10 | N32: GSB | O32: 4 | T32: DOUDS STONE | U32: C. LST. | V32: 2

Sheet DE103_11
A1: TabTitle | B1: =C16 -> SELECT TREATMENT
A2: Number of Tab Columns | B2: 25
A3: DE Starter Row Number | B3: 60
A4: TabSheet Starter Row Number | B4: 46
A5: TabSheet Header Row Count | B5: 45
A6: Top Header Cell | B6: AE15
A7: Bottom Header Cell | B7: BC59
A8: DESheet Row Count | B8: 37
A9: Fixed Empty Rows | B9: 8
A10: Usable Empty Rows | B10: 0
A11: Total Rows Placed | B11: 45 | C11: xlLeft(1) | D11: xlLeft(1) | E11: xlRight(1) | F11: xlRight(1) | G11: xlRight(1) | J11: xlRight(1) | K11: xlRight(1) | L11: xlRight(1) | M11: xlRight(1) | N11: xlRight(1) | O11: xlRight(1) | P11: xlRight(1) | Q11: xlRight(1) | R11: xlRight(1) | S11: xlRight(1) | T11: xlRight(1) | U11: xlRight(1) | V11: xlRight(1) | W11: xlRight(1) | X11: xlRight(1) | Y11: xlRight(1) | Z11: xlRight(1) | AA11: xlRight(1) | AB11: xlRight(1) | AC11: xlLeft(1) | AE11: =C11 -> xlLeft(1) | AF11: xlLeft(1) | AG11: xlRight(1) | AH11: xlRight(1) | AI11: xlRight(1) | AJ11: =J11 -> xlRight(1) | AK11: xlRight(1) | AL11: xlRight(1) | AM11: xlRight(1) | AN11: xlRight(1) | AO11: xlRight(1) | AP11: xlRight(1) | AQ11: xlRight(1) | AR11: xlRight(1) | AS11: xlRight(1) | AT11: xlRight(1) | AU11: xlRight(1) | AV11: xlRight(1) | AW11: xlRight(1) | AX11: xlRight(1) | AY11: xlRight(1) | AZ11: =Z11 -> xlRight(1) | BA11: xlRight(1) | BB11: xlRight(1) | BC11: xlLeft(1)
A12: Total Rows Needed | B12: =SUM(B8:B10) -> 45 | C12: General | D12: General | E12: #+00.00 | F12: #+00.00 | G12: 0.0 | J12: 0.0 | K12: 0.0 | L12: 0.0 | M12: 0.0 | N12: 0.0 | O12: 0.0 | P12: 0.0 | Q12: 0.0 | R12: 0.0 | S12: 0.0 | T12: 0.0 | U12: 0.0 | V12: 0.0 | W12: 0.0 | X12: 0.0 | Y12: 0.0 | Z12: 0.0 | AA12: 0.0 | AB12: 0.0 | AC12: General | AE12: General | AF12: General | AG12: #+00.00 | AH12: #+00.00 | AI12: 0.0 | AJ12: 0.0 | AK12: 0.0 | AL12: 0.0 | AM12: 0.0 | AN12: 0.0 | AO12: 0.0 | AP12: 0.0 | AQ12: 0.0 | AR12: 0.0 | AS12: 0.0 | AT12: 0.0 | AU12: 0.0 | AV12: 0.0 | AW12: 0.0 | AX12: 0.0 | AY12: 0.0 | AZ12: 0.0 | BA12: 0.0 | BB12: 0.0 | BC12: General
A13: Last Tab DE Starter Row | B13: 60 | C13: =CELL("width",C13) -> 30 | D13: 11 | E13: 16 | F13: 16 | G13: 10 | J13: 12 | K13: 8 | L13: 10 | M13: 10 | N13: 10 | O13: 12 | P13: 12 | Q13: 10 | R13: 10 | S13: 10 | T13: 10 | U13: 10 | V13: 10 | W13: 10 | X13: 10 | Y13: 12 | Z13: 16 | AA13: 12 | AB13: 12 | AC13: 18 | AE13: =CELL("width",AE13) -> 0 | AF13: 0 | AG13: 0 | AH13: 0 | AI13: 0 | AJ13: 0 | AK13: 0 | AL13: 0 | AM13: 0 | AN13: 0 | AO13: 0 | AP13: 0 | AQ13: 0 | AR13: 0 | AS13: 0 | AT13: 0 | AU13: 0 | AV13: 0 | AW13: 0 | AX13: 0 | AY13: 0 | AZ13: 0 | BA13: 0 | BB13: 0 | BC13: 0
A14: Last Tab TabSheet Starter Row | B14: 46 | C14: A | D14: B | E14: C | F14: D | G14: E | J14: F | K14: G | L14: H | M14: I | N14: J | O14: K | P14: L | Q14: M | R14: N | S14: O | T14: P | U14: Q | V14: R | W14: S | X14: T | Y14: U | Z14: V | AA14: W | AB14: X | AC14: Y | AE14: =LOWER(C14) -> a | AF14: =LOWER(D14) -> b | AG14: =LOWER(E14) -> c | AH14: =LOWER(F14) -> d | AI14: =LOWER(G14) -> e | AJ14: =LOWER(J14) -> f | AK14: =LOWER(K14) -> g | AL14: h | AM14: i | AN14: j | AO14: k | AP14: l | AQ14: m | AR14: n | AS14: o | AT14: p | AU14: q | AV14: r | AW14: s | AX14: t | AY14: u | AZ14: v | BA14: w | BB14: x | BC14: y
A15: Last Copy Starter Row | B15: 1 | AB15: =SUBTOTAL(9,AB59:AB6010) -> 95496.66593 | AE15: 103-11
A16: Tab Loop Number | B16: 2 | C16: SELECT TREATMENT | AE16: =B17 -> 2017-10-17
A17: Revision Date | B17: 2017-10-17 | AE17: =C16 -> SELECT TREATMENT
A18: Tabulation Width | B18: 4 | C18: Possible Detail: G_4D_Grade_Delay_S
A19: Horizontal Grid Lines | B19: Yes | C19: ="This Data Entry Sheet fills Tab "&AE15&" effective "&TEXT(B17,"mm-dd-yy") -> This Data Entry Sheet fills Tab 103-11 effective 10-17-17 | AE19: =C18 -> Possible Detail: G_4D_Grade_Delay_S
C50: Moisture control is required for select soils treatment and is incidental to placement of the material. | AE50: =C50 -> Moisture control is required for select soils treatment and is incidental to placement of the material.
C52: Location | G52: Mainline | Q52: Section Area | Z52: Total Area (Mainline + Section) | AA52: Select Treament Thickness | AB52: Contractor Furnished Select Treatment | AC52: Remarks | AE52: =C52 -> Location | AI52: =G52 -> Mainline | AQ52: =Q52 -> Section Area | AZ52: =Z52 -> Total Area (Mainline + Section) | BA52: =AA52 -> Select Treament Thickness | BB52: =AB52 -> Contractor Furnished Select Treatment | BC52: =AC52 -> Remarks
C53: Road Identification | D53: Direction of Travel | E53: Station to Station | G53: Length | H53: Width | K53: Shoulder Width | O53: Pavement & Subgrade Thickness | P53: Area | Y53: Area | AE53: =C53 -> Road Identification | AF53: =D53 -> Direction of Travel | AG53: =E53 -> Station to Station | AI53: =G53 -> Length | AJ53: =H53 -> Width | AK53: =K53 -> Shoulder Width | AO53: =O53 -> Pavement & Subgrade Thickness | AP53: =P53 -> Area | AY53: =Y53 -> Area
K54: Median Side | M54: Outside | AK54: =K54 -> Median Side | AM54: =M54 -> Outside
H56: Inside Lane | I56: Outside Lane | J56: Total
G59: FT | H59: FT | I59: FT | J59: FT | K59: FT | L59: FT | M59: FT | N59: FT | O59: IN | P59: SF | Q59: SF | R59: SF | S59: SF | T59: SF | U59: SF | V59: SF | W59: SF | X59: SF | Y59: SF | Z59: SF | AA59: IN | AB59: CY | AI59: =G59 -> FT | AJ59: =J59 -> FT | AK59: =K59 -> FT | AL59: FT | AM59: FT | AN59: FT | AO59: IN | AP59: SF | AQ59: SF | AR59: SF | AS59: SF | AT59: SF | AU59: SF | AV59: SF | AW59: SF | AX59: SF | AY59: SF | AZ59: SF | BA59: IN | BB59: CY
G60: =IF(AND($E60<>"",$F60<>""),ABS($F60-$E60),"") ->  | H60: =IF(G60<>"",12,"") ->  | I60: =IF(G60<>"",14,"") ->  | J60: =IF(G60<>"",H60+I60,"") ->  | P60: =IF(F60<>"",G60*(J60+K60+L60+M60+N60),"") ->  | Y60: =IF(SUM(Q60:X60)>0,SUM(Q60:X60),"") ->  | Z60: =IF(F60<>"",SUM(P60,Y60),"") ->  | AB60: =IF(AA60<>"",(Z60*(AA60/12))/27,"") -> 
C61: US 63 | D61: NB | E61: 84155 | F61: 84362.82 | G61: =IF(AND($E61<>"",$F61<>""),ABS($F61-$E61),"") -> 207.82 | H61: =IF(G61<>"",12,"") -> 12 | I61: =IF(G61<>"",14,"") -> 14 | J61: 30-26 | M61: 4 | N61: 4 | O61: 16 | P61: =G61*(28+M61+N61) -> 7481.52 | Y61: =IF(SUM(Q61:X61)>0,SUM(Q61:X61),"") ->  | Z61: =IF(F61<>"",SUM(P61,Y61),"") -> 7481.52 | AA61: 24 | AB61: =IF(AA61<>"",(Z61*(AA61/12))/27,"") -> 554.1866667
C62: US 63 | D62: NB | E62: 84362.82 | F62: 85632.5 | G62: =IF(AND($E62<>"",$F62<>""),ABS($F62-$E62),"") -> 1269.68 | H62: 12 | I62: 14 | J62: =IF(G62<>"",H62+I62,"") -> 26 | L62: 0-12.0 | M62: 4 | N62: 4 | O62: 16 | P62: =G62*(J62+M62+N62+6) -> 50787.2 | Y62: =IF(SUM(Q62:X62)>0,SUM(Q62:X62),"") ->  | Z62: =IF(F62<>"",SUM(P62,Y62),"") -> 50787.2 | AA62: 24 | AB62: =IF(AA62<>"",(Z62*(AA62/12))/27,"") -> 3762.014815
C63: US 63 | D63: NB | E63: 85632.5 | F63: 87000.62 | G63: 1368.12 | H63: 12 | I63: 14 | J63: 26 | L63: 12 | M63: 4 | N63: 4 | O63: 16 | P63: =IF(F63<>"",G63*(J63+K63+L63+M63+N63),"") -> 62933.52 | Y63: =IF(SUM(Q63:X63)>0,SUM(Q63:X63),"") ->  | Z63: 62933.52 | AA63: 24 | AB63: 4661.742222
C64: Bridge
C65: US 63 | D65: NB | E65: 87310.53 | F65: 90164.56 | G65: 2854.03 | H65: 12 | I65: 14 | J65: 26 | L65: 12 | M65: 4 | N65: 4 | O65: 16 | P65: =IF(F65<>"",G65*(J65+K65+L65+M65+N65),"") -> 131285.38 | Z65: 131285.38 | AA65: 24 | AB65: 9724.842963
C66: US 63 | D66: NB | E66: 90164.56 | F66: 90499.63 | G66: 335.07 | H66: 12 | I66: 14 | J66: 26 | L66: 12-8.5 | M66: 4 | N66: 4 | O66: 16 | P66: =G66*(J66+10.25+M66+N66) -> 14826.8475 | Z66: 14826.8475 | AA66: 24 | AB66: 1098.285
C67: US 63 | D67: NB | E67: 90499.63 | F67: 91420 | G67: 920.37 | H67: 12 | I67: 14 | J67: 26 | L67: 8.5 | M67: 4 | N67: 4 | O67: 16 | P67: =IF(F67<>"",G67*(J67+K67+L67+M67+N67),"") -> 39115.725 | Z67: 39115.725 | AA67: 24 | AB67: 2897.461111
C68: US 63 | D68: NB | E68: 91420 | F68: 91745 | G68: 325 | H68: 12 | I68: 14 | J68: 26-23.8 | L68: 8.5-8.3 | M68: 4 | N68: 4 | O68: 16 | P68: =G68*(24.9+8.4+M68+N68) -> 13422.5 | Z68: 13422.5 | AA68: 24 | AB68: 994.2592593
P70: =IF(F70<>"",G70*(J70+K70+L70+M70+N70),"") -> 
C71: US 63 | D71: SB | E71: 84155 | F71: 84362.82 | G71: 207.82 | H71: 12 | I71: 14 | J71: 26 | M71: 4 | N71: 4 | O71: 16 | P71: =IF(F71<>"",G71*(J71+K71+L71+M71+N71),"") -> 7065.88 | Z71: 7065.88 | AA71: 24 | AB71: 523.3985185
C72: US 63 | D72: SB | E72: 84362.82 | F72: 85632.5 | G72: 1269.68 | H72: 12 | I72: 14 | J72: 26 | L72: 0-12.0 | M72: 4 | N72: 4 | O72: 16 | P72: =G72*(J72+6+M72+N72) -> 50787.2 | Z72: 50787.2 | AA72: 24 | AB72: 3762.014815
C73: US 63 | D73: SB | E73: 85662.82 | F73: 87000.62 | G73: 1337.8 | H73: 12 | I73: 14 | J73: 26 | L73: 12 | M73: 4 | N73: 4 | O73: 16 | P73: 61538.8 | Z73: 61538.8 | AA73: 24 | AB73: 4558.42963
C74: Bridge
C75: US 63 | D75: SB | E75: 87310.53 | F75: 90146.24 | G75: 2835.71 | H75: 12 | I75: 14 | J75: 26 | L75: 12 | M75: 4 | N75: 4 | O75: 16 | P75: 130442.66 | Z75: =IF(F75<>"",SUM(P75,Y75),"") -> 130442.66 | AA75: 24 | AB75: =IF(AA75<>"",(Z75*(AA75/12))/27,"") -> 9662.419259
C76: US 63 | D76: SB | E76: 90146.24 | F76: 90463.71 | G76: 317.47 | H76: 12 | I76: 14 | J76: 26 | L76: 12-8.5 | M76: 4 | N76: 4 | O76: 16 | P76: =G76*(J76+10.25+M76+N76) -> 14048.0475 | Z76: 14048.0475 | AA76: 24 | AB76: 1040.596111
C77: US 63 | D77: SB | E77: 90463.71 | F77: 91420 | G77: 956.29 | H77: 12 | I77: 14 | J77: 26 | L77: 8.5 | M77: 4 | N77: 4 | O77: 16 | P77: 40642.325 | Z77: 40642.325 | AA77: 24 | AB77: 3010.542593
C78: US 63 | D78: SB | E78: 91420 | F78: 91745 | G78: 325 | H78: 12 | I78: 14 | J78: 12 | L78: 8.5-8.3 | M78: 4.4 | N78: 6 | O78: 16 | P78: =G78*(J78+8.4+M78+N78) -> 10010 | V78: 2810.9 | Y78: =IF(SUM(Q78:X78)>0,SUM(Q78:X78),"") -> 2810.9 | Z78: =IF(F78<>"",SUM(P78,Y78),"") -> 12820.9 | AA78: 24 | AB78: 949.6962963
G79: =IF(AND($E79<>"",$F79<>""),ABS($F79-$E79),"") ->  | H79: =IF(G79<>"",12,"") ->  | I79: =IF(G79<>"",14,"") ->  | Y79: =IF(SUM(Q79:X79)>0,SUM(Q79:X79),"") ->  | Z79: =IF(F79<>"",SUM(P79,Y79),"") ->  | AB79: =IF(AA79<>"",(Z79*(AA79/12))/27,"") -> 
C81: US 63 SB RAMP | D81: SB | E81: 91598.22 | F81: 91853.53 | G81: 255.31 | H81: 15 | J81: 15 | K81: 2 | L81: 4 | M81: 4 | N81: 4 | O81: 16 | P81: =G81*(J81+K81+L81+M81+N81) -> 7403.99 | Y81: =IF(SUM(Q81:X81)>0,SUM(Q81:X81),"") ->  | Z81: 7403.99 | AA81: 24 | AB81: =IF(AA81<>"",(Z81*(AA81/12))/27,"") -> 548.4437037
H82: =IF(G82<>"",12,"") ->  | J82: =IF(G82<>"",H82+I82,"") ->  | P82: =IF(F82<>"",G82*(J82+K82+L82+M82+N82),"") ->  | Z82: =IF(F82<>"",SUM(P82,Y82),"") ->  | AB82: =IF(AA82<>"",(Z82*(AA82/12))/27,"") -> 
I83: =IF(G83<>"",14,"") -> 
C84: TOTAL: | AB84: =SUM(AB61:AB81) -> 47748.33296
H93: =IF(G93<>"",12,"") ->  | I93: =IF(G93<>"",14,"") ->  | J93: =IF(G93<>"",H93+I93,"") ->  | P93: =IF(F93<>"",G93*(J93+K93+L93+M93+N93),"") ->  | Z93: =IF(F93<>"",SUM(P93,Y93),"") -> 
H97: =IF(G97<>"",12,"") ->  | I97: =IF(G97<>"",14,"") -> 
AB130: =IF(AA130<>"",(Z130*(AA130/12))/27,"") -> 
G131: =IF(AND($E131<>"",$F131<>""),ABS($F131-$E131),"") ->  | H131: =IF(G131<>"",12,"") ->  | I131: =IF(G131<>"",14,"") ->  | J131: =IF(G131<>"",H131+I131,"") ->  | P131: =IF(F131<>"",G131*(J131+K131+L131+M131+N131),"") ->  | Z131: =IF(F131<>"",SUM(P131,Y131),"") -> 
Y132: =IF(SUM(Q132:X132)>0,SUM(Q132:X132),"") -> 
AB194: =IF(AA194<>"",(Z194*(AA194/12))/27,"") -> 
G195: =IF(AND($E195<>"",$F195<>""),ABS($F195-$E195),"") ->  | H195: =IF(G195<>"",12,"") ->  | I195: =IF(G195<>"",14,"") ->  | J195: =IF(G195<>"",H195+I195,"") ->  | P195: =IF(F195<>"",G195*(J195+K195+L195+M195+N195),"") ->  | Z195: =IF(F195<>"",SUM(P195,Y195),"") -> 
Y196: =IF(SUM(Q196:X196)>0,SUM(Q196:X196),"") -> 
AB258: =IF(AA258<>"",(Z258*(AA258/12))/27,"") -> 
G259: =IF(AND($E259<>"",$F259<>""),ABS($F259-$E259),"") ->  | H259: =IF(G259<>"",12,"") ->  | I259: =IF(G259<>"",14,"") ->  | J259: =IF(G259<>"",H259+I259,"") ->  | P259: =IF(F259<>"",G259*(J259+K259+L259+M259+N259),"") ->  | Z259: =IF(F259<>"",SUM(P259,Y259),"") -> 
Y260: =IF(SUM(Q260:X260)>0,SUM(Q260:X260),"") -> 
AB322: =IF(AA322<>"",(Z322*(AA322/12))/27,"") -> 
G323: =IF(AND($E323<>"",$F323<>""),ABS($F323-$E323),"") ->  | H323: =IF(G323<>"",12,"") ->  | I323: =IF(G323<>"",14,"") ->  | J323: =IF(G323<>"",H323+I323,"") ->  | P323: =IF(F323<>"",G323*(J323+K323+L323+M323+N323),"") ->  | Z323: =IF(F323<>"",SUM(P323,Y323),"") -> 
Y324: =IF(SUM(Q324:X324)>0,SUM(Q324:X324),"") -> 
AB386: =IF(AA386<>"",(Z386*(AA386/12))/27,"") -> 
G387: =IF(AND($E387<>"",$F387<>""),ABS($F387-$E387),"") ->  | H387: =IF(G387<>"",12,"") ->  | I387: =IF(G387<>"",14,"") ->  | J387: =IF(G387<>"",H387+I387,"") ->  | P387: =IF(F387<>"",G387*(J387+K387+L387+M387+N387),"") ->  | Z387: =IF(F387<>"",SUM(P387,Y387),"") -> 
Y388: =IF(SUM(Q388:X388)>0,SUM(Q388:X388),"") -> 
AB450: =IF(AA450<>"",(Z450*(AA450/12))/27,"") -> 
G451: =IF(AND($E451<>"",$F451<>""),ABS($F451-$E451),"") ->  | H451: =IF(G451<>"",12,"") ->  | I451: =IF(G451<>"",14,"") ->  | J451: =IF(G451<>"",H451+I451,"") ->  | P451: =IF(F451<>"",G451*(J451+K451+L451+M451+N451),"") ->  | Z451: =IF(F451<>"",SUM(P451,Y451),"") -> 
Y452: =IF(SUM(Q452:X452)>0,SUM(Q452:X452),"") -> 
AB514: =IF(AA514<>"",(Z514*(AA514/12))/27,"") -> 
G515: =IF(AND($E515<>"",$F515<>""),ABS($F515-$E515),"") ->  | H515: =IF(G515<>"",12,"") ->  | I515: =IF(G515<>"",14,"") ->  | J515: =IF(G515<>"",H515+I515,"") ->  | P515: =IF(F515<>"",G515*(J515+K515+L515+M515+N515),"") ->  | Z515: =IF(F515<>"",SUM(P515,Y515),"") -> 
Y516: =IF(SUM(Q516:X516)>0,SUM(Q516:X516),"") -> 
AB578: =IF(AA578<>"",(Z578*(AA578/12))/27,"") -> 
G579: =IF(AND($E579<>"",$F579<>""),ABS($F579-$E579),"") ->  | H579: =IF(G579<>"",12,"") ->  | I579: =IF(G579<>"",14,"") ->  | J579: =IF(G579<>"",H579+I579,"") ->  | P579: =IF(F579<>"",G579*(J579+K579+L579+M579+N579),"") ->  | Z579: =IF(F579<>"",SUM(P579,Y579),"") -> 
Y580: =IF(SUM(Q580:X580)>0,SUM(Q580:X580),"") -> 
AB642: =IF(AA642<>"",(Z642*(AA642/12))/27,"") -> 
G643: =IF(AND($E643<>"",$F643<>""),ABS($F643-$E643),"") ->  | H643: =IF(G643<>"",12,"") ->  | I643: =IF(G643<>"",14,"") ->  | J643: =IF(G643<>"",H643+I643,"") ->  | P643: =IF(F643<>"",G643*(J643+K643+L643+M643+N643),"") ->  | Z643: =IF(F643<>"",SUM(P643,Y643),"") -> 
Y644: =IF(SUM(Q644:X644)>0,SUM(Q644:X644),"") -> 
AB706: =IF(AA706<>"",(Z706*(AA706/12))/27,"") -> 
G707: =IF(AND($E707<>"",$F707<>""),ABS($F707-$E707),"") ->  | H707: =IF(G707<>"",12,"") ->  | I707: =IF(G707<>"",14,"") ->  | J707: =IF(G707<>"",H707+I707,"") ->  | P707: =IF(F707<>"",G707*(J707+K707+L707+M707+N707),"") ->  | Z707: =IF(F707<>"",SUM(P707,Y707),"") -> 
Y708: =IF(SUM(Q708:X708)>0,SUM(Q708:X708),"") -> 
AB770: =IF(AA770<>"",(Z770*(AA770/12))/27,"") -> 
G771: =IF(AND($E771<>"",$F771<>""),ABS($F771-$E771),"") ->  | H771: =IF(G771<>"",12,"") ->  | I771: =IF(G771<>"",14,"") ->  | J771: =IF(G771<>"",H771+I771,"") ->  | P771: =IF(F771<>"",G771*(J771+K771+L771+M771+N771),"") ->  | Z771: =IF(F771<>"",SUM(P771,Y771),"") -> 
Y772: =IF(SUM(Q772:X772)>0,SUM(Q772:X772),"") -> 
AB834: =IF(AA834<>"",(Z834*(AA834/12))/27,"") -> 
G835: =IF(AND($E835<>"",$F835<>""),ABS($F835-$E835),"") ->  | H835: =IF(G835<>"",12,"") ->  | I835: =IF(G835<>"",14,"") ->  | J835: =IF(G835<>"",H835+I835,"") ->  | P835: =IF(F835<>"",G835*(J835+K835+L835+M835+N835),"") ->  | Z835: =IF(F835<>"",SUM(P835,Y835),"") -> 
Y836: =IF(SUM(Q836:X836)>0,SUM(Q836:X836),"") -> 
AB898: =IF(AA898<>"",(Z898*(AA898/12))/27,"") -> 
G899: =IF(AND($E899<>"",$F899<>""),ABS($F899-$E899),"") ->  | H899: =IF(G899<>"",12,"") ->  | I899: =IF(G899<>"",14,"") ->  | J899: =IF(G899<>"",H899+I899,"") ->  | P899: =IF(F899<>"",G899*(J899+K899+L899+M899+N899),"") ->  | Z899: =IF(F899<>"",SUM(P899,Y899),"") -> 
Y900: =IF(SUM(Q900:X900)>0,SUM(Q900:X900),"") -> 
AB962: =IF(AA962<>"",(Z962*(AA962/12))/27,"") -> 
G963: =IF(AND($E963<>"",$F963<>""),ABS($F963-$E963),"") ->  | H963: =IF(G963<>"",12,"") ->  | I963: =IF(G963<>"",14,"") ->  | J963: =IF(G963<>"",H963+I963,"") ->  | P963: =IF(F963<>"",G963*(J963+K963+L963+M963+N963),"") ->  | Z963: =IF(F963<>"",SUM(P963,Y963),"") -> 
Y964: =IF(SUM(Q964:X964)>0,SUM(Q964:X964),"") -> 
... 57 more rows

Sheet DE104_14M
A1: TabTitle | B1: =C16 -> LINEAR TRENCH DRAIN
A2: Number of Tab Columns | B2: 11
A3: DE Starter Row Number | B3: 25
A4: TabSheet Starter Row Number | B4: 11
A5: TabSheet Header Row Count | B5: 10
A6: Top Header Cell | B6: Q15
A7: Bottom Header Cell | B7: AA24
A8: DESheet Row Count | B8: 6
A9: Fixed Empty Rows | B9: 5
A10: Usable Empty Rows | B10: 0
A11: Total Rows Placed | B11: 11 | C11: xlRight(1) | D11: xlRight(1) | E11: xlCenter(1) | F11: xlCenter(1) | G11: xlRight(1) | H11: xlCenter(1) | I11: xlRCenter(1) | J11: xlRight(1) | K11: xlRight(1) | L11: xlRight(1) | M11: xlRight(1) | N11: xlRight(1) | O11: xlLeft(1) | Q11: =C11 -> xlRight(1) | R11: xlRight(1) | S11: xlCenter(1) | T11: xlCenter(1) | U11: xlRight(1) | V11: xlCenter(1) | W11: =H11 -> xlCenter(1) | X11: =J11 -> xlRight(1) | Y11: =K11 -> xlRight(1) | Z11: =N11 -> xlRight(1) | AA11: xlLeft(1)
A12: Total Rows Needed | B12: =SUM(B8:B10) -> 11 | C12: #+00.00 | D12: #+00.00 | E12: 0.0 | F12: 0.0 | G12: 0.0 | H12: 0.0 | I12: 0.0 | J12: 0.0 | K12: 0.0 | L12: 0.0 | M12: 0.0 | N12: 0.0 | O12: General | Q12: #+00.00 | R12: #+00.00 | S12: 0.0 | T12: 0.0 | U12: 0.0 | V12: 0.0 | W12: =H12 -> 0.0 | X12: =J12 -> 0.0 | Y12: =K12 -> 0.0 | Z12: 0.0 | AA12: General
A13: Last Tab DE Starter Row | B13: 25 | C13: =CELL("width",C13) -> 16 | D13: 16 | E13: 13 | F13: 9 | G13: 12 | H13: 7 | I13: 18 | J13: 9 | K13: 9 | L13: 14 | M13: 14 | N13: 12 | O13: 30 | Q13: =CELL("width",Q13) -> 0 | R13: 0 | S13: 0 | T13: 0 | U13: 0 | V13: 0 | W13: 0 | X13: 0 | Y13: 0 | Z13: 0 | AA13: 0
A14: Last Tab TabSheet Starter Row | B14: 11 | C14: A | D14: B | E14: C | F14: D | G14: E | H14: F | I14: G | J14: H | K14: I | N14: J | O14: K | Q14: =LOWER(C14) -> a | R14: b | S14: c | T14: d | U14: e | V14: f | W14: g | X14: h | Y14: i | Z14: =LOWER(N14) -> j | AA14: k
A15: Last Copy Starter Row | B15: 1 | D15: Totals: | G15: =SUBTOTAL(9,G25:G6000) -> 830 | Q15: 104-14M | AC15: Direction of Travel
A16: Tab Loop Number | B16: 2 | C16: LINEAR TRENCH DRAIN | Q16: =B17 -> Modified | AC16: NB
A17: Revision Date | B17: Modified | Q17: =C16 -> LINEAR TRENCH DRAIN | AC17: SB
A18: Tabulation Width | B18: 2 | C18: Possible Standard: SW-521 | AC18: EB
A19: Horizontal Grid Lines | B19: Yes | C19: Bid Item | Q19: =C18 -> Possible Standard: SW-521 | AC19: WB
C20: Not a bid item. Assumes a 6" wide by 8" deep trench. | Q20: =C19 -> Bid Item | AC20: Side
C21: ="This Data Entry Sheet fills Tab "&Q15&" effective "&TEXT(B17,"mm-dd-yy") -> This Data Entry Sheet fills Tab 104-14M effective Modified | Q21: =C20 -> Not a bid item. Assumes a 6" wide by 8" deep trench. | AC21: LT
C22: Station to Station | E22: Direction of Travel | F22: Side | G22: Length | H22: Curb | I22: Curb Type | J22: T | K22: TC | L22: Base Cross Section Area | M22: Curb Cross Section Area | N22: PCC | O22: Remarks | Q22: =C22 -> Station to Station | S22: =E22 -> Direction of Travel | T22: Side | U22: Length | V22: Curb | W22: Curb Type | X22: T | Y22: TC | Z22: =N22 -> PCC | AA22: Remarks | AC22: RT
L23: Section Area | M23: Section Area | AC23: M
G24: LF | J24: IN | K24: IN | L24: SQ FT | M24: SQ FT | N24: CY | U24: =G24 -> LF | X24: =J24 -> IN | Y24: IN | Z24: =N24 -> CY | AC24: O
G25: =IF(C25<>"",ABS(D25-C25),"") ->  | L25: =IF(H25<>"",IF(H25="Yes",(J25*J25+14*K25+8*J25+J25*K25)/144,(2*J25*J25+22*J25)/144),"") ->  | M25: =IF(I25<>"",IF(I25="6 inch standard",(6*K25-9)/144,IF(I25="4 inch sloped", (4*K25-16)/144,(6*K25-31.125)/144)),"") ->  | N25: =IF(H25<>"",IF(H25="No",G25*L25/27,G25*(L25+M25)/27),"") ->  | AC25: Curb?
C26: 91325 | D26: 91425 | E26: SB | F26: M | G26: 100 | H26: Yes | I26: 6 inch sloped | J26: 10 | K26: 12 | L26: =IF(H26<>"",IF(H26="Yes",(J26*J26+14*K26+8*J26+J26*K26)/144,(2*J26*J26+22*J26)/144),"") -> 3.25 | M26: =IF(I26<>"",IF(I26="6 inch standard",(6*K26-9)/144,IF(I26="4 inch sloped", (4*K26-16)/144,(6*K26-31.125)/144)),"") -> 0.2838541667 | N26: =IF(H26<>"",IF(H26="No",G26*L26/27,G26*(L26+M26)/27),"") -> 13.08834877 | AC26: Yes
C27: 91425 | D27: 91740 | E27: SB | F27: M | G27: 315 | H27: Yes | I27: 6 inch standard | J27: 10 | K27: 7.5 | L27: =IF(H27<>"",IF(H27="Yes",(J27*J27+14*K27+8*J27+J27*K27)/144,(2*J27*J27+22*J27)/144),"") -> 2.5 | M27: =IF(I27<>"",IF(I27="6 inch standard",(6*K27-9)/144,IF(I27="4 inch sloped", (4*K27-16)/144,(6*K27-31.125)/144)),"") -> 0.25 | N27: =IF(H27<>"",IF(H27="No",G27*L27/27,G27*(L27+M27)/27),"") -> 32.08333333 | AC27: No
L28: =IF(H28<>"",IF(H28="Yes",(J28*J28+14*K28+8*J28+J28*K28)/144,(2*J28*J28+22*J28)/144),"") ->  | AC28: Curb Type
AC29: 6 inch standard
C30: TOTALS: | G30: =SUM(G26:G27) -> 415 | N30: =SUM(N26:N27) -> 45.1716821 | AC30: 6 inch sloped
AC31: 4 inch sloped
G89: =IF(C89<>"",ABS(D89-C89),"") -> 
M91: =IF(I91<>"",IF(I91="6 inch standard",(6*K91-9)/144,IF(I91="4 inch sloped", (4*K91-16)/144,(6*K91-31.125)/144)),"") ->  | N91: =IF(H91<>"",IF(H91="No",G91*L91/27,G91*(L91+M91)/27),"") -> 
L92: =IF(H92<>"",IF(H92="Yes",(J92*J92+14*K92+8*J92+J92*K92)/144,(2*J92*J92+22*J92)/144),"") -> 
G153: =IF(C153<>"",ABS(D153-C153),"") -> 
M155: =IF(I155<>"",IF(I155="6 inch standard",(6*K155-9)/144,IF(I155="4 inch sloped", (4*K155-16)/144,(6*K155-31.125)/144)),"") ->  | N155: =IF(H155<>"",IF(H155="No",G155*L155/27,G155*(L155+M155)/27),"") -> 
L156: =IF(H156<>"",IF(H156="Yes",(J156*J156+14*K156+8*J156+J156*K156)/144,(2*J156*J156+22*J156)/144),"") -> 
G217: =IF(C217<>"",ABS(D217-C217),"") -> 
M219: =IF(I219<>"",IF(I219="6 inch standard",(6*K219-9)/144,IF(I219="4 inch sloped", (4*K219-16)/144,(6*K219-31.125)/144)),"") ->  | N219: =IF(H219<>"",IF(H219="No",G219*L219/27,G219*(L219+M219)/27),"") -> 
L220: =IF(H220<>"",IF(H220="Yes",(J220*J220+14*K220+8*J220+J220*K220)/144,(2*J220*J220+22*J220)/144),"") -> 
G281: =IF(C281<>"",ABS(D281-C281),"") -> 
M283: =IF(I283<>"",IF(I283="6 inch standard",(6*K283-9)/144,IF(I283="4 inch sloped", (4*K283-16)/144,(6*K283-31.125)/144)),"") ->  | N283: =IF(H283<>"",IF(H283="No",G283*L283/27,G283*(L283+M283)/27),"") -> 
L284: =IF(H284<>"",IF(H284="Yes",(J284*J284+14*K284+8*J284+J284*K284)/144,(2*J284*J284+22*J284)/144),"") -> 
G345: =IF(C345<>"",ABS(D345-C345),"") -> 
M347: =IF(I347<>"",IF(I347="6 inch standard",(6*K347-9)/144,IF(I347="4 inch sloped", (4*K347-16)/144,(6*K347-31.125)/144)),"") ->  | N347: =IF(H347<>"",IF(H347="No",G347*L347/27,G347*(L347+M347)/27),"") -> 
L348: =IF(H348<>"",IF(H348="Yes",(J348*J348+14*K348+8*J348+J348*K348)/144,(2*J348*J348+22*J348)/144),"") -> 
G409: =IF(C409<>"",ABS(D409-C409),"") -> 
M411: =IF(I411<>"",IF(I411="6 inch standard",(6*K411-9)/144,IF(I411="4 inch sloped", (4*K411-16)/144,(6*K411-31.125)/144)),"") ->  | N411: =IF(H411<>"",IF(H411="No",G411*L411/27,G411*(L411+M411)/27),"") -> 
L412: =IF(H412<>"",IF(H412="Yes",(J412*J412+14*K412+8*J412+J412*K412)/144,(2*J412*J412+22*J412)/144),"") -> 
G473: =IF(C473<>"",ABS(D473-C473),"") -> 
M475: =IF(I475<>"",IF(I475="6 inch standard",(6*K475-9)/144,IF(I475="4 inch sloped", (4*K475-16)/144,(6*K475-31.125)/144)),"") ->  | N475: =IF(H475<>"",IF(H475="No",G475*L475/27,G475*(L475+M475)/27),"") -> 
L476: =IF(H476<>"",IF(H476="Yes",(J476*J476+14*K476+8*J476+J476*K476)/144,(2*J476*J476+22*J476)/144),"") -> 
G537: =IF(C537<>"",ABS(D537-C537),"") -> 
M539: =IF(I539<>"",IF(I539="6 inch standard",(6*K539-9)/144,IF(I539="4 inch sloped", (4*K539-16)/144,(6*K539-31.125)/144)),"") ->  | N539: =IF(H539<>"",IF(H539="No",G539*L539/27,G539*(L539+M539)/27),"") -> 
L540: =IF(H540<>"",IF(H540="Yes",(J540*J540+14*K540+8*J540+J540*K540)/144,(2*J540*J540+22*J540)/144),"") -> 
G601: =IF(C601<>"",ABS(D601-C601),"") -> 
M603: =IF(I603<>"",IF(I603="6 inch standard",(6*K603-9)/144,IF(I603="4 inch sloped", (4*K603-16)/144,(6*K603-31.125)/144)),"") ->  | N603: =IF(H603<>"",IF(H603="No",G603*L603/27,G603*(L603+M603)/27),"") -> 
L604: =IF(H604<>"",IF(H604="Yes",(J604*J604+14*K604+8*J604+J604*K604)/144,(2*J604*J604+22*J604)/144),"") -> 
G665: =IF(C665<>"",ABS(D665-C665),"") -> 
M667: =IF(I667<>"",IF(I667="6 inch standard",(6*K667-9)/144,IF(I667="4 inch sloped", (4*K667-16)/144,(6*K667-31.125)/144)),"") ->  | N667: =IF(H667<>"",IF(H667="No",G667*L667/27,G667*(L667+M667)/27),"") -> 
L668: =IF(H668<>"",IF(H668="Yes",(J668*J668+14*K668+8*J668+J668*K668)/144,(2*J668*J668+22*J668)/144),"") -> 
G729: =IF(C729<>"",ABS(D729-C729),"") -> 
M731: =IF(I731<>"",IF(I731="6 inch standard",(6*K731-9)/144,IF(I731="4 inch sloped", (4*K731-16)/144,(6*K731-31.125)/144)),"") ->  | N731: =IF(H731<>"",IF(H731="No",G731*L731/27,G731*(L731+M731)/27),"") -> 
L732: =IF(H732<>"",IF(H732="Yes",(J732*J732+14*K732+8*J732+J732*K732)/144,(2*J732*J732+22*J732)/144),"") -> 
G793: =IF(C793<>"",ABS(D793-C793),"") -> 
M795: =IF(I795<>"",IF(I795="6 inch standard",(6*K795-9)/144,IF(I795="4 inch sloped", (4*K795-16)/144,(6*K795-31.125)/144)),"") ->  | N795: =IF(H795<>"",IF(H795="No",G795*L795/27,G795*(L795+M795)/27),"") -> 
L796: =IF(H796<>"",IF(H796="Yes",(J796*J796+14*K796+8*J796+J796*K796)/144,(2*J796*J796+22*J796)/144),"") -> 
G857: =IF(C857<>"",ABS(D857-C857),"") -> 
M859: =IF(I859<>"",IF(I859="6 inch standard",(6*K859-9)/144,IF(I859="4 inch sloped", (4*K859-16)/144,(6*K859-31.125)/144)),"") ->  | N859: =IF(H859<>"",IF(H859="No",G859*L859/27,G859*(L859+M859)/27),"") -> 
L860: =IF(H860<>"",IF(H860="Yes",(J860*J860+14*K860+8*J860+J860*K860)/144,(2*J860*J860+22*J860)/144),"") -> 
G921: =IF(C921<>"",ABS(D921-C921),"") -> 
M923: =IF(I923<>"",IF(I923="6 inch standard",(6*K923-9)/144,IF(I923="4 inch sloped", (4*K923-16)/144,(6*K923-31.125)/144)),"") ->  | N923: =IF(H923<>"",IF(H923="No",G923*L923/27,G923*(L923+M923)/27),"") -> 
L924: =IF(H924<>"",IF(H924="Yes",(J924*J924+14*K924+8*J924+J924*K924)/144,(2*J924*J924+22*J924)/144),"") -> 
G985: =IF(C985<>"",ABS(D985-C985),"") -> 
M987: =IF(I987<>"",IF(I987="6 inch standard",(6*K987-9)/144,IF(I987="4 inch sloped", (4*K987-16)/144,(6*K987-31.125)/144)),"") ->  | N987: =IF(H987<>"",IF(H987="No",G987*L987/27,G987*(L987+M987)/27),"") -> 
L988: =IF(H988<>"",IF(H988="Yes",(J988*J988+14*K988+8*J988+J988*K988)/144,(2*J988*J988+22*J988)/144),"") -> 
G1049: =IF(C1049<>"",ABS(D1049-C1049),"") -> 
M1051: =IF(I1051<>"",IF(I1051="6 inch standard",(6*K1051-9)/144,IF(I1051="4 inch sloped", (4*K1051-16)/144,(6*K1051-31.125)/144)),"") ->  | N1051: =IF(H1051<>"",IF(H1051="No",G1051*L1051/27,G1051*(L1051+M1051)/27),"") -> 
L1052: =IF(H1052<>"",IF(H1052="Yes",(J1052*J1052+14*K1052+8*J1052+J1052*K1052)/144,(2*J1052*J1052+22*J1052)/144),"") -> 
G1113: =IF(C1113<>"",ABS(D1113-C1113),"") -> 
M1115: =IF(I1115<>"",IF(I1115="6 inch standard",(6*K1115-9)/144,IF(I1115="4 inch sloped", (4*K1115-16)/144,(6*K1115-31.125)/144)),"") ->  | N1115: =IF(H1115<>"",IF(H1115="No",G1115*L1115/27,G1115*(L1115+M1115)/27),"") -> 
L1116: =IF(H1116<>"",IF(H1116="Yes",(J1116*J1116+14*K1116+8*J1116+J1116*K1116)/144,(2*J1116*J1116+22*J1116)/144),"") -> 
G1177: =IF(C1177<>"",ABS(D1177-C1177),"") -> 
M1179: =IF(I1179<>"",IF(I1179="6 inch standard",(6*K1179-9)/144,IF(I1179="4 inch sloped", (4*K1179-16)/144,(6*K1179-31.125)/144)),"") ->  | N1179: =IF(H1179<>"",IF(H1179="No",G1179*L1179/27,G1179*(L1179+M1179)/27),"") -> 
L1180: =IF(H1180<>"",IF(H1180="Yes",(J1180*J1180+14*K1180+8*J1180+J1180*K1180)/144,(2*J1180*J1180+22*J1180)/144),"") -> 
G1241: =IF(C1241<>"",ABS(D1241-C1241),"") -> 
M1243: =IF(I1243<>"",IF(I1243="6 inch standard",(6*K1243-9)/144,IF(I1243="4 inch sloped", (4*K1243-16)/144,(6*K1243-31.125)/144)),"") ->  | N1243: =IF(H1243<>"",IF(H1243="No",G1243*L1243/27,G1243*(L1243+M1243)/27),"") -> 
L1244: =IF(H1244<>"",IF(H1244="Yes",(J1244*J1244+14*K1244+8*J1244+J1244*K1244)/144,(2*J1244*J1244+22*J1244)/144),"") -> 
G1305: =IF(C1305<>"",ABS(D1305-C1305),"") -> 
M1307: =IF(I1307<>"",IF(I1307="6 inch standard",(6*K1307-9)/144,IF(I1307="4 inch sloped", (4*K1307-16)/144,(6*K1307-31.125)/144)),"") ->  | N1307: =IF(H1307<>"",IF(H1307="No",G1307*L1307/27,G1307*(L1307+M1307)/27),"") -> 
L1308: =IF(H1308<>"",IF(H1308="Yes",(J1308*J1308+14*K1308+8*J1308+J1308*K1308)/144,(2*J1308*J1308+22*J1308)/144),"") -> 
G1369: =IF(C1369<>"",ABS(D1369-C1369),"") -> 
M1371: =IF(I1371<>"",IF(I1371="6 inch standard",(6*K1371-9)/144,IF(I1371="4 inch sloped", (4*K1371-16)/144,(6*K1371-31.125)/144)),"") ->  | N1371: =IF(H1371<>"",IF(H1371="No",G1371*L1371/27,G1371*(L1371+M1371)/27),"") -> 
L1372: =IF(H1372<>"",IF(H1372="Yes",(J1372*J1372+14*K1372+8*J1372+J1372*K1372)/144,(2*J1372*J1372+22*J1372)/144),"") -> 
G1433: =IF(C1433<>"",ABS(D1433-C1433),"") -> 
M1435: =IF(I1435<>"",IF(I1435="6 inch standard",(6*K1435-9)/144,IF(I1435="4 inch sloped", (4*K1435-16)/144,(6*K1435-31.125)/144)),"") ->  | N1435: =IF(H1435<>"",IF(H1435="No",G1435*L1435/27,G1435*(L1435+M1435)/27),"") -> 
L1436: =IF(H1436<>"",IF(H1436="Yes",(J1436*J1436+14*K1436+8*J1436+J1436*K1436)/144,(2*J1436*J1436+22*J1436)/144),"") -> 
G1497: =IF(C1497<>"",ABS(D1497-C1497),"") -> 
M1499: =IF(I1499<>"",IF(I1499="6 inch standard",(6*K1499-9)/144,IF(I1499="4 inch sloped", (4*K1499-16)/144,(6*K1499-31.125)/144)),"") ->  | N1499: =IF(H1499<>"",IF(H1499="No",G1499*L1499/27,G1499*(L1499+M1499)/27),"") -> 
L1500: =IF(H1500<>"",IF(H1500="Yes",(J1500*J1500+14*K1500+8*J1500+J1500*K1500)/144,(2*J1500*J1500+22*J1500)/144),"") -> 
G1561: =IF(C1561<>"",ABS(D1561-C1561),"") -> 
M1563: =IF(I1563<>"",IF(I1563="6 inch standard",(6*K1563-9)/144,IF(I1563="4 inch sloped", (4*K1563-16)/144,(6*K1563-31.125)/144)),"") ->  | N1563: =IF(H1563<>"",IF(H1563="No",G1563*L1563/27,G1563*(L1563+M1563)/27),"") -> 
L1564: =IF(H1564<>"",IF(H1564="Yes",(J1564*J1564+14*K1564+8*J1564+J1564*K1564)/144,(2*J1564*J1564+22*J1564)/144),"") -> 
G1625: =IF(C1625<>"",ABS(D1625-C1625),"") -> 
M1627: =IF(I1627<>"",IF(I1627="6 inch standard",(6*K1627-9)/144,IF(I1627="4 inch sloped", (4*K1627-16)/144,(6*K1627-31.125)/144)),"") ->  | N1627: =IF(H1627<>"",IF(H1627="No",G1627*L1627/27,G1627*(L1627+M1627)/27),"") -> 
L1628: =IF(H1628<>"",IF(H1628="Yes",(J1628*J1628+14*K1628+8*J1628+J1628*K1628)/144,(2*J1628*J1628+22*J1628)/144),"") -> 
G1689: =IF(C1689<>"",ABS(D1689-C1689),"") -> 
M1691: =IF(I1691<>"",IF(I1691="6 inch standard",(6*K1691-9)/144,IF(I1691="4 inch sloped", (4*K1691-16)/144,(6*K1691-31.125)/144)),"") ->  | N1691: =IF(H1691<>"",IF(H1691="No",G1691*L1691/27,G1691*(L1691+M1691)/27),"") -> 
L1692: =IF(H1692<>"",IF(H1692="Yes",(J1692*J1692+14*K1692+8*J1692+J1692*K1692)/144,(2*J1692*J1692+22*J1692)/144),"") -> 
G1753: =IF(C1753<>"",ABS(D1753-C1753),"") -> 
M1755: =IF(I1755<>"",IF(I1755="6 inch standard",(6*K1755-9)/144,IF(I1755="4 inch sloped", (4*K1755-16)/144,(6*K1755-31.125)/144)),"") ->  | N1755: =IF(H1755<>"",IF(H1755="No",G1755*L1755/27,G1755*(L1755+M1755)/27),"") -> 
L1756: =IF(H1756<>"",IF(H1756="Yes",(J1756*J1756+14*K1756+8*J1756+J1756*K1756)/144,(2*J1756*J1756+22*J1756)/144),"") -> 
G1817: =IF(C1817<>"",ABS(D1817-C1817),"") -> 
M1819: =IF(I1819<>"",IF(I1819="6 inch standard",(6*K1819-9)/144,IF(I1819="4 inch sloped", (4*K1819-16)/144,(6*K1819-31.125)/144)),"") ->  | N1819: =IF(H1819<>"",IF(H1819="No",G1819*L1819/27,G1819*(L1819+M1819)/27),"") -> 
L1820: =IF(H1820<>"",IF(H1820="Yes",(J1820*J1820+14*K1820+8*J1820+J1820*K1820)/144,(2*J1820*J1820+22*J1820)/144),"") -> 
G1881: =IF(C1881<>"",ABS(D1881-C1881),"") -> 
M1883: =IF(I1883<>"",IF(I1883="6 inch standard",(6*K1883-9)/144,IF(I1883="4 inch sloped", (4*K1883-16)/144,(6*K1883-31.125)/144)),"") ->  | N1883: =IF(H1883<>"",IF(H1883="No",G1883*L1883/27,G1883*(L1883+M1883)/27),"") -> 
L1884: =IF(H1884<>"",IF(H1884="Yes",(J1884*J1884+14*K1884+8*J1884+J1884*K1884)/144,(2*J1884*J1884+22*J1884)/144),"") -> 
G1945: =IF(C1945<>"",ABS(D1945-C1945),"") -> 
M1947: =IF(I1947<>"",IF(I1947="6 inch standard",(6*K1947-9)/144,IF(I1947="4 inch sloped", (4*K1947-16)/144,(6*K1947-31.125)/144)),"") ->  | N1947: =IF(H1947<>"",IF(H1947="No",G1947*L1947/27,G1947*(L1947+M1947)/27),"") -> 
L1948: =IF(H1948<>"",IF(H1948="Yes",(J1948*J1948+14*K1948+8*J1948+J1948*K1948)/144,(2*J1948*J1948+22*J1948)/144),"") -> 
N2001: =IF(J2001<>"",(((2*J2001*8)+(2*J2001*J2001)+(J2001*6))/144)*G2001/27,"") -> 
G2009: =IF(C2009<>"",ABS(D2009-C2009),"") -> 
N2065: =IF(J2065<>"",(((2*J2065*8)+(2*J2065*J2065)+(J2065*6))/144)*G2065/27,"") -> 
G2073: =IF(C2073<>"",ABS(D2073-C2073),"") -> 
N2129: =IF(J2129<>"",(((2*J2129*8)+(2*J2129*J2129)+(J2129*6))/144)*G2129/27,"") -> 
G2137: =IF(C2137<>"",ABS(D2137-C2137),"") -> 
N2193: =IF(J2193<>"",(((2*J2193*8)+(2*J2193*J2193)+(J2193*6))/144)*G2193/27,"") -> 
G2201: =IF(C2201<>"",ABS(D2201-C2201),"") -> 
N2257: =IF(J2257<>"",(((2*J2257*8)+(2*J2257*J2257)+(J2257*6))/144)*G2257/27,"") -> 
G2265: =IF(C2265<>"",ABS(D2265-C2265),"") -> 
N2321: =IF(J2321<>"",(((2*J2321*8)+(2*J2321*J2321)+(J2321*6))/144)*G2321/27,"") -> 
G2329: =IF(C2329<>"",ABS(D2329-C2329),"") -> 
N2385: =IF(J2385<>"",(((2*J2385*8)+(2*J2385*J2385)+(J2385*6))/144)*G2385/27,"") -> 
G2393: =IF(C2393<>"",ABS(D2393-C2393),"") -> 
N2449: =IF(J2449<>"",(((2*J2449*8)+(2*J2449*J2449)+(J2449*6))/144)*G2449/27,"") -> 
G2457: =IF(C2457<>"",ABS(D2457-C2457),"") -> 
N2513: =IF(J2513<>"",(((2*J2513*8)+(2*J2513*J2513)+(J2513*6))/144)*G2513/27,"") -> 
G2521: =IF(C2521<>"",ABS(D2521-C2521),"") -> 
N2577: =IF(J2577<>"",(((2*J2577*8)+(2*J2577*J2577)+(J2577*6))/144)*G2577/27,"") -> 
G2585: =IF(C2585<>"",ABS(D2585-C2585),"") -> 
N2641: =IF(J2641<>"",(((2*J2641*8)+(2*J2641*J2641)+(J2641*6))/144)*G2641/27,"") -> 
G2649: =IF(C2649<>"",ABS(D2649-C2649),"") -> 
N2705: =IF(J2705<>"",(((2*J2705*8)+(2*J2705*J2705)+(J2705*6))/144)*G2705/27,"") -> 
G2713: =IF(C2713<>"",ABS(D2713-C2713),"") -> 
N2769: =IF(J2769<>"",(((2*J2769*8)+(2*J2769*J2769)+(J2769*6))/144)*G2769/27,"") -> 
G2777: =IF(C2777<>"",ABS(D2777-C2777),"") -> 
N2833: =IF(J2833<>"",(((2*J2833*8)+(2*J2833*J2833)+(J2833*6))/144)*G2833/27,"") -> 
G2841: =IF(C2841<>"",ABS(D2841-C2841),"") -> 
N2897: =IF(J2897<>"",(((2*J2897*8)+(2*J2897*J2897)+(J2897*6))/144)*G2897/27,"") -> 
G2905: =IF(C2905<>"",ABS(D2905-C2905),"") -> 
N2961: =IF(J2961<>"",(((2*J2961*8)+(2*J2961*J2961)+(J2961*6))/144)*G2961/27,"") -> 
G2969: =IF(C2969<>"",ABS(D2969-C2969),"") -> 
N3025: =IF(J3025<>"",(((2*J3025*8)+(2*J3025*J3025)+(J3025*6))/144)*G3025/27,"") -> 
G3033: =IF(C3033<>"",ABS(D3033-C3033),"") -> 
N3089: =IF(J3089<>"",(((2*J3089*8)+(2*J3089*J3089)+(J3089*6))/144)*G3089/27,"") -> 
G3097: =IF(C3097<>"",ABS(D3097-C3097),"") -> 
N3153: =IF(J3153<>"",(((2*J3153*8)+(2*J3153*J3153)+(J3153*6))/144)*G3153/27,"") -> 
G3161: =IF(C3161<>"",ABS(D3161-C3161),"") -> 
N3217: =IF(J3217<>"",(((2*J3217*8)+(2*J3217*J3217)+(J3217*6))/144)*G3217/27,"") -> 
G3225: =IF(C3225<>"",ABS(D3225-C3225),"") -> 
N3281: =IF(J3281<>"",(((2*J3281*8)+(2*J3281*J3281)+(J3281*6))/144)*G3281/27,"") -> 
G3289: =IF(C3289<>"",ABS(D3289-C3289),"") -> 
N3345: =IF(J3345<>"",(((2*J3345*8)+(2*J3345*J3345)+(J3345*6))/144)*G3345/27,"") -> 
G3353: =IF(C3353<>"",ABS(D3353-C3353),"") -> 
N3409: =IF(J3409<>"",(((2*J3409*8)+(2*J3409*J3409)+(J3409*6))/144)*G3409/27,"") -> 
G3417: =IF(C3417<>"",ABS(D3417-C3417),"") -> 
N3473: =IF(J3473<>"",(((2*J3473*8)+(2*J3473*J3473)+(J3473*6))/144)*G3473/27,"") -> 
G3481: =IF(C3481<>"",ABS(D3481-C3481),"") -> 
N3537: =IF(J3537<>"",(((2*J3537*8)+(2*J3537*J3537)+(J3537*6))/144)*G3537/27,"") -> 
G3545: =IF(C3545<>"",ABS(D3545-C3545),"") -> 
N3601: =IF(J3601<>"",(((2*J3601*8)+(2*J3601*J3601)+(J3601*6))/144)*G3601/27,"") -> 
G3609: =IF(C3609<>"",ABS(D3609-C3609),"") -> 
N3665: =IF(J3665<>"",(((2*J3665*8)+(2*J3665*J3665)+(J3665*6))/144)*G3665/27,"") -> 
G3673: =IF(C3673<>"",ABS(D3673-C3673),"") -> 
N3729: =IF(J3729<>"",(((2*J3729*8)+(2*J3729*J3729)+(J3729*6))/144)*G3729/27,"") -> 
G3737: =IF(C3737<>"",ABS(D3737-C3737),"") -> 
N3793: =IF(J3793<>"",(((2*J3793*8)+(2*J3793*J3793)+(J3793*6))/144)*G3793/27,"") -> 
G3801: =IF(C3801<>"",ABS(D3801-C3801),"") -> 
N3857: =IF(J3857<>"",(((2*J3857*8)+(2*J3857*J3857)+(J3857*6))/144)*G3857/27,"") -> 
G3865: =IF(C3865<>"",ABS(D3865-C3865),"") -> 
N3921: =IF(J3921<>"",(((2*J3921*8)+(2*J3921*J3921)+(J3921*6))/144)*G3921/27,"") -> 
G3929: =IF(C3929<>"",ABS(D3929-C3929),"") -> 
N3985: =IF(J3985<>"",(((2*J3985*8)+(2*J3985*J3985)+(J3985*6))/144)*G3985/27,"") -> 
G3993: =IF(C3993<>"",ABS(D3993-C3993),"") -> 
N4049: =IF(J4049<>"",(((2*J4049*8)+(2*J4049*J4049)+(J4049*6))/144)*G4049/27,"") -> 
G4057: =IF(C4057<>"",ABS(D4057-C4057),"") -> 
N4113: =IF(J4113<>"",(((2*J4113*8)+(2*J4113*J4113)+(J4113*6))/144)*G4113/27,"") -> 
G4121: =IF(C4121<>"",ABS(D4121-C4121),"") -> 
N4177: =IF(J4177<>"",(((2*J4177*8)+(2*J4177*J4177)+(J4177*6))/144)*G4177/27,"") -> 
G4185: =IF(C4185<>"",ABS(D4185-C4185),"") -> 
N4241: =IF(J4241<>"",(((2*J4241*8)+(2*J4241*J4241)+(J4241*6))/144)*G4241/27,"") -> 
G4249: =IF(C4249<>"",ABS(D4249-C4249),"") -> 
N4305: =IF(J4305<>"",(((2*J4305*8)+(2*J4305*J4305)+(J4305*6))/144)*G4305/27,"") -> 
G4313: =IF(C4313<>"",ABS(D4313-C4313),"") -> 
N4369: =IF(J4369<>"",(((2*J4369*8)+(2*J4369*J4369)+(J4369*6))/144)*G4369/27,"") -> 
G4377: =IF(C4377<>"",ABS(D4377-C4377),"") -> 
N4433: =IF(J4433<>"",(((2*J4433*8)+(2*J4433*J4433)+(J4433*6))/144)*G4433/27,"") -> 
G4441: =IF(C4441<>"",ABS(D4441-C4441),"") -> 
N4497: =IF(J4497<>"",(((2*J4497*8)+(2*J4497*J4497)+(J4497*6))/144)*G4497/27,"") -> 
... 47 more rows

Sheet DE104_8A
A1: TabTitle | B1: =C16 -> SCOUR PROTECTION OR ROCK FLUME FOR BRIDGE END DRAIN
A2: Number of Tab Columns | B2: 15
A3: DE Starter Row Number | B3: 27
A4: TabSheet Starter Row Number | B4: 13
A5: TabSheet Header Row Count | B5: 12
A6: Top Header Cell | B6: S15
A7: Bottom Header Cell | B7: AG26
A8: DESheet Row Count | B8: 4
A9: Fixed Empty Rows | B9: 10
A10: Usable Empty Rows | B10: 0
A11: Total Rows Placed | B11: 14 | C11: xlRight(1) | D11: xlCenter | E11: xlRight(1) | F11: xlRight(1) | G11: xlCenter | H11: xlCenter | I11: xlRight(1) | J11: xlRight(1) | K11: xlRight(1) | L11: xlRight(1) | M11: xlRight(1) | N11: xlRight(1) | O11: xlRight(1) | P11: xlRight(1) | Q11: xlLeft(1) | S11: =C11 -> xlRight(1) | T11: xlCenter | U11: xlRight(1) | V11: xlRight(1) | W11: xlCenter | X11: xlCenter | Y11: xlRight(1) | Z11: xlRight(1) | AA11: xlRight(1) | AB11: xlRight(1) | AC11: xlRight(1) | AD11: xlRight(1) | AE11: xlRight(1) | AF11: xlRight(1) | AG11: xlLeft(1)
A12: Total Rows Needed | B12: =SUM(B8:B10) -> 14 | C12: #+00.00 | D12: General | E12: 0.0 | F12: 0.0 | G12: General | H12: General | I12: 0.0 | J12: 0.000 | K12: 0.0 | L12: 0.0 | M12: 0 | N12: 0.000 | O12: 0.0 | P12: 0.000 | Q12: General | S12: #+00.00 | T12: General | U12: 0.0 | V12: 0.0 | W12: General | X12: General | Y12: 0.0 | Z12: 0.000 | AA12: 0.0 | AB12: 0.0 | AC12: 0 | AD12: 0.000 | AE12: 0.0 | AF12: 0.000 | AG12: General
A13: Last Tab DE Starter Row | B13: 27 | C13: =CELL("width",C13) -> 16 | D13: 10 | E13: 12 | F13: 14 | G13: 20 | H13: 15 | I13: 15 | J13: 15 | K13: 18 | L13: 18 | M13: 18 | N13: 15 | O13: 15 | P13: 15 | Q13: 13 | S13: =CELL("width",S13) -> 0 | T13: 0 | U13: 0 | V13: 0 | W13: 0 | X13: 0 | Y13: 0 | Z13: 0 | AA13: 0 | AB13: 0 | AC13: 0 | AD13: 0 | AE13: 0 | AF13: 0 | AG13: 0
A14: Last Tab TabSheet Starter Row | B14: 13 | C14: A | D14: B | E14: C | F14: D | G14: E | H14: F | I14: G | J14: H | K14: I | L14: J | M14: K | N14: L | O14: M | P14: N | Q14: O | S14: =LOWER(C14) -> a | T14: b | U14: c | V14: d | W14: e | X14: f | Y14: g | Z14: h | AA14: i | AB14: j | AC14: k | AD14: l | AE14: m | AF14: n | AG14: o
A15: Last Copy Starter Row | B15: 1 | E15: Totals: | F15: =SUBTOTAL(9,F27:F6000) -> 0 | G15: DR-401: | H15: =COUNTIF(G27:H6000,"DR-401") -> 0 | I15: DR-402: | J15: =COUNTIF(G27:H6000,"DR-402") -> 2 | S15: 104-8A | AI15: =G21 -> Bridge End Drain
A16: Tab Loop Number | B16: 2 | C16: SCOUR PROTECTION OR ROCK FLUME FOR BRIDGE END DRAIN | S16: =B17 -> 2017-10-17 | AI16: DR-401
A17: Revision Date | B17: 2017-10-17 | S17: =C16 -> SCOUR PROTECTION OR ROCK FLUME FOR BRIDGE END DRAIN | AI17: DR-402
A18: Tabulation Width | B18: 3 | C18: Refer to Standard Road Plan DR-401 and DR-402
A19: Horizontal Grid Lines | B19: Yes | C19: ="This Data Entry Sheet fills Tab "&S15&" effective "&TEXT(B17,"mm-dd-yy") -> This Data Entry Sheet fills Tab 104-8A effective 10-17-17 | S19: =C18 -> Refer to Standard Road Plan DR-401 and DR-402
C20: Location | F20: Bid Items | H20: PCC Paved Shoulder | K20: Scour Protection (DR-401) | N20: Rock Flume (DR-402) | Q20: Remarks | S20: =C20 -> Location | V20: =F20 -> Bid Items | X20: =H20 -> PCC Paved Shoulder | AA20: =K20 -> Scour Protection (DR-401) | AD20: =N20 -> Rock Flume (DR-402) | AG20: =Q20 -> Remarks
C21: Bridge Station | D21: Bridge Corner | E21: Distance DI-1 or DI-2 | F21: PCC Paved Shoulder | G21: Bridge End Drain | H21: Panels Required | I21: Polymer Grid | J21: Modified Subbase | K21: Special Ditch Control, Wood Excelsior Mat | L21: Turf Reinforced Mat (TRM), Type 2 | M21: Transition Mat | N21: Macadam Stone Base | O21: Engineering Fabric | P21: Erosion Stone | S21: =C21 -> Bridge Station | T21: =D21 -> Bridge Corner | U21: =E21 -> Distance DI-1 or DI-2 | V21: =F21 -> PCC Paved Shoulder | W21: =G21 -> Bridge End Drain | X21: =H21 -> Panels Required | Y21: =I21 -> Polymer Grid | Z21: =J21 -> Modified Subbase | AA21: =K21 -> Special Ditch Control, Wood Excelsior Mat | AB21: =L21 -> Turf Reinforced Mat (TRM), Type 2 | AC21: =M21 -> Transition Mat | AD21: =N21 -> Macadam Stone Base | AE21: =O21 -> Engineering Fabric | AF21: =P21 -> Erosion Stone
K25: EC-101 | L25: EC-104 | M25: EC-105 | AA25: =K25 -> EC-101 | AB25: =L25 -> EC-104 | AC25: EC-105
E26: FT | F26: SY | G26: TYPE | H26: A B C or D | I26: SY | J26: TONS | K26: SQ | L26: SQ | M26: SF | N26: TONS | O26: SY | P26: TONS | U26: =E26 -> FT | V26: SY | W26: TYPE | X26: A B C or D | Y26: SY | Z26: TONS | AA26: =K26 -> SQ | AB26: =L26 -> SQ | AC26: =M26 -> SF | AD26: =N26 -> TONS | AE26: =O26 -> SY | AF26: =P26 -> TONS
C28: 87149.14 | D28: SW | E28: 26 | G28: DR-402 | N28: =(3*(10/12)*7.5*130)/2000 -> 1.21875 | O28: 92.968 | P28: =(70.366*2*7.5*120)/2000 -> 63.3294
C30: 87162.01 | D30: SE | E30: 36.2 | G30: DR-402 | N30: =(3*(10/12)*7.5*130)/2000 -> 1.21875 | O30: 88.28 | P30: =(66.6968*2*7.5*120)/2000 -> 60.02712

Sheet DE105_4
A1: TabTitle | B1: =C15 -> STANDARD ROAD PLANS
A2: Number of Tab Columns | B2: 3
A3: DE Starter Row Number | B3: 20
A4: TabSheet Starter Row Number | B4: 7
A5: TabSheet Header Row Count | B5: 6
A6: Top Header Cell | B6: G15
A7: Bottom Header Cell | B7: I20
A8: DESheet Row Count | B8: 46
A9: Fixed Empty Rows | B9: 10
A10: Usable Empty Rows | B10: 0
A11: Total Rows Placed | B11: 56 | C11: xlLeft | D11: xlCenter | E11: xlLeft | G11: =C11 -> xlLeft | H11: =D11 -> xlCenter | I11: =E11 -> xlLeft
A12: Total Rows Needed | B12: =SUM(B8:B10) -> 56 | C12: General | D12: Text | E12: General | G12: =C12 -> General | H12: =D12 -> Text | I12: General
A13: Last Tab DE Starter Row | B13: 20 | C13: =CELL("width",C13) -> 12 | D13: =CELL("width",D13) -> 12 | E13: 134 | G13: =CELL("width",G13) -> 0 | H13: =CELL("width",H13) -> 0 | I13: 0
A14: Last Tab Tabsheet Starter Row | B14: 7 | C14: A | D14: B | E14: C | G14: =LOWER(C14) -> a | H14: =LOWER(D14) -> b | I14: c
A15: Last Copy Starter Row | B15: 1 | C15: STANDARD ROAD PLANS | G15: 105-4
A16: Tab Loop Number | B16: 2 | G16: =B17 -> 2011-10-18
A17: Revision Date | B17: 2011-10-18 | C17: The following Standard Road Plans apply to construction work on this project. | G17: =C15 -> STANDARD ROAD PLANS
A18: Tabulation Width | B18: 2 | C18: ="This Data Entry Sheet fills Tab "&G15&" effective "&TEXT(B17,"mm-dd-yy") -> This Data Entry Sheet fills Tab 105-4 effective 10-18-11
A19: Horizontal Grid Lines | B19: Yes | C19: Number | D19: Date | E19: Title | G19: =C17 -> The following Standard Road Plans apply to construction work on this project.
B20: 2 | C20: BA-200 | D20: 04-16-19 | E20: Steel Beam Guardrail Components | G20: =C19 -> Number | H20: =D19 -> Date | I20: =E19 -> Title
C21: BA-201 | D21: 04-18-17 | E21: Steel Beam Guardrail Barrier Transition Section (MASH TL-3)
C22: BA-202 | D22: 10-20-15 | E22: Steel Beam Guardrail Bolted End Anchor
C23: BA-203 | D23: 10-15-19 | E23: Steel Beam Guardrail W-Beam End Anchor
C24: BA-205 | D24: 04-19-16 | E24: Steel Beam Guardrail Tangent End Terminal (MASH TL-3)
C25: BA-250 | D25: 10-18-16 | E25: Steel Beam Guardrail Installation at Concrete Barrier or Bridge End Post (MASH TL-3)
C26: DR-101 | D26: 04-18-17 | E26: Pipe Culvert (Bedding and Backfill)
C27: DR-102 | D27: 04-21-15 | E27: Pipe Culvert (Cover and Camber)
C28: DR-103 | D28: 04-21-15 | E28: Pipe Culvert (Installation Details)
C29: DR-104 | D29: 04-19-16 | E29: Depth of Cover Tables for Concrete and Corrugated Pipe
C30: DR-111 | D30: 04-17-18 | E30: Box Culvert (Backfill)
C31: DR-121 | D31: 10-17-17 | E31: Connected Pipe Joints
C32: DR-201 | D32: 10-16-18 | E32: Concrete Aprons
C33: DR-203 | D33: 04-21-15 | E33: Metal Pipe Aprons and Beveled Ends
C34: DR-303 | D34: 10-17-17 | E34: Subdrains (Longitudinal)
C35: DR-306 | D35: 10-16-18 | E35: Precast Concrete Headwall for Subdrain Outlets
C36: DR-402 | D36: 10-15-19 | E36: Rock Flume for Bridge End Drain
C37: DR-601 | D37: 04-18-17 | E37: Reinforced Concrete Pipe Culvert
C38: EW-101 | D38: 10-17-17 | E38: Embankment and Rebuilding Embankments
C39: EW-102 | D39: 10-20-15 | E39: Allowable Placement of Unsuitable Soil in Embankments
C40: EW-103 | D40: 10-20-15 | E40: Embankment Subgrade Treatment, Moisture Density Control and Special Compaction
C41: EW-201 | D41: 04-19-16 | E41: Bridge Berm Grading without Recoverable Slope (Barnroof Section)
C42: EW-210 | D42: 10-20-15 | E42: Standard Wing Dikes
C43: EW-212 | D43: 10-20-15 | E43: Settlement Plate
C44: EW-301 | D44: 10-20-15 | E44: Guardrail Grading
C45: EW-501 | D45: 10-20-15 | E45: Rural Entrance
C46: EW-503 | D46: 10-20-15 | E46: Side Road Grading
C47: PM-110 | D47: 10-16-18 | E47: Line Types
C48: PM-111 | D48: 04-21-15 | E48: Symbols and Legends
C49: PM-120 | D49: 10-21-14 | E49: Stop Lines and Islands
C50: PV-12 | D50: 04-19-16 | E50: Milled Shoulder Rumble Strips
C51: PV-101 | D51: 04-16-19 | E51: Joints
C52: PV-102 | D52: 10-18-16 | E52: PCC Curb Details
C53: PV-104 | D53: 04-19-11 | E53: Ramped Median Nose
C54: SI-173 | D54: 04-19-16 | E54: Object Markers
C55: SI-181 | D55: 10-18-16 | E55: Permanent Road Closure - Rural
C56: SI-211 | D56: 10-18-16 | E56: Object Marker and Delineator Placement with Guardrail
C57: SW-101 | D57: 04-17-18 | E57: Trench Bedding and Backfill Zones
C58: SW-102 | D58: 04-16-19 | E58: Rigid Gravity Pipe Trench Bedding
C59: SW-508 | D59: 04-17-18 | E59: Single Open-Throat Intake, Large Box
C60: SW-510 | D60: 04-17-18 | E60: Double Open-Throat Curb Intake, Large Box
C61: SW-602 | D61: 04-21-15 | E61: Castings for Storm Sewer Manholes
C62: TC-1 | D62: 10-15-19 | E62: Work Not Affecting Traffic (Two-Lane or Multi-Lane)
C63: TC-202 | D63: 04-21-15 | E63: Work Within 15 ft of Traveled Way
C64: TC-252 | D64: 04-19-16 | E64: Routes Closed to Traffic
C65: TC-601 | D65: 10-15-19 | E65: Pedestrian Detour

Sheet DE107_23
A1: TabTitle | B1: =C16 -> GRADING FOR GUARDRAIL INSTALLATIONS
A2: Number of Tab Columns | B2: 17
A3: DE Starter Row Number | B3: 29
A4: TabSheet Starter Row Number | B4: 15
A5: TabSheet Header Row Count | B5: 14
A6: Top Header Cell | B6: U15
A7: Bottom Header Cell | B7: AK28
A8: DESheet Row Count | B8: 3
A9: Fixed Empty Rows | B9: 5
A10: Usable Empty Rows | B10: 0
A11: Total Rows Placed | B11: 8 | C11: xlRight(1) | D11: xlCenter | E11: xlRight(1) | F11: xlCenter | G11: xlRight(1) | H11: xlRight(1) | I11: xlRight(1) | J11: xlRight(1) | K11: xlRight(1) | L11: xlRight(1) | M11: xlRight(1) | N11: xlRight(1) | O11: xlRight(1) | P11: xlRight(1) | Q11: xlRight(1) | R11: xlRight(1) | S11: xlLeft(1) | U11: =C11 -> xlRight(1) | V11: xlCenter | W11: xlRight(1) | X11: xlCenter | Y11: xlRight(1) | Z11: xlRight(1) | AA11: xlRight(1) | AB11: xlRight(1) | AC11: xlRight(1) | AD11: xlRight(1) | AE11: xlRight(1) | AF11: xlRight(1) | AG11: xlRight(1) | AH11: xlRight(1) | AI11: xlRight(1) | AJ11: xlRight(1) | AK11: =S11 -> xlLeft(1)
A12: Total Rows Needed | B12: =SUM(B8:B10) -> 8 | C12: General | D12: General | E12: #+00.00 | F12: General | G12: Text | H12: 0.0 | I12: 0.0 | J12: 0.0 | K12: 0.0 | L12: 0.0 | M12: 0.0 | N12: 0.0 | O12: 0.0 | P12: 0.0 | Q12: 0.0 | R12: 0.0 | S12: General | U12: General | V12: General | W12: #+00.00 | X12: General | Y12: Text | Z12: 0.0 | AA12: 0.0 | AB12: 0.0 | AC12: 0.0 | AD12: 0.0 | AE12: 0.0 | AF12: 0.0 | AG12: 0.0 | AH12: 0.0 | AI12: 0.0 | AJ12: 0.0 | AK12: General
A13: Last Tab DE Starter Row | B13: 29 | C13: =CELL("width",C13) -> 7 | D13: 7 | E13: 18 | F13: 7 | G13: 15 | H13: 9 | I13: 9 | J13: 9 | K13: 9 | L13: 9 | M13: 9 | N13: 9 | O13: 9 | P13: 9 | Q13: 16 | R13: 16 | S13: 60 | U13: =CELL("width",U13) -> 0 | V13: 0 | W13: 0 | X13: 0 | Y13: 0 | Z13: 0 | AA13: 0 | AB13: 0 | AC13: 0 | AD13: 0 | AE13: 0 | AF13: 0 | AG13: 0 | AH13: 0 | AI13: 0 | AJ13: 0 | AK13: 0
A14: Last Tab Tabsheet Starter Row | B14: 15 | C14: A | D14: B | E14: C | F14: D | G14: E | H14: F | I14: G | J14: H | K14: I | L14: J | M14: K | N14: L | O14: M | P14: N | Q14: O | R14: P | S14: Q | U14: =LOWER(C14) -> a | V14: b | W14: c | X14: d | Y14: e | Z14: f | AA14: g | AB14: h | AC14: i | AD14: j | AE14: k | AF14: l | AG14: m | AH14: n | AI14: o | AJ14: p | AK14: q
A15: Last Copy Starter Row | B15: 1 | O15: Totals: | Q15: =SUBTOTAL(9,Q29:Q6000) -> 0 | R15: =SUBTOTAL(9,R29:R6000) -> 0 | U15: 107-23
A16: Tab Loop Number | B16: 2 | C16: GRADING FOR GUARDRAIL INSTALLATIONS | U16: =B17 -> 2011-10-18
A17: Revision Date | B17: 2011-10-18 | U17: =C16 -> GRADING FOR GUARDRAIL INSTALLATIONS
A18: Tabulation Width | B18: 3 | D18: Lane(s) to which the installation is adjacent. | K18: Refer to EW-301
A19: Horizontal Grid Lines | B19: Yes | C19: ="This Data Entry Sheet fills Tab "&U15&" effective "&TEXT(B17,"mm-dd-yy") -> This Data Entry Sheet fills Tab 107-23 effective 10-18-11 | V19: =D18 -> Lane(s) to which the installation is adjacent. | AC19: =K18 -> Refer to EW-301
C20: Location | G20: Foreslope at Guardrail | H20: Dimensions (Feet) | Q20: Earthwork | S20: Remarks | U20: =C20 -> Location | Y20: =G20 -> Foreslope at Guardrail | Z20: =H20 -> Dimensions (Feet) | AI20: =Q20 -> Earthwork | AK20: =S20 -> Remarks
C22: No. | D22: Direction of Traffic | E22: Station | F22: Side | Q22: Excavation Class 10 | R22: Embankment In Place | U22: =C22 -> No. | V22: =D22 -> Direction of Traffic | W22: =E22 -> Station | X22: =F22 -> Side | AI22: =Q22 -> Excavation Class 10 | AJ22: =R22 -> Embankment In Place
Q28: CY | R28: CY | AI28: =Q28 -> CY | AJ28: =R28 -> CY
D30: NB | E30: 87088.56 | F30: Rt. | H30: 53.518 | I30: 5 | J30: =H30+24.87 -> 78.388 | K30: =I30+2.5 -> 7.5 | L30: =J30+12.5 -> 90.888 | M30: =K30 -> 7.5 | N30: =L30+50.148 -> 141.036 | O30: =M30+1.99 -> 9.49 | P30: =54+0.5*3 -> 55.5 | S30: Included in T Sheets
D31: SB | E31: 87223.8 | F31: Rt. | H31: 103.5 | I31: 5 | N31: =H31+50.148 -> 153.648 | O31: =I31+1.72 -> 6.72 | P31: =43+0.7*4 -> 45.8 | S31: Included in T Sheets

Sheet DE108_8A
A1: TabTitle | B1: =C16 -> STEEL BEAM GUARDRAIL AT CONCRETE BARRIER OR BRIDGE RAIL END SECTION
A2: Number of Tab Columns | B2: 28
A3: DE Starter Row Number | B3: 31
A4: TabSheet Starter Row Number | B4: 17
A5: TabSheet Header Row Count | B5: 16
A6: Top Header Cell | B6: AI15
A7: Bottom Header Cell | B7: BJ30
A8: DESheet Row Count | B8: 5
A9: Fixed Empty Rows | B9: 10
A10: Usable Empty Rows | B10: 0
A11: Total Rows Placed | B11: 15 | C11: xlRight(1) | D11: xlLeft(1) | E11: xlLeft(1) | F11: xlRight(1) | G11: xlRight(1) | K11: xlRight(1) | L11: xlRight(1) | M11: xlRight(1) | N11: xlRight(1) | O11: xlRight(1) | P11: xlRight(1) | Q11: xlRight(1) | R11: xlRight(1) | S11: xlRight(1) | T11: xlRight(1) | U11: xlRight(1) | V11: xlRight(1) | W11: xlRight(1) | X11: xlRight(1) | Y11: xlRight(1) | Z11: xlRight(1) | AA11: xlRight(1) | AB11: xlRight(1) | AC11: xlRight(1) | AD11: xlRight(1) | AE11: xlRight(1) | AF11: xlRight(1) | AG11: xlLeft(1) | AI11: =C11 -> xlRight(1) | AJ11: xlLeft(1) | AK11: xlLeft(1) | AL11: xlRight(1) | AM11: xlRight(1) | AN11: =K11 -> xlRight(1) | AO11: xlRight(1) | AP11: xlRight(1) | AQ11: xlRight(1) | AR11: xlRight(1) | AS11: xlRight(1) | AT11: xlRight(1) | AU11: xlRight(1) | AV11: xlRight(1) | AW11: xlRight(1) | AX11: xlRight(1) | AY11: xlRight(1) | AZ11: xlRight(1) | BA11: xlRight(1) | BB11: xlRight(1) | BC11: xlRight(1) | BD11: =AA11 -> xlRight(1) | BE11: xlRight(1) | BF11: xlRight(1) | BG11: xlRight(1) | BH11: xlRight(1) | BI11: xlRight(1) | BJ11: xlLeft(1)
A12: Total Rows Needed | B12: =SUM(B8:B10) -> 15 | C12: General | D12: General | E12: General | F12: #+00.00 | G12: 0.0 | K12: 0.000 | L12: 0.00 | M12: 0.00 | N12: 0.0 | O12: #+00.00 | P12: General | Q12: General | R12: 0 | S12: 0 | T12: 0 | U12: 0 | V12: General | W12: 0 | X12: 0 | Y12: 0.0 | Z12: 0 | AA12: 0 | AB12: 0 | AC12: 0 | AD12: 0 | AE12: 0 | AF12: 0 | AG12: General | AI12: General | AJ12: General | AK12: General | AL12: #+00.00 | AM12: 0.0 | AN12: 0.000 | AO12: 0.00 | AP12: 0.00 | AQ12: 0.0 | AR12: #+00.00 | AS12: General | AT12: General | AU12: 0 | AV12: 0 | AW12: 0 | AX12: 0 | AY12: General | AZ12: 0 | BA12: 0 | BB12: 0.0 | BC12: 0 | BD12: 0 | BE12: 0 | BF12: 0 | BG12: 0 | BH12: 0 | BI12: 0 | BJ12: General
A13: Last Tab DE Starter Row | B13: 31 | C13: =CELL("width",C13) -> 6 | D13: 6 | E13: 6 | F13: 16 | G13: 10 | K13: 12 | L13: 12 | M13: 12 | N13: 12 | O13: 16 | P13: 9 | Q13: 9 | R13: 12 | S13: 9 | T13: 9 | U13: 9 | V13: 7 | W13: 7 | X13: =CELL("width",X13) -> 12 | Y13: 12 | Z13: 12 | AA13: 12 | AB13: 12 | AC13: 12 | AD13: 12 | AE13: 12 | AF13: 12 | AG13: 18 | AI13: =CELL("width",AI13) -> 0 | AJ13: 0 | AK13: 0 | AL13: 0 | AM13: 0 | AN13: 0 | AO13: 0 | AP13: 0 | AQ13: 0 | AR13: 0 | AS13: 0 | AT13: 0 | AU13: 0 | AV13: 0 | AW13: 0 | AX13: 0 | AY13: 0 | AZ13: 0 | BA13: 0 | BB13: 0 | BC13: 0 | BD13: 0 | BE13: 0 | BF13: 0 | BG13: 0 | BH13: 0 | BI13: 0 | BJ13: 0
A14: Last Tab TabSheet Starter Row | B14: 17 | C14: A | D14: B | E14: C | F14: D | G14: E | K14: F | L14: G | M14: H | N14: I | O14: J | P14: K | Q14: L | R14: M | S14: N | T14: O | U14: P | V14: Q | W14: R | X14: S | Y14: T | Z14: U | AA14: V | AB14: W | AC14: X | AD14: Y | AE14: Z | AF14: AA | AG14: AB | AI14: =LOWER(C14) -> a | AJ14: =LOWER(D14) -> b | AK14: =LOWER(E14) -> c | AL14: =LOWER(F14) -> d | AM14: =LOWER(G14) -> e | AN14: =LOWER(K14) -> f | AO14: g | AP14: h | AQ14: i | AR14: j | AS14: k | AT14: l | AU14: m | AV14: n | AW14: o | AX14: p | AY14: q | AZ14: r | BA14: s | BB14: t | BC14: u | BD14: v | BE14: w | BF14: x | BG14: y | BH14: z | BI14: aa | BJ14: ab
A15: Last Copy Starter Row | B15: 1 | Q15: Totals: | R15: =SUBTOTAL(9,R31:R6001) -> 0 | S15: =SUBTOTAL(9,S31:S6001) -> 0 | T15: =SUBTOTAL(9,T31:T6001) -> 0 | U15: =SUBTOTAL(9,U31:U6001) -> 4 | W15: =SUBTOTAL(9,W31:W6001) -> 4 | X15: 0 | Y15: 225 | Z15: 4 | AA15: 4 | AB15: 0 | AC15: 0 | AD15: 0 | AE15: 0 | AF15: 0 | AI15: 108-8A | BL15: BTS | BM15: ET | BN15: =O29 -> BA-211 | BO15: =Q24 -> SI-211 | BP15: =V24 -> Bolted End Anchor
A16: Tab Loop Number | B16: 2 | C16: STEEL BEAM GUARDRAIL AT CONCRETE BARRIER OR BRIDGE RAIL END SECTION | AI16: =B17 -> 2018-10-16 | BL16: BA-201 | BM16: BA-205 | BN16: 1 | BO16: 1 | BP16: A
A17: Revision Date | B17: 2018-10-16 | AI17: =C16 -> STEEL BEAM GUARDRAIL AT CONCRETE BARRIER OR BRIDGE RAIL END SECTION | BL17: BA-221 | BM17: BA-206 | BN17: 2 | BO17: 2 | BP17: B
A18: Tabulation Width | B18: 4 | C18: Possible Standards: BA-200, BA-201, BA-202, BA-205, BA-206, BA-210, BA-211, BA-221, BA-225, BA-250, BA-260, LS-625, LS-626, LS-630, LS-635, SI-172, SI-173 and SI-211. | BM18: BA-225 | BN18: 3 | BO18: 3 | BP18: C
A19: Horizontal Grid Lines | B19: Yes | C19: Lane(s) to which the obstacle is adjacent. | AI19: =C18 -> Possible Standards: BA-200, BA-201, BA-202, BA-205, BA-206, BA-210, BA-211, BA-221, BA-225, BA-250, BA-260, LS-625, LS-626, LS-630, LS-635, SI-172, SI-173 and SI-211. | BM19: LS-625
C20: Not a bid item. Incidental to guardrail installation. | AI20: =C19 -> Lane(s) to which the obstacle is adjacent. | BM20: LS-626
C21: ="This Data Entry Sheet fills Tab "&AI15&" effective "&TEXT(B17,"mm-dd-yy") -> This Data Entry Sheet fills Tab 108-8A effective 10-16-18 | AI21: =C20 -> Not a bid item. Incidental to guardrail installation.
C22: Location | H22: Barrier Transition Section | I22: End Terminal Section | J22: Layout Lengths | O22: Long-Span System | Q22: Delineators and Object Markers | V22: Bid Items | AG22: Remarks | AI22: =C22 -> Location | AN22: =J22 -> Layout Lengths | AR22: =O22 -> Long-Span System | AT22: =Q22 -> Delineators and Object Markers | AY22: =V22 -> Bid Items | BJ22: =AG22 -> Remarks
C23: No. | D23: Direction of Traffic | E23: Side | F23: Station | G23: Offset | AI23: =C23 -> No. | AJ23: =D23 -> Direction of Traffic | AK23: =E23 -> Side | AL23: =F23 -> Station | AM23: =G23 -> Offset
E24: O = Outside M = Median | J24: BA-250, BA-260, LS-630, or LS-635 | Q24: SI-211 | R24: Delineator | S24: Object Marker | V24: Bolted End Anchor | X24: Post Adapter | Y24: Steel Beam Guardrail | Z24: BA-250 or LS-630 | AE24: BA-260 or LS-635 | AK24: =E24 -> O = Outside M = Median | AN24: =J24 -> BA-250, BA-260, LS-630, or LS-635 | AT24: =Q24 -> SI-211 | AU24: =R24 -> Delineator | AV24: =S24 -> Object Marker | AY24: =V24 -> Bolted End Anchor | BA24: =X24 -> Post Adapter | BB24: =Y24 -> Steel Beam Guardrail | BC24: =Z24 -> BA-250 or LS-630 | BH24: =AE24 -> BA-260 or LS-635
J25: VT1 min = 40.625 for BA-201 VT1 min = 25.0 for BA-221 If VF > 0, then: VT1 min = 53.125 for BA-201 VT1 min = 37.5 for BA-221 | Z25: Barrier Transition Section | AA25: End Terminal | AE25: Barrier Transition Section | AF25: End Terminal | BC25: =Z25 -> Barrier Transition Section | BD25: =AA25 -> End Terminal | BH25: =AE25 -> Barrier Transition Section | BI25: =AF25 -> End Terminal
H26: BA-201 -> | I26: BA-205, BA-206 LS-625, LS-626 | R26: SI-172 | S26: SI-173 | AU26: =R26 -> SI-172 | AV26: =S26 -> SI-173
R27: Type 1 | S27: Type 2 | T27: Type 3 | AU27: =R27 -> Type 1 | AV27: =S27 -> Type 2 | AW27: =T27 -> Type 3
AA28: Tangent | AB28: Flared | AC28: Tangent | AD28: Flared | AF28: Tangent | BD28: =AA28 -> Tangent | BE28: Flared | BF28: Tangent | BG28: Flared | BI28: =AF28 -> Tangent
H29: BA-221 -> | I29: BA-225 | O29: BA-211 | R29: White | S29: OM2-2 | T29: OM3-L | U29: OM3-R | V29: BA-202 | X29: BA-210 | Y29: BA-200 | Z29: BA-201 | AA29: BA-205 | AB29: BA-206 | AC29: LS-625 | AD29: LS-626 | AE29: BA-221 | AF29: BA-225 | AR29: =O29 -> BA-211 | AU29: =R29 -> White | AV29: OM2-2 | AW29: OM3-L | AX29: OM3-R | AY29: BA-202 | BA29: =X29 -> BA-210 | BB29: =Y29 -> BA-200 | BC29: =Z29 -> BA-201 | BD29: BA-205 | BE29: BA-206 | BF29: LS-625 | BG29: LS-626 | BH29: BA-221 | BI29: BA-225
G30: FT | K30: LF | L30: LF | M30: LF | N30: LF | O30: STATION | P30: TYPE | Q30: TYPE | R30: EACH | S30: EACH | T30: EACH | U30: EACH | V30: TYPE | W30: EACH | X30: EACH | Y30: LF | Z30: EACH | AA30: EACH | AB30: EACH | AC30: EACH | AD30: EACH | AE30: EACH | AF30: EACH | AM30: =G30 -> FT | AN30: =K30 -> LF | AO30: =L30 -> LF | AP30: =M30 -> LF | AQ30: =N30 -> LF | AR30: =O30 -> STATION | AS30: TYPE | AT30: TYPE | AU30: EACH | AV30: EACH | AW30: EACH | AX30: EACH | AY30: TYPE | AZ30: =W30 -> EACH | BA30: =X30 -> EACH | BB30: =Y30 -> LF | BC30: EACH | BD30: EACH | BE30: EACH | BF30: EACH | BG30: EACH | BH30: EACH | BI30: EACH
J31: =IF(L31>0,IF(H31="BA-201",IF(K31>=53.125,"Meets min VT1","VT1 too short"),IF(H31="BA-221",IF(K31>=37.5,"Meets min VT1","VT1 too short"),)),"") ->  | N31: =IF(I31<>"",IF(I31="BA-205",47.7,IF(I31="BA-206",37.5,IF(I31="BA-225",35.2,IF(I31="LS-625",50,IF(I31="LS-626",37.5,))))),"") ->  | R31: =IF(Q31=1,8,"") ->  | S31: =IF(OR(Q31=1,Q31=2),ROUNDDOWN((SUM(K31:N31)-25)/25,0),"") ->  | T31: =IF(Q31<>"",1,"") ->  | U31: =IF(Q31<>"",1,"") ->  | Y31: =IF(H31="BA-201",IF((SUM($K31:$M31)-40.625)/12.5=INT((SUM($K31:$M31)-40.625)/12.5),SUM($K31:$M31)-40.625,"Error"),IF(H31="BA-221",IF((SUM($K31:$M31)-25)/12.5=INT((SUM($K31:$M31)-25)/12.5),SUM($K31:$M31)-25,"Error"),"")) ->  | Z31: =IF(H31="BA-201",1,"") ->  | AA31: =IF(I31="BA-205",1,"") ->  | AB31: =IF(I31="BA-206",1,"") ->  | AC31: =IF(I31="LS-625",1,"") ->  | AD31: =IF(I31="LS-626",1,"") ->  | AE31: =IF(H31="BA-221",1,"") ->  | AF31: =IF(I31="BA-225",1,"") -> 
D32: NB | E32: O | F32: 87088.35 | G32: 46.6 | H32: BA-201 | I32: BA-205 | J32: =IF(L32>0,IF(H32="BA-201",IF(K32>=53.125,"Meets min VT1","VT1 too short"),IF(H32="BA-221",IF(K32>=37.5,"Meets min VT1","VT1 too short"),)),"") -> Meets min VT1 | K32: 53.125 | L32: 25 | M32: 12.5 | N32: 47.7 | Q32: 3 | R32: =IF(Q32=1,8,"") ->  | U32: =IF(Q32<>"",1,"") -> 1 | V32: A | W32: 1 | Y32: =IF(H32="BA-201",IF((SUM($K32:$M32)-40.625)/12.5=INT((SUM($K32:$M32)-40.625)/12.5),SUM($K32:$M32)-40.625,"Error"),IF(H32="BA-221",IF((SUM($K32:$M32)-25)/12.5=INT((SUM($K32:$M32)-25)/12.5),SUM($K32:$M32)-25,"Error"),"")) -> 50 | Z32: =IF(H32="BA-201",1,"") -> 1 | AA32: =IF(I32="BA-205",1,"") -> 1 | AB32: =IF(I32="BA-206",1,"") ->  | AC32: =IF(I32="LS-625",1,"") ->  | AD32: =IF(I32="LS-626",1,"") ->  | AE32: =IF(H32="BA-221",1,"") ->  | AF32: =IF(I32="BA-225",1,"") -> 
D33: SB | E33: O | F33: 87222.8 | G33: 46.6 | H33: BA-201 | I33: BA-205 | J33: =IF(L33>0,IF(H33="BA-201",IF(K33>=53.125,"Meets min VT1","VT1 too short"),IF(H33="BA-221",IF(K33>=37.5,"Meets min VT1","VT1 too short"),)),"") ->  | K33: 103.125 | N33: =IF(I33<>"",IF(I33="BA-205",47.7,IF(I33="BA-206",37.5,IF(I33="BA-225",35.2,IF(I33="LS-625",50,IF(I33="LS-626",37.5,))))),"") -> 47.7 | Q33: 3 | R33: =IF(Q33=1,8,"") ->  | S33: =IF(OR(Q33=1,Q33=2),ROUNDDOWN((SUM(K33:N33)-25)/25,0),"") ->  | U33: =IF(Q33<>"",1,"") -> 1 | V33: A | W33: 1 | Y33: =IF(H33="BA-201",IF((SUM($K33:$M33)-40.625)/12.5=INT((SUM($K33:$M33)-40.625)/12.5),SUM($K33:$M33)-40.625,"Error"),IF(H33="BA-221",IF((SUM($K33:$M33)-25)/12.5=INT((SUM($K33:$M33)-25)/12.5),SUM($K33:$M33)-25,"Error"),"")) -> 62.5 | Z33: =IF(H33="BA-201",1,"") -> 1 | AA33: =IF(I33="BA-205",1,"") -> 1 | AB33: =IF(I33="BA-206",1,"") ->  | AC33: =IF(I33="LS-625",1,"") ->  | AD33: =IF(I33="LS-626",1,"") ->  | AE33: =IF(H33="BA-221",1,"") ->  | AF33: =IF(I33="BA-225",1,"") -> 
D35: TOTALS: | J35: =IF(L35>0,IF(H35="BA-201",IF(K35>=53.125,"Meets min VT1","VT1 too short"),IF(H35="BA-221",IF(K35>=37.5,"Meets min VT1","VT1 too short"),)),"") ->  | R35: =IF(Q35=1,8,"") ->  | T35: =IF(Q35<>"",1,"") ->  | U35: =SUM(U32:U33) -> 2 | W35: =SUM(W32:W33) -> 2 | Y35: =SUM(Y32:Y33) -> 112.5 | Z35: =SUM(Z32:Z33) -> 2 | AA35: =SUM(AA32:AA33) -> 2 | AB35: =IF(I35="BA-206",1,"") ->  | AC35: =IF(I35="LS-625",1,"") ->  | AD35: =IF(I35="LS-626",1,"") ->  | AE35: =IF(H35="BA-221",1,"") ->  | AF35: =IF(I35="BA-225",1,"") -> 
U36: =IF(Q36<>"",1,"") ->  | Y36: =IF(H36="BA-201",IF((SUM($K36:$M36)-40.625)/12.5=INT((SUM($K36:$M36)-40.625)/12.5),SUM($K36:$M36)-40.625,"Error"),IF(H36="BA-221",IF((SUM($K36:$M36)-25)/12.5=INT((SUM($K36:$M36)-25)/12.5),SUM($K36:$M36)-25,"Error"),"")) ->  | Z36: =IF(H36="BA-201",1,"") ->  | AA36: =IF(I36="BA-205",1,"") -> 
N95: =IF(I95<>"",IF(I95="BA-205",47.7,IF(I95="BA-206",37.5,IF(I95="BA-225",35.2,IF(I95="LS-625",50,IF(I95="LS-626",37.5,))))),"") ->  | S95: =IF(OR(Q95=1,Q95=2),ROUNDDOWN((SUM(K95:N95)-25)/25,0),"") -> 
J97: =IF(L97>0,IF(H97="BA-201",IF(K97>=53.125,"Meets min VT1","VT1 too short"),IF(H97="BA-221",IF(K97>=37.5,"Meets min VT1","VT1 too short"),)),"") ->  | R97: =IF(Q97=1,8,"") ->  | T97: =IF(Q97<>"",1,"") ->  | U97: =IF(Q97<>"",1,"") ->  | Y97: =IF(H97="BA-201",IF((SUM($K97:$M97)-40.625)/12.5=INT((SUM($K97:$M97)-40.625)/12.5),SUM($K97:$M97)-40.625,"Error"),IF(H97="BA-221",IF((SUM($K97:$M97)-25)/12.5=INT((SUM($K97:$M97)-25)/12.5),SUM($K97:$M97)-25,"Error"),"")) ->  | Z97: =IF(H97="BA-201",1,"") ->  | AA97: =IF(I97="BA-205",1,"") ->  | AB97: =IF(I97="BA-206",1,"") ->  | AC97: =IF(I97="LS-625",1,"") ->  | AD97: =IF(I97="LS-626",1,"") ->  | AE97: =IF(H97="BA-221",1,"") ->  | AF97: =IF(I97="BA-225",1,"") -> 
N159: =IF(I159<>"",IF(I159="BA-205",47.7,IF(I159="BA-206",37.5,IF(I159="BA-225",35.2,IF(I159="LS-625",50,IF(I159="LS-626",37.5,))))),"") ->  | S159: =IF(OR(Q159=1,Q159=2),ROUNDDOWN((SUM(K159:N159)-25)/25,0),"") -> 
J161: =IF(L161>0,IF(H161="BA-201",IF(K161>=53.125,"Meets min VT1","VT1 too short"),IF(H161="BA-221",IF(K161>=37.5,"Meets min VT1","VT1 too short"),)),"") ->  | R161: =IF(Q161=1,8,"") ->  | T161: =IF(Q161<>"",1,"") ->  | U161: =IF(Q161<>"",1,"") ->  | Y161: =IF(H161="BA-201",IF((SUM($K161:$M161)-40.625)/12.5=INT((SUM($K161:$M161)-40.625)/12.5),SUM($K161:$M161)-40.625,"Error"),IF(H161="BA-221",IF((SUM($K161:$M161)-25)/12.5=INT((SUM($K161:$M161)-25)/12.5),SUM($K161:$M161)-25,"Error"),"")) ->  | Z161: =IF(H161="BA-201",1,"") ->  | AA161: =IF(I161="BA-205",1,"") ->  | AB161: =IF(I161="BA-206",1,"") ->  | AC161: =IF(I161="LS-625",1,"") ->  | AD161: =IF(I161="LS-626",1,"") ->  | AE161: =IF(H161="BA-221",1,"") ->  | AF161: =IF(I161="BA-225",1,"") -> 
N223: =IF(I223<>"",IF(I223="BA-205",47.7,IF(I223="BA-206",37.5,IF(I223="BA-225",35.2,IF(I223="LS-625",50,IF(I223="LS-626",37.5,))))),"") ->  | S223: =IF(OR(Q223=1,Q223=2),ROUNDDOWN((SUM(K223:N223)-25)/25,0),"") -> 
J225: =IF(L225>0,IF(H225="BA-201",IF(K225>=53.125,"Meets min VT1","VT1 too short"),IF(H225="BA-221",IF(K225>=37.5,"Meets min VT1","VT1 too short"),)),"") ->  | R225: =IF(Q225=1,8,"") ->  | T225: =IF(Q225<>"",1,"") ->  | U225: =IF(Q225<>"",1,"") ->  | Y225: =IF(H225="BA-201",IF((SUM($K225:$M225)-40.625)/12.5=INT((SUM($K225:$M225)-40.625)/12.5),SUM($K225:$M225)-40.625,"Error"),IF(H225="BA-221",IF((SUM($K225:$M225)-25)/12.5=INT((SUM($K225:$M225)-25)/12.5),SUM($K225:$M225)-25,"Error"),"")) ->  | Z225: =IF(H225="BA-201",1,"") ->  | AA225: =IF(I225="BA-205",1,"") ->  | AB225: =IF(I225="BA-206",1,"") ->  | AC225: =IF(I225="LS-625",1,"") ->  | AD225: =IF(I225="LS-626",1,"") ->  | AE225: =IF(H225="BA-221",1,"") ->  | AF225: =IF(I225="BA-225",1,"") -> 
N287: =IF(I287<>"",IF(I287="BA-205",47.7,IF(I287="BA-206",37.5,IF(I287="BA-225",35.2,IF(I287="LS-625",50,IF(I287="LS-626",37.5,))))),"") ->  | S287: =IF(OR(Q287=1,Q287=2),ROUNDDOWN((SUM(K287:N287)-25)/25,0),"") -> 
J289: =IF(L289>0,IF(H289="BA-201",IF(K289>=53.125,"Meets min VT1","VT1 too short"),IF(H289="BA-221",IF(K289>=37.5,"Meets min VT1","VT1 too short"),)),"") ->  | R289: =IF(Q289=1,8,"") ->  | T289: =IF(Q289<>"",1,"") ->  | U289: =IF(Q289<>"",1,"") ->  | Y289: =IF(H289="BA-201",IF((SUM($K289:$M289)-40.625)/12.5=INT((SUM($K289:$M289)-40.625)/12.5),SUM($K289:$M289)-40.625,"Error"),IF(H289="BA-221",IF((SUM($K289:$M289)-25)/12.5=INT((SUM($K289:$M289)-25)/12.5),SUM($K289:$M289)-25,"Error"),"")) ->  | Z289: =IF(H289="BA-201",1,"") ->  | AA289: =IF(I289="BA-205",1,"") ->  | AB289: =IF(I289="BA-206",1,"") ->  | AC289: =IF(I289="LS-625",1,"") ->  | AD289: =IF(I289="LS-626",1,"") ->  | AE289: =IF(H289="BA-221",1,"") ->  | AF289: =IF(I289="BA-225",1,"") -> 
N351: =IF(I351<>"",IF(I351="BA-205",47.7,IF(I351="BA-206",37.5,IF(I351="BA-225",35.2,IF(I351="LS-625",50,IF(I351="LS-626",37.5,))))),"") ->  | S351: =IF(OR(Q351=1,Q351=2),ROUNDDOWN((SUM(K351:N351)-25)/25,0),"") -> 
J353: =IF(L353>0,IF(H353="BA-201",IF(K353>=53.125,"Meets min VT1","VT1 too short"),IF(H353="BA-221",IF(K353>=37.5,"Meets min VT1","VT1 too short"),)),"") ->  | R353: =IF(Q353=1,8,"") ->  | T353: =IF(Q353<>"",1,"") ->  | U353: =IF(Q353<>"",1,"") ->  | Y353: =IF(H353="BA-201",IF((SUM($K353:$M353)-40.625)/12.5=INT((SUM($K353:$M353)-40.625)/12.5),SUM($K353:$M353)-40.625,"Error"),IF(H353="BA-221",IF((SUM($K353:$M353)-25)/12.5=INT((SUM($K353:$M353)-25)/12.5),SUM($K353:$M353)-25,"Error"),"")) ->  | Z353: =IF(H353="BA-201",1,"") ->  | AA353: =IF(I353="BA-205",1,"") ->  | AB353: =IF(I353="BA-206",1,"") ->  | AC353: =IF(I353="LS-625",1,"") ->  | AD353: =IF(I353="LS-626",1,"") ->  | AE353: =IF(H353="BA-221",1,"") ->  | AF353: =IF(I353="BA-225",1,"") -> 
N415: =IF(I415<>"",IF(I415="BA-205",47.7,IF(I415="BA-206",37.5,IF(I415="BA-225",35.2,IF(I415="LS-625",50,IF(I415="LS-626",37.5,))))),"") ->  | S415: =IF(OR(Q415=1,Q415=2),ROUNDDOWN((SUM(K415:N415)-25)/25,0),"") -> 
J417: =IF(L417>0,IF(H417="BA-201",IF(K417>=53.125,"Meets min VT1","VT1 too short"),IF(H417="BA-221",IF(K417>=37.5,"Meets min VT1","VT1 too short"),)),"") ->  | R417: =IF(Q417=1,8,"") ->  | T417: =IF(Q417<>"",1,"") ->  | U417: =IF(Q417<>"",1,"") ->  | Y417: =IF(H417="BA-201",IF((SUM($K417:$M417)-40.625)/12.5=INT((SUM($K417:$M417)-40.625)/12.5),SUM($K417:$M417)-40.625,"Error"),IF(H417="BA-221",IF((SUM($K417:$M417)-25)/12.5=INT((SUM($K417:$M417)-25)/12.5),SUM($K417:$M417)-25,"Error"),"")) ->  | Z417: =IF(H417="BA-201",1,"") ->  | AA417: =IF(I417="BA-205",1,"") ->  | AB417: =IF(I417="BA-206",1,"") ->  | AC417: =IF(I417="LS-625",1,"") ->  | AD417: =IF(I417="LS-626",1,"") ->  | AE417: =IF(H417="BA-221",1,"") ->  | AF417: =IF(I417="BA-225",1,"") -> 
N479: =IF(I479<>"",IF(I479="BA-205",47.7,IF(I479="BA-206",37.5,IF(I479="BA-225",35.2,IF(I479="LS-625",50,IF(I479="LS-626",37.5,))))),"") ->  | S479: =IF(OR(Q479=1,Q479=2),ROUNDDOWN((SUM(K479:N479)-25)/25,0),"") -> 
J481: =IF(L481>0,IF(H481="BA-201",IF(K481>=53.125,"Meets min VT1","VT1 too short"),IF(H481="BA-221",IF(K481>=37.5,"Meets min VT1","VT1 too short"),)),"") ->  | R481: =IF(Q481=1,8,"") ->  | T481: =IF(Q481<>"",1,"") ->  | U481: =IF(Q481<>"",1,"") ->  | Y481: =IF(H481="BA-201",IF((SUM($K481:$M481)-40.625)/12.5=INT((SUM($K481:$M481)-40.625)/12.5),SUM($K481:$M481)-40.625,"Error"),IF(H481="BA-221",IF((SUM($K481:$M481)-25)/12.5=INT((SUM($K481:$M481)-25)/12.5),SUM($K481:$M481)-25,"Error"),"")) ->  | Z481: =IF(H481="BA-201",1,"") ->  | AA481: =IF(I481="BA-205",1,"") ->  | AB481: =IF(I481="BA-206",1,"") ->  | AC481: =IF(I481="LS-625",1,"") ->  | AD481: =IF(I481="LS-626",1,"") ->  | AE481: =IF(H481="BA-221",1,"") ->  | AF481: =IF(I481="BA-225",1,"") -> 
N543: =IF(I543<>"",IF(I543="BA-205",47.7,IF(I543="BA-206",37.5,IF(I543="BA-225",35.2,IF(I543="LS-625",50,IF(I543="LS-626",37.5,))))),"") ->  | S543: =IF(OR(Q543=1,Q543=2),ROUNDDOWN((SUM(K543:N543)-25)/25,0),"") -> 
J545: =IF(L545>0,IF(H545="BA-201",IF(K545>=53.125,"Meets min VT1","VT1 too short"),IF(H545="BA-221",IF(K545>=37.5,"Meets min VT1","VT1 too short"),)),"") ->  | R545: =IF(Q545=1,8,"") ->  | T545: =IF(Q545<>"",1,"") ->  | U545: =IF(Q545<>"",1,"") ->  | Y545: =IF(H545="BA-201",IF((SUM($K545:$M545)-40.625)/12.5=INT((SUM($K545:$M545)-40.625)/12.5),SUM($K545:$M545)-40.625,"Error"),IF(H545="BA-221",IF((SUM($K545:$M545)-25)/12.5=INT((SUM($K545:$M545)-25)/12.5),SUM($K545:$M545)-25,"Error"),"")) ->  | Z545: =IF(H545="BA-201",1,"") ->  | AA545: =IF(I545="BA-205",1,"") ->  | AB545: =IF(I545="BA-206",1,"") ->  | AC545: =IF(I545="LS-625",1,"") ->  | AD545: =IF(I545="LS-626",1,"") ->  | AE545: =IF(H545="BA-221",1,"") ->  | AF545: =IF(I545="BA-225",1,"") -> 
N607: =IF(I607<>"",IF(I607="BA-205",47.7,IF(I607="BA-206",37.5,IF(I607="BA-225",35.2,IF(I607="LS-625",50,IF(I607="LS-626",37.5,))))),"") ->  | S607: =IF(OR(Q607=1,Q607=2),ROUNDDOWN((SUM(K607:N607)-25)/25,0),"") -> 
J609: =IF(L609>0,IF(H609="BA-201",IF(K609>=53.125,"Meets min VT1","VT1 too short"),IF(H609="BA-221",IF(K609>=37.5,"Meets min VT1","VT1 too short"),)),"") ->  | R609: =IF(Q609=1,8,"") ->  | T609: =IF(Q609<>"",1,"") ->  | U609: =IF(Q609<>"",1,"") ->  | Y609: =IF(H609="BA-201",IF((SUM($K609:$M609)-40.625)/12.5=INT((SUM($K609:$M609)-40.625)/12.5),SUM($K609:$M609)-40.625,"Error"),IF(H609="BA-221",IF((SUM($K609:$M609)-25)/12.5=INT((SUM($K609:$M609)-25)/12.5),SUM($K609:$M609)-25,"Error"),"")) ->  | Z609: =IF(H609="BA-201",1,"") ->  | AA609: =IF(I609="BA-205",1,"") ->  | AB609: =IF(I609="BA-206",1,"") ->  | AC609: =IF(I609="LS-625",1,"") ->  | AD609: =IF(I609="LS-626",1,"") ->  | AE609: =IF(H609="BA-221",1,"") ->  | AF609: =IF(I609="BA-225",1,"") -> 
N671: =IF(I671<>"",IF(I671="BA-205",47.7,IF(I671="BA-206",37.5,IF(I671="BA-225",35.2,IF(I671="LS-625",50,IF(I671="LS-626",37.5,))))),"") ->  | S671: =IF(OR(Q671=1,Q671=2),ROUNDDOWN((SUM(K671:N671)-25)/25,0),"") -> 
J673: =IF(L673>0,IF(H673="BA-201",IF(K673>=53.125,"Meets min VT1","VT1 too short"),IF(H673="BA-221",IF(K673>=37.5,"Meets min VT1","VT1 too short"),)),"") ->  | R673: =IF(Q673=1,8,"") ->  | T673: =IF(Q673<>"",1,"") ->  | U673: =IF(Q673<>"",1,"") ->  | Y673: =IF(H673="BA-201",IF((SUM($K673:$M673)-40.625)/12.5=INT((SUM($K673:$M673)-40.625)/12.5),SUM($K673:$M673)-40.625,"Error"),IF(H673="BA-221",IF((SUM($K673:$M673)-25)/12.5=INT((SUM($K673:$M673)-25)/12.5),SUM($K673:$M673)-25,"Error"),"")) ->  | Z673: =IF(H673="BA-201",1,"") ->  | AA673: =IF(I673="BA-205",1,"") ->  | AB673: =IF(I673="BA-206",1,"") ->  | AC673: =IF(I673="LS-625",1,"") ->  | AD673: =IF(I673="LS-626",1,"") ->  | AE673: =IF(H673="BA-221",1,"") ->  | AF673: =IF(I673="BA-225",1,"") -> 
N735: =IF(I735<>"",IF(I735="BA-205",47.7,IF(I735="BA-206",37.5,IF(I735="BA-225",35.2,IF(I735="LS-625",50,IF(I735="LS-626",37.5,))))),"") ->  | S735: =IF(OR(Q735=1,Q735=2),ROUNDDOWN((SUM(K735:N735)-25)/25,0),"") -> 
J737: =IF(L737>0,IF(H737="BA-201",IF(K737>=53.125,"Meets min VT1","VT1 too short"),IF(H737="BA-221",IF(K737>=37.5,"Meets min VT1","VT1 too short"),)),"") ->  | R737: =IF(Q737=1,8,"") ->  | T737: =IF(Q737<>"",1,"") ->  | U737: =IF(Q737<>"",1,"") ->  | Y737: =IF(H737="BA-201",IF((SUM($K737:$M737)-40.625)/12.5=INT((SUM($K737:$M737)-40.625)/12.5),SUM($K737:$M737)-40.625,"Error"),IF(H737="BA-221",IF((SUM($K737:$M737)-25)/12.5=INT((SUM($K737:$M737)-25)/12.5),SUM($K737:$M737)-25,"Error"),"")) ->  | Z737: =IF(H737="BA-201",1,"") ->  | AA737: =IF(I737="BA-205",1,"") ->  | AB737: =IF(I737="BA-206",1,"") ->  | AC737: =IF(I737="LS-625",1,"") ->  | AD737: =IF(I737="LS-626",1,"") ->  | AE737: =IF(H737="BA-221",1,"") ->  | AF737: =IF(I737="BA-225",1,"") -> 
N799: =IF(I799<>"",IF(I799="BA-205",47.7,IF(I799="BA-206",37.5,IF(I799="BA-225",35.2,IF(I799="LS-625",50,IF(I799="LS-626",37.5,))))),"") ->  | S799: =IF(OR(Q799=1,Q799=2),ROUNDDOWN((SUM(K799:N799)-25)/25,0),"") -> 
J801: =IF(L801>0,IF(H801="BA-201",IF(K801>=53.125,"Meets min VT1","VT1 too short"),IF(H801="BA-221",IF(K801>=37.5,"Meets min VT1","VT1 too short"),)),"") ->  | R801: =IF(Q801=1,8,"") ->  | T801: =IF(Q801<>"",1,"") ->  | U801: =IF(Q801<>"",1,"") ->  | Y801: =IF(H801="BA-201",IF((SUM($K801:$M801)-40.625)/12.5=INT((SUM($K801:$M801)-40.625)/12.5),SUM($K801:$M801)-40.625,"Error"),IF(H801="BA-221",IF((SUM($K801:$M801)-25)/12.5=INT((SUM($K801:$M801)-25)/12.5),SUM($K801:$M801)-25,"Error"),"")) ->  | Z801: =IF(H801="BA-201",1,"") ->  | AA801: =IF(I801="BA-205",1,"") ->  | AB801: =IF(I801="BA-206",1,"") ->  | AC801: =IF(I801="LS-625",1,"") ->  | AD801: =IF(I801="LS-626",1,"") ->  | AE801: =IF(H801="BA-221",1,"") ->  | AF801: =IF(I801="BA-225",1,"") -> 
N863: =IF(I863<>"",IF(I863="BA-205",47.7,IF(I863="BA-206",37.5,IF(I863="BA-225",35.2,IF(I863="LS-625",50,IF(I863="LS-626",37.5,))))),"") ->  | S863: =IF(OR(Q863=1,Q863=2),ROUNDDOWN((SUM(K863:N863)-25)/25,0),"") -> 
J865: =IF(L865>0,IF(H865="BA-201",IF(K865>=53.125,"Meets min VT1","VT1 too short"),IF(H865="BA-221",IF(K865>=37.5,"Meets min VT1","VT1 too short"),)),"") ->  | R865: =IF(Q865=1,8,"") ->  | T865: =IF(Q865<>"",1,"") ->  | U865: =IF(Q865<>"",1,"") ->  | Y865: =IF(H865="BA-201",IF((SUM($K865:$M865)-40.625)/12.5=INT((SUM($K865:$M865)-40.625)/12.5),SUM($K865:$M865)-40.625,"Error"),IF(H865="BA-221",IF((SUM($K865:$M865)-25)/12.5=INT((SUM($K865:$M865)-25)/12.5),SUM($K865:$M865)-25,"Error"),"")) ->  | Z865: =IF(H865="BA-201",1,"") ->  | AA865: =IF(I865="BA-205",1,"") ->  | AB865: =IF(I865="BA-206",1,"") ->  | AC865: =IF(I865="LS-625",1,"") ->  | AD865: =IF(I865="LS-626",1,"") ->  | AE865: =IF(H865="BA-221",1,"") ->  | AF865: =IF(I865="BA-225",1,"") -> 
N927: =IF(I927<>"",IF(I927="BA-205",47.7,IF(I927="BA-206",37.5,IF(I927="BA-225",35.2,IF(I927="LS-625",50,IF(I927="LS-626",37.5,))))),"") ->  | S927: =IF(OR(Q927=1,Q927=2),ROUNDDOWN((SUM(K927:N927)-25)/25,0),"") -> 
J929: =IF(L929>0,IF(H929="BA-201",IF(K929>=53.125,"Meets min VT1","VT1 too short"),IF(H929="BA-221",IF(K929>=37.5,"Meets min VT1","VT1 too short"),)),"") ->  | R929: =IF(Q929=1,8,"") ->  | T929: =IF(Q929<>"",1,"") ->  | U929: =IF(Q929<>"",1,"") ->  | Y929: =IF(H929="BA-201",IF((SUM($K929:$M929)-40.625)/12.5=INT((SUM($K929:$M929)-40.625)/12.5),SUM($K929:$M929)-40.625,"Error"),IF(H929="BA-221",IF((SUM($K929:$M929)-25)/12.5=INT((SUM($K929:$M929)-25)/12.5),SUM($K929:$M929)-25,"Error"),"")) ->  | Z929: =IF(H929="BA-201",1,"") ->  | AA929: =IF(I929="BA-205",1,"") ->  | AB929: =IF(I929="BA-206",1,"") ->  | AC929: =IF(I929="LS-625",1,"") ->  | AD929: =IF(I929="LS-626",1,"") ->  | AE929: =IF(H929="BA-221",1,"") ->  | AF929: =IF(I929="BA-225",1,"") -> 
N991: =IF(I991<>"",IF(I991="BA-205",47.7,IF(I991="BA-206",37.5,IF(I991="BA-225",35.2,IF(I991="LS-625",50,IF(I991="LS-626",37.5,))))),"") ->  | S991: =IF(OR(Q991=1,Q991=2),ROUNDDOWN((SUM(K991:N991)-25)/25,0),"") -> 
J993: =IF(L993>0,IF(H993="BA-201",IF(K993>=53.125,"Meets min VT1","VT1 too short"),IF(H993="BA-221",IF(K993>=37.5,"Meets min VT1","VT1 too short"),)),"") ->  | R993: =IF(Q993=1,8,"") ->  | T993: =IF(Q993<>"",1,"") ->  | U993: =IF(Q993<>"",1,"") ->  | Y993: =IF(H993="BA-201",IF((SUM($K993:$M993)-40.625)/12.5=INT((SUM($K993:$M993)-40.625)/12.5),SUM($K993:$M993)-40.625,"Error"),IF(H993="BA-221",IF((SUM($K993:$M993)-25)/12.5=INT((SUM($K993:$M993)-25)/12.5),SUM($K993:$M993)-25,"Error"),"")) ->  | Z993: =IF(H993="BA-201",1,"") ->  | AA993: =IF(I993="BA-205",1,"") ->  | AB993: =IF(I993="BA-206",1,"") ->  | AC993: =IF(I993="LS-625",1,"") ->  | AD993: =IF(I993="LS-626",1,"") ->  | AE993: =IF(H993="BA-221",1,"") ->  | AF993: =IF(I993="BA-225",1,"") -> 
... 43 more rows

Sheet DE108_8C
A1: TabTitle | B1: =C16 -> STEEL BEAM GUARDRAIL FOR SIDE OBSTACLE (ONE-WAY PROTECTION)
A2: Number of Tab Columns | B2: 25
A3: DE Starter Row Number | B3: 30
A4: TabSheet Starter Row Number | B4: 16
A5: TabSheet Header Row Count | B5: 15
A6: Top Header Cell | B6: AC15
A7: Bottom Header Cell | B7: BA29
A8: DESheet Row Count | B8: 4
A9: Fixed Empty Rows | B9: 8
A10: Usable Empty Rows | B10: 0
A11: Total Rows Placed | B11: 12 | C11: xlRight(1) | D11: xlCenter | E11: xlCenter | F11: xlRight(1) | G11: xlRight(1) | H11: xlRight(1) | I11: xlRight(1) | J11: xlRight(1) | K11: xlRight(1) | L11: xlRight(1) | M11: xlRight(1) | N11: xlRight(1) | O11: xlRight(1) | P11: xlCenter | Q11: xlCenter | R11: xlRight(1) | S11: xlRight(1) | T11: xlRight(1) | U11: xlRight(1) | V11: xlRight(1) | W11: xlRight(1) | X11: xlRight(1) | Y11: xlRight(1) | Z11: xlRight(1) | AA11: xlLeft(1) | AC11: =C11 -> xlRight(1) | AD11: xlCenter | AE11: xlCenter | AF11: xlRight(1) | AG11: xlRight(1) | AH11: xlRight(1) | AI11: xlRight(1) | AJ11: xlRight(1) | AK11: xlRight(1) | AL11: xlRight(1) | AM11: xlRight(1) | AN11: xlRight(1) | AO11: xlRight(1) | AP11: xlCenter | AQ11: xlCenter | AR11: xlRight(1) | AS11: =S11 -> xlRight(1) | AT11: xlRight(1) | AU11: xlRight(1) | AV11: xlRight(1) | AW11: xlRight(1) | AX11: xlRight(1) | AY11: xlRight(1) | AZ11: xlRight(1) | BA11: xlLeft(1)
A12: Total Rows Needed | B12: =SUM(B8:B10) -> 12 | C12: General | D12: General | E12: General | F12: #+00.00 | G12: 0.00 | H12: 0.00 | I12: 0.0 | J12: 0.00 | K12: 0.00 | L12: 0.00 | M12: 0.00 | N12: 0.000 | O12: #+00.00 | P12: General | Q12: General | R12: 0 | S12: 0 | T12: 0 | U12: 0 | V12: 0.0 | W12: 0 | X12: General | Y12: 0 | Z12: 0 | AA12: General | AC12: General | AD12: General | AE12: General | AF12: #+00.00 | AG12: 0.00 | AH12: 0.00 | AI12: 0.0 | AJ12: 0.00 | AK12: 0.00 | AL12: 0.00 | AM12: 0.00 | AN12: 0.000 | AO12: #+00.00 | AP12: General | AQ12: General | AR12: 0 | AS12: 0 | AT12: 0 | AU12: 0 | AV12: 0.0 | AW12: 0 | AX12: General | AY12: 0 | AZ12: 0 | BA12: General
A13: Last Tab DE Starter Row | B13: 30 | C13: =CELL("width", C13) -> 7 | D13: 7 | E13: 7 | F13: 17 | G13: 8 | H13: 8 | I13: 11 | J13: 11 | K13: 11 | L13: 11 | M13: 11 | N13: 11 | O13: 17 | P13: 9 | Q13: 9 | R13: 12 | S13: 9 | T13: 9 | U13: 9 | V13: 12 | W13: 12 | X13: 12 | Y13: 12 | Z13: 12 | AA13: 52 | AC13: =CELL("width", AC13) -> 0 | AD13: 0 | AE13: 0 | AF13: 0 | AG13: 0 | AH13: 0 | AI13: 0 | AJ13: 0 | AK13: 0 | AL13: 0 | AM13: 0 | AN13: 0 | AO13: 0 | AP13: 0 | AQ13: 0 | AR13: 0 | AS13: 0 | AT13: 0 | AU13: 0 | AV13: 0 | AW13: 0 | AX13: 0 | AY13: 0 | AZ13: 0 | BA13: 0
A14: Last Tab TabSheet Starter Row | B14: 16 | C14: A | D14: B | E14: C | F14: D | G14: E | H14: F | I14: G | J14: H | K14: I | L14: J | M14: K | N14: L | O14: M | P14: N | Q14: O | R14: P | S14: Q | T14: R | U14: S | V14: T | W14: U | X14: V | Y14: W | Z14: X | AA14: Y | AC14: =LOWER(C14) -> a | AD14: =LOWER(D14) -> b | AE14: =LOWER(E14) -> c | AF14: =LOWER(F14) -> d | AG14: =LOWER(G14) -> e | AH14: f | AI14: g | AJ14: h | AK14: i | AL14: j | AM14: k | AN14: l | AO14: m | AP14: n | AQ14: o | AR14: p | AS14: q | AT14: r | AU14: s | AV14: t | AW14: u | AX14: v | AY14: w | AZ14: x | BA14: y
A15: Last Copy Starter Row | B15: 1 | Q15: Totals: | R15: =SUBTOTAL(9,R30:R6000) -> 0 | S15: 0 | T15: 0 | U15: 0 | V15: 125 | W15: 2 | Z15: 0 | AC15: 108-8C | BC15: SI-211 | BD15: =X23 -> End Terminal
A16: Tab Loop Number | B16: 2 | C16: STEEL BEAM GUARDRAIL FOR SIDE OBSTACLE (ONE-WAY PROTECTION) | AC16: =B17 -> Modified | BC16: 1 | BD16: BA-205
A17: Revision Date | B17: Modified | AC17: =C16 -> STEEL BEAM GUARDRAIL FOR SIDE OBSTACLE (ONE-WAY PROTECTION) | BC17: 2 | BD17: BA-206
A18: Tabulation Width | B18: 4 | C18: Possible Standards: BA-200, BA-203, BA-205, BA-206, BA-210, BA-211, BA-252, LS-625, LS 626, LS-632, SI-172, SI-173, and SI-211. | BC18: 3 | BD18: LS-625
A19: Horizontal Grid Lines | B19: Yes | C19: Lane(s) to which the obstacle is adjacent. | AC19: =C18 -> Possible Standards: BA-200, BA-203, BA-205, BA-206, BA-210, BA-211, BA-252, LS-625, LS 626, LS-632, SI-172, SI-173, and SI-211. | BC19: 4 | BD19: LS-626
C20: ="This Data Entry Sheet fills Tab "&AC15&" effective "&TEXT(B17,"mm-dd-yy") -> This Data Entry Sheet fills Tab 108-8C effective Modified | AC20: =C19 -> Lane(s) to which the obstacle is adjacent. | BC20: 5
C21: Location | I21: Layout Lengths | O21: Long-Span System | Q21: Delineators and Object Markers | V21: Bid Items | AA21: Remarks | AC21: =C21 -> Location | AI21: =I21 -> Layout Lengths | AO21: =O21 -> Long-Span System | AQ21: =Q21 -> Delineators and Object Markers | AV21: =V21 -> Bid Items | BA21: =AA21 -> Remarks | BC21: 6
C22: No. | D22: Direction of Traffic | E22: Side | F22: Station | I22: BA-252 or LS-632 | AC22: =C22 -> No. | AD22: =D22 -> Direction of Traffic | AE22: =E22 -> Side | AF22: =F22 -> Station | AI22: =I22 -> BA-252 or LS-632 | BC22: 7
E23: O= Outside M= Median | I23: Approach Side | M23: Trailing Side | Q23: SI-211 | R23: Delineator | S23: Object Marker | V23: Steel Beam Guardrail | W23: W-Beam End Anchor | X23: End Terminal | Z23: Post Adapter | AE23: =E23 -> O= Outside M= Median | AI23: =I23 -> Approach Side | AM23: =M23 -> Trailing Side | AQ23: =Q23 -> SI-211 | AR23: =R23 -> Delineator | AS23: =S23 -> Object Marker | AV23: =V23 -> Steel Beam Guardrail | AW23: =W23 -> W-Beam End Anchor | AX23: =X23 -> End Terminal | AZ23: =Z23 -> Post Adapter | BC23: 8
X24: Standard | Y24: Count | AX24: =X24 -> Standard | AY24: =Y24 -> Count
R25: SI-172 | S25: SI-173 | AR25: =R25 -> SI-172 | AS25: =S25 -> SI-173
R26: Type 1 | S26: Type 2 | T26: Type 3 | AR26: =R26 -> Type 1 | AS26: =S26 -> Type 2 | AT26: =T26 -> Type 3
O27: BA-211 | AO27: =O27 -> BA-211
R28: White | S28: OM2-2 | T28: OM3-L | U28: OM3-R | V28: BA-200 | W28: BA-203 | Z28: BA-210 | AR28: =R28 -> White | AS28: OM2-2 | AT28: OM3-L | AU28: OM3-R | AV28: BA-200 | AW28: BA-203 | AZ28: BA-210
G29: FT | H29: FT | I29: LF | J29: LF | K29: LF | L29: LF | M29: LF | N29: LF | O29: STATION | P29: TYPE | Q29: TYPE | R29: EACH | S29: EACH | T29: EACH | U29: EACH | V29: LF | W29: EACH | Y29: EACH | Z29: EACH | AG29: =G29 -> FT | AH29: FT | AI29: LF | AJ29: LF | AK29: LF | AL29: LF | AM29: LF | AN29: =N29 -> LF | AO29: =O29 -> STATION | AP29: =P29 -> TYPE | AQ29: =Q29 -> TYPE | AR29: EACH | AS29: EACH | AT29: EACH | AU29: EACH | AV29: LF | AW29: EACH | AY29: EACH | AZ29: EACH
V30: =IF($L30<>"",IF((SUM($J30:$M30)-6.25)/12.5=INT((SUM($J30:$M30)-6.25)/12.5),SUM($J30:$M30)-6.25,"Error"),"") -> 
C31: 1 | D31: SB | E31: O | F31: 89825 | G31: 12 | H31: 10 | I31: 50 | J31: 12.5 | K31: 37.5 | M31: 12.5 | N31: 12.5 | V31: =J31+K31+M31 -> 62.5 | W31: 1 | X31: BA-205 | Y31: 1 | AA31: See U Sheets
C33: TOTALS: | V33: =SUM(V31) -> 62.5 | W33: =SUM(W31) -> 1 | Y33: =SUM(Y31) -> 1
V94: =IF($L94<>"",IF((SUM($J94:$M94)-6.25)/12.5=INT((SUM($J94:$M94)-6.25)/12.5),SUM($J94:$M94)-6.25,"Error"),"") -> 
V158: =IF($L158<>"",IF((SUM($J158:$M158)-6.25)/12.5=INT((SUM($J158:$M158)-6.25)/12.5),SUM($J158:$M158)-6.25,"Error"),"") -> 
V222: =IF($L222<>"",IF((SUM($J222:$M222)-6.25)/12.5=INT((SUM($J222:$M222)-6.25)/12.5),SUM($J222:$M222)-6.25,"Error"),"") -> 
V286: =IF($L286<>"",IF((SUM($J286:$M286)-6.25)/12.5=INT((SUM($J286:$M286)-6.25)/12.5),SUM($J286:$M286)-6.25,"Error"),"") -> 
V350: =IF($L350<>"",IF((SUM($J350:$M350)-6.25)/12.5=INT((SUM($J350:$M350)-6.25)/12.5),SUM($J350:$M350)-6.25,"Error"),"") -> 
V414: =IF($L414<>"",IF((SUM($J414:$M414)-6.25)/12.5=INT((SUM($J414:$M414)-6.25)/12.5),SUM($J414:$M414)-6.25,"Error"),"") -> 
V478: =IF($L478<>"",IF((SUM($J478:$M478)-6.25)/12.5=INT((SUM($J478:$M478)-6.25)/12.5),SUM($J478:$M478)-6.25,"Error"),"") -> 
V542: =IF($L542<>"",IF((SUM($J542:$M542)-6.25)/12.5=INT((SUM($J542:$M542)-6.25)/12.5),SUM($J542:$M542)-6.25,"Error"),"") -> 
V606: =IF($L606<>"",IF((SUM($J606:$M606)-6.25)/12.5=INT((SUM($J606:$M606)-6.25)/12.5),SUM($J606:$M606)-6.25,"Error"),"") -> 
V670: =IF($L670<>"",IF((SUM($J670:$M670)-6.25)/12.5=INT((SUM($J670:$M670)-6.25)/12.5),SUM($J670:$M670)-6.25,"Error"),"") -> 
V734: =IF($L734<>"",IF((SUM($J734:$M734)-6.25)/12.5=INT((SUM($J734:$M734)-6.25)/12.5),SUM($J734:$M734)-6.25,"Error"),"") -> 
V798: =IF($L798<>"",IF((SUM($J798:$M798)-6.25)/12.5=INT((SUM($J798:$M798)-6.25)/12.5),SUM($J798:$M798)-6.25,"Error"),"") -> 
V862: =IF($L862<>"",IF((SUM($J862:$M862)-6.25)/12.5=INT((SUM($J862:$M862)-6.25)/12.5),SUM($J862:$M862)-6.25,"Error"),"") -> 
V926: =IF($L926<>"",IF((SUM($J926:$M926)-6.25)/12.5=INT((SUM($J926:$M926)-6.25)/12.5),SUM($J926:$M926)-6.25,"Error"),"") -> 
V990: =IF($L990<>"",IF((SUM($J990:$M990)-6.25)/12.5=INT((SUM($J990:$M990)-6.25)/12.5),SUM($J990:$M990)-6.25,"Error"),"") -> 
V1054: =IF($L1054<>"",IF((SUM($J1054:$M1054)-6.25)/12.5=INT((SUM($J1054:$M1054)-6.25)/12.5),SUM($J1054:$M1054)-6.25,"Error"),"") -> 
V1118: =IF($L1118<>"",IF((SUM($J1118:$M1118)-6.25)/12.5=INT((SUM($J1118:$M1118)-6.25)/12.5),SUM($J1118:$M1118)-6.25,"Error"),"") -> 
V1182: =IF($L1182<>"",IF((SUM($J1182:$M1182)-6.25)/12.5=INT((SUM($J1182:$M1182)-6.25)/12.5),SUM($J1182:$M1182)-6.25,"Error"),"") -> 
V1246: =IF($L1246<>"",IF((SUM($J1246:$M1246)-6.25)/12.5=INT((SUM($J1246:$M1246)-6.25)/12.5),SUM($J1246:$M1246)-6.25,"Error"),"") -> 
V1310: =IF($L1310<>"",IF((SUM($J1310:$M1310)-6.25)/12.5=INT((SUM($J1310:$M1310)-6.25)/12.5),SUM($J1310:$M1310)-6.25,"Error"),"") -> 
V1374: =IF($L1374<>"",IF((SUM($J1374:$M1374)-6.25)/12.5=INT((SUM($J1374:$M1374)-6.25)/12.5),SUM($J1374:$M1374)-6.25,"Error"),"") -> 
V1438: =IF($L1438<>"",IF((SUM($J1438:$M1438)-6.25)/12.5=INT((SUM($J1438:$M1438)-6.25)/12.5),SUM($J1438:$M1438)-6.25,"Error"),"") -> 
V1502: =IF($L1502<>"",IF((SUM($J1502:$M1502)-6.25)/12.5=INT((SUM($J1502:$M1502)-6.25)/12.5),SUM($J1502:$M1502)-6.25,"Error"),"") -> 
V1566: =IF($L1566<>"",IF((SUM($J1566:$M1566)-6.25)/12.5=INT((SUM($J1566:$M1566)-6.25)/12.5),SUM($J1566:$M1566)-6.25,"Error"),"") -> 
V1630: =IF($L1630<>"",IF((SUM($J1630:$M1630)-6.25)/12.5=INT((SUM($J1630:$M1630)-6.25)/12.5),SUM($J1630:$M1630)-6.25,"Error"),"") -> 
V1694: =IF($L1694<>"",IF((SUM($J1694:$M1694)-6.25)/12.5=INT((SUM($J1694:$M1694)-6.25)/12.5),SUM($J1694:$M1694)-6.25,"Error"),"") -> 
V1758: =IF($L1758<>"",IF((SUM($J1758:$M1758)-6.25)/12.5=INT((SUM($J1758:$M1758)-6.25)/12.5),SUM($J1758:$M1758)-6.25,"Error"),"") -> 
V1822: =IF($L1822<>"",IF((SUM($J1822:$M1822)-6.25)/12.5=INT((SUM($J1822:$M1822)-6.25)/12.5),SUM($J1822:$M1822)-6.25,"Error"),"") -> 
V1886: =IF($L1886<>"",IF((SUM($J1886:$M1886)-6.25)/12.5=INT((SUM($J1886:$M1886)-6.25)/12.5),SUM($J1886:$M1886)-6.25,"Error"),"") -> 
V1950: =IF($L1950<>"",IF((SUM($J1950:$M1950)-6.25)/12.5=INT((SUM($J1950:$M1950)-6.25)/12.5),SUM($J1950:$M1950)-6.25,"Error"),"") -> 
... 39 more rows

Sheet DE108_13A
A1: TabTitle | B1: =C16 -> SAFETY CLOSURES
A2: Number of Tab Columns | B2: 4
A3: DE Starter Row Number | B3: 22
A4: TabSheet Starter Row Number | B4: 8
A5: TabSheet Header Row Count | B5: 7
A6: Top Header Cell | B6: H15
A7: Bottom Header Cell | B7: K21
A8: DESheet Row Count | B8: 28
A9: Fixed Empty Rows | B9: 8
A10: Usable Empty Rows | B10: 0
A11: Total Rows Placed | B11: 36 | C11: xlRight(1) | D11: xlRight(1) | E11: xlRight(1) | F11: xlLeft(1) | H11: =C11 -> xlRight(1) | I11: =D11 -> xlRight(1) | J11: xlRight(1) | K11: xlLeft(1)
A12: Total Rows Needed | B12: =SUM(B8:B10) -> 36 | C12: #+00.00 | D12: General | E12: General | F12: General | H12: =C12 -> #+00.00 | I12: General | J12: General | K12: General
A13: Last Tab DE Starter Row | B13: 22 | C13: =CELL("width",C13) -> 16 | D13: =CELL("width",D13) -> 14 | E13: =CELL("width",E13) -> 14 | F13: =CELL("width",F13) -> 31 | H13: =CELL("width",H13) -> 0 | I13: =CELL("width",I13) -> 0 | J13: =CELL("width",J13) -> 0 | K13: =CELL("width",K13) -> 0
A14: Last Tab Tabsheet Starter Row | B14: 8 | C14: A | D14: B | E14: C | F14: D | H14: =LOWER(C14) -> a | I14: =LOWER(D14) -> b | J14: =LOWER(E14) -> c | K14: =LOWER(F14) -> d
A15: Last Copy Starter Row | B15: 1 | D15: =SUBTOTAL(9,D22:D6002) -> 36 | E15: =SUBTOTAL(9,E22:E6002) -> 12 | H15: 108-13A
A16: Tab Loop Number | B16: 2 | C16: SAFETY CLOSURES | H16: =B17 -> 2008-08-01
A17: Revision Date | B17: 2008-08-01 | H17: =C16 -> SAFETY CLOSURES
A18: Tabulation Width | B18: 1 | C18: Refer to Section 2518 of the Standard Specifications
A19: Horizontal Grid Lines | B19: Yes | C19: ="This Data Entry Sheet fills Tab "&H15&" effective "&TEXT(B17,"mm-dd-yy") -> This Data Entry Sheet fills Tab 108-13A effective 08-01-08 | H19: =C18 -> Refer to Section 2518 of the Standard Specifications
C20: Station | D20: Closure Type | F20: Remarks | H20: =C20 -> Station | I20: =D20 -> Closure Type | K20: =F20 -> Remarks
D21: Road Qty. | E21: Hazard Qty. | I21: =D21 -> Road Qty. | J21: =E21 -> Hazard Qty.
C23: STAGE 1
C24: US 63
C25: 84100 | D25: 1 | F25: BOP
C26: 87149.14 | E26: 2 | F26: At Bridge
C27: 871+62.01 | E27: 2 | F27: At Bridge
C28: 884+00.00 | E28: 2 | F28: At RCB
C29: 89300 | D29: 1
C31: RABBIT RUN RD
C32: 882606 | D32: 1 | F32: At New/Exist. Rabbit Int.
C34: STAGE 2
C35: US 63
C36: 88330 | D36: 1
C37: 91995 | D37: 2 | F37: Roundabout
C38: 92077 | D38: 1 | F38: 258' Rt. US 34/63 EB/NB
C40: MARY ST.
C41: 896815 | D41: 1
C43: BIKE TRAIL
C44: 8814+00.00 | D44: 1 | F44: Trail Closure
C45: 8819+40.00 | D45: 1 | F45: Trail Closure
C47: SUBTOTALS: | D47: =SUM(D25:D45) -> 10 | E47: =SUM(E25:E44) -> 6
C49: BIDTOTAL: | D49: =SUM(D47:E47) -> 16

Sheet DE108_22
A1: TabTitle | B1: =C44 -> PAVEMENT MARKING LINE TYPES
A2: Number of Tab Columns | B2: 24 | BB2: Old 9001 | BC2: Line Types (See PM-110) | BG2: Marking Type | BH2: =L54 -> BCY4* | BI2: DCY4 | BJ2: NPY4** | BK2: BLW4 | BL2: ELW4 | BM2: ELY4 | BN2: CHY8 | BO2: SLW4 | BP2: CHW8 | BQ2: SLW2 | BR2: 0 | BS2: 0 | BT2: 0 | BU2: 0 | BV2: 0 | BX2: Direction of Travel
A3: DE Starter Row Number | B3: 57 | BB3: Detail Number | BC3: Key | BD3: Description | BE3: Factor | BG3: Waterborne/Solvent Paint | BX3: NB
A4: TabSheet Starter Row Number | B4: 15 | BB4: 2 | BC4: BCY4* | BD4: BCY4: Broken Centerline (Yellow) @ 0.25 | BE4: 0.25 | BG4: Highbuild Waterborne Paint | BX4: EB
A5: TabSheet Header Row Count | B5: 14 | BB5: 6 | BC5: BLW4 | BD5: BLW4: Broken Lane Line (White) @ 0.25 | BE5: 0.25 | BG5: Durable Paint | BX5: SB
A6: Top Header Cell | B6: AC15 | BB6: new | BC6: CBW6 | BD6: CBW6: Crosswalk Bar (White) @ 15.00 | BE6: 15 | BG6: Permanent Regular Tape | BX6: WB
A7: Bottom Header Cell | B7: AZ28 | BB7: 11 | BC7: CHW8 | BD7: CHW8: Channelizing Line (White) @ 2.00 | BE7: 2 | BG7: Permanent Preform Polymer Tape | BX7: BOTH
A8: DESheet Row Count | B8: 43 | BB8: 12 | BC8: CHY8 | BD8: CHY8: Channelizing Line (Yellow) @ 2.00 | BE8: 2 | BG8: Permanent Profiled Tape
A9: Fixed Empty Rows | B9: 5 | BB9: 14 | BC9: CLW6 | BD9: CLW6: Crosswalk Line (White) @ 3.00 | BE9: 3 | BG9: Permanent Intersection Tape
A10: Usable Empty Rows | B10: 0 | BB10: 3 | BC10: DCY4 | BD10: DCY4: Double Centerline (Yellow) @ 2.00 | BE10: 2 | BG10: Grooves Cut for Pavement Markings
A11: Total Rows Placed | B11: 48 | C11: xlLeft(1) | D11: xlRight(1) | E11: xlRight(1) | G11: xlCenter | H11: xlCenter | I11: xlCenter | J11: xlCenter | K11: xlCenter | L11: xlRight(1) | M11: xlRight(1) | N11: xlRight(1) | O11: xlRight(1) | P11: xlRight(1) | Q11: xlRight(1) | R11: xlRight(1) | S11: xlRight(1) | T11: xlRight(1) | U11: xlRight(1) | V11: xlRight(1) | W11: xlRight(1) | X11: xlRight(1) | Y11: xlRight(1) | Z11: xlRight(1) | AA11: xlLeft(1) | AC11: =C11 -> xlLeft(1) | AD11: xlRight(1) | AE11: xlRight(1) | AF11: =G11 -> xlCenter | AG11: xlCenter | AH11: xlCenter | AI11: xlCenter | AJ11: xlCenter | AK11: xlRight(1) | AL11: xlRight(1) | AM11: xlRight(1) | AN11: xlRight(1) | AO11: xlRight(1) | AP11: xlRight(1) | AQ11: xlRight(1) | AR11: xlRight(1) | AS11: xlRight(1) | AT11: xlRight(1) | AU11: xlRight(1) | AV11: =W11 -> xlRight(1) | AW11: xlRight(1) | AX11: xlRight(1) | AY11: xlRight(1) | AZ11: xlLeft(1) | BB11: 18 | BC11: DDY4 | BD11: DDY4: Double Dotted Line (Yellow) @ 0.67 | BE11: =2/3 -> 0.6666666667 | BG11: Wet Retroreflective Removable Tape
A12: Total Rows Needed | B12: =SUM(B8:B10) -> 48 | C12: General | D12: #+00.00 | E12: #+00.00 | G12: General | H12: General | I12: General | J12: General | K12: General | L12: 0.00 | M12: 0.00 | N12: 0.00 | O12: 0.00 | P12: 0.00 | Q12: 0.00 | R12: 0.00 | S12: 0.00 | T12: 0.00 | U12: 0.00 | V12: 0.00 | W12: 0.00 | X12: 0.00 | Y12: 0.00 | Z12: 0.00 | AA12: General | AC12: General | AD12: #+00.00 | AE12: #+00.00 | AF12: General | AG12: General | AH12: General | AI12: General | AJ12: General | AK12: 0.00 | AL12: 0.00 | AM12: 0.00 | AN12: 0.00 | AO12: 0.00 | AP12: 0.00 | AQ12: 0.00 | AR12: 0.00 | AS12: 0.00 | AT12: 0.00 | AU12: 0.00 | AV12: 0.00 | AW12: 0.00 | AX12: 0.00 | AY12: 0.00 | AZ12: General | BB12: 9 | BC12: DLW4 | BD12: DLW4: Dotted Line (White) @ 0.33 | BE12: =1/3 -> 0.3333333333 | BG12: Nonreflective, Preformed Removable Tape
A13: Last Tab DE Starter Row | B13: 57 | C13: 19 | D13: =CELL("width",D13) -> 16 | E13: =CELL("width",E13) -> 16 | G13: =CELL("width",G13) -> 10 | H13: 46 | I13: 4 | J13: 4 | K13: 4 | L13: 10 | M13: 10 | N13: 10 | O13: 10 | P13: 10 | Q13: 10 | R13: 10 | S13: 10 | T13: 10 | U13: 10 | V13: 9 | W13: 9 | X13: 9 | Y13: 9 | Z13: 9 | AA13: 39 | AC13: 19 | AD13: =CELL("width",AD13) -> 0 | AE13: 0 | AF13: 0 | AG13: 46 | AH13: 0 | AI13: 0 | AJ13: 0 | AK13: 0 | AL13: 0 | AM13: 0 | AN13: 0 | AO13: 0 | AP13: 0 | AQ13: 0 | AR13: 0 | AS13: 0 | AT13: 0 | AU13: 9 | AV13: 9 | AW13: 9 | AX13: 9 | AY13: 9 | AZ13: 39 | BB13: new | BC13: DLY4 | BD13: DLY4: Dotted Line (Yellow) @ 0.33 | BE13: =1/3 -> 0.3333333333 | BG13: Removal of Paint
A14: Last Tab TabSheet Starter Row | B14: 15 | C14: A | D14: B | E14: C | G14: D | H14: E | I14: F | J14: G | K14: H | L14: I | M14: J | N14: K | O14: L | P14: M | Q14: N | R14: O | S14: P | T14: Q | U14: R | V14: S | W14: T | X14: U | Y14: V | Z14: W | AA14: X | AC14: =LOWER(C14) -> a | AD14: =LOWER(D14) -> b | AE14: =LOWER(E14) -> c | AF14: =LOWER(G14) -> d | AG14: e | AH14: f | AI14: g | AJ14: h | AK14: i | AL14: j | AM14: k | AN14: l | AO14: m | AP14: n | AQ14: o | AR14: p | AS14: q | AT14: r | AU14: s | AV14: t | AW14: u | AX14: v | AY14: w | AZ14: x | BB14: 7 | BC14: ELW4 | BD14: ELW4: Edge Line Right (White) @ 1.00 | BE14: 1 | BG14: Removal of Permanent Tape
A15: Last Copy Starter Row | B15: 1 | F15: =BB2 -> Old 9001 | H15: =BC2 -> Line Types (See PM-110) | AC15: 108-22 | BB15: 8 | BC15: ELY4 | BD15: ELY4: Edge Line Left (Yellow) @ 1.00 | BE15: 1 | BG15: Removal of Removable Tape
A16: Tab Loop Number | B16: 2 | F16: Detail Number | G16: Key | H16: Description | I16: Factor | J16: 0 | AC16: =B17 -> 2013-04-16 | BB16: new | BC16: LDW8 | BD16: LDW8: Lane Drop (White) @ 0.50 | BE16: 0.5 | BG16: ="Factored Total: "&BG3 -> Factored Total: Waterborne/Solvent Paint | BH16: =SUMIF($H$57:$H$2002,$BG3,L$57:L$2002)*L$43 -> 0 | BI16: =SUMIF($H$57:$H$2002,$BG3,M$57:M$2002)*M$43 -> 14.5292 | BJ16: =SUMIF($H$57:$H$2002,$BG3,N$57:N$2002)*N$43 -> 0 | BK16: =SUMIF($H$57:$H$2002,$BG3,O$57:O$2002)*O$43 -> 33.54335 | BL16: =SUMIF($H$57:$H$2002,$BG3,P$57:P$2002)*P$43 -> 170.62 | BM16: =SUMIF($H$57:$H$2002,$BG3,Q$57:Q$2002)*Q$43 -> 129.6105 | BN16: =SUMIF($H$57:$H$2002,$BG3,R$57:R$2002)*R$43 -> 108.22 | BO16: =SUMIF($H$57:$H$2002,$BG3,S$57:S$2002)*S$43 -> 4.6667 | BP16: =SUMIF($H$57:$H$2002,$BG3,T$57:T$2002)*T$43 -> 49.12 | BQ16: =SUMIF($H$57:$H$2002,$BG3,U$57:U$2002)*U$43 -> 6 | BR16: =SUMIF($H$57:$H$2002,$BG3,V$57:V$2002)*V$43 -> 0 | BS16: =SUMIF($H$57:$H$2002,$BG3,W$57:W$2002)*W$43 -> 0 | BT16: =SUMIF($H$57:$H$2002,$BG3,X$57:X$2002)*X$43 -> 0 | BU16: =SUMIF($H$57:$H$2002,$BG3,Y$57:Y$2002)*Y$43 -> 0 | BV16: =SUMIF($H$57:$H$2002,$BG3,Z$57:Z$2002)*Z$43 -> 0
A17: Revision Date | B17: 2013-04-16 | F17: 2 | G17: BCY4* | H17: BCY4: Broken Centerline (Yellow) @ 0.25 | I17: 0.25 | J17: 0 | AC17: =C44 -> PAVEMENT MARKING LINE TYPES | BB17: new | BC17: MNY4*** | BD17: MNY4: Median Nose (Yellow) @ 1.00 | BE17: 1 | BG17: Factored Total: Highbuild Waterborne Paint | BH17: 0 | BI17: 0 | BJ17: 0 | BK17: 0 | BL17: 0 | BM17: 0 | BN17: 0 | BO17: 0 | BP17: 0 | BQ17: 0 | BR17: 0 | BS17: 0 | BT17: 0 | BU17: 0 | BV17: 0
A18: Tabulation Width | B18: 4 | F18: 6 | G18: BLW4 | H18: BLW4: Broken Lane Line (White) @ 0.25 | I18: 0.25 | J18: 0 | BB18: 5 | BC18: NPY4** | BD18: NPY4: No Passing Zone Line (Yellow) @ 1.25 | BE18: 1.25 | BG18: Factored Total: Durable Paint | BH18: 0 | BI18: 0 | BJ18: 0 | BK18: 0 | BL18: 0 | BM18: 0 | BN18: 0 | BO18: 0 | BP18: 0 | BQ18: 0 | BR18: 0 | BS18: 0 | BT18: 0 | BU18: 0 | BV18: 0
A19: Horizontal Grid Lines | B19: Yes | F19: new | G19: CBW6 | H19: CBW6: Crosswalk Bar (White) @ 15.00 | I19: 15 | J19: 0 | AC19: =C46 -> See PM-110 | BB19: new | BC19: RLW4 | BD19: RLW4: Ramp Edge Line Right (White) @ 1.00 | BE19: 1 | BG19: Factored Total: Permanent Regular Tape | BH19: 0 | BI19: 0 | BJ19: 0 | BK19: 0 | BL19: 0 | BM19: 0 | BN19: 0 | BO19: 0 | BP19: 0 | BQ19: 0 | BR19: 0 | BS19: 0 | BT19: 0 | BU19: 0 | BV19: 0
F20: 11 | G20: CHW8 | H20: CHW8: Channelizing Line (White) @ 2.00 | I20: 2 | J20: 0 | AC20: =C47 -> *BCY4 - Place on the same side of the roadway to match existing markings near the project. | AH20: =I47 -> ***MNY4 - Factor of 1.00 as value includes number of 4-inch passes to cover median nose area. | BB20: new | BC20: RLY4 | BD20: RLY4: Ramp Edge Line Left (Yellow) @ 1.00 | BE20: 1 | BG20: Factored Total: Permanent Preform Polymer Tape | BH20: 0 | BI20: 0 | BJ20: 0 | BK20: 0 | BL20: 0 | BM20: 0 | BN20: 0 | BO20: 0 | BP20: 0 | BQ20: 0 | BR20: 0 | BS20: 0 | BT20: 0 | BU20: 0 | BV20: 0
F21: 12 | G21: CHY8 | H21: CHY8: Channelizing Line (Yellow) @ 2.00 | I21: 2 | J21: 0 | AC21: =C48 -> **NPY4 - For estimating purposes only. No Passing Zone Lines will be located in the field. | BB21: 13 | BC21: SLW2 | BD21: SLW2: Stop Line (White) @ 6.00 | BE21: 6 | BG21: Factored Total: Permanent Profiled Tape | BH21: 0 | BI21: 0 | BJ21: 0 | BK21: 0 | BL21: 0 | BM21: 0 | BN21: 0 | BO21: 0 | BP21: 0 | BQ21: 0 | BR21: 0 | BS21: 0 | BT21: 0 | BU21: 0 | BV21: 0
F22: 14 | G22: CLW6 | H22: CLW6: Crosswalk Line (White) @ 3.00 | I22: 3 | J22: 0 | AC22: =C50 -> BCY4: Broken Centerline (Yellow) @ 0.25 | AG22: =H50 -> DCY4: Double Centerline (Yellow) @ 2.00 | AL22: =L50 -> NPY4: No Passing Zone Line (Yellow) @ 1.25 | AR22: =R50 -> BLW4: Broken Lane Line (White) @ 0.25 | AX22: =X50 -> ELW4: Edge Line Right (White) @ 1.00 | BB22: 13 | BC22: SLW4 | BD22: SLW4: Solid Lane Line (White) @ 1.00 | BE22: 1 | BG22: Factored Total: Permanent Intersection Tape | BH22: 0 | BI22: 0 | BJ22: 0 | BK22: 0 | BL22: 0 | BM22: 0 | BN22: 0 | BO22: 0 | BP22: 0 | BQ22: 0 | BR22: 0 | BS22: 0 | BT22: 0 | BU22: 0 | BV22: 0
F23: 3 | G23: DCY4 | H23: DCY4: Double Centerline (Yellow) @ 2.00 | I23: 2 | J23: 0 | AC23: =C51 -> ELY4: Edge Line Left (Yellow) @ 1.00 | AG23: =H51 -> CHY8: Channelizing Line (Yellow) @ 2.00 | AL23: =L51 -> SLW4: Solid Lane Line (White) @ 1.00 | AR23: =R51 -> CHW8: Channelizing Line (White) @ 2.00 | AX23: =X51 -> SLW2: Stop Line (White) @ 6.00 | BB23: new | BC23: SPW4 | BD23: SPW4: Sloped Curb 4" (White) @ 3.23 | BE23: 3.23 | BG23: Factored Total: Grooves Cut for Pavement Markings | BH23: 0 | BI23: 0 | BJ23: 0 | BK23: 0 | BL23: 0 | BM23: 0 | BN23: 0 | BO23: 0 | BP23: 0 | BQ23: 0 | BR23: 0 | BS23: 0 | BT23: 0 | BU23: 0 | BV23: 0
F24: 18 | G24: DDY4 | H24: DDY4: Double Dotted Line (Yellow) @ 0.67 | I24: 0.6666666667 | J24: 0 | AC24: =C52 ->  | AG24: =H52 ->  | AL24: =L52 ->  | AR24: =R52 ->  | AX24: =X52 ->  | BB24: 16B | BC24: SPW6 | BD24: SPW6: Sloped Curb 6" (White) @ 3.40 | BE24: 3.4 | BG24: Factored Total: Wet Retroreflective Removable Tape | BH24: 0 | BI24: 0 | BJ24: 0 | BK24: 0 | BL24: 0 | BM24: 0 | BN24: 0 | BO24: 0 | BP24: 0 | BQ24: 0 | BR24: 0 | BS24: 0 | BT24: 0 | BU24: 0 | BV24: 0
F25: 9 | G25: DLW4 | H25: DLW4: Dotted Line (White) @ 0.33 | I25: 0.3333333333 | J25: 0 | AC25: =C53 -> Location | AK25: =L53 -> Length by Line Type (Unfactored) | AZ25: =AA53 -> Remarks | BB25: new | BC25: SPY4 | BD25: SPY4: Sloped Curb 4" (Yellow) @ 3.23 | BE25: 3.23 | BG25: Factored Total: Nonreflective, Preformed Removable Tape | BH25: 0 | BI25: 0 | BJ25: 0 | BK25: 0 | BL25: 0 | BM25: 0 | BN25: 0 | BO25: 0 | BP25: 0 | BQ25: 0 | BR25: 0 | BS25: 0 | BT25: 0 | BU25: 0 | BV25: 0
F26: new | G26: DLY4 | H26: DLY4: Dotted Line (Yellow) @ 0.33 | I26: 0.3333333333 | J26: 0 | AC26: =C54 -> Road ID | AD26: =D54 -> Station to Station | AF26: =G54 -> Dir. of Travel | AG26: =H54 -> Marking Type | AH26: =I54 -> Side | AK26: =IF(L54<>"",L54,"") -> BCY4* | AL26: DCY4 | AM26: NPY4** | AN26: BLW4 | AO26: ELW4 | AP26: ELY4 | AQ26: CHY8 | AR26: SLW4 | AS26: CHW8 | AT26: SLW2 | BB26: 15B | BC26: SPY6 | BD26: SPY6: Sloped Curb 6" (Yellow) @ 3.40 | BE26: 3.4 | BG26: Factored Total: Removal of Paint | BH26: 0 | BI26: 0 | BJ26: 0 | BK26: 0 | BL26: 0 | BM26: 0 | BN26: 0 | BO26: 0 | BP26: 0 | BQ26: 0 | BR26: 0 | BS26: 0 | BT26: 0 | BU26: 0 | BV26: 0
F27: 7 | G27: ELW4 | H27: ELW4: Edge Line Right (White) @ 1.00 | I27: 1 | J27: 0 | BB27: 16A | BC27: STW6 | BD27: STW6: Standard Curb 6" (White) @ 3.03 | BE27: 3.03 | BG27: Factored Total: Removal of Permanent Tape | BH27: 0 | BI27: 0 | BJ27: 0 | BK27: 0 | BL27: 0 | BM27: 0 | BN27: 0 | BO27: 0 | BP27: 0 | BQ27: 0 | BR27: 0 | BS27: 0 | BT27: 0 | BU27: 0 | BV27: 0
F28: 8 | G28: ELY4 | H28: ELY4: Edge Line Left (Yellow) @ 1.00 | I28: 1 | J28: 0 | AH28: =I56 -> L | AI28: C | AJ28: R | AK28: STA | AL28: STA | AM28: STA | AN28: STA | AO28: STA | AP28: STA | AQ28: STA | AR28: STA | AS28: STA | AT28: STA | AU28: STA | AV28: STA | AW28: STA | AX28: STA | AY28: STA | BB28: 15A | BC28: STY6 | BD28: STY6: Standard Curb 6" (Yellow) @ 3.03 | BE28: 3.03 | BG28: Factored Total: Removal of Removable Tape | BH28: 0 | BI28: 0 | BJ28: 0 | BK28: 0 | BL28: 0 | BM28: 0 | BN28: 0 | BO28: 0 | BP28: 0 | BQ28: 0 | BR28: 0 | BS28: 0 | BT28: 0 | BU28: 0 | BV28: 0
F29: new | G29: LDW8 | H29: LDW8: Lane Drop (White) @ 0.50 | I29: 0.5 | J29: 0 | BB29: 17 | BC29: YLW2 | BD29: YLW2: Yield Line (White) @ 1.71 | BE29: 1.71 | BG29: Bid Quantity: Painted Pavement Markings, Waterborne or Solvent-Based | BH29: =SUMIF(BH16:BV16,">0",BH16:BV16) -> 516.30975
F30: new | G30: MNY4*** | H30: MNY4: Median Nose (Yellow) @ 1.00 | I30: 1 | J30: 0 | BG30: Bid Quantity: Painted Pavement Markings, Highbuild Waterborne | BH30: 0
F31: 5 | G31: NPY4** | H31: NPY4: No Passing Zone Line (Yellow) @ 1.25 | I31: 1.25 | J31: 0 | BG31: Bid Quantity: Painted Pavement Markings, Durable | BH31: 0
F32: new | G32: RLW4 | H32: RLW4: Ramp Edge Line Right (White) @ 1.00 | I32: 1 | J32: 0 | BG32: Bid Quantity: Permanent Tape Markings, Regular Marking Tape | BH32: 0
F33: new | G33: RLY4 | H33: RLY4: Ramp Edge Line Left (Yellow) @ 1.00 | I33: 1 | J33: 0 | BG33: Bid Quantity: Permanent Tape Markings, Preformed Polymer Marking Material | BH33: 0
F34: 13 | G34: SLW2 | H34: SLW2: Stop Line (White) @ 6.00 | I34: 6 | J34: 0 | BG34: Bid Quantity: Permanent Tape Markings, Profiled Pavement Marking Tape | BH34: 0
F35: 13 | G35: SLW4 | H35: SLW4: Solid Lane Line (White) @ 1.00 | I35: 1 | J35: 0 | BG35: Bid Quantity: Permanent Tape Markings, Intersection Marking Tape | BH35: 0
F36: new | G36: SPW4 | H36: SPW4: Sloped Curb 4" (White) @ 3.23 | I36: 3.23 | J36: 0 | BG36: Bid Quantity: Grooves Cut for Pavement Markings | BH36: 0
F37: 16B | G37: SPW6 | H37: SPW6: Sloped Curb 6" (White) @ 3.40 | I37: 3.4 | J37: 0 | BG37: Bid Quantity: Wet Retroreflective Removable Tape Markings | BH37: 0
F38: new | G38: SPY4 | H38: SPY4: Sloped Curb 4" (Yellow) @ 3.23 | I38: 3.23 | J38: 0 | BG38: Bid Quantity: Removable, Nonreflective, Preformed Tape | BH38: 0
F39: 15B | G39: SPY6 | H39: SPY6: Sloped Curb 6" (Yellow) @ 3.40 | I39: 3.4 | J39: 0 | BG39: Bid Quantity: Pavement Markings Removed | BH39: =SUMIF(BH26:BV26,">0",BH26:BV26)+SUMIF(BH27:BV27,">0",BH27:BV27) -> 0
F40: 16A | G40: STW6 | H40: STW6: Standard Curb 6" (White) @ 3.03 | I40: 3.03 | J40: 0 | BG40: Incidental Removal of Removable Tape | BH40: =SUMIF(BH28:BV28,">0",BH28:BV28) -> 0
F41: 15A | G41: STY6 | H41: STY6: Standard Curb 6" (Yellow) @ 3.03 | I41: 3.03 | J41: 0
F42: 17 | G42: YLW2 | H42: YLW2: Yield Line (White) @ 1.71 | I42: 1.71 | J42: 0
K43: Factors: | L43: =IF(L$54<>"",VLOOKUP(L$54,$BC$4:$BE$29,3,FALSE),0) -> 0.25 | M43: 2 | N43: 1.25 | O43: 0.25 | P43: 1 | Q43: 1 | R43: 2 | S43: 1 | T43: 2 | U43: 6 | V43: 0 | W43: 0 | X43: 0 | Y43: 0 | Z43: 0
C44: PAVEMENT MARKING LINE TYPES
C46: See PM-110
C47: *BCY4 - Place on the same side of the roadway to match existing markings near the project. | I47: ***MNY4 - Factor of 1.00 as value includes number of 4-inch passes to cover median nose area.
C48: **NPY4 - For estimating purposes only. No Passing Zone Lines will be located in the field.
C49: ="This Data Entry Sheet fills Tab "&AC15&" effective "&TEXT(B17,"mm-dd-yy") -> This Data Entry Sheet fills Tab 108-22 effective 04-16-13
C50: =IF(L54<>"",VLOOKUP(L54,BC4:BE29,2,FALSE),"") -> BCY4: Broken Centerline (Yellow) @ 0.25 | H50: =IF(M54<>"",VLOOKUP(M54,BC4:BE29,2,FALSE),"") -> DCY4: Double Centerline (Yellow) @ 2.00 | L50: =IF(N54<>"",VLOOKUP(N54,BC4:BE29,2,FALSE),"") -> NPY4: No Passing Zone Line (Yellow) @ 1.25 | R50: =IF(O54<>"",VLOOKUP(O54,BC4:BE29,2,FALSE),"") -> BLW4: Broken Lane Line (White) @ 0.25 | X50: =IF(P54<>"",VLOOKUP(P54,BC4:BE29,2,FALSE),"") -> ELW4: Edge Line Right (White) @ 1.00
C51: =IF(Q54<>"",VLOOKUP(Q54,BC4:BE29,2,FALSE),"") -> ELY4: Edge Line Left (Yellow) @ 1.00 | H51: =IF(R54<>"",VLOOKUP(R54,BC4:BE29,2,FALSE),"") -> CHY8: Channelizing Line (Yellow) @ 2.00 | L51: =IF(S54<>"",VLOOKUP(S54,BC4:BE29,2,FALSE),"") -> SLW4: Solid Lane Line (White) @ 1.00 | R51: =IF(T54<>"",VLOOKUP(T54,BC4:BE29,2,FALSE),"") -> CHW8: Channelizing Line (White) @ 2.00 | X51: =IF(U54<>"",VLOOKUP(U54,BC4:BE29,2,FALSE),"") -> SLW2: Stop Line (White) @ 6.00
C52: =IF(V54<>"",VLOOKUP(V54,BC4:BE29,2,FALSE),"") ->  | H52: =IF(W54<>"",VLOOKUP(W54,BC4:BE29,2,FALSE),"") ->  | L52: =IF(X54<>"",VLOOKUP(X54,BC4:BE29,2,FALSE),"") ->  | R52: =IF(Y54<>"",VLOOKUP(Y54,BC4:BE29,2,FALSE),"") ->  | X52: =IF(Z54<>"",VLOOKUP(Z54,BC4:BE29,2,FALSE),"") -> 
C53: Location | L53: Length by Line Type (Unfactored) | AA53: Remarks
C54: Road ID | D54: Station to Station | F54: Length (STA) | G54: Dir. of Travel | H54: Marking Type | I54: Side | L54: BCY4* | M54: DCY4 | N54: NPY4** | O54: BLW4 | P54: ELW4 | Q54: ELY4 | R54: CHY8 | S54: SLW4 | T54: CHW8 | U54: SLW2
I56: L | J56: C | K56: R | L56: STA | M56: STA | N56: STA | O56: STA | P56: STA | Q56: STA | R56: STA | S56: STA | T56: STA | U56: STA | V56: STA | W56: STA | X56: STA | Y56: STA | Z56: STA
F57: =(ABS(E57-D57))/100 -> 0
C58: US 63 | D58: 84155 | E58: 85261.01 | F58: =(ABS(E58-D58))/100 -> 11.0601 | G58: NB | H58: Waterborne/Solvent Paint | I58: x | K58: x | P58: =F58 -> 11.0601 | R58: 33.98 | AA58: CHY8 includes median hatching
C59: US 63 | D59: 84669.64 | E59: 85261.01 | F59: =(ABS(E59-D59))/100 -> 5.9137 | G59: NB | H59: Waterborne/Solvent Paint | J59: x | O59: =F59 -> 5.9137
C60: US 63 | D60: 85261.01 | E60: 88110 | F60: =(ABS(E60-D60))/100 -> 28.4899 | G60: NB | H60: Waterborne/Solvent Paint | I60: x | J60: x | K60: x | O60: 28.4899 | P60: =F60 -> 28.4899 | Q60: =F60 -> 28.4899
C61: US 63 | D61: 88110 | E61: 88160 | F61: 0.5 | G61: NB | H61: Waterborne/Solvent Paint | I61: x | J61: x | O61: 0.5 | Q61: =F61 -> 0.5
C62: US 63 | D62: 88240 | E62: 88368 | F62: 1.28 | G62: NB | H62: Waterborne/Solvent Paint | I62: x | J62: x | O62: 1.28 | Q62: =F62 -> 1.28
C63: US 63 | D63: 88368 | E63: 89525.05 | F63: 11.5705 | G63: NB | H63: Waterborne/Solvent Paint | I63: x | J63: x | K63: x | O63: 11.5705 | P63: =F63 -> 11.5705 | Q63: =F63 -> 11.5705
C64: US 63 | D64: 89525.05 | E64: 89675 | F64: 1.4995 | G64: NB | H64: Waterborne/Solvent Paint | I64: x | J64: x | K64: x | O64: 1.4995 | P64: =F64 -> 1.4995 | Q64: =F64 -> 1.4995 | S64: =F64 -> 1.4995
C65: US 63 | D65: 89675 | E65: 89754 | F65: 0.79 | G65: NB | H65: Waterborne/Solvent Paint | J65: x | K65: x | O65: 0.79 | P65: =F65 -> 0.79
C66: US 63 | D66: 89754 | E66: 91298 | F66: 15.44 | G66: NB | H66: Waterborne/Solvent Paint | I66: x | J66: x | K66: x | O66: 15.44 | P66: =F66 -> 15.44 | Q66: =F66 -> 15.44
C67: US 63 | D67: 91298 | E67: 91352 | F67: 0.54 | G67: NB | H67: Waterborne/Solvent Paint | I67: x | J67: x | O67: 0.54 | Q67: =F67 -> 0.54
C68: US 63 | D68: 91352 | E68: 91745 | F68: 3.93 | G68: NB | H68: Waterborne/Solvent Paint | I68: x | J68: x | K68: x | O68: 3.93 | P68: =F68 -> 3.93 | Q68: =F68 -> 3.93
F69: 0
C70: US 63 | D70: 84155 | E70: 84213.64 | F70: 0.5864 | G70: SB | H70: Waterborne/Solvent Paint | I70: x | J70: x | K70: x | P70: =F70 -> 0.5864 | S70: 0.68 | AA70: SLW4 includes left and center
C71: US 63 | D71: 84213.64 | E71: 85313.64 | F71: 11 | G71: SB | H71: Waterborne/Solvent Paint | K71: x | P71: =F71 -> 11 | R71: 20.13 | AA71: CHY8 includes hatching
C72: US 63 | D72: 85261.01 | E72: 85313.64 | F72: 0.5263 | G72: SB | H72: Waterborne/Solvent Paint | I72: x | Q72: =F72 -> 0.5263
C73: US 63 | D73: 84165 | E73: 84213.62 | F73: 0.4862 | G73: SB | H73: Waterborne/Solvent Paint | J73: x | K73: x | P73: =F73 -> 0.4862 | S73: =F73 -> 0.4862
C74: US 63 | D74: 84213.62 | E74: 84944.74 | F74: 7.3112 | G74: SB | H74: Waterborne/Solvent Paint | K74: x | T74: 21.48 | AA74: Includes hatching
C75: US 63 | D75: 84944.78 | E75: 85261.01 | F75: 3.1623 | G75: SB | H75: Waterborne/Solvent Paint | J75: x | K75: x | O75: =F75 -> 3.1623 | P75: =F75 -> 3.1623
C76: US 63 | D76: 85261.01 | E76: 88160 | F76: 28.9899 | G76: SB | H76: Waterborne/Solvent Paint | I76: x | J76: x | K76: x | O76: 28.9899 | P76: =F76 -> 28.9899 | Q76: =F76 -> 28.9899
C77: US 63 | D77: 88160 | E77: 88240 | F77: 0.8 | G77: SB | H77: Waterborne/Solvent Paint | J77: x | K77: x | O77: 0.8 | P77: =F77 -> 0.8
C78: US 63 | D78: 88240 | E78: 88440.1 | F78: 2.001 | G78: SB | H78: Waterborne/Solvent Paint | I78: x | J78: x | K78: x | O78: 2.001 | P78: =F78 -> 2.001 | Q78: =F78 -> 2.001 | S78: =F78 -> 2.001
C79: US 63 | D79: 88440.1 | E79: 89535.08 | F79: 10.9498 | G79: SB | H79: Waterborne/Solvent Paint | I79: x | J79: x | K79: x | O79: 10.9498 | P79: =F79 -> 10.9498 | Q79: 10.9498
C80: US 63 | D80: 89535.08 | E80: 89675 | F80: 1.3992 | G80: SB | H80: Waterborne/Solvent Paint | I80: x | J80: x | O80: 1.3992 | Q80: 1.3992
C81: US 63 | D81: 89754 | E81: 89835 | F81: 0.81 | G81: SB | H81: Waterborne/Solvent Paint | I81: x | J81: x | O81: 0.81 | Q81: 0.81
C82: US 63 | D82: 89835 | E82: 91445.76 | F82: 16.1076 | G82: SB | H82: Waterborne/Solvent Paint | I82: x | J82: x | K82: x | O82: 16.1076 | P82: =F82 -> 16.1076 | Q82: 16.1076
C83: US 63 | D83: 91442.76 | E83: 91593.3 | F83: 1.5054 | G83: SB | H83: Waterborne/Solvent Paint | I83: x | K83: x | P83: =F83 -> 1.5054 | Q83: 1.5054 | T83: 3.08 | AA83: CHW8 includes gore area on ramp
C84: US 63 | D84: 91593.3 | E84: 91745 | F84: 1.517 | G84: SB | H84: Waterborne/Solvent Paint | I84: x | K84: x | P84: =F84 -> 1.517 | Q84: 1.517
F85: 0
C86: US 63 SB Ramp | D86: 91598.09 | E86: 91853.53 | F86: 2.5544 | G86: SB | H86: Waterborne/Solvent Paint | I86: x | K86: x | P86: =F86 -> 2.5544 | Q86: =F86 -> 2.5544
F87: 0
C88: Rabbit Run Rd | D88: 882038 | E88: 882063.59 | F88: 0.2559 | G88: WB | H88: Waterborne/Solvent Paint | K88: x | U88: 0.69
C89: Rabbit Run Rd | D89: 882038 | E89: 882606 | F89: 5.68 | G89: BOTH | H89: Waterborne/Solvent Paint | I89: x | J89: x | K89: x | M89: =F89 -> 5.68 | P89: 13.23
F90: 0
C91: Mary St. | D91: 896815 | E91: 896973.46 | F91: 1.5846 | G91: BOTH | H91: Waterborne/Solvent Paint | I91: x | J91: x | K91: x | M91: =F91 -> 1.5846 | P91: 4.95 | AA91: ELW4 includes returns
C92: Mary St. | D92: 896955.37 | E92: 896962.53 | F92: 0.0716 | G92: EB | H92: Waterborne/Solvent Paint | K92: x | U92: 0.31
F93: 0
F94: 0
F95: 0
F96: 0
F97: 0 | H97: Factored Total: Waterborne/Solvent Paint | L97: =IF(BH16<>0,BH16, "-") -> - | M97: 14.5292 | N97: - | O97: 33.54335 | P97: 170.62 | Q97: 129.6105 | R97: 108.22 | S97: 4.6667 | T97: 49.12 | U97: 6 | V97: - | W97: - | X97: - | Y97: - | Z97: -
F98: 0
F99: 0 | H99: Bid Quantity: Painted Pavement Markings, Waterborne or Solvent-Based | O99: =BH29 -> 516.30975
F100: 0
F101: 0
F102: 0
F103: 0
F104: 0
F105: 0
F106: 0
F107: 0
F108: 0
F109: 0
F110: 0
F111: 0
F112: 0
F113: 0
F114: 0
F115: 0
F116: 0
F117: 0
F118: 0
F119: 0
F120: 0
F121: 0
F122: 0
F123: =(ABS(E123-D123))/100 -> 0
F124: 0
F125: 0
F126: 0
F127: 0
F128: 0
F129: 0
F130: 0
F131: 0
F132: 0
F133: 0
F134: 0
F135: 0
F136: 0
F137: 0
F138: 0
F139: 0
F140: 0
F141: 0
F142: 0
F143: 0
F144: 0
F145: 0
F146: 0
F147: 0
F148: 0
F149: 0
F150: 0
F151: 0
F152: 0
F153: 0
F154: 0
F155: 0
F156: 0
F157: 0
F158: 0
F159: 0
F160: 0
F161: 0
F162: 0
F163: 0
F164: 0
F165: 0
F166: 0
F167: 0
F168: 0
F169: 0
F170: 0
F171: 0
F172: 0
F173: 0
F174: 0
F175: 0
F176: 0
F177: 0
F178: 0
F179: 0
F180: 0
F181: 0
F182: 0
F183: 0
F184: 0
F185: 0
F186: 0
F187: =(ABS(E187-D187))/100 -> 0
F188: 0
F189: 0
F190: 0
F191: 0
F192: 0
F193: 0
F194: 0
F195: 0
F196: 0
F197: 0
F198: 0
F199: 0
F200: 0
F201: 0
F202: 0
... 5800 more rows

Sheet DE108_29
A1: TabTitle | B1: =C16 -> PAVEMENT MARKING SYMBOLS AND LEGENDS
A2: Number of Tab Columns | B2: 27
A3: DE Starter Row Number | B3: 25
A4: TabSheet Starter Row Number | B4: 11
A5: TabSheet Header Row Count | B5: 10
A6: Top Header Cell | B6: AE15
A7: Bottom Header Cell | B7: BE24
A8: DESheet Row Count | B8: 16
A9: Fixed Empty Rows | B9: 5
A10: Usable Empty Rows | B10: 0
A11: Total Rows Placed | B11: 21 | C11: xlLeft(1) | D11: xlRight(1) | E11: xlRight(1) | F11: xlRight(1) | G11: xlRight(1) | H11: xlRight(1) | I11: xlRight(1) | J11: xlRight(1) | K11: xlRight(1) | L11: xlRight(1) | M11: xlRight(1) | N11: xlRight(1) | O11: xlRight(1) | P11: xlRight(1) | Q11: xlRight(1) | R11: xlRight(1) | S11: xlRight(1) | T11: xlRight(1) | U11: xlRight(1) | V11: xlRight(1) | W11: xlRight(1) | X11: xlRight(1) | Y11: xlRight(1) | Z11: xlRight(1) | AA11: xlRight(1) | AB11: xlRight(1) | AC11: xlLeft(1) | AE11: =C11 -> xlLeft(1) | AF11: xlRight(1) | AG11: xlRight(1) | AH11: xlRight(1) | AI11: xlRight(1) | AJ11: xlRight(1) | AK11: xlRight(1) | AL11: xlRight(1) | AM11: xlRight(1) | AN11: xlRight(1) | AO11: xlRight(1) | AP11: xlRight(1) | AQ11: =G11 -> xlRight(1) | AR11: =K11 -> xlRight(1) | AS11: xlRight(1) | AT11: xlRight(1) | AU11: xlRight(1) | AV11: xlRight(1) | AW11: xlRight(1) | AX11: xlRight(1) | AY11: xlRight(1) | AZ11: =X11 -> xlRight(1) | BA11: xlRight(1) | BB11: xlRight(1) | BC11: xlRight(1) | BD11: xlRight(1) | BE11: xlLeft(1)
A12: Total Rows Needed | B12: =SUM(B8:B10) -> 21 | C12: General | D12: #+00.00 | E12: General | F12: 0 | G12: 0 | H12: 0 | I12: 0 | J12: 0 | K12: 0 | L12: 0 | M12: 0 | N12: 0 | O12: 0 | P12: 0 | Q12: 0 | R12: 0 | S12: 0 | T12: 0 | U12: 0 | V12: 0 | W12: 0 | X12: 0 | Y12: 0 | Z12: 0 | AA12: 0 | AB12: 0 | AC12: General | AE12: General | AF12: #+00.00 | AG12: General | AH12: 0 | AI12: 0 | AJ12: 0 | AK12: 0 | AL12: 0 | AM12: 0 | AN12: 0 | AO12: 0 | AP12: 0 | AQ12: =G12 -> 0 | AR12: 0 | AS12: 0 | AT12: 0 | AU12: 0 | AV12: 0 | AW12: 0 | AX12: 0 | AY12: 0 | AZ12: 0 | BA12: 0 | BB12: 0 | BC12: 0 | BD12: 0 | BE12: General
A13: Last Tab DE Starter Row | B13: 25 | C13: =CELL("width", C13) -> 21 | D13: 16 | E13: 5 | F13: 10 | G13: 10 | H13: 10 | I13: 10 | J13: 10 | K13: 10 | L13: 10 | M13: 10 | N13: 10 | O13: 10 | P13: 10 | Q13: 10 | R13: 10 | S13: 10 | T13: 10 | U13: 10 | V13: 10 | W13: 10 | X13: 10 | Y13: 10 | Z13: 10 | AA13: 10 | AB13: 10 | AC13: 33 | AE13: =CELL("width", AE13) -> 0 | AF13: 0 | AG13: 0 | AH13: 0 | AI13: 0 | AJ13: 0 | AK13: 0 | AL13: 0 | AM13: 0 | AN13: 0 | AO13: 0 | AP13: 0 | AQ13: 0 | AR13: 0 | AS13: 0 | AT13: 0 | AU13: 0 | AV13: 0 | AW13: 0 | AX13: 0 | AY13: 0 | AZ13: 0 | BA13: 0 | BB13: 0 | BC13: 0 | BD13: 0 | BE13: 0
A14: Last Tab Tabsheet Starter Row | B14: 11 | C14: A | D14: B | E14: C | F14: D | G14: E | H14: F | I14: G | J14: H | K14: I | L14: J | M14: K | N14: L | O14: M | P14: N | Q14: O | R14: P | S14: Q | T14: R | U14: S | V14: T | W14: U | X14: V | Y14: W | Z14: X | AA14: Y | AB14: Z | AC14: AA | AE14: =LOWER(C14) -> a | AF14: b | AG14: c | AH14: d | AI14: e | AJ14: f | AK14: g | AL14: h | AM14: i | AN14: j | AO14: k | AP14: l | AQ14: m | AR14: n | AS14: o | AT14: p | AU14: q | AV14: r | AW14: s | AX14: t | AY14: u | AZ14: v | BA14: w | BB14: x | BC14: y | BD14: z | BE14: aa
A15: Last Copy Starter Row | B15: 1 | E15: Totals: | F15: =SUBTOTAL(9,F26:F602) -> 0 | G15: 2 | H15: 8 | I15: 0 | J15: 0 | K15: 0 | L15: 0 | M15: 0 | N15: 0 | O15: 0 | P15: 0 | Q15: 0 | R15: 0 | S15: 0 | T15: 0 | U15: 0 | V15: 0 | W15: 0 | X15: 4 | Y15: 0 | Z15: 0 | AA15: 0 | AB15: 0 | AE15: 108-29
A16: Tab Loop Number | B16: 2 | C16: PAVEMENT MARKING SYMBOLS AND LEGENDS | AE16: =B17 -> 2015-04-21
A17: Revision Date | B17: 2015-04-21 | AE17: =$C$16 -> PAVEMENT MARKING SYMBOLS AND LEGENDS
A18: Tabulation Width | B18: 4 | C18: Refer to PM-111
A19: Horizontal Grid Lines | B19: Yes | C19: ="This Data Entry Sheet fills Tab "&AE15&" effective "&TEXT(B17,"mm-dd-yy") -> This Data Entry Sheet fills Tab 108-29 effective 04-21-15 | AE19: =C18 -> Refer to PM-111
C20: Road Identification | D20: Location | AB20: Groove Cuts | AC20: Remarks | AE20: =C20 -> Road Identification | AF20: =D20 -> Location | BD20: =AB20 -> Groove Cuts | BE20: =$AC$20 -> Remarks
D21: Station | E21: Side | AF21: =D21 -> Station | AG21: =E21 -> Side
F24: STAW | G24: RTAW | H24: LTAW | I24: CSRW | J24: CSLW | K24: CSTW | L24: CRLW | M24: FERW | N24: LLRW | O24: RLRW | P24: RRCW | Q24: BLSW | R24: WCSW | S24: WPSB | T24: SCLW | U24: XNGW | V24: STPW | W24: AHDW | X24: ONLW | Y24: BIKW | Z24: LANW | AA24: XITW | AB24: EACH | AH24: =F24 -> STAW | AI24: RTAW | AJ24: LTAW | AK24: CSRW | AL24: CSLW | AM24: CSTW | AN24: CRLW | AO24: FERW | AP24: LLRW | AQ24: RLRW | AR24: RRCW | AS24: BLSW | AT24: WCSW | AU24: WPSB | AV24: SCLW | AW24: XNGW | AX24: STPW | AY24: AHDW | AZ24: ONLW | BA24: BIKW | BB24: LANW | BC24: XITW | BD24: EACH
C26: US 63 SB | D26: 84165 | E26: R | G26: 1
C28: US 63 SB | D28: 88264 | E28: L | H28: 1
C29: US 63 SB | D29: 88299 | E29: L | X29: 1
C30: US 63 SB | D30: 88334 | E30: L | H30: 1
C32: US 63 NB | D32: 89581 | E32: L | H32: 1
C33: US 63 NB | D33: 89616 | E33: L | X33: 1
C34: US 63 NB | D34: 89651 | E34: L | H34: 1
C37: SUBTOTALS: | G37: =SUM(G26:G34) -> 1 | H37: =SUM(H26:H34) -> 4 | X37: =SUM(X26:X34) -> 2
C40: PAINTED SYMBOLS AND LEGENDS: | E40: =SUM(F37:AA37) -> 7 | F40: EACH

Sheet DE110_1
A1: TabTitle | B1: =C16 -> REMOVAL OF PAVEMENT
A2: Number of Tab Columns | B2: 7
A3: DE Starter Row Number | B3: 26
A4: TabSheet Starter Row Number | B4: 12
A5: TabSheet Header Row Count | B5: 11
A6: Top Header Cell | B6: N15
A7: Bottom Header Cell | B7: T25
A8: DESheet Row Count | B8: 31
A9: Fixed Empty Rows | B9: 10
A10: Usable Empty Rows | B10: 0
A11: Total Rows Placed | B11: 41 | C11: xlRight(1) | D11: xlRight(1) | E11: xlCenter | F11: xlCenter | J11: xlRight(1) | K11: xlRight(1) | L11: xlLeft(1) | N11: =C11 -> xlRight(1) | O11: xlRight(1) | P11: xlCenter | Q11: xlCenter | R11: =J11 -> xlRight(1) | S11: xlRight(1) | T11: xlLeft(1)
A12: Total Rows Needed | B12: =SUM(B8:B10) -> 41 | C12: #+00.00 | D12: #+00.00 | E12: General | F12: General | J12: 0.0 | K12: 0.0 | L12: General | N12: #+00.00 | O12: #+00.00 | P12: General | Q12: General | R12: 0.0 | S12: 0.0 | T12: General
A13: Last Tab DE Starter Row | B13: 26 | C13: =CELL("width",C13) -> 16 | D13: =CELL("width",D13) -> 16 | E13: =CELL("width",E13) -> 14 | F13: =CELL("width",F13) -> 14 | J13: =CELL("width",J13) -> 14 | K13: =CELL("width",K13) -> 14 | L13: =CELL("width",L13) -> 65 | N13: =CELL("width",N13) -> 0 | O13: 0 | P13: 0 | Q13: 0 | R13: 0 | S13: 0 | T13: 0
A14: Last Tab Tabsheet Starter Row | B14: 12 | C14: A | D14: B | E14: C | F14: D | J14: E | K14: F | L14: G | N14: =LOWER(C14) -> a | O14: =LOWER(D14) -> b | P14: =LOWER(E14) -> c | Q14: =LOWER(F14) -> d | R14: =LOWER(J14) -> e | S14: =LOWER(K14) -> f | T14: =LOWER(L14) -> g
A15: Last Copy Starter Row | B15: 1 | I15: Totals: | J15: =SUBTOTAL(9,J26:J5998) -> 66705.44913 | N15: 110-1
A16: Tab Loop Number | B16: 2 | C16: REMOVAL OF PAVEMENT | N16: =B17 -> 2013-04-16
A17: Revision Date | B17: 2013-04-16 | N17: =C16 -> REMOVAL OF PAVEMENT
A18: Tabulation Width | B18: 2 | C18: Refer to Tabulation 102-5
A19: Horizontal Grid Lines | B19: Yes | C19: * Not a Bid Item | N19: =C18 -> Refer to Tabulation 102-5
C20: ="This Data Entry Sheet fills Tab "&N15&" effective "&TEXT(B17,"mm-dd-yy") -> This Data Entry Sheet fills Tab 110-1 effective 04-16-13 | N20: =C19 -> * Not a Bid Item
C21: Begin Station | D21: End Station | E21: Side | F21: Pavement Type | G21: Length | H21: Width | I21: Area | J21: Area | K21: Saw Cut* | L21: Remarks | N21: =C21 -> Begin Station | O21: =D21 -> End Station | P21: =E21 -> Side | Q21: =F21 -> Pavement Type | R21: =J21 -> Area | S21: =K21 -> Saw Cut* | T21: =L21 -> Remarks
G25: FT | H25: FT | I25: FT | J25: SY | K25: LF | R25: =J25 -> SY | S25: =K25 -> LF
G26: =ABS(D26-C26) -> 0 | I26: =G26*H26 -> 0 | J26: =IF(I26<>0,I26/9,"") -> 
C27: US 63
C28: 84155 | D28: 84920.4 | E28: BOTH | F28: COMPOSITE | G28: 765.4 | H28: 60 | I28: 45924 | J28: =31680/9 -> 3520 | K28: 60
C29: 84920.4 | D29: 87000.62 | E29: BOTH | F29: COMPOSITE | G29: 2080.22 | H29: =24+8 -> 32 | I29: 66567.04 | J29: 7396.337778 | K29: 64
C30: 87310.53 | D30: 87989.41 | E30: BOTH | F30: COMPOSITE | G30: 678.88 | H30: 32 | I30: 21724.16 | J30: 2413.795556 | K30: 64
C31: 88244 | D31: 89641.54 | E31: BOTH | F31: COMPOSITE | G31: 1397.54 | H31: 32 | I31: 44721.28 | J31: 4969.031111 | K31: 32
C32: 89641.54 | D32: 89926.47 | E32: BOTH | F32: COMPOSITE | G32: 284.93 | H32: 32 | I32: 9117.76 | J32: =12357.2434/9 -> 1373.027044 | L32: (1)
C33: 89926.21 | D33: 90156.42 | E33: NB | F33: COMPOSITE | G33: 230.21 | H33: 28 | I33: 6445.88 | J33: =5571.8614/9 -> 619.0957111
C34: 90156.42 | D34: 91745 | E34: NB | F34: COMPOSITE | G34: 1588.58 | H34: 28 | I34: 44480.24 | J34: 4942.248889 | K34: 28
C35: 89926.21 | D35: 90498.23 | E35: SB | F35: COMPOSITE | G35: 572.02 | H35: 16-28 | I35: =22*G35 -> 12584.44 | J35: =11773.6819/9 -> 1308.186878
C36: 90498.23 | D36: 90950.53 | E36: SB | F36: COMPOSITE | G36: 452.3 | H36: 28 | I36: 12664.4 | J36: 1407.155556
C37: 90950.53 | D37: 91590.2 | E37: SB | F37: COMPOSITE | G37: 639.67 | H37: 28 | I37: 17910.76 | J37: =19161.9295/9 -> 2129.103278 | L37: Includes Gore
C38: 91590.2 | D38: 91745 | E38: SB | F38: COMPOSITE | G38: 154.8 | H38: 28 | I38: 4334.4 | J38: 481.6 | K38: 28
G39: 0 | I39: 0
C40: US 63 SB RAMP
C41: 91598.09 | D41: 91853.53 | E41: SB | F41: COMPOSITE | G41: 255.44 | H41: 14 | I41: 3576.16 | J41: 397.3511111 | K41: 14
G42: 0 | I42: 0
C43: MARY ST | I43: 0
C44: 896815 | D44: 896973.46 | E44: EB/WB | F44: COMPOSITE | G44: 158.46 | H44: 33 | I44: 5229.18 | J44: =5650.5702/9 -> 627.8411333
G45: 0 | I45: 0
C46: RABBIT RUN RD | I46: 0
C47: 89067.16 | D47: 89695.96 | E47: EB/WB | F47: COMPOSITE | G47: 628.8 | H47: 22 | I47: 13833.6 | J47: =15911.5547/9 -> 1767.950522 | K47: 22 | L47: 104' RT. TO 0' RT
G48: 0 | I48: 0
G49: 0 | I49: 0
G50: 0 | I50: 0
C51: TOTALS: | I51: 0 | J51: =SUM(J28:J48) -> 33352.72457 | K51: =SUM(K28:K47) -> 312
G52: 0 | I52: 0
G53: 0 | I53: 0
G54: 0 | I54: 0
C55: NOTE: | I55: 0
C56: (1) Intersection at US 63/ Mary St./ Rabbit Run Rd/ Mary St. returns | I56: 0
G57: 0 | I57: 0
G58: 0 | I58: 0
G59: 0 | I59: 0
G60: 0 | I60: 0
G61: 0 | I61: 0
G62: 0 | I62: 0
G63: 0 | I63: 0
G64: 0 | I64: 0
G65: 0 | I65: 0
G66: 0 | I66: 0
G67: 0 | I67: 0
G68: 0 | I68: 0
G69: 0 | I69: 0
G70: 0 | I70: 0
G71: 0 | I71: 0
G72: 0 | I72: 0
G73: 0 | I73: 0
G74: 0 | I74: 0
G75: 0 | I75: 0
G76: 0 | I76: 0
G77: 0 | I77: 0
G78: 0 | I78: 0
G79: 0 | I79: 0
G80: 0 | I80: 0
G81: 0 | I81: 0
G82: 0 | I82: 0
G83: 0 | I83: 0
G84: 0 | I84: 0
G85: 0 | I85: 0
G86: 0 | I86: 0
G87: 0 | I87: 0
G88: =ABS(D88-C88) -> 0 | I88: =G88*H88 -> 0 | J88: =IF(I88<>0,I88/9,"") -> 
G89: 0 | I89: 0
G90: 0 | I90: 0
G91: 0 | I91: 0
G92: 0 | I92: 0
G93: 0 | I93: 0
G94: 0 | I94: 0
G95: 0 | I95: 0
G96: 0 | I96: 0
G97: 0 | I97: 0
G98: 0 | I98: 0
G99: 0 | I99: 0
G100: 0 | I100: 0
G101: 0 | I101: 0
G102: 0 | I102: 0
G103: 0 | I103: 0
G104: 0 | I104: 0
G105: 0 | I105: 0
G106: 0 | I106: 0
G107: 0 | I107: 0
G108: 0 | I108: 0
G109: 0 | I109: 0
G110: 0 | I110: 0
G111: 0 | I111: 0
G112: 0 | I112: 0
G113: 0 | I113: 0
G114: 0 | I114: 0
G115: 0 | I115: 0
G116: 0 | I116: 0
G117: 0 | I117: 0
G118: 0 | I118: 0
G119: 0 | I119: 0
G120: 0 | I120: 0
G121: 0 | I121: 0
G122: 0 | I122: 0
G123: 0 | I123: 0
G124: 0 | I124: 0
G125: 0 | I125: 0
G126: 0 | I126: 0
G127: 0 | I127: 0
G128: 0 | I128: 0
G129: 0 | I129: 0
G130: 0 | I130: 0
G131: 0 | I131: 0
G132: 0 | I132: 0
G133: 0 | I133: 0
G134: 0 | I134: 0
G135: 0 | I135: 0
G136: 0 | I136: 0
G137: 0 | I137: 0
G138: 0 | I138: 0
G139: 0 | I139: 0
G140: 0 | I140: 0
G141: 0 | I141: 0
G142: 0 | I142: 0
G143: 0 | I143: 0
G144: 0 | I144: 0
G145: 0 | I145: 0
G146: 0 | I146: 0
G147: 0 | I147: 0
G148: 0 | I148: 0
G149: 0 | I149: 0
G150: 0 | I150: 0
G151: 0 | I151: 0
G152: =ABS(D152-C152) -> 0 | I152: =G152*H152 -> 0 | J152: =IF(I152<>0,I152/9,"") -> 
G153: 0 | I153: 0
G154: 0 | I154: 0
G155: 0 | I155: 0
G156: 0 | I156: 0
G157: 0 | I157: 0
G158: 0 | I158: 0
G159: 0 | I159: 0
G160: 0 | I160: 0
G161: 0 | I161: 0
G162: 0 | I162: 0
G163: 0 | I163: 0
G164: 0 | I164: 0
G165: 0 | I165: 0
G166: 0 | I166: 0
G167: 0 | I167: 0
G168: 0 | I168: 0
G169: 0 | I169: 0
G170: 0 | I170: 0
G171: 0 | I171: 0
G172: 0 | I172: 0
G173: 0 | I173: 0
G174: 0 | I174: 0
G175: 0 | I175: 0
G176: 0 | I176: 0
G177: 0 | I177: 0
G178: 0 | I178: 0
G179: 0 | I179: 0
G180: 0 | I180: 0
G181: 0 | I181: 0
G182: 0 | I182: 0
G183: 0 | I183: 0
G184: 0 | I184: 0
G185: 0 | I185: 0
G186: 0 | I186: 0
G187: 0 | I187: 0
G188: 0 | I188: 0
G189: 0 | I189: 0
G190: 0 | I190: 0
G191: 0 | I191: 0
G192: 0 | I192: 0
G193: 0 | I193: 0
G194: 0 | I194: 0
G195: 0 | I195: 0
G196: 0 | I196: 0
G197: 0 | I197: 0
G198: 0 | I198: 0
G199: 0 | I199: 0
G200: 0 | I200: 0
G201: 0 | I201: 0
G202: 0 | I202: 0
G203: 0 | I203: 0
... 5795 more rows

Sheet DE110_5
A1: TabTitle | B1: =C16 -> RECREATIONAL TRAIL REMOVAL
A2: Number of Tab Columns | B2: 5
A3: DE Starter Row Number | B3: 23
A4: TabSheet Starter Row Number | B4: 9
A5: TabSheet Header Row Count | B5: 8
A6: Top Header Cell | B6: L15
A7: Bottom Header Cell | B7: P22
A8: DESheet Row Count | B8: 5
A9: Fixed Empty Rows | B9: 5
A10: Usable Empty Rows | B10: 0
A11: Total Rows Placed | B11: 10 | C11: xlRight(1) | D11: xlRight(1) | H11: xlRight(1) | I11: xlRight(1) | J11: xlLeft(1) | L11: =C11 -> xlRight(1) | M11: =D11 -> xlRight(1) | N11: =H11 -> xlRight(1) | O11: xlRight(1) | P11: xlLeft(1)
A12: Total Rows Needed | B12: =SUM(B8:B10) -> 10 | C12: #+00.00 | D12: #+00.00 | H12: 0.0 | I12: 0.0 | J12: General | L12: =C12 -> #+00.00 | M12: =D12 -> #+00.00 | N12: 0.0 | O12: 0.0 | P12: General
A13: Last Tab DE Starter Row | B13: 23 | C13: =CELL("width",C13) -> 16 | D13: =CELL("width",D13) -> 16 | H13: =CELL("width",H13) -> 10 | I13: =CELL("width",I13) -> 10 | J13: =CELL("width",J13) -> 22 | L13: =CELL("width",L13) -> 0 | M13: =CELL("width",M13) -> 0 | N13: =CELL("width",N13) -> 0 | O13: =CELL("width",O13) -> 0 | P13: =CELL("width",P13) -> 0
A14: Last Tab Tabsheet Starter Row | B14: 9 | C14: A | D14: B | H14: C | I14: D | J14: E | L14: =LOWER(C14) -> a | M14: =LOWER(D14) -> b | N14: =LOWER(H14) -> c | O14: =LOWER(I14) -> d | P14: =LOWER(J14) -> e
A15: Last Copy Starter Row | B15: 1 | G15: Totals: | H15: =SUBTOTAL(9,H23:H6001) -> 4444.444444 | L15: 110-5
A16: Tab Loop Number | B16: 2 | C16: RECREATIONAL TRAIL REMOVAL | L16: =B17 -> 2015-10-20
A17: Revision Date | B17: 2015-10-20 | L17: =C16 -> RECREATIONAL TRAIL REMOVAL
A18: Tabulation Width | B18: 1 | C18: * Not a bid item
A19: Horizontal Grid Lines | B19: Yes | C19: ="This Data Entry Sheet fills Tab "&L15&" effective "&TEXT(B17,"mm-dd-yy") -> This Data Entry Sheet fills Tab 110-5 effective 10-20-15 | L19: =C18 -> * Not a bid item
C20: Begin Station | D20: End Station | E20: Length | F20: Width | G20: Area | H20: Area | I20: Saw Cut* | J20: Remarks | L20: =C20 -> Begin Station | M20: =D20 -> End Station | N20: =H20 -> Area | O20: =I20 -> Saw Cut* | P20: =J20 -> Remarks
E22: FT | F22: FT | G22: SF | H22: SY | I22: LF | N22: =H22 -> SY | O22: =I22 -> LF
E23: =ABS(D23-C23) -> 0 | G23: =F23*E23 -> 0 | H23: =IF(G23<>0,G23/9,"") -> 
C24: 880150 | D24: 88190838 | E24: 2000 | F24: 10 | G24: =F24*E24 -> 20000 | H24: =IF(G24<>0,G24/9,"") -> 2222.222222 | I24: 20 | J24: 0' Lt. to 40' Lt.
E25: =ABS(D25-C25) -> 0 | G25: 0
E26: 0 | G26: 0
C27: TOTALS: | H27: =SUM(H24) -> 2222.222222 | I27: =SUM(I24) -> 20
E28: 0 | G28: 0
E29: 0 | G29: 0
E30: 0 | G30: 0
E31: 0 | G31: 0
E32: 0 | G32: 0
E33: 0 | G33: 0
E34: 0 | G34: 0
E35: 0 | G35: 0
E36: 0 | G36: 0
E37: 0 | G37: 0
E38: 0 | G38: 0
E39: 0 | G39: 0
E40: 0 | G40: 0
E41: 0 | G41: 0
E42: 0 | G42: 0
E43: 0 | G43: 0
E44: 0 | G44: 0
E45: 0 | G45: 0
E46: 0 | G46: 0
E47: 0 | G47: 0
E48: 0 | G48: 0
E49: 0 | G49: 0
E50: 0 | G50: 0
E51: 0 | G51: 0
E52: 0 | G52: 0
E53: 0 | G53: 0
E54: 0 | G54: 0
E55: 0 | G55: 0
E56: 0 | G56: 0
E57: 0 | G57: 0
E58: 0 | G58: 0
E59: 0 | G59: 0
E60: 0 | G60: 0
E61: 0 | G61: 0
E62: 0 | G62: 0
E63: 0 | G63: 0
E64: 0 | G64: 0
E65: 0 | G65: 0
E66: 0 | G66: 0
E67: 0 | G67: 0
E68: 0 | G68: 0
E69: 0 | G69: 0
E70: 0 | G70: 0
E71: 0 | G71: 0
E72: 0 | G72: 0
E73: 0 | G73: 0
E74: 0 | G74: 0
E75: 0 | G75: 0
E76: 0 | G76: 0
E77: 0 | G77: 0
E78: 0 | G78: 0
E79: 0 | G79: 0
E80: 0 | G80: 0
E81: 0 | G81: 0
E82: 0 | G82: 0
E83: 0 | G83: 0
E84: 0 | G84: 0
E85: 0 | G85: 0
E86: 0 | G86: 0
E87: 0 | G87: 0
E88: 0 | G88: =F88*E88 -> 0 | H88: =IF(G88<>0,G88/9,"") -> 
E89: =ABS(D89-C89) -> 0 | G89: 0
E90: 0 | G90: 0
E91: 0 | G91: 0
E92: 0 | G92: 0
E93: 0 | G93: 0
E94: 0 | G94: 0
E95: 0 | G95: 0
E96: 0 | G96: 0
E97: 0 | G97: 0
E98: 0 | G98: 0
E99: 0 | G99: 0
E100: 0 | G100: 0
E101: 0 | G101: 0
E102: 0 | G102: 0
E103: 0 | G103: 0
E104: 0 | G104: 0
E105: 0 | G105: 0
E106: 0 | G106: 0
E107: 0 | G107: 0
E108: 0 | G108: 0
E109: 0 | G109: 0
E110: 0 | G110: 0
E111: 0 | G111: 0
E112: 0 | G112: 0
E113: 0 | G113: 0
E114: 0 | G114: 0
E115: 0 | G115: 0
E116: 0 | G116: 0
E117: 0 | G117: 0
E118: 0 | G118: 0
E119: 0 | G119: 0
E120: 0 | G120: 0
E121: 0 | G121: 0
E122: 0 | G122: 0
E123: 0 | G123: 0
E124: 0 | G124: 0
E125: 0 | G125: 0
E126: 0 | G126: 0
E127: 0 | G127: 0
E128: 0 | G128: 0
E129: 0 | G129: 0
E130: 0 | G130: 0
E131: 0 | G131: 0
E132: 0 | G132: 0
E133: 0 | G133: 0
E134: 0 | G134: 0
E135: 0 | G135: 0
E136: 0 | G136: 0
E137: 0 | G137: 0
E138: 0 | G138: 0
E139: 0 | G139: 0
E140: 0 | G140: 0
E141: 0 | G141: 0
E142: 0 | G142: 0
E143: 0 | G143: 0
E144: 0 | G144: 0
E145: 0 | G145: 0
E146: 0 | G146: 0
E147: 0 | G147: 0
E148: 0 | G148: 0
E149: 0 | G149: 0
E150: 0 | G150: 0
E151: 0 | G151: 0
E152: 0 | G152: =F152*E152 -> 0 | H152: =IF(G152<>0,G152/9,"") -> 
E153: =ABS(D153-C153) -> 0 | G153: 0
E154: 0 | G154: 0
E155: 0 | G155: 0
E156: 0 | G156: 0
E157: 0 | G157: 0
E158: 0 | G158: 0
E159: 0 | G159: 0
E160: 0 | G160: 0
E161: 0 | G161: 0
E162: 0 | G162: 0
E163: 0 | G163: 0
E164: 0 | G164: 0
E165: 0 | G165: 0
E166: 0 | G166: 0
E167: 0 | G167: 0
E168: 0 | G168: 0
E169: 0 | G169: 0
E170: 0 | G170: 0
E171: 0 | G171: 0
E172: 0 | G172: 0
E173: 0 | G173: 0
E174: 0 | G174: 0
E175: 0 | G175: 0
E176: 0 | G176: 0
E177: 0 | G177: 0
E178: 0 | G178: 0
E179: 0 | G179: 0
E180: 0 | G180: 0
E181: 0 | G181: 0
E182: 0 | G182: 0
E183: 0 | G183: 0
E184: 0 | G184: 0
E185: 0 | G185: 0
E186: 0 | G186: 0
E187: 0 | G187: 0
E188: 0 | G188: 0
E189: 0 | G189: 0
E190: 0 | G190: 0
E191: 0 | G191: 0
E192: 0 | G192: 0
E193: 0 | G193: 0
E194: 0 | G194: 0
E195: 0 | G195: 0
E196: 0 | G196: 0
E197: 0 | G197: 0
E198: 0 | G198: 0
E199: 0 | G199: 0
E200: 0 | G200: 0
E201: 0 | G201: 0
... 5800 more rows

Sheet DE110_7A
A1: TabTitle | B1: =C16 -> REMOVAL OF STEEL BEAM GUARDRAIL
A2: Number of Tab Columns | B2: 6
A3: DE Starter Row Number | B3: 29
A4: TabSheet Starter Row Number | B4: 15
A5: TabSheet Header Row Count | B5: 14
A6: Top Header Cell | B6: J15
A7: Bottom Header Cell | B7: O28
A8: DESheet Row Count | B8: 13
A9: Fixed Empty Rows | B9: 6
A10: Usable Empty Rows | B10: 0
A11: Total Rows Placed | B11: 19 | C11: xlCenter | D11: xlCenter | E11: xlRight(1) | F11: xlRight(1) | G11: xlCenter | H11: xlRight(1) | J11: =C11 -> xlCenter | K11: xlCenter | L11: xlRight(1) | M11: xlRight(1) | N11: xlCenter | O11: xlRight(1)
A12: Total Rows Needed | B12: =SUM(B8:B10) -> 19 | C12: General | D12: General | E12: #+00.00 | F12: #+00.00 | G12: General | H12: 0.0 | J12: General | K12: General | L12: #+00.00 | M12: #+00.00 | N12: General | O12: 0.0
A13: Last Tab DE Starter Row | B13: 29 | C13: =CELL("width",C13) -> 6 | D13: 7 | E13: 16 | F13: 16 | G13: 7 | H13: 21 | J13: =CELL("width",J13) -> 0 | K13: 0 | L13: 0 | M13: 0 | N13: 0 | O13: 0
A14: Last Tab Tabsheet Starter Row | B14: 15 | C14: A | D14: B | E14: C | F14: D | G14: E | H14: F | J14: =LOWER(C14) -> a | K14: b | L14: c | M14: d | N14: e | O14: f
A15: Last Copy Starter Row | B15: 1 | G15: Totals: | H15: =SUBTOTAL(9,H29:H6000) -> 6865.64 | J15: 110-7A
A16: Tab Loop Number | B16: 2 | C16: REMOVAL OF STEEL BEAM GUARDRAIL | J16: =B17 -> 2012-04-17
A17: Revision Date | B17: 2012-04-17 | J17: =C16 -> REMOVAL OF STEEL BEAM GUARDRAIL
A18: Tabulation Width | B18: 1
A19: Horizontal Grid Lines | B19: Yes | C19: Lane(s) to which the installation is adjacent.
C20: Includes length of End Terminals and End Anchors. | J20: =C19 -> Lane(s) to which the installation is adjacent.
C21: ="This Data Entry Sheet fills Tab "&J15&" effective "&TEXT(B17,"mm-dd-yy") -> This Data Entry Sheet fills Tab 110-7A effective 04-17-12 | J21: =C20 -> Includes length of End Terminals and End Anchors.
C22: Location | H22: Removal of Guardrail | J22: =C22 -> Location | O22: =H22 -> Removal of Guardrail
C23: No. | D23: Direction of Traffic | E23: Station to Station | G23: Side | J23: =C23 -> No. | K23: =D23 -> Direction of Traffic | L23: =E23 -> Station to Station | N23: =G23 -> Side
H28: LF | O28: =H28 -> LF
C30: US 63
D31: NB | E31: 86956.22 | F31: 87099.04 | G31: Rt. | H31: =F31-E31 -> 142.82
D32: NB | E32: 87198.09 | F32: 87975.36 | G32: Rt. | H32: 777.27
D33: NB | E33: 88231.08 | F33: 88989.94 | G33: Rt. | H33: 758.86
D35: SB | E35: 86970.93 | F35: 87090.45 | G35: Rt. | H35: =F35-E35 -> 119.52
D36: SB | E36: 87191.88 | F36: 88000.9 | G36: Rt. | H36: =F36-E36 -> 809.02
D37: SB | E37: 88256.63 | F37: 89000.22 | G37: Rt. | H37: 743.59
D38: SB | E38: 89791.9 | F38: 89873.64 | G38: Rt. | H38: 81.74
C41: TOTAL: | H41: =SUM(H31:H38) -> 3432.82

Sheet DE111_25
A1: TabTitle | B1: =C15 -> INDEX OF TABULATIONS
A2: Number of Tab Columns | B2: 3
A3: DE Starter Row Number | B3: 20
A4: TabSheet Starter Row Number | B4: 7
A5: TabSheet Header Row Count | B5: 6
A6: Top Header Cell | B6: G15
A7: Bottom Header Cell | B7: I20
A8: DESheet Row Count | B8: 27
A9: Fixed Empty Rows | B9: 10
A10: Usable Empty Rows | B10: 0
A11: Total Rows Placed | B11: 37 | C11: xlLeft(1) | D11: xlLeft(1) | E11: xlLeft(1) | G11: =C11 -> xlLeft(1) | H11: =D11 -> xlLeft(1) | I11: xlLeft(1)
A12: Total Rows Needed | B12: =SUM(B8:B10) -> 37 | C12: General | D12: General | E12: General | G12: =C12 -> General | H12: General | I12: General
A13: Last Tab DE Starter Row | B13: 20 | C13: =CELL("width",C13) -> 13 | D13: =CELL("width",D13) -> 128 | E13: =CELL("width",E13) -> 15 | G13: =CELL("width",G13) -> 0 | H13: =CELL("width",H13) -> 0 | I13: =CELL("width",I13) -> 0
A14: Last Tab TabSheet Starter Row | B14: 7 | C14: A | D14: B | E14: C | G14: =LOWER(C14) -> a | H14: =LOWER(D14) -> b | I14: =LOWER(E14) -> c
A15: Last Copy Starter Row | B15: 1 | C15: INDEX OF TABULATIONS | G15: 111-25
A16: Tab Loop Number | B16: 2 | G16: =B17 -> 2011-10-18
A17: Revision Date | B17: 2011-10-18 | C17: ="This Data Entry Sheet fills Tab "&G15&" effective "&TEXT(B17,"mm-dd-yy") -> This Data Entry Sheet fills Tab 111-25 effective 10-18-11 | G17: =C15 -> INDEX OF TABULATIONS
A18: Tabulation Width | B18: 2 | C18: Tabulation | D18: Tabulation Title | E18: Sheet No.
A19: Horizontal Grid Lines | B19: Yes | G19: =C18 -> Tabulation | H19: =D18 -> Tabulation Title | I19: =E18 -> Sheet No.
C20: C Sheets
C21: 100-1A | D21: ESTIMATED PROJECT QUANTITIES (1 DIVISION PROJECT) | E21: C.1
C22: 100-1D | D22: PROJECT DESCRIPTION | E22: C.1
C23: 100-4A | D23: ESTIMATE REFERENCE INFORMATION | E23: C.1 - C.2
C24: 100-24 | D24: PCC PAVEMENT | E24: C.7
C25: 100-27 | D25: PROPOSED POSTED SPEED LIMIT | E25: C.8
C26: 102-3 | D26: ACCESS POINTS AND SAFETY RAMPS | E26: C.5
C27: 102-4 | D27: LOCATIONS OF ROAD CLOSURE BARRICADES | E27: C.5
C28: 102-5 | D28: EXISTING PAVEMENT | E28: C.4
C29: 103-11 | D29: SELECT TREATMENT | E29: C.6
C30: 104-14M | D30: LINEAR TRENCH DRAIN | E30: C.12
C31: 104-8A | D31: SCOUR PROTECTION OR ROCK FLUME FOR BRIDGE END DRAIN | E31: C.12
C32: 105-4 | D32: STANDARD ROAD PLANS | E32: C.3
C33: 107-23 | D33: GRADING FOR GUARDRAIL INSTALLATIONS | E33: C.11
C34: 108-8A | D34: STEEL BEAM GUARDRAIL AT CONCRETE BARRIER OR BRIDGE RAIL END SECTION | E34: C.11
C35: 108-8C | D35: STEEL BEAM GUARDRAIL FOR SIDE OBSTACLE (ONE-WAY PROTECTION) | E35: C.11
C36: 108-13A | D36: SAFETY CLOSURES | E36: C.5
C37: 108-22 | D37: PAVEMENT MARKING LINE TYPES | E37: C.13
C38: 108-29 | D38: PAVEMENT MARKING SYMBOLS AND LEGENDS | E38: C.14
C39: 110-1 | D39: REMOVAL OF PAVEMENT | E39: C.4
C40: 110-5 | D40: RECREATIONAL TRAIL REMOVAL | E40: C.4
C41: 110-7A | D41: REMOVAL OF STEEL BEAM GUARDRAIL | E41: C.4
C42: 111-25 | D42: INDEX OF TABULATIONS | E42: C.3
C43: 112-5 | D43: CONCRETE MEDIANS | E43: C.10
C44: 112-9M | D44: SHOULDERS | E44: C.9
C45: 112-10 | D45: MILLED RUMBLE STRIPS | E45: C.10
C46: 113-3M | D46: RECREATIONAL TRAIL PAVEMENT | E46: C.8

Sheet DE112_5
A1: TabTitle | B1: =C16 -> CONCRETE MEDIANS
A2: Number of Tab Columns | B2: 7
A3: DE Starter Row Number | B3: 23
A4: TabSheet Starter Row Number | B4: 9
A5: TabSheet Header Row Count | B5: 8
A6: Top Header Cell | B6: K15
A7: Bottom Header Cell | B7: Q22
A8: DESheet Row Count | B8: 9
A9: Fixed Empty Rows | B9: 10
A10: Usable Empty Rows | B10: 0
A11: Total Rows Placed | B11: 19 | C11: xlRight(1) | D11: xlRight(1) | E11: xlRight(1) | F11: xlRight(1) | G11: xlRight(1) | H11: xlRight(1) | I11: xlLeft(1) | K11: =C11 -> xlRight(1) | L11: =D11 -> xlRight(1) | M11: xlRight(1) | N11: xlRight(1) | O11: xlRight(1) | P11: xlRight(1) | Q11: xlLeft(1)
A12: Total Rows Needed | B12: =SUM(B8:B10) -> 19 | C12: #+00.00 | D12: #+00.00 | E12: 0.0 | F12: 0.0 | G12: 0.0 | H12: 0.0 | I12: General | K12: =C12 -> #+00.00 | L12: #+00.00 | M12: 0.0 | N12: 0.0 | O12: 0.0 | P12: 0.0 | Q12: General
A13: Last Tab DE Starter Row | B13: 23 | C13: =CELL("width",C13) -> 16 | D13: =CELL("width",D13) -> 16 | E13: =CELL("width",E13) -> 26 | F13: =CELL("width",F13) -> 12 | G13: =CELL("width",G13) -> 12 | H13: 12 | I13: =CELL("width",I13) -> 60 | K13: =CELL("width",K13) -> 0 | L13: =CELL("width",L13) -> 0 | M13: 0 | N13: 0 | O13: 0 | P13: 0 | Q13: 0
A14: Last Tab Tabsheet Starter Row | B14: 9 | C14: A | D14: B | E14: C | F14: D | G14: E | H14: F | I14: G | K14: =LOWER(C14) -> a | L14: =LOWER(D14) -> b | M14: c | N14: d | O14: e | P14: f | Q14: g
A15: Last Copy Starter Row | B15: 1 | E15: Totals: | F15: =SUBTOTAL(9,F23:F6000) -> 15237.79709 | G15: =SUBTOTAL(9,G23:G6000) -> 0 | H15: =SUBTOTAL(9,H23:H6000) -> 4232.721414 | K15: 112-5 | S15: =E20 -> Type
A16: Tab Loop Number | B16: 2 | C16: CONCRETE MEDIANS | K16: =B17 -> 2015-10-20 | S16: X inch
A17: Revision Date | B17: 2015-10-20 | K17: =C16 -> CONCRETE MEDIANS | S17: X inch, dowelled
A18: Tabulation Width | B18: 2 | C18: * Bid item
A19: Horizontal Grid Lines | B19: Yes | C19: ="This Data Entry Sheet fills Tab "&K15&" effective "&TEXT(B17,"mm-dd-yy") -> This Data Entry Sheet fills Tab 112-5 effective 10-20-15 | K19: =C18 -> * Bid item
C20: Begin Station | D20: End Station | E20: Type | F20: Area* | G20: Modified Subbase | H20: Special Backfill | I20: Remarks | K20: =C20 -> Begin Station | L20: =D20 -> End Station | M20: =E20 -> Type | N20: =F20 -> Area* | O20: =G20 -> Modified Subbase | P20: Special Backfill | Q20: =I20 -> Remarks
F22: SY | G22: CY | H22: CY | N22: =F22 -> SY | O22: =G22 -> CY | P22: CY
C24: 85261.95 | D24: 87000.62 | E24: 6 inch | F24: =16539.9897/9 -> 1837.776633 | H24: =F24*(10/36) -> 510.4935093
C25: 87310.53 | D25: 88160 | E25: 6 inch | F25: =8483.9779/9 -> 942.6642111 | H25: =F25*(10/36) -> 261.8511698
C26: 88240 | D26: 89675 | E26: 6 inch | F26: =11887.8135/9 -> 1320.868167 | H26: 366.9078241
C27: 89755 | D27: 91745 | E27: 6 inch | F27: =27657.6129/9 -> 3073.0681 | H27: 853.6300278
C28: 91745 | D28: 92007.35 | E28: 6 inch | F28: =4000.6929/9 -> 444.5214333 | H28: 123.4781759
C31: TOTALS: | F31: =SUM(F24:F28) -> 7618.898544 | H31: =SUM(H24:H28) -> 2116.360707

Sheet DE112_9M
A1: TabTitle | B1: =C16 -> SHOULDERS
A2: Number of Tab Columns | B2: 25
A3: DE Starter Row Number | B3: 32
A4: TabSheet Starter Row Number | B4: 18
A5: TabSheet Header Row Count | B5: 17
A6: Top Header Cell | B6: AM15
A7: Bottom Header Cell | B7: BK31
A8: DESheet Row Count | B8: 67
A9: Fixed Empty Rows | B9: 5
A10: Usable Empty Rows | B10: 0
A11: Total Rows Placed | B11: 72 | C11: xlLeft(1) | D11: xlCenter | E11: xlRight(1) | F11: xlRight(1) | G11: xlCenter | J11: xlRight(1) | M11: xlRight(1) | N11: xlRight(1) | P11: xlRight(1) | Q11: xlRight(1) | R11: xlRight(1) | S11: xlRight(1) | T11: xlRight(1) | U11: xlRight(1) | X11: xlRight(1) | Y11: xlRight(1) | Z11: xlRight(1) | AA11: xlRight(1) | AB11: xlRight(1) | AD11: xlRight(1) | AE11: xlRight(1) | AH11: xlRight(1) | AI11: xlRight(1) | AJ11: xlRight(1) | AK11: xlLeft(1) | AM11: =C11 -> xlLeft(1) | AN11: xlCenter | AO11: xlRight(1) | AP11: xlRight(1) | AQ11: xlCenter | AR11: =J11 -> xlRight(1) | AS11: =M11 -> xlRight(1) | AT11: =N11 -> xlRight(1) | AU11: =P11 -> xlRight(1) | AV11: xlRight(1) | AW11: xlRight(1) | AX11: xlRight(1) | AY11: =T11 -> xlRight(1) | AZ11: xlRight(1) | BA11: =X11 -> xlRight(1) | BB11: xlRight(1) | BC11: xlRight(1) | BD11: xlRight(1) | BE11: xlRight(1) | BF11: =AD11 -> xlRight(1) | BG11: =AE11 -> xlRight(1) | BH11: =AH11 -> xlRight(1) | BI11: xlRight(1) | BJ11: xlRight(1) | BK11: xlLeft(1)
A12: Total Rows Needed | B12: =SUM(B8:B10) -> 72 | C12: general | D12: general | E12: #+00.00 | F12: #+00.00 | G12: general | J12: 0.0 | M12: 0.0 | N12: 0.0 | P12: 0.000 | Q12: 0.000 | R12: 0.000 | S12: 0.0 | T12: 0.0 | U12: 0.0 | X12: 0.000 | Y12: 0.000 | Z12: 0.000 | AA12: 0.000 | AB12: 0.0 | AD12: 0.000 | AE12: 0.000 | AH12: 0.0 | AI12: 0.0 | AJ12: 0.0 | AK12: general | AM12: general | AN12: general | AO12: #+00.00 | AP12: #+00.00 | AQ12: general | AR12: =J12 -> 0.0 | AS12: =M12 -> 0.0 | AT12: =N12 -> 0.0 | AU12: 0.000 | AV12: 0.000 | AW12: 0.000 | AX12: 0.0 | AY12: 0.0 | AZ12: 0.0 | BA12: 0.000 | BB12: 0.000 | BC12: 0.000 | BD12: 0.000 | BE12: 0.0 | BF12: =AD12 -> 0.000 | BG12: =AE12 -> 0.000 | BH12: 0.0 | BI12: 0.0 | BJ12: 0.0 | BK12: general
A13: Last Tab DE Starter Row | B13: 32 | C13: =CELL("width",C13) -> 22 | D13: =CELL("width",D13) -> 7 | E13: =CELL("width",E13) -> 16 | F13: =CELL("width",F13) -> 16 | G13: =CELL("width",G13) -> 5 | J13: =CELL("width",J13) -> 16 | M13: =CELL("width",M13) -> 12 | N13: =CELL("width",N13) -> 12 | P13: =CELL("width",P13) -> 10 | Q13: 10 | R13: 12 | S13: 11 | T13: 14 | U13: 13 | X13: =CELL("width",X13) -> 12 | Y13: =CELL("width",Y13) -> 12 | Z13: =CELL("width",Z13) -> 12 | AA13: =CELL("width",AA13) -> 12 | AB13: =CELL("width",AB13) -> 11 | AD13: =CELL("width",AD13) -> 12 | AE13: =CELL("width",AE13) -> 12 | AH13: =CELL("width",AH13) -> 11 | AI13: =CELL("width",AI13) -> 10 | AJ13: =CELL("width",AJ13) -> 10 | AK13: =CELL("width",AK13) -> 14 | AM13: =CELL("width",AM13) -> 0 | AN13: 0 | AO13: 0 | AP13: 0 | AQ13: 0 | AR13: 14 | AS13: 0 | AT13: 0 | AU13: 0 | AV13: 0 | AW13: 0 | AX13: 0 | AY13: 0 | AZ13: 0 | BA13: 0 | BB13: 0 | BC13: 0 | BD13: 0 | BE13: 0 | BF13: 0 | BG13: 0 | BH13: 0 | BI13: 0 | BJ13: 0 | BK13: 0
A14: Last Tab Tabsheet Starter Row | B14: 18 | C14: A | D14: B | E14: C | F14: D | G14: E | J14: F | M14: G | N14: H | P14: I | Q14: J | R14: K | S14: L | T14: M | U14: N | X14: O | Y14: P | Z14: Q | AA14: R | AB14: S | AD14: T | AE14: U | AH14: V | AI14: W | AJ14: X | AK14: Y | AM14: =LOWER(C14) -> a | AN14: =LOWER(D14) -> b | AO14: =LOWER(E14) -> c | AP14: =LOWER(F14) -> d | AQ14: =LOWER(G14) -> e | AR14: =LOWER(J14) -> f | AS14: =LOWER(M14) -> g | AT14: =LOWER(N14) -> h | AU14: =LOWER(P14) -> i | AV14: j | AW14: k | AX14: l | AY14: m | AZ14: n | BA14: =LOWER(X14) -> o | BB14: =LOWER(X14) -> o | BC14: =LOWER(Y14) -> p | BD14: =LOWER(Z14) -> q | BE14: =LOWER(AA14) -> r | BF14: =LOWER(AD14) -> t | BG14: =LOWER(AE14) -> u | BH14: =LOWER(AH14) -> v | BI14: =LOWER(AI14) -> w | BJ14: =LOWER(AJ14) -> x | BK14: =LOWER(AK14) -> y
A15: Last Copy Starter Row | B15: 1 | N15: Totals: | S15: =SUBTOTAL(9,S32:S5997) -> 26946.05509 | T15: =SUBTOTAL(9,T32:T5997) -> 0 | U15: =SUBTOTAL(9,U32:U5997) -> 24270.56 | X15: =SUBTOTAL(9,X32:X5997) -> 0 | Z15: =SUBTOTAL(9,Z32:Z5997) -> 0 | AB15: =SUBTOTAL(9,AB32:AB5997) -> 70.24721974 | AD15: =SUBTOTAL(9,AD32:AD5997) -> 2260.720158 | AH15: =SUBTOTAL(9,AH32:AH5997) -> 568.1782 | AI15: =SUBTOTAL(9,AI32:AI5997) -> 0 | AJ15: =SUBTOTAL(9,AJ32:AJ5997) -> 7903.056783 | AM15: 112-9M
A16: Tab Loop Number | B16: 2 | C16: SHOULDERS | AM16: =B17 -> MODIFIED
A17: Revision Date | B17: MODIFIED | AM17: =C16 -> SHOULDERS
A18: Tabulation Width | B18: 4 | C18: Lane(s) to which the shoulder is adjacent.
A19: Horizontal Grid Lines | B19: Yes | C19: Bid Item | AM19: =C18 -> Lane(s) to which the shoulder is adjacent.
C20: Applies only for Paved Shoulders constructed on project with existing granular shoulders. | AM20: =C19 -> Bid Item
C21: Does not include shrink. | AM21: =C20 -> Applies only for Paved Shoulders constructed on project with existing granular shoulders.
AM22: =C21 -> Does not include shrink.
C23: Calculations assume a HMA unit weight (lbs/cf) of | G23: 145 | J23: , a Special Backfill unit weight (lbs/cf) of | N23: 140 | P23: ,and a Granular Shoulder unit weight(lbs/cf) of | U23: 140
C24: ="This Data Entry Sheet fills Tab "&AM15&" effective "&TEXT(B17,"mm-dd-yy") -> This Data Entry Sheet fills Tab 112-9M effective MODIFIED | AM24: =C23&G23&J23&N23&P23&U23 -> Calculations assume a HMA unit weight (lbs/cf) of 145, a Special Backfill unit weight (lbs/cf) of 140 ,and a Granular Shoulder unit weight(lbs/cf) of 140
C25: Location | AK25: Remarks | AM25: =C25 -> Location | BK25: =AK25 -> Remarks
C26: Road Identification | D26: Direction Of Traffic | E26: Station to Station | G26: Side O/M | O26: HMA Cross Section Area | P26: Hot Mix Asphalt | R26: Paved Shoulder 6" | S26: Paved Shoulder 10" | T26: Curb Type | U26: Curb Length | V26: Special Backfill Cross Section Area (HMA) | W26: Special Backfill Cross Section Area (PCC) | X26: Special Backfill | AB26: Special Backfill | AC26: Granular Shoulder Cross Section Area | AD26: Granular Shoulder | AF26: Earth Shoulder Construction Cross Section Area (HMA) | AG26: Earth Shoulder Construction Cross Section Area (PCC) | AH26: Earth Shoulder Construction Alternates | AM26: =C26 -> Road Identification | AN26: =D26 -> Direction Of Traffic | AO26: =E26 -> Station to Station | AQ26: =G26 -> Side O/M | AU26: =P26 -> Hot Mix Asphalt | AW26: Paved Shoulder 6" | AX26: =S26 -> Paved Shoulder 10" | AY26: =T26 -> Curb Type | AZ26: =U26 -> Curb Length | BA26: =X26 -> Special Backfill | BE26: =AB26 -> Special Backfill | BF26: =AD26 -> Granular Shoulder | BH26: =AH26 -> Earth Shoulder Construction Alternates
H28: Start | I28: End | J28: Width | K28: Start | L28: End | M28: Width | N28: Length | AR28: =J28 -> Width | AS28: =M28 -> Width | AT28: =N28 -> Length
X29: HMA Alternate | Z29: PCC Alternate | AH29: STA | AI29: HMA | AJ29: PCC | BA29: =X29 -> HMA Alternate | BC29: =Z29 -> PCC Alternate | BH29: =AH29 -> STA | BI29: =AI29 -> HMA | BJ29: =AJ29 -> PCC
H30: FT | I30: FT | J30: FT | K30: FT | L30: FT | M30: FT | N30: FT | P30: TON | Q30: TON/STA | R30: SY | S30: SY | T30: 6" | U30: FT | X30: TON | Y30: TON/STA | Z30: TON | AA30: TON/STA | AB30: CY | AD30: TON | AE30: TON/STA | AI30: CY | AJ30: CY | AR30: =J30 -> FT | AS30: =M30 -> FT | AT30: =N30 -> FT | AU30: =P30 -> TON | AV30: TON/STA | AW30: SY | AX30: SY | AY30: 6" | AZ30: FT | BA30: =X30 -> TON | BB30: =Y30 -> TON/STA | BC30: =Z30 -> TON | BD30: =AA30 -> TON/STA | BE30: =AB30 -> CY | BF30: =AD30 -> TON | BG30: =AE30 -> TON/STA | BI30: =AI30 -> CY | BJ30: =AJ30 -> CY
O31: SF | V31: SF | W31: SF | AC31: SF | AF31: SF | AG31: SF
J32: =IF(H32<>"",IF(H32=I32,(H32+I32)/2,H32&" to "&I32),"") ->  | M32: =IF(K32<>"",IF(K32=L32,(K32+L32)/2,K32&" to "&L32),"") ->  | N32: =IF(E32+F32=0,"",ABS(F32-E32)) ->  | P32: =IF(O32="","",O32*N32*$G$23/2000) ->  | Q32: =IF(O32="","",O32*100*$G$23/2000) ->  | R32: =IF(P32<>"",P32*0.06,"") ->  | S32: =IF(H32<>"",((H32+I32)/2)*N32/9,"") ->  | X32: =IF(V32="","",V32*N32*$N$23/2000) ->  | Y32: =IF(V32="","",V32*100*$N$23/2000) ->  | Z32: =IF(W32="","",W32*N32*$N$23/2000) ->  | AA32: =IF(W32="","",W32*100*$N$23/2000) ->  | AD32: =IF(AC32="","",AC32*N32*$S$23/2000) ->  | AE32: =IF(AC32="","",AC32*100*$S$23/2000) ->  | AH32: =IF(N32="","",N32/100) ->  | AI32: =IF(AF32=0,"",(AF32*N32)/27) ->  | AJ32: =IF(AG32=0,"",(AG32*N32)/27) -> 
C33: US 63 | D33: NB | E33: 84155 | F33: 86926.89 | G33: Out | H33: 4 | I33: 4 | J33: 4 | K33: 4 | L33: 4 | M33: 4 | N33: 2771.89 | S33: =IF(H33<>"",((H33+I33)/2)*N33/9,"") -> 1231.951111 | AG33: 6.3 | AH33: 27.7189 | AJ33: =IF(AG33=0,"",(AG33*N33)/27) -> 646.7743333
C34: US 63 | D34: NB | E34: 86926.89 | F34: 87000.62 | G34: Out | H34: 4 | I34: 4 | J34: 4 | N34: 73.73 | S34: =IF(H34<>"",((H34+I34)/2)*N34/9,"") -> 32.76888889 | AH34: 0.7373
C35: US 63 | D35: NB | E35: 86926.89 | F35: 86946.89 | G35: Out | H35: 10.1 | I35: 10.1 | J35: 10.1 | N35: 20 | R35: =IF(H35<>"",((H35+I35)/2)*N35/9,"") -> 22.44444444 | AB35: =6.5369*N35/27 -> 4.842148148 | AG35: 2.77 | AH35: 0.2 | AJ35: 2.051851852 | AK35: (1)
C36: US 63 | D36: NB | E36: 86946.89 | F36: 86997.66 | G36: Out | H36: 10.1 | I36: 8.1 | J36: 10.1 to 8.1 | N36: 50.77 | R36: =IF(H36<>"",((H36+I36)/2)*N36/9,"") -> 51.33411111 | AB36: =(6.5369+5.5034)/2*N36/27 -> 11.32011169 | AG36: 2.77 | AH36: 0.5077 | AJ36: 5.208625926 | AK36: (1)
C37: US 63 | D37: NB | E37: 86997.66 | F37: 87000.62 | G37: Out | H37: 8.1 | I37: 8.1 | J37: 8.1 | N37: 2.96 | R37: =IF(H37<>"",((H37+I37)/2)*N37/9,"") -> 2.664 | AB37: =5.5034*N37/27 -> 0.6033357037 | AG37: 2.77 | AH37: =IF(N37="","",N37/100) -> 0.0296 | AJ37: 0.3036740741 | AK37: (1)
C38: US 63 | D38: NB | E38: 87000.62 | F38: 87010.07 | G38: Out | H38: 2.47 | I38: 2.47 | J38: 2.47 | N38: 9.45 | R38: =IF(H38<>"",((H38+I38)/2)*N38/9,"") -> 2.5935 | AB38: =1.8523*N38/27 -> 0.648305 | AG38: 2.77 | AH38: 0.0945 | AJ38: 0.9695 | AK38: (1)
C39: US 63 | D39: NB | E39: 87010.07 | F39: 87034.55 | G39: Out | H39: 2.47 | I39: 0 | J39: 2.47 to 0 | N39: 24.48 | R39: =IF(H39<>"",((H39+I39)/2)*N39/9,"") -> 3.3592 | AB39: =1.8523*N39/27/2 -> 0.8397093333 | AG39: 2.77 | AH39: 0.2448 | AJ39: 2.511466667 | AK39: (1)
C40: BRIDGE | S40: =IF(H40<>"",((H40+I40)/2)*N40/9,"") -> 
C41: US 63 | D41: NB | E41: 87310.53 | F41: 88110 | G41: Out | H41: 4 | I41: 4 | J41: 4 | K41: 4 | L41: 4 | M41: 4 | N41: 799.47 | S41: =IF(H41<>"",((H41+I41)/2)*N41/9,"") -> 355.32 | AG41: 6.3 | AH41: 7.9947 | AJ41: 186.543
C42: US 63 | D42: NB | E42: 88368 | F42: 91745 | G42: Out | H42: 4 | I42: 4 | J42: 4 | K42: 4 | L42: 4 | M42: 4 | N42: 3377 | S42: =IF(H42<>"",((H42+I42)/2)*N42/9,"") -> 1500.888889 | AG42: 6.3 | AH42: 33.77 | AJ42: 787.9666667
C44: US 63 | D44: NB | E44: 85260.95 | F44: 87000.62 | G44: Med | H44: 7 | I44: 7 | J44: 7 | N44: 1739.67 | P44: =IF(O44="","",O44*N44*$G$23/2000) ->  | S44: =IF(H44<>"",((H44+I44)/2)*N44/9,"") -> 1353.076667 | T44: Sloped | U44: =N44 -> 1739.67 | X44: =IF(V44="","",V44*N44*$N$23/2000) ->  | Z44: =IF(W44="","",W44*N44*$N$23/2000) ->  | AD44: =IF(AC44="","",AC44*N44*$S$23/2000) ->  | AH44: =IF(N44="","",N44/100) -> 17.3967 | AI44: =IF(AF44=0,"",(AF44*N44)/27) ->  | AJ44: =IF(AG44=0,"",(AG44*N44)/27) -> 
C45: BRIDGE | G45: Med
C46: US 63 | D46: NB | E46: 87310.53 | F46: 88161 | G46: Med | H46: 7 | I46: 7 | J46: 7 | N46: 850.47 | P46: =IF(O46="","",O46*N46*$G$23/2000) ->  | S46: =IF(H46<>"",((H46+I46)/2)*N46/9,"") -> 661.4766667 | T46: Sloped | U46: =N46 -> 850.47 | X46: =IF(V46="","",V46*N46*$N$23/2000) ->  | Z46: =IF(W46="","",W46*N46*$N$23/2000) ->  | AD46: =IF(AC46="","",AC46*N46*$S$23/2000) ->  | AH46: =IF(N46="","",N46/100) -> 8.5047 | AI46: =IF(AF46=0,"",(AF46*N46)/27) ->  | AJ46: =IF(AG46=0,"",(AG46*N46)/27) -> 
C47: US 63 | D47: NB | E47: 88239 | F47: 89405 | G47: Med | H47: 7 | I47: 7 | J47: 7 | N47: 1166 | S47: 906.8888889 | T47: Sloped | U47: 1166 | AH47: 11.66
C48: US 63 | D48: NB | E48: 89405 | F48: 89465.03 | G48: Med | H48: 7 | I48: 1 | J48: 7 to 1 | N48: 60.03 | S48: 26.68 | T48: Sloped | U48: 60.03 | AH48: 0.6003
C49: US 63 | D49: NB | E49: 89465.03 | F49: 89525.05 | G49: Med | H49: 1 | I49: 1 | J49: 1 | N49: 60.02 | S49: 6.668888889 | T49: Sloped | U49: 60.02 | AH49: 0.6002
C50: US 63 | D50: NB | E50: 89425.05 | F50: 89676 | G50: Med | H50: 1 | I50: 1 | J50: 1 | N50: 250.95 | S50: 27.88333333 | T50: Sloped | U50: 250.95 | AH50: 2.5095
C51: US 63 | D51: NB | E51: 89755 | F51: 90164.56 | G51: Med | H51: 7 | I51: 7 | J51: 7 | N51: 409.56 | S51: 318.5466667 | T51: Sloped | U51: 409.56 | AH51: 4.0956
C52: US 63 | D52: NB | E52: 90164.56 | F52: 90499.63 | G52: Med | H52: 7 | I52: 1 | J52: 7 to 1 | N52: 335.07 | S52: 148.92 | T52: Sloped | U52: 335.07 | AH52: 3.3507
C53: US 63 | D53: NB | E53: 90499.63 | F53: 91420 | G53: Med | H53: 1 | I53: 0.63 | J53: 1 to 0.63 | N53: 920.37 | S53: 83.34461667 | T53: Sloped | U53: 920.37 | AH53: 9.2037
C54: US 63 | D54: NB | E54: 91420 | F54: 91425 | G54: Med | H54: 0.63 | I54: 0.25 | J54: 0.63 to 0.25 | N54: 5 | S54: 0.2444444444 | T54: Standard | U54: 5 | AH54: 0.05
C55: US 63 | D55: NB | E55: 91425 | F55: 91745 | G55: Med | H55: 0.25 | I55: 0.25 | J55: 0.25 | N55: 320 | S55: 8.888888889 | T55: Standard | U55: 320 | AH55: 3.2
C57: US 63 | D57: SB | E57: 84155 | F57: 87000.62 | G57: Out | H57: 4 | I57: 4 | J57: 4 | K57: 4 | L57: 4 | M57: 4 | N57: 2845.62 | S57: 1264.72 | AG57: 6.3 | AH57: 28.4562 | AJ57: 663.978
C58: BRIDGE
C59: US 63 | D59: SB | E59: 87310.53 | F59: 87396.47 | G59: Out | H59: 4 | I59: 4 | J59: 4 | N59: 85.94 | P59: =IF(O59="","",O59*N59*$G$23/2000) ->  | S59: 38.19555556 | X59: =IF(V59="","",V59*N59*$N$23/2000) ->  | Z59: =IF(W59="","",W59*N59*$N$23/2000) ->  | AD59: =IF(AC59="","",AC59*N59*$S$23/2000) ->  | AH59: =IF(N59="","",N59/100) -> 0.8594 | AI59: =IF(AF59=0,"",(AF59*N59)/27) ->  | AJ59: =IF(AG59=0,"",(AG59*N59)/27) -> 
C60: US 63 | D60: SB | E60: 87310.53 | F60: 87324.18 | G60: Out | H60: 5.5 | I60: 5.5 | J60: 5.5 | N60: 13.65 | P60: =IF(O60="","",O60*N60*$G$23/2000) ->  | R60: =IF(H60<>"",((H60+I60)/2)*N60/9,"") -> 8.341666667 | X60: =IF(V60="","",V60*N60*$N$23/2000) ->  | Z60: =IF(W60="","",W60*N60*$N$23/2000) ->  | AB60: 4.32 | AD60: =IF(AC60="","",AC60*N60*$S$23/2000) ->  | AG60: 2.77 | AH60: 0.1365 | AI60: =IF(AF60=0,"",(AF60*N60)/27) ->  | AJ60: 1.400388889 | AK60: (1)
C61: US 63 | D61: SB | E61: 87324.18 | F61: 87366.42 | G61: Out | H61: 5.5 | I61: 7.2 | J61: 5.5 to 7.2 | N61: 42.24 | P61: =IF(O61="","",O61*N61*$G$23/2000) ->  | R61: =IF(H61<>"",((H61+I61)/2)*N61/9,"") -> 29.80266667 | X61: =IF(V61="","",V61*N61*$N$23/2000) ->  | Z61: =IF(W61="","",W61*N61*$N$23/2000) ->  | AB61: 6.99 | AD61: =IF(AC61="","",AC61*N61*$S$23/2000) ->  | AG61: 2.77 | AH61: 0.4224 | AI61: =IF(AF61=0,"",(AF61*N61)/27) ->  | AJ61: 4.333511111 | AK61: (1)
C62: US 63 | D62: SB | E62: 87366.42 | F62: 87396.47 | G62: Out | H62: 7.2 | I62: 7.2 | J62: 7.2 | N62: 30.05 | P62: =IF(O62="","",O62*N62*$G$23/2000) ->  | R62: =IF(H62<>"",((H62+I62)/2)*N62/9,"") -> 24.04 | X62: =IF(V62="","",V62*N62*$N$23/2000) ->  | Z62: =IF(W62="","",W62*N62*$N$23/2000) ->  | AB62: 5.56 | AD62: =IF(AC62="","",AC62*N62*$S$23/2000) ->  | AG62: 2.77 | AH62: 0.3005 | AI62: =IF(AF62=0,"",(AF62*N62)/27) ->  | AJ62: 3.082907407 | AK62: (1)
C63: US 63 | D63: SB | E63: 87396.47 | F63: 89535.08 | G63: Out | H63: 4 | I63: 4 | J63: 4 | K63: 4 | L63: 4 | M63: 4 | N63: 2138.61 | P63: =IF(O63="","",O63*N63*$G$23/2000) ->  | S63: =IF(H63<>"",((H63+I63)/2)*N63/9,"") -> 950.4933333 | X63: =IF(V63="","",V63*N63*$N$23/2000) ->  | Z63: =IF(W63="","",W63*N63*$N$23/2000) ->  | AD63: =IF(AC63="","",AC63*N63*$S$23/2000) ->  | AG63: 6.3 | AH63: 21.3861 | AI63: =IF(AF63=0,"",(AF63*N63)/27) ->  | AJ63: 499.009
C64: US 63 | D64: SB | E64: 89835 | F64: 91590.86 | G64: Out | H64: 4 | I64: 4 | J64: 4 | K64: 4 | L64: 4 | M64: 4 | N64: =IF(E64+F64=0,"",ABS(F64-E64)) -> 1755.86 | S64: =IF(H64<>"",((H64+I64)/2)*N64/9,"") -> 780.3822222 | AG64: 6.3 | AH64: 17.5586 | AJ64: 409.7006667
C65: US 63 | D65: SB | E65: 91590.86 | F65: 91745 | G65: Out | H65: 4 | I65: 4 | J65: 4 | K65: 6 | L65: 6 | M65: 6 | N65: =IF(E65+F65=0,"",ABS(F65-E65)) -> 154.14 | P65: =IF(O65="","",O65*N65*$G$23/2000) ->  | S65: =IF(H65<>"",((H65+I65)/2)*N65/9,"") -> 68.50666667 | X65: =IF(V65="","",V65*N65*$N$23/2000) ->  | Z65: =IF(W65="","",W65*N65*$N$23/2000) ->  | AD65: =IF(AC65="","",AC65*N65*$S$23/2000) ->  | AG65: 6.3 | AH65: 1.5414 | AI65: =IF(AF65=0,"",(AF65*N65)/27) ->  | AJ65: 35.966
C67: US 63 | D67: SB | E67: 85260.95 | F67: 87000.62 | G67: Med | H67: 7 | I67: 7 | J67: =IF(H67<>"",IF(H67=I67,(H67+I67)/2,H67&" to "&I67),"") -> 7 | M67: =IF(K67<>"",IF(K67=L67,(K67+L67)/2,K67&" to "&L67),"") ->  | N67: =IF(E67+F67=0,"",ABS(F67-E67)) -> 1739.67 | P67: =IF(O67="","",O67*N67*$G$23/2000) ->  | Q67: =IF(O67="","",O67*100*$G$23/2000) ->  | R67: =IF(P67<>"",P67*0.06,"") ->  | S67: =IF(H67<>"",((H67+I67)/2)*N67/9,"") -> 1353.076667 | T67: Sloped | U67: 1739.67 | X67: =IF(V67="","",V67*N67*$N$23/2000) ->  | Y67: =IF(V67="","",V67*100*$N$23/2000) ->  | Z67: =IF(W67="","",W67*N67*$N$23/2000) ->  | AA67: =IF(W67="","",W67*100*$N$23/2000) ->  | AD67: =IF(AC67="","",AC67*N67*$S$23/2000) ->  | AE67: =IF(AC67="","",AC67*100*$S$23/2000) ->  | AH67: =IF(N67="","",N67/100) -> 17.3967 | AI67: =IF(AF67=0,"",(AF67*N67)/27) ->  | AJ67: =IF(AG67=0,"",(AG67*N67)/27) -> 
C68: BRIDGE
C69: US 63 | D69: SB | E69: 87310.53 | F69: 88161 | G69: Med | H69: 7 | I69: 7 | J69: 7 | N69: 850.47 | P69: =IF(O69="","",O69*N69*$G$23/2000) ->  | S69: =IF(H69<>"",((H69+I69)/2)*N69/9,"") -> 661.4766667 | T69: Sloped | U69: 850.47 | X69: =IF(V69="","",V69*N69*$N$23/2000) ->  | Z69: =IF(W69="","",W69*N69*$N$23/2000) ->  | AD69: =IF(AC69="","",AC69*N69*$S$23/2000) ->  | AH69: =IF(N69="","",N69/100) -> 8.5047 | AI69: =IF(AF69=0,"",(AF69*N69)/27) ->  | AJ69: =IF(AG69=0,"",(AG69*N69)/27) -> 
C70: US 63 | D70: SB | E70: 88239 | F70: 88500 | G70: Med | H70: 1 | I70: 1 | J70: 1 | N70: 261 | S70: 29 | T70: Sloped | U70: 261 | AH70: 2.61
C71: US 63 | D71: SB | E71: 88500 | F71: 88560 | G71: Med | H71: 1 | I71: 7 | J71: 1 to 7 | N71: 60 | S71: 26.66666667 | T71: Sloped | U71: 60 | AH71: 0.6
C72: US 63 | D72: SB | E72: 88560 | F72: 89676 | G72: Med | H72: 7 | I72: 7 | J72: 7 | N72: 1116 | S72: 868 | T72: Sloped | U72: 1116 | AH72: 11.16
C73: US 63 | D73: SB | E73: 89754 | F73: 90146.24 | G73: Med | H73: 7 | I73: 7 | J73: 7 | N73: 392.24 | S73: 305.0755556 | T73: Sloped | U73: 392.24 | AH73: 3.9224
C74: US 63 | D74: SB | E74: 90146.24 | F74: 90463.71 | G74: Med | H74: 7 | I74: 1 | J74: 7 to 1 | N74: 317.47 | S74: 141.0977778 | T74: Sloped | U74: 317.47 | AH74: 3.1747
C75: US 63 | D75: SB | E75: 90463.71 | F75: 91420 | G75: Med | H75: 1 | I75: 0.63 | J75: 1 to 0.63 | N75: 956.29 | S75: 86.59737222 | T75: Sloped | U75: 956.29 | AH75: 9.5629
C76: US 63 | D76: SB | E76: 91420 | F76: 91425 | G76: Med | H76: 0.63 | I76: 0.25 | J76: 0.63 to 0.25 | N76: 5 | S76: 0.2444444444 | T76: Standard | U76: 5 | AH76: 0.05
C77: US 63 | D77: SB | E77: 91425 | F77: 91745 | G77: Med | H77: 0.25 | I77: 0.25 | J77: 0.25 | N77: 320 | S77: 8.888888889 | T77: Standard | U77: 320 | AH77: 3.2
C79: US 63 SB RAMP | D79: SB | E79: 91598.09 | F79: 91853.53 | G79: Out | H79: 4 | I79: 4 | J79: 4 | K79: 4 | L79: 4 | M79: 4 | N79: 255.44 | S79: 113.5288889 | AC79: 5.2346 | AD79: =IF(AC79="","",AC79*N79*$U$23/2000) -> 93.59883568 | AE79: =IF(AC79="","",AC79*100*$U$23/2000) -> 36.6422 | AG79: 10.8685 | AH79: 2.5544 | AJ79: 102.8240607
C80: US 63 SB RAMP | D80: SB | E80: 91598.09 | F80: 91853.53 | G80: Med | H80: 4 | I80: 4 | J80: 4 | K80: 2 | L80: 2 | M80: 2 | N80: 255.44 | S80: 113.5288889 | AC80: 2.0284 | AD80: =IF(AC80="","",AC80*N80*$U$23/2000) -> 36.26941472 | AE80: =IF(AC80="","",AC80*100*$U$23/2000) -> 14.1988 | AG80: 11.2226 | AH80: 2.5544 | AJ80: 106.174109
C82: RABBIT RUN RD | D82: EB | E82: 882038 | F82: 882554 | G82: Out | K82: 6 | L82: 6 | M82: 6 | N82: 516 | AC82: 8.7769 | AD82: 317.021628 | AE82: 61.4383 | AG82: 8.5097 | AH82: 5.16 | AJ82: 162.6298222
C83: RABBIT RUN RD | D83: EB | E83: 882554 | F83: 882606 | G83: Out | K83: 6 | L83: 3.4 | M83: 6 to 3.4 | N83: 52 | AC83: 6.60745 | AD83: 24.051118 | AE83: 46.25215 | AG83: 9.1266 | AH83: 0.52 | AJ83: 17.57715556
C84: RABBIT RUN RD | D84: WB | E84: 882038 | F84: 882554 | G84: Out | K84: 6 | L84: 6 | M84: 6 | N84: 516 | AC84: 8.7769 | AD84: 317.021628 | AE84: 61.4383 | AG84: 8.5097 | AH84: 5.16 | AJ84: 162.6298222
C85: RABBIT RUN RD | D85: WB | E85: 882554 | F85: 882606 | G85: Out | K85: 6 | L85: 2 | M85: 6 to 2 | N85: 52 | AC85: 5.40265 | AD85: 19.665646 | AE85: 37.81855 | AG85: 9.2013 | AH85: 0.52 | AJ85: 17.72102222
P86: =IF(O86="","",O86*N86*$G$23/2000) ->  | S86: =IF(H86<>"",((H86+I86)/2)*N86/9,"") ->  | X86: =IF(V86="","",V86*N86*$N$23/2000) ->  | Z86: =IF(W86="","",W86*N86*$N$23/2000) ->  | AH86: =IF(N86="","",N86/100) ->  | AI86: =IF(AF86=0,"",(AF86*N86)/27) -> 
C87: MARY ST | D87: EB | E87: 896869.63 | F87: 896978.01 | G87: Out | K87: 8 | L87: 8 | M87: 8 | N87: 120.5 | AC87: 12.0944 | AD87: 102.016264 | AE87: 84.6608 | AG87: 8.117 | AH87: 1.205 | AJ87: 36.22587037
C88: MARY ST | D88: EB | E88: 896978.01 | F88: 897015 | G88: Out | K88: 8 | L88: 4 | M88: 8 to 4 | N88: 140 | AC88: 8.7377 | AD88: 85.62946 | AE88: 61.1639 | AG88: 8.51435 | AH88: 1.4 | AJ88: 44.14848148
C89: MARY ST | D89: WB | E89: 896815 | F89: 896854.29 | G89: Out | K89: 6 | L89: 8 | M89: 6 to 8 | N89: 39.29 | AC89: 10.43565 | AD89: 28.7011682 | AE89: 73.04955 | AG89: 8.31335 | AH89: 0.3929 | AJ89: 12.09746376
C90: MARY ST | D90: WB | E90: 896854.29 | F90: 896936.02 | G90: Out | K90: 8 | L90: 8 | M90: 8 | N90: 111.5 | AC90: 12.0944 | AD90: 94.396792 | AE90: 84.6608 | AG90: 8.117 | AH90: 1.115 | AJ90: 33.5202037
C91: MARY ST | D91: WB | E91: 896936.02 | F91: 896928.1 | G91: Out | K91: 8 | L91: 4 | M91: 8 to 4 | N91: 19.6 | AC91: 8.7377 | AD91: 11.9881244 | AE91: 61.1639 | AG91: 8.51435 | AH91: 0.196 | AJ91: 6.180787407
AD92: =IF(AC92="","",AC92*N92*$S$23/2000) ->  | AJ92: =IF(AG92=0,"",(AG92*N92)/27) -> 
J93: =IF(H93<>"",IF(H93=I93,(H93+I93)/2,H93&" to "&I93),"") ->  | M93: =IF(K93<>"",IF(K93=L93,(K93+L93)/2,K93&" to "&L93),"") ->  | N93: =IF(E93+F93=0,"",ABS(F93-E93)) ->  | Q93: =IF(O93="","",O93*100*$G$23/2000) ->  | R93: =IF(P93<>"",P93*0.06,"") ->  | Y93: =IF(V93="","",V93*100*$N$23/2000) ->  | AA93: =IF(W93="","",W93*100*$N$23/2000) ->  | AE93: =IF(AC93="","",AC93*100*$S$23/2000) -> 
C95: TOTALS: | R95: =SUM(R32:R94) -> 144.5795889 | S95: =SUM(S32:S94) -> 13473.02754 | U95: =SUM(U32:U94) -> 12135.28 | AB95: =SUM(AB32:AB94) -> 35.12360987 | AD95: =SUM(AD32:AD94) -> 1130.360079 | AH95: =SUM(AH32:AH94) -> 284.0891 | AJ95: =SUM(AJ32:AJ94) -> 3951.528391
C97: NOTE:
C98: (1) Use Typical Paved Shoulder at Guardrail Blister in the B Sheets
P145: =IF(O145="","",O145*N145*$G$23/2000) ->  | S145: =IF(H145<>"",((H145+I145)/2)*N145/9,"") ->  | X145: =IF(V145="","",V145*N145*$N$23/2000) ->  | Z145: =IF(W145="","",W145*N145*$N$23/2000) ->  | AD145: =IF(AC145="","",AC145*N145*$S$23/2000) ->  | AH145: =IF(N145="","",N145/100) ->  | AI145: =IF(AF145=0,"",(AF145*N145)/27) ->  | AJ145: =IF(AG145=0,"",(AG145*N145)/27) -> 
J157: =IF(H157<>"",IF(H157=I157,(H157+I157)/2,H157&" to "&I157),"") ->  | M157: =IF(K157<>"",IF(K157=L157,(K157+L157)/2,K157&" to "&L157),"") ->  | N157: =IF(E157+F157=0,"",ABS(F157-E157)) ->  | Q157: =IF(O157="","",O157*100*$G$23/2000) ->  | R157: =IF(P157<>"",P157*0.06,"") ->  | Y157: =IF(V157="","",V157*100*$N$23/2000) ->  | AA157: =IF(W157="","",W157*100*$N$23/2000) ->  | AE157: =IF(AC157="","",AC157*100*$S$23/2000) -> 
P209: =IF(O209="","",O209*N209*$G$23/2000) ->  | S209: =IF(H209<>"",((H209+I209)/2)*N209/9,"") ->  | X209: =IF(V209="","",V209*N209*$N$23/2000) ->  | Z209: =IF(W209="","",W209*N209*$N$23/2000) ->  | AD209: =IF(AC209="","",AC209*N209*$S$23/2000) ->  | AH209: =IF(N209="","",N209/100) ->  | AI209: =IF(AF209=0,"",(AF209*N209)/27) ->  | AJ209: =IF(AG209=0,"",(AG209*N209)/27) -> 
J221: =IF(H221<>"",IF(H221=I221,(H221+I221)/2,H221&" to "&I221),"") ->  | M221: =IF(K221<>"",IF(K221=L221,(K221+L221)/2,K221&" to "&L221),"") ->  | N221: =IF(E221+F221=0,"",ABS(F221-E221)) ->  | Q221: =IF(O221="","",O221*100*$G$23/2000) ->  | R221: =IF(P221<>"",P221*0.06,"") ->  | Y221: =IF(V221="","",V221*100*$N$23/2000) ->  | AA221: =IF(W221="","",W221*100*$N$23/2000) ->  | AE221: =IF(AC221="","",AC221*100*$S$23/2000) -> 
P273: =IF(O273="","",O273*N273*$G$23/2000) ->  | S273: =IF(H273<>"",((H273+I273)/2)*N273/9,"") ->  | X273: =IF(V273="","",V273*N273*$N$23/2000) ->  | Z273: =IF(W273="","",W273*N273*$N$23/2000) ->  | AD273: =IF(AC273="","",AC273*N273*$S$23/2000) ->  | AH273: =IF(N273="","",N273/100) ->  | AI273: =IF(AF273=0,"",(AF273*N273)/27) ->  | AJ273: =IF(AG273=0,"",(AG273*N273)/27) -> 
J285: =IF(H285<>"",IF(H285=I285,(H285+I285)/2,H285&" to "&I285),"") ->  | M285: =IF(K285<>"",IF(K285=L285,(K285+L285)/2,K285&" to "&L285),"") ->  | N285: =IF(E285+F285=0,"",ABS(F285-E285)) ->  | Q285: =IF(O285="","",O285*100*$G$23/2000) ->  | R285: =IF(P285<>"",P285*0.06,"") ->  | Y285: =IF(V285="","",V285*100*$N$23/2000) ->  | AA285: =IF(W285="","",W285*100*$N$23/2000) ->  | AE285: =IF(AC285="","",AC285*100*$S$23/2000) -> 
P337: =IF(O337="","",O337*N337*$G$23/2000) ->  | S337: =IF(H337<>"",((H337+I337)/2)*N337/9,"") ->  | X337: =IF(V337="","",V337*N337*$N$23/2000) ->  | Z337: =IF(W337="","",W337*N337*$N$23/2000) ->  | AD337: =IF(AC337="","",AC337*N337*$S$23/2000) ->  | AH337: =IF(N337="","",N337/100) ->  | AI337: =IF(AF337=0,"",(AF337*N337)/27) ->  | AJ337: =IF(AG337=0,"",(AG337*N337)/27) -> 
J349: =IF(H349<>"",IF(H349=I349,(H349+I349)/2,H349&" to "&I349),"") ->  | M349: =IF(K349<>"",IF(K349=L349,(K349+L349)/2,K349&" to "&L349),"") ->  | N349: =IF(E349+F349=0,"",ABS(F349-E349)) ->  | Q349: =IF(O349="","",O349*100*$G$23/2000) ->  | R349: =IF(P349<>"",P349*0.06,"") ->  | Y349: =IF(V349="","",V349*100*$N$23/2000) ->  | AA349: =IF(W349="","",W349*100*$N$23/2000) ->  | AE349: =IF(AC349="","",AC349*100*$S$23/2000) -> 
P401: =IF(O401="","",O401*N401*$G$23/2000) ->  | S401: =IF(H401<>"",((H401+I401)/2)*N401/9,"") ->  | X401: =IF(V401="","",V401*N401*$N$23/2000) ->  | Z401: =IF(W401="","",W401*N401*$N$23/2000) ->  | AD401: =IF(AC401="","",AC401*N401*$S$23/2000) ->  | AH401: =IF(N401="","",N401/100) ->  | AI401: =IF(AF401=0,"",(AF401*N401)/27) ->  | AJ401: =IF(AG401=0,"",(AG401*N401)/27) -> 
J413: =IF(H413<>"",IF(H413=I413,(H413+I413)/2,H413&" to "&I413),"") ->  | M413: =IF(K413<>"",IF(K413=L413,(K413+L413)/2,K413&" to "&L413),"") ->  | N413: =IF(E413+F413=0,"",ABS(F413-E413)) ->  | Q413: =IF(O413="","",O413*100*$G$23/2000) ->  | R413: =IF(P413<>"",P413*0.06,"") ->  | Y413: =IF(V413="","",V413*100*$N$23/2000) ->  | AA413: =IF(W413="","",W413*100*$N$23/2000) ->  | AE413: =IF(AC413="","",AC413*100*$S$23/2000) -> 
P465: =IF(O465="","",O465*N465*$G$23/2000) ->  | S465: =IF(H465<>"",((H465+I465)/2)*N465/9,"") ->  | X465: =IF(V465="","",V465*N465*$N$23/2000) ->  | Z465: =IF(W465="","",W465*N465*$N$23/2000) ->  | AD465: =IF(AC465="","",AC465*N465*$S$23/2000) ->  | AH465: =IF(N465="","",N465/100) ->  | AI465: =IF(AF465=0,"",(AF465*N465)/27) ->  | AJ465: =IF(AG465=0,"",(AG465*N465)/27) -> 
J477: =IF(H477<>"",IF(H477=I477,(H477+I477)/2,H477&" to "&I477),"") ->  | M477: =IF(K477<>"",IF(K477=L477,(K477+L477)/2,K477&" to "&L477),"") ->  | N477: =IF(E477+F477=0,"",ABS(F477-E477)) ->  | Q477: =IF(O477="","",O477*100*$G$23/2000) ->  | R477: =IF(P477<>"",P477*0.06,"") ->  | Y477: =IF(V477="","",V477*100*$N$23/2000) ->  | AA477: =IF(W477="","",W477*100*$N$23/2000) ->  | AE477: =IF(AC477="","",AC477*100*$S$23/2000) -> 
P529: =IF(O529="","",O529*N529*$G$23/2000) ->  | S529: =IF(H529<>"",((H529+I529)/2)*N529/9,"") ->  | X529: =IF(V529="","",V529*N529*$N$23/2000) ->  | Z529: =IF(W529="","",W529*N529*$N$23/2000) ->  | AD529: =IF(AC529="","",AC529*N529*$S$23/2000) ->  | AH529: =IF(N529="","",N529/100) ->  | AI529: =IF(AF529=0,"",(AF529*N529)/27) ->  | AJ529: =IF(AG529=0,"",(AG529*N529)/27) -> 
J541: =IF(H541<>"",IF(H541=I541,(H541+I541)/2,H541&" to "&I541),"") ->  | M541: =IF(K541<>"",IF(K541=L541,(K541+L541)/2,K541&" to "&L541),"") ->  | N541: =IF(E541+F541=0,"",ABS(F541-E541)) ->  | Q541: =IF(O541="","",O541*100*$G$23/2000) ->  | R541: =IF(P541<>"",P541*0.06,"") ->  | Y541: =IF(V541="","",V541*100*$N$23/2000) ->  | AA541: =IF(W541="","",W541*100*$N$23/2000) ->  | AE541: =IF(AC541="","",AC541*100*$S$23/2000) -> 
P593: =IF(O593="","",O593*N593*$G$23/2000) ->  | S593: =IF(H593<>"",((H593+I593)/2)*N593/9,"") ->  | X593: =IF(V593="","",V593*N593*$N$23/2000) ->  | Z593: =IF(W593="","",W593*N593*$N$23/2000) ->  | AD593: =IF(AC593="","",AC593*N593*$S$23/2000) ->  | AH593: =IF(N593="","",N593/100) ->  | AI593: =IF(AF593=0,"",(AF593*N593)/27) ->  | AJ593: =IF(AG593=0,"",(AG593*N593)/27) -> 
J605: =IF(H605<>"",IF(H605=I605,(H605+I605)/2,H605&" to "&I605),"") ->  | M605: =IF(K605<>"",IF(K605=L605,(K605+L605)/2,K605&" to "&L605),"") ->  | N605: =IF(E605+F605=0,"",ABS(F605-E605)) ->  | Q605: =IF(O605="","",O605*100*$G$23/2000) ->  | R605: =IF(P605<>"",P605*0.06,"") ->  | Y605: =IF(V605="","",V605*100*$N$23/2000) ->  | AA605: =IF(W605="","",W605*100*$N$23/2000) ->  | AE605: =IF(AC605="","",AC605*100*$S$23/2000) -> 
P657: =IF(O657="","",O657*N657*$G$23/2000) ->  | S657: =IF(H657<>"",((H657+I657)/2)*N657/9,"") ->  | X657: =IF(V657="","",V657*N657*$N$23/2000) ->  | Z657: =IF(W657="","",W657*N657*$N$23/2000) ->  | AD657: =IF(AC657="","",AC657*N657*$S$23/2000) ->  | AH657: =IF(N657="","",N657/100) ->  | AI657: =IF(AF657=0,"",(AF657*N657)/27) ->  | AJ657: =IF(AG657=0,"",(AG657*N657)/27) -> 
J669: =IF(H669<>"",IF(H669=I669,(H669+I669)/2,H669&" to "&I669),"") ->  | M669: =IF(K669<>"",IF(K669=L669,(K669+L669)/2,K669&" to "&L669),"") ->  | N669: =IF(E669+F669=0,"",ABS(F669-E669)) ->  | Q669: =IF(O669="","",O669*100*$G$23/2000) ->  | R669: =IF(P669<>"",P669*0.06,"") ->  | Y669: =IF(V669="","",V669*100*$N$23/2000) ->  | AA669: =IF(W669="","",W669*100*$N$23/2000) ->  | AE669: =IF(AC669="","",AC669*100*$S$23/2000) -> 
P721: =IF(O721="","",O721*N721*$G$23/2000) ->  | S721: =IF(H721<>"",((H721+I721)/2)*N721/9,"") ->  | X721: =IF(V721="","",V721*N721*$N$23/2000) ->  | Z721: =IF(W721="","",W721*N721*$N$23/2000) ->  | AD721: =IF(AC721="","",AC721*N721*$S$23/2000) ->  | AH721: =IF(N721="","",N721/100) ->  | AI721: =IF(AF721=0,"",(AF721*N721)/27) ->  | AJ721: =IF(AG721=0,"",(AG721*N721)/27) -> 
J733: =IF(H733<>"",IF(H733=I733,(H733+I733)/2,H733&" to "&I733),"") ->  | M733: =IF(K733<>"",IF(K733=L733,(K733+L733)/2,K733&" to "&L733),"") ->  | N733: =IF(E733+F733=0,"",ABS(F733-E733)) ->  | Q733: =IF(O733="","",O733*100*$G$23/2000) ->  | R733: =IF(P733<>"",P733*0.06,"") ->  | Y733: =IF(V733="","",V733*100*$N$23/2000) ->  | AA733: =IF(W733="","",W733*100*$N$23/2000) ->  | AE733: =IF(AC733="","",AC733*100*$S$23/2000) -> 
P785: =IF(O785="","",O785*N785*$G$23/2000) ->  | S785: =IF(H785<>"",((H785+I785)/2)*N785/9,"") ->  | X785: =IF(V785="","",V785*N785*$N$23/2000) ->  | Z785: =IF(W785="","",W785*N785*$N$23/2000) ->  | AD785: =IF(AC785="","",AC785*N785*$S$23/2000) ->  | AH785: =IF(N785="","",N785/100) ->  | AI785: =IF(AF785=0,"",(AF785*N785)/27) ->  | AJ785: =IF(AG785=0,"",(AG785*N785)/27) -> 
J797: =IF(H797<>"",IF(H797=I797,(H797+I797)/2,H797&" to "&I797),"") ->  | M797: =IF(K797<>"",IF(K797=L797,(K797+L797)/2,K797&" to "&L797),"") ->  | N797: =IF(E797+F797=0,"",ABS(F797-E797)) ->  | Q797: =IF(O797="","",O797*100*$G$23/2000) ->  | R797: =IF(P797<>"",P797*0.06,"") ->  | Y797: =IF(V797="","",V797*100*$N$23/2000) ->  | AA797: =IF(W797="","",W797*100*$N$23/2000) ->  | AE797: =IF(AC797="","",AC797*100*$S$23/2000) -> 
P849: =IF(O849="","",O849*N849*$G$23/2000) ->  | S849: =IF(H849<>"",((H849+I849)/2)*N849/9,"") ->  | X849: =IF(V849="","",V849*N849*$N$23/2000) ->  | Z849: =IF(W849="","",W849*N849*$N$23/2000) ->  | AD849: =IF(AC849="","",AC849*N849*$S$23/2000) ->  | AH849: =IF(N849="","",N849/100) ->  | AI849: =IF(AF849=0,"",(AF849*N849)/27) ->  | AJ849: =IF(AG849=0,"",(AG849*N849)/27) -> 
J861: =IF(H861<>"",IF(H861=I861,(H861+I861)/2,H861&" to "&I861),"") ->  | M861: =IF(K861<>"",IF(K861=L861,(K861+L861)/2,K861&" to "&L861),"") ->  | N861: =IF(E861+F861=0,"",ABS(F861-E861)) ->  | Q861: =IF(O861="","",O861*100*$G$23/2000) ->  | R861: =IF(P861<>"",P861*0.06,"") ->  | Y861: =IF(V861="","",V861*100*$N$23/2000) ->  | AA861: =IF(W861="","",W861*100*$N$23/2000) ->  | AE861: =IF(AC861="","",AC861*100*$S$23/2000) -> 
P913: =IF(O913="","",O913*N913*$G$23/2000) ->  | S913: =IF(H913<>"",((H913+I913)/2)*N913/9,"") ->  | X913: =IF(V913="","",V913*N913*$N$23/2000) ->  | Z913: =IF(W913="","",W913*N913*$N$23/2000) ->  | AD913: =IF(AC913="","",AC913*N913*$S$23/2000) ->  | AH913: =IF(N913="","",N913/100) ->  | AI913: =IF(AF913=0,"",(AF913*N913)/27) ->  | AJ913: =IF(AG913=0,"",(AG913*N913)/27) -> 
J925: =IF(H925<>"",IF(H925=I925,(H925+I925)/2,H925&" to "&I925),"") ->  | M925: =IF(K925<>"",IF(K925=L925,(K925+L925)/2,K925&" to "&L925),"") ->  | N925: =IF(E925+F925=0,"",ABS(F925-E925)) ->  | Q925: =IF(O925="","",O925*100*$G$23/2000) ->  | R925: =IF(P925<>"",P925*0.06,"") ->  | Y925: =IF(V925="","",V925*100*$N$23/2000) ->  | AA925: =IF(W925="","",W925*100*$N$23/2000) ->  | AE925: =IF(AC925="","",AC925*100*$S$23/2000) -> 
P977: =IF(O977="","",O977*N977*$G$23/2000) ->  | S977: =IF(H977<>"",((H977+I977)/2)*N977/9,"") ->  | X977: =IF(V977="","",V977*N977*$N$23/2000) ->  | Z977: =IF(W977="","",W977*N977*$N$23/2000) ->  | AD977: =IF(AC977="","",AC977*N977*$S$23/2000) ->  | AH977: =IF(N977="","",N977/100) ->  | AI977: =IF(AF977=0,"",(AF977*N977)/27) ->  | AJ977: =IF(AG977=0,"",(AG977*N977)/27) -> 
J989: =IF(H989<>"",IF(H989=I989,(H989+I989)/2,H989&" to "&I989),"") ->  | M989: =IF(K989<>"",IF(K989=L989,(K989+L989)/2,K989&" to "&L989),"") ->  | N989: =IF(E989+F989=0,"",ABS(F989-E989)) ->  | Q989: =IF(O989="","",O989*100*$G$23/2000) ->  | R989: =IF(P989<>"",P989*0.06,"") ->  | Y989: =IF(V989="","",V989*100*$N$23/2000) ->  | AA989: =IF(W989="","",W989*100*$N$23/2000) ->  | AE989: =IF(AC989="","",AC989*100*$S$23/2000) -> 
... 44 more rows

Sheet DE112_10
A1: TabTitle | B1: =C16 -> MILLED RUMBLE STRIPS | AG1: Rumble Strip Type | AH1: Shoulder Type
A2: Number of Tab Columns | B2: 12 | AG2: Centerline | AH2: HMA
A3: DE Starter Row Number | B3: 26 | AG3: Left Shoulder | AH3: PCC
A4: TabSheet Starter Row Number | B4: 12 | AG4: Right Shoulder | AH4: PCC or HMA
A5: TabSheet Header Row Count | B5: 11
A6: Top Header Cell | B6: T15
A7: Bottom Header Cell | B7: AE25
A8: DESheet Row Count | B8: 21
A9: Fixed Empty Rows | B9: 10
A10: Usable Empty Rows | B10: 0
A11: Total Rows Placed | B11: 31 | C11: xlLeft(1) | D11: xlRight(1) | E11: xlRight(1) | H11: xlCenter | I11: xlCenter | J11: xlRight(1) | K11: xlRight(1) | N11: xlRight(1) | O11: xlRight(1) | P11: xlRight(1) | Q11: xlRight(1) | R11: xlLeft(1) | T11: =C11 -> xlLeft(1) | U11: xlRight(1) | V11: xlRight(1) | W11: =H11 -> xlCenter | X11: =I11 -> xlCenter | Y11: xlRight(1) | Z11: xlRight(1) | AA11: =N11 -> xlRight(1) | AB11: =O11 -> xlRight(1) | AC11: xlRight(1) | AD11: xlRight(1) | AE11: xlLeft(1)
A12: Total Rows Needed | B12: =SUM(B8:B10) -> 31 | C12: General | D12: #+00.00 | E12: #+00.00 | H12: General | I12: General | J12: 0.00 | K12: 0.00 | N12: 0.0 | O12: 0.0 | P12: 0.0 | Q12: 0.0 | R12: General | T12: General | U12: #+00.00 | V12: #+00.00 | W12: =H12 -> General | X12: General | Y12: 0.00 | Z12: 0.00 | AA12: =N12 -> 0.0 | AB12: 0.0 | AC12: 0.0 | AD12: 0.0 | AE12: General
A13: Last Tab DE Starter Row | B13: 26 | C13: =CELL("width",C13) -> 32 | D13: =CELL("width",D13) -> 18 | E13: =CELL("width",E13) -> 18 | H13: =CELL("width",H13) -> 16 | I13: =CELL("width",I13) -> 26 | J13: =CELL("width",J13) -> 12 | K13: =CELL("width",K13) -> 12 | N13: =CELL("width",N13) -> 29 | O13: =CELL("width",O13) -> 16 | P13: =CELL("width",P13) -> 16 | Q13: =CELL("width",Q13) -> 16 | R13: =CELL("width",R13) -> 22 | T13: =CELL("width",T13) -> 0 | U13: 0 | V13: 0 | W13: 0 | X13: 0 | Y13: 0 | Z13: 0 | AA13: 0 | AB13: 0 | AC13: 0 | AD13: 0 | AE13: 0
A14: Last Tab Tabsheet Starter Row | B14: 12 | C14: A | D14: B | E14: C | H14: D | I14: E | J14: F | K14: G | N14: H | O14: I | P14: J | Q14: K | R14: L | T14: =LOWER(C14) -> a | U14: =LOWER(D14) -> b | V14: =LOWER(E14) -> c | W14: =LOWER(H14) -> d | X14: =LOWER(I14) -> e | Y14: f | Z14: g | AA14: =LOWER(N14) -> h | AB14: =LOWER(O14) -> i | AC14: j | AD14: k | AE14: l
A15: Last Copy Starter Row | B15: 1 | E15: Totals: | J15: =SUBTOTAL(9,J26:J6000) -> 288.742 | K15: =SUBTOTAL(9,K26:K6000) -> 0 | N15: =SUBTOTAL(9,N26:N6000) -> 0 | T15: 112-10
A16: Tab Loop Number | B16: 2 | C16: MILLED RUMBLE STRIPS | T16: =B17 -> 2019-04-16
A17: Revision Date | B17: 2019-04-16 | T17: =C16 -> MILLED RUMBLE STRIPS
A18: Tabulation Width | B18: 3 | C18: See PV-12 and PV-13.
A19: Horizontal Grid Lines | B19: Yes | C19: * Calculated at 18" width for Shoulder. | T19: =C18 -> See PV-12 and PV-13.
C20: ="This Data Entry Sheet fills Tab "&T15&" effective "&TEXT(B17,"mm-dd-yy") -> This Data Entry Sheet fills Tab 112-10 effective 04-16-19 | T20: =C19 -> * Calculated at 18" width for Shoulder.
C21: Location | L21: Area | M21: Area | N21: Fog Seal* (Milled Rumble Strip) | O21: Effective Shoulder Width | R21: Remarks | T21: =C21 -> Location | AA21: =N21 -> Fog Seal* (Milled Rumble Strip) | AB21: =O21 -> Effective Shoulder Width | AE21: =R21 -> Remarks
C22: Road Identification | D22: Station to Station | F22: Length | H22: Shoulder Pavement Type | I22: Rumble Strip Type (Centerline, Rt or Lt Shoulder) | J22: Length | O22: PCC Paved | P22: HMA Paved | Q22: Granular\ Earth | T22: =C22 -> Road Identification | U22: =D22 -> Station to Station | W22: =H22 -> Shoulder Pavement Type | X22: =I22 -> Rumble Strip Type (Centerline, Rt or Lt Shoulder) | Y22: =J22 -> Length | AB22: =O22 -> PCC Paved | AC22: =P22 -> HMA Paved | AD22: =Q22 -> Granular\ Earth
J23: PCC | K23: HMA | Y23: =J23 -> PCC | Z23: =K23 -> HMA
N24: Shoulder | AA24: =N24 -> Shoulder
F25: FT | G25: STA | J25: STA | K25: STA | L25: SF | M25: SY | N25: GAL | O25: FT | P25: FT | Q25: FT | Y25: =J25 -> STA | Z25: =K25 -> STA | AA25: =N25 -> GAL | AB25: =O25 -> FT | AC25: =P25 -> FT | AD25: =Q25 -> FT
F26: =IF(D26<>"",ABS(D26-E26),"") ->  | G26: =IF(F26<>"",F26/100,"") ->  | J26: =IF(OR(H26="PCC",H26="PCC or HMA"),G26,"") ->  | K26: =IF(OR(H26="HMA",H26="PCC or HMA"),G26,"") ->  | L26: =IF(AND(OR(H26="HMA",H26="PCC or HMA"),OR(I26="Left Shoulder",I26="Right Shoulder")),K26*100*(18/12),"") ->  | M26: =IF(L26<>"",(L26/9),"") ->  | N26: =IF(AND(OR(I26="Left Shoulder",I26="Right Shoulder"),K26<>""),ROUNDUP(M26*0.5*0.13,1),IF(I26<>"","0.0","")) -> 
C27: US 63 NB | D27: 84155 | E27: 87032.92 | F27: 2877.92 | G27: 28.7792 | H27: PCC | I27: Right Shoulder | J27: =IF(OR(H27="PCC",H27="PCC or HMA"),G27,"") -> 28.7792 | K27: =IF(OR(H27="HMA",H27="PCC or HMA"),G27,"") ->  | L27: =IF(AND(OR(H27="HMA",H27="PCC or HMA"),OR(I27="Left Shoulder",I27="Right Shoulder")),K27*100*(18/12),"") ->  | N27: =IF(AND(OR(I27="Left Shoulder",I27="Right Shoulder"),K27<>""),ROUNDUP(M27*0.5*0.13,1),IF(I27<>"","0.0","")) -> 0.0 | O27: 4 | Q27: 4
C28: US 63 NB | D28: 87303.78 | E28: 88110 | F28: 806.22 | G28: 8.0622 | H28: PCC | I28: Right Shoulder | J28: =IF(OR(H28="PCC",H28="PCC or HMA"),G28,"") -> 8.0622 | K28: =IF(OR(H28="HMA",H28="PCC or HMA"),G28,"") ->  | L28: =IF(AND(OR(H28="HMA",H28="PCC or HMA"),OR(I28="Left Shoulder",I28="Right Shoulder")),K28*100*(18/12),"") ->  | N28: =IF(AND(OR(I28="Left Shoulder",I28="Right Shoulder"),K28<>""),ROUNDUP(M28*0.5*0.13,1),IF(I28<>"","0.0","")) -> 0.0 | O28: 4 | Q28: 4
C29: US 63 NB | D29: 88368 | E29: 91745 | F29: 3377 | G29: 33.77 | H29: PCC | I29: Right Shoulder | J29: 33.77 | N29: 0.0 | O29: 4 | Q29: 4
C31: US 63 SB | D31: 84155 | E31: 87007.37 | F31: 2852.37 | G31: 28.5237 | H31: PCC | I31: Right Shoulder | J31: 28.5237 | N31: 0.0 | O31: 4 | Q31: 4
C32: US 63 SB | D32: 87278.23 | E32: 89535.08 | F32: 2256.85 | G32: 22.5685 | H32: PCC | I32: Right Shoulder | J32: 22.5685 | N32: 0.0 | O32: 4 | Q32: 4
C33: US 63 SB | D33: 89835 | E33: 91590.98 | F33: 1755.98 | G33: 17.5598 | H33: PCC | I33: Right Shoulder | J33: 17.5598 | N33: 0.0 | O33: 4 | Q33: 4
C35: US 63 SB RAMP | D35: 91598.15 | E35: 91853.53 | F35: 255.38 | G35: 2.5538 | H35: PCC | I35: Right Shoulder | J35: 2.5538 | N35: 0.0 | O35: 4 | Q35: 4
C36: US 63 SB RAMP | D36: 91598.15 | E36: 91853.53 | F36: 255.38 | G36: 2.5538 | H36: PCC | I36: Left Shoulder | J36: 2.5538 | N36: 0.0 | O36: 4 | Q36: 2
J38: =IF(OR(H38="PCC",H38="PCC or HMA"),G38,"") ->  | K38: =IF(OR(H38="HMA",H38="PCC or HMA"),G38,"") ->  | L38: =IF(AND(OR(H38="HMA",H38="PCC or HMA"),OR(I38="Left Shoulder",I38="Right Shoulder")),K38*100*(18/12),"") ->  | M38: =IF(L38<>"",(L38/9),"") ->  | N38: =IF(AND(OR(I38="Left Shoulder",I38="Right Shoulder"),K38<>""),ROUNDUP(M38*0.5*0.13,1),IF(I38<>"","0.0","")) -> 
I39: Totals | J39: PCC | K39: HMA | N39: Fog Seal
I40: HMA Shoulders | K40: =SUMIFS(K26:K36,H26:H36,"HMA",I26:I36,"=*er") -> 0 | N40: =SUMIFS(N26:N36,H26:H36,"HMA",I26:I36,"=*er") -> 0
I41: PCC Shoulders | J41: =SUMIFS(J26:J36,H26:H36,"PCC",I26:I36,"=*er") -> 144.371
I42: PCC or HMA Shoulders | J42: =SUMIFS(J26:J36,H26:H36,"PCC or HMA",I26:I36,"=*er") -> 0 | K42: =SUMIFS(K26:K36,H26:H36,"PCC or HMA",I26:I36,"=*er") -> 0 | N42: =SUMIFS(N26:N36,H26:H36,"PCC or HMA",I26:I36,"=*er") -> 0
I43: HMA Centerlines | K43: =SUMIFS(K26:K36,H26:H36,"HMA",I26:I36,"=*ne") -> 0
I44: PCC Centerlines | J44: =SUMIFS(J26:J36,H26:H36,"PCC",I26:I36,"=*ne") -> 0
I45: PCC or HMA Centerlines | J45: =SUMIFS(J26:J36,H26:H36,"PCC or HMA",I26:I36,"=*ne") -> 0 | K45: =SUMIFS(K26:K36,H26:H36,"PCC or HMA",I26:I36,"=*ne") -> 0
F90: =IF(D90<>"",ABS(D90-E90),"") ->  | G90: =IF(F90<>"",F90/100,"") ->  | M90: =IF(L90<>"",(L90/9),"") -> 
J92: =IF(OR(H92="PCC",H92="PCC or HMA"),G92,"") ->  | K92: =IF(OR(H92="HMA",H92="PCC or HMA"),G92,"") ->  | L92: =IF(AND(OR(H92="HMA",H92="PCC or HMA"),OR(I92="Left Shoulder",I92="Right Shoulder")),K92*100*(18/12),"") ->  | N92: =IF(AND(OR(I92="Left Shoulder",I92="Right Shoulder"),K92<>""),ROUNDUP(M92*0.5*0.13,1),IF(I92<>"","0.0","")) -> 
F154: =IF(D154<>"",ABS(D154-E154),"") ->  | G154: =IF(F154<>"",F154/100,"") ->  | M154: =IF(L154<>"",(L154/9),"") -> 
J156: =IF(OR(H156="PCC",H156="PCC or HMA"),G156,"") ->  | K156: =IF(OR(H156="HMA",H156="PCC or HMA"),G156,"") ->  | L156: =IF(AND(OR(H156="HMA",H156="PCC or HMA"),OR(I156="Left Shoulder",I156="Right Shoulder")),K156*100*(18/12),"") ->  | N156: =IF(AND(OR(I156="Left Shoulder",I156="Right Shoulder"),K156<>""),ROUNDUP(M156*0.5*0.13,1),IF(I156<>"","0.0","")) -> 
F218: =IF(D218<>"",ABS(D218-E218),"") ->  | G218: =IF(F218<>"",F218/100,"") ->  | M218: =IF(L218<>"",(L218/9),"") -> 
J220: =IF(OR(H220="PCC",H220="PCC or HMA"),G220,"") ->  | K220: =IF(OR(H220="HMA",H220="PCC or HMA"),G220,"") ->  | L220: =IF(AND(OR(H220="HMA",H220="PCC or HMA"),OR(I220="Left Shoulder",I220="Right Shoulder")),K220*100*(18/12),"") ->  | N220: =IF(AND(OR(I220="Left Shoulder",I220="Right Shoulder"),K220<>""),ROUNDUP(M220*0.5*0.13,1),IF(I220<>"","0.0","")) -> 
F282: =IF(D282<>"",ABS(D282-E282),"") ->  | G282: =IF(F282<>"",F282/100,"") ->  | M282: =IF(L282<>"",(L282/9),"") -> 
J284: =IF(OR(H284="PCC",H284="PCC or HMA"),G284,"") ->  | K284: =IF(OR(H284="HMA",H284="PCC or HMA"),G284,"") ->  | L284: =IF(AND(OR(H284="HMA",H284="PCC or HMA"),OR(I284="Left Shoulder",I284="Right Shoulder")),K284*100*(18/12),"") ->  | N284: =IF(AND(OR(I284="Left Shoulder",I284="Right Shoulder"),K284<>""),ROUNDUP(M284*0.5*0.13,1),IF(I284<>"","0.0","")) -> 
F346: =IF(D346<>"",ABS(D346-E346),"") ->  | G346: =IF(F346<>"",F346/100,"") ->  | M346: =IF(L346<>"",(L346/9),"") -> 
J348: =IF(OR(H348="PCC",H348="PCC or HMA"),G348,"") ->  | K348: =IF(OR(H348="HMA",H348="PCC or HMA"),G348,"") ->  | L348: =IF(AND(OR(H348="HMA",H348="PCC or HMA"),OR(I348="Left Shoulder",I348="Right Shoulder")),K348*100*(18/12),"") ->  | N348: =IF(AND(OR(I348="Left Shoulder",I348="Right Shoulder"),K348<>""),ROUNDUP(M348*0.5*0.13,1),IF(I348<>"","0.0","")) -> 
F410: =IF(D410<>"",ABS(D410-E410),"") ->  | G410: =IF(F410<>"",F410/100,"") ->  | M410: =IF(L410<>"",(L410/9),"") -> 
J412: =IF(OR(H412="PCC",H412="PCC or HMA"),G412,"") ->  | K412: =IF(OR(H412="HMA",H412="PCC or HMA"),G412,"") ->  | L412: =IF(AND(OR(H412="HMA",H412="PCC or HMA"),OR(I412="Left Shoulder",I412="Right Shoulder")),K412*100*(18/12),"") ->  | N412: =IF(AND(OR(I412="Left Shoulder",I412="Right Shoulder"),K412<>""),ROUNDUP(M412*0.5*0.13,1),IF(I412<>"","0.0","")) -> 
F474: =IF(D474<>"",ABS(D474-E474),"") ->  | G474: =IF(F474<>"",F474/100,"") ->  | M474: =IF(L474<>"",(L474/9),"") -> 
J476: =IF(OR(H476="PCC",H476="PCC or HMA"),G476,"") ->  | K476: =IF(OR(H476="HMA",H476="PCC or HMA"),G476,"") ->  | L476: =IF(AND(OR(H476="HMA",H476="PCC or HMA"),OR(I476="Left Shoulder",I476="Right Shoulder")),K476*100*(18/12),"") ->  | N476: =IF(AND(OR(I476="Left Shoulder",I476="Right Shoulder"),K476<>""),ROUNDUP(M476*0.5*0.13,1),IF(I476<>"","0.0","")) -> 
F538: =IF(D538<>"",ABS(D538-E538),"") ->  | G538: =IF(F538<>"",F538/100,"") ->  | M538: =IF(L538<>"",(L538/9),"") -> 
J540: =IF(OR(H540="PCC",H540="PCC or HMA"),G540,"") ->  | K540: =IF(OR(H540="HMA",H540="PCC or HMA"),G540,"") ->  | L540: =IF(AND(OR(H540="HMA",H540="PCC or HMA"),OR(I540="Left Shoulder",I540="Right Shoulder")),K540*100*(18/12),"") ->  | N540: =IF(AND(OR(I540="Left Shoulder",I540="Right Shoulder"),K540<>""),ROUNDUP(M540*0.5*0.13,1),IF(I540<>"","0.0","")) -> 
F602: =IF(D602<>"",ABS(D602-E602),"") ->  | G602: =IF(F602<>"",F602/100,"") ->  | M602: =IF(L602<>"",(L602/9),"") -> 
J604: =IF(OR(H604="PCC",H604="PCC or HMA"),G604,"") ->  | K604: =IF(OR(H604="HMA",H604="PCC or HMA"),G604,"") ->  | L604: =IF(AND(OR(H604="HMA",H604="PCC or HMA"),OR(I604="Left Shoulder",I604="Right Shoulder")),K604*100*(18/12),"") ->  | N604: =IF(AND(OR(I604="Left Shoulder",I604="Right Shoulder"),K604<>""),ROUNDUP(M604*0.5*0.13,1),IF(I604<>"","0.0","")) -> 
F666: =IF(D666<>"",ABS(D666-E666),"") ->  | G666: =IF(F666<>"",F666/100,"") ->  | M666: =IF(L666<>"",(L666/9),"") -> 
J668: =IF(OR(H668="PCC",H668="PCC or HMA"),G668,"") ->  | K668: =IF(OR(H668="HMA",H668="PCC or HMA"),G668,"") ->  | L668: =IF(AND(OR(H668="HMA",H668="PCC or HMA"),OR(I668="Left Shoulder",I668="Right Shoulder")),K668*100*(18/12),"") ->  | N668: =IF(AND(OR(I668="Left Shoulder",I668="Right Shoulder"),K668<>""),ROUNDUP(M668*0.5*0.13,1),IF(I668<>"","0.0","")) -> 
F730: =IF(D730<>"",ABS(D730-E730),"") ->  | G730: =IF(F730<>"",F730/100,"") ->  | M730: =IF(L730<>"",(L730/9),"") -> 
J732: =IF(OR(H732="PCC",H732="PCC or HMA"),G732,"") ->  | K732: =IF(OR(H732="HMA",H732="PCC or HMA"),G732,"") ->  | L732: =IF(AND(OR(H732="HMA",H732="PCC or HMA"),OR(I732="Left Shoulder",I732="Right Shoulder")),K732*100*(18/12),"") ->  | N732: =IF(AND(OR(I732="Left Shoulder",I732="Right Shoulder"),K732<>""),ROUNDUP(M732*0.5*0.13,1),IF(I732<>"","0.0","")) -> 
F794: =IF(D794<>"",ABS(D794-E794),"") ->  | G794: =IF(F794<>"",F794/100,"") ->  | M794: =IF(L794<>"",(L794/9),"") -> 
J796: =IF(OR(H796="PCC",H796="PCC or HMA"),G796,"") ->  | K796: =IF(OR(H796="HMA",H796="PCC or HMA"),G796,"") ->  | L796: =IF(AND(OR(H796="HMA",H796="PCC or HMA"),OR(I796="Left Shoulder",I796="Right Shoulder")),K796*100*(18/12),"") ->  | N796: =IF(AND(OR(I796="Left Shoulder",I796="Right Shoulder"),K796<>""),ROUNDUP(M796*0.5*0.13,1),IF(I796<>"","0.0","")) -> 
F858: =IF(D858<>"",ABS(D858-E858),"") ->  | G858: =IF(F858<>"",F858/100,"") ->  | M858: =IF(L858<>"",(L858/9),"") -> 
J860: =IF(OR(H860="PCC",H860="PCC or HMA"),G860,"") ->  | K860: =IF(OR(H860="HMA",H860="PCC or HMA"),G860,"") ->  | L860: =IF(AND(OR(H860="HMA",H860="PCC or HMA"),OR(I860="Left Shoulder",I860="Right Shoulder")),K860*100*(18/12),"") ->  | N860: =IF(AND(OR(I860="Left Shoulder",I860="Right Shoulder"),K860<>""),ROUNDUP(M860*0.5*0.13,1),IF(I860<>"","0.0","")) -> 
F922: =IF(D922<>"",ABS(D922-E922),"") ->  | G922: =IF(F922<>"",F922/100,"") ->  | M922: =IF(L922<>"",(L922/9),"") -> 
J924: =IF(OR(H924="PCC",H924="PCC or HMA"),G924,"") ->  | K924: =IF(OR(H924="HMA",H924="PCC or HMA"),G924,"") ->  | L924: =IF(AND(OR(H924="HMA",H924="PCC or HMA"),OR(I924="Left Shoulder",I924="Right Shoulder")),K924*100*(18/12),"") ->  | N924: =IF(AND(OR(I924="Left Shoulder",I924="Right Shoulder"),K924<>""),ROUNDUP(M924*0.5*0.13,1),IF(I924<>"","0.0","")) -> 
F986: =IF(D986<>"",ABS(D986-E986),"") ->  | G986: =IF(F986<>"",F986/100,"") ->  | M986: =IF(L986<>"",(L986/9),"") -> 
J988: =IF(OR(H988="PCC",H988="PCC or HMA"),G988,"") ->  | K988: =IF(OR(H988="HMA",H988="PCC or HMA"),G988,"") ->  | L988: =IF(AND(OR(H988="HMA",H988="PCC or HMA"),OR(I988="Left Shoulder",I988="Right Shoulder")),K988*100*(18/12),"") ->  | N988: =IF(AND(OR(I988="Left Shoulder",I988="Right Shoulder"),K988<>""),ROUNDUP(M988*0.5*0.13,1),IF(I988<>"","0.0","")) -> 
F1050: =IF(D1050<>"",ABS(D1050-E1050),"") ->  | G1050: =IF(F1050<>"",F1050/100,"") ->  | M1050: =IF(L1050<>"",(L1050/9),"") -> 
J1052: =IF(OR(H1052="PCC",H1052="PCC or HMA"),G1052,"") ->  | K1052: =IF(OR(H1052="HMA",H1052="PCC or HMA"),G1052,"") ->  | L1052: =IF(AND(OR(H1052="HMA",H1052="PCC or HMA"),OR(I1052="Left Shoulder",I1052="Right Shoulder")),K1052*100*(18/12),"") ->  | N1052: =IF(AND(OR(I1052="Left Shoulder",I1052="Right Shoulder"),K1052<>""),ROUNDUP(M1052*0.5*0.13,1),IF(I1052<>"","0.0","")) -> 
F1114: =IF(D1114<>"",ABS(D1114-E1114),"") ->  | G1114: =IF(F1114<>"",F1114/100,"") ->  | M1114: =IF(L1114<>"",(L1114/9),"") -> 
J1116: =IF(OR(H1116="PCC",H1116="PCC or HMA"),G1116,"") ->  | K1116: =IF(OR(H1116="HMA",H1116="PCC or HMA"),G1116,"") ->  | L1116: =IF(AND(OR(H1116="HMA",H1116="PCC or HMA"),OR(I1116="Left Shoulder",I1116="Right Shoulder")),K1116*100*(18/12),"") ->  | N1116: =IF(AND(OR(I1116="Left Shoulder",I1116="Right Shoulder"),K1116<>""),ROUNDUP(M1116*0.5*0.13,1),IF(I1116<>"","0.0","")) -> 
F1178: =IF(D1178<>"",ABS(D1178-E1178),"") ->  | G1178: =IF(F1178<>"",F1178/100,"") ->  | M1178: =IF(L1178<>"",(L1178/9),"") -> 
J1180: =IF(OR(H1180="PCC",H1180="PCC or HMA"),G1180,"") ->  | K1180: =IF(OR(H1180="HMA",H1180="PCC or HMA"),G1180,"") ->  | L1180: =IF(AND(OR(H1180="HMA",H1180="PCC or HMA"),OR(I1180="Left Shoulder",I1180="Right Shoulder")),K1180*100*(18/12),"") ->  | N1180: =IF(AND(OR(I1180="Left Shoulder",I1180="Right Shoulder"),K1180<>""),ROUNDUP(M1180*0.5*0.13,1),IF(I1180<>"","0.0","")) -> 
F1242: =IF(D1242<>"",ABS(D1242-E1242),"") ->  | G1242: =IF(F1242<>"",F1242/100,"") ->  | M1242: =IF(L1242<>"",(L1242/9),"") -> 
J1244: =IF(OR(H1244="PCC",H1244="PCC or HMA"),G1244,"") ->  | K1244: =IF(OR(H1244="HMA",H1244="PCC or HMA"),G1244,"") ->  | L1244: =IF(AND(OR(H1244="HMA",H1244="PCC or HMA"),OR(I1244="Left Shoulder",I1244="Right Shoulder")),K1244*100*(18/12),"") ->  | N1244: =IF(AND(OR(I1244="Left Shoulder",I1244="Right Shoulder"),K1244<>""),ROUNDUP(M1244*0.5*0.13,1),IF(I1244<>"","0.0","")) -> 
F1306: =IF(D1306<>"",ABS(D1306-E1306),"") ->  | G1306: =IF(F1306<>"",F1306/100,"") ->  | M1306: =IF(L1306<>"",(L1306/9),"") -> 
J1308: =IF(OR(H1308="PCC",H1308="PCC or HMA"),G1308,"") ->  | K1308: =IF(OR(H1308="HMA",H1308="PCC or HMA"),G1308,"") ->  | L1308: =IF(AND(OR(H1308="HMA",H1308="PCC or HMA"),OR(I1308="Left Shoulder",I1308="Right Shoulder")),K1308*100*(18/12),"") ->  | N1308: =IF(AND(OR(I1308="Left Shoulder",I1308="Right Shoulder"),K1308<>""),ROUNDUP(M1308*0.5*0.13,1),IF(I1308<>"","0.0","")) -> 
F1370: =IF(D1370<>"",ABS(D1370-E1370),"") ->  | G1370: =IF(F1370<>"",F1370/100,"") ->  | M1370: =IF(L1370<>"",(L1370/9),"") -> 
J1372: =IF(OR(H1372="PCC",H1372="PCC or HMA"),G1372,"") ->  | K1372: =IF(OR(H1372="HMA",H1372="PCC or HMA"),G1372,"") ->  | L1372: =IF(AND(OR(H1372="HMA",H1372="PCC or HMA"),OR(I1372="Left Shoulder",I1372="Right Shoulder")),K1372*100*(18/12),"") ->  | N1372: =IF(AND(OR(I1372="Left Shoulder",I1372="Right Shoulder"),K1372<>""),ROUNDUP(M1372*0.5*0.13,1),IF(I1372<>"","0.0","")) -> 
F1434: =IF(D1434<>"",ABS(D1434-E1434),"") ->  | G1434: =IF(F1434<>"",F1434/100,"") ->  | M1434: =IF(L1434<>"",(L1434/9),"") -> 
J1436: =IF(OR(H1436="PCC",H1436="PCC or HMA"),G1436,"") ->  | K1436: =IF(OR(H1436="HMA",H1436="PCC or HMA"),G1436,"") ->  | L1436: =IF(AND(OR(H1436="HMA",H1436="PCC or HMA"),OR(I1436="Left Shoulder",I1436="Right Shoulder")),K1436*100*(18/12),"") ->  | N1436: =IF(AND(OR(I1436="Left Shoulder",I1436="Right Shoulder"),K1436<>""),ROUNDUP(M1436*0.5*0.13,1),IF(I1436<>"","0.0","")) -> 
F1498: =IF(D1498<>"",ABS(D1498-E1498),"") ->  | G1498: =IF(F1498<>"",F1498/100,"") ->  | M1498: =IF(L1498<>"",(L1498/9),"") -> 
J1500: =IF(OR(H1500="PCC",H1500="PCC or HMA"),G1500,"") ->  | K1500: =IF(OR(H1500="HMA",H1500="PCC or HMA"),G1500,"") ->  | L1500: =IF(AND(OR(H1500="HMA",H1500="PCC or HMA"),OR(I1500="Left Shoulder",I1500="Right Shoulder")),K1500*100*(18/12),"") ->  | N1500: =IF(AND(OR(I1500="Left Shoulder",I1500="Right Shoulder"),K1500<>""),ROUNDUP(M1500*0.5*0.13,1),IF(I1500<>"","0.0","")) -> 
F1562: =IF(D1562<>"",ABS(D1562-E1562),"") ->  | G1562: =IF(F1562<>"",F1562/100,"") ->  | M1562: =IF(L1562<>"",(L1562/9),"") -> 
J1564: =IF(OR(H1564="PCC",H1564="PCC or HMA"),G1564,"") ->  | K1564: =IF(OR(H1564="HMA",H1564="PCC or HMA"),G1564,"") ->  | L1564: =IF(AND(OR(H1564="HMA",H1564="PCC or HMA"),OR(I1564="Left Shoulder",I1564="Right Shoulder")),K1564*100*(18/12),"") ->  | N1564: =IF(AND(OR(I1564="Left Shoulder",I1564="Right Shoulder"),K1564<>""),ROUNDUP(M1564*0.5*0.13,1),IF(I1564<>"","0.0","")) -> 
F1626: =IF(D1626<>"",ABS(D1626-E1626),"") ->  | G1626: =IF(F1626<>"",F1626/100,"") ->  | M1626: =IF(L1626<>"",(L1626/9),"") -> 
J1628: =IF(OR(H1628="PCC",H1628="PCC or HMA"),G1628,"") ->  | K1628: =IF(OR(H1628="HMA",H1628="PCC or HMA"),G1628,"") ->  | L1628: =IF(AND(OR(H1628="HMA",H1628="PCC or HMA"),OR(I1628="Left Shoulder",I1628="Right Shoulder")),K1628*100*(18/12),"") ->  | N1628: =IF(AND(OR(I1628="Left Shoulder",I1628="Right Shoulder"),K1628<>""),ROUNDUP(M1628*0.5*0.13,1),IF(I1628<>"","0.0","")) -> 
F1690: =IF(D1690<>"",ABS(D1690-E1690),"") ->  | G1690: =IF(F1690<>"",F1690/100,"") ->  | M1690: =IF(L1690<>"",(L1690/9),"") -> 
J1692: =IF(OR(H1692="PCC",H1692="PCC or HMA"),G1692,"") ->  | K1692: =IF(OR(H1692="HMA",H1692="PCC or HMA"),G1692,"") ->  | L1692: =IF(AND(OR(H1692="HMA",H1692="PCC or HMA"),OR(I1692="Left Shoulder",I1692="Right Shoulder")),K1692*100*(18/12),"") ->  | N1692: =IF(AND(OR(I1692="Left Shoulder",I1692="Right Shoulder"),K1692<>""),ROUNDUP(M1692*0.5*0.13,1),IF(I1692<>"","0.0","")) -> 
F1754: =IF(D1754<>"",ABS(D1754-E1754),"") ->  | G1754: =IF(F1754<>"",F1754/100,"") ->  | M1754: =IF(L1754<>"",(L1754/9),"") -> 
J1756: =IF(OR(H1756="PCC",H1756="PCC or HMA"),G1756,"") ->  | K1756: =IF(OR(H1756="HMA",H1756="PCC or HMA"),G1756,"") ->  | L1756: =IF(AND(OR(H1756="HMA",H1756="PCC or HMA"),OR(I1756="Left Shoulder",I1756="Right Shoulder")),K1756*100*(18/12),"") ->  | N1756: =IF(AND(OR(I1756="Left Shoulder",I1756="Right Shoulder"),K1756<>""),ROUNDUP(M1756*0.5*0.13,1),IF(I1756<>"","0.0","")) -> 
F1818: =IF(D1818<>"",ABS(D1818-E1818),"") ->  | G1818: =IF(F1818<>"",F1818/100,"") ->  | M1818: =IF(L1818<>"",(L1818/9),"") -> 
J1820: =IF(OR(H1820="PCC",H1820="PCC or HMA"),G1820,"") ->  | K1820: =IF(OR(H1820="HMA",H1820="PCC or HMA"),G1820,"") ->  | L1820: =IF(AND(OR(H1820="HMA",H1820="PCC or HMA"),OR(I1820="Left Shoulder",I1820="Right Shoulder")),K1820*100*(18/12),"") ->  | N1820: =IF(AND(OR(I1820="Left Shoulder",I1820="Right Shoulder"),K1820<>""),ROUNDUP(M1820*0.5*0.13,1),IF(I1820<>"","0.0","")) -> 
F1882: =IF(D1882<>"",ABS(D1882-E1882),"") ->  | G1882: =IF(F1882<>"",F1882/100,"") ->  | M1882: =IF(L1882<>"",(L1882/9),"") -> 
J1884: =IF(OR(H1884="PCC",H1884="PCC or HMA"),G1884,"") ->  | K1884: =IF(OR(H1884="HMA",H1884="PCC or HMA"),G1884,"") ->  | L1884: =IF(AND(OR(H1884="HMA",H1884="PCC or HMA"),OR(I1884="Left Shoulder",I1884="Right Shoulder")),K1884*100*(18/12),"") ->  | N1884: =IF(AND(OR(I1884="Left Shoulder",I1884="Right Shoulder"),K1884<>""),ROUNDUP(M1884*0.5*0.13,1),IF(I1884<>"","0.0","")) -> 
F1946: =IF(D1946<>"",ABS(D1946-E1946),"") ->  | G1946: =IF(F1946<>"",F1946/100,"") ->  | M1946: =IF(L1946<>"",(L1946/9),"") -> 
J1948: =IF(OR(H1948="PCC",H1948="PCC or HMA"),G1948,"") ->  | K1948: =IF(OR(H1948="HMA",H1948="PCC or HMA"),G1948,"") ->  | L1948: =IF(AND(OR(H1948="HMA",H1948="PCC or HMA"),OR(I1948="Left Shoulder",I1948="Right Shoulder")),K1948*100*(18/12),"") ->  | N1948: =IF(AND(OR(I1948="Left Shoulder",I1948="Right Shoulder"),K1948<>""),ROUNDUP(M1948*0.5*0.13,1),IF(I1948<>"","0.0","")) -> 
F2010: =IF(D2010<>"",ABS(D2010-E2010),"") ->  | G2010: =IF(F2010<>"",F2010/100,"") ->  | M2010: =IF(L2010<>"",(L2010/9),"") -> 
J2012: =IF(OR(H2012="PCC",H2012="PCC or HMA"),G2012,"") ->  | K2012: =IF(OR(H2012="HMA",H2012="PCC or HMA"),G2012,"") ->  | L2012: =IF(AND(OR(H2012="HMA",H2012="PCC or HMA"),OR(I2012="Left Shoulder",I2012="Right Shoulder")),K2012*100*(18/12),"") ->  | N2012: =IF(AND(OR(I2012="Left Shoulder",I2012="Right Shoulder"),K2012<>""),ROUNDUP(M2012*0.5*0.13,1),IF(I2012<>"","0.0","")) -> 
F2074: =IF(D2074<>"",ABS(D2074-E2074),"") ->  | G2074: =IF(F2074<>"",F2074/100,"") ->  | M2074: =IF(L2074<>"",(L2074/9),"") -> 
J2076: =IF(OR(H2076="PCC",H2076="PCC or HMA"),G2076,"") ->  | K2076: =IF(OR(H2076="HMA",H2076="PCC or HMA"),G2076,"") ->  | L2076: =IF(AND(OR(H2076="HMA",H2076="PCC or HMA"),OR(I2076="Left Shoulder",I2076="Right Shoulder")),K2076*100*(18/12),"") ->  | N2076: =IF(AND(OR(I2076="Left Shoulder",I2076="Right Shoulder"),K2076<>""),ROUNDUP(M2076*0.5*0.13,1),IF(I2076<>"","0.0","")) -> 
F2138: =IF(D2138<>"",ABS(D2138-E2138),"") ->  | G2138: =IF(F2138<>"",F2138/100,"") ->  | M2138: =IF(L2138<>"",(L2138/9),"") -> 
J2140: =IF(OR(H2140="PCC",H2140="PCC or HMA"),G2140,"") ->  | K2140: =IF(OR(H2140="HMA",H2140="PCC or HMA"),G2140,"") ->  | L2140: =IF(AND(OR(H2140="HMA",H2140="PCC or HMA"),OR(I2140="Left Shoulder",I2140="Right Shoulder")),K2140*100*(18/12),"") ->  | N2140: =IF(AND(OR(I2140="Left Shoulder",I2140="Right Shoulder"),K2140<>""),ROUNDUP(M2140*0.5*0.13,1),IF(I2140<>"","0.0","")) -> 
F2202: =IF(D2202<>"",ABS(D2202-E2202),"") ->  | G2202: =IF(F2202<>"",F2202/100,"") ->  | M2202: =IF(L2202<>"",(L2202/9),"") -> 
J2204: =IF(OR(H2204="PCC",H2204="PCC or HMA"),G2204,"") ->  | K2204: =IF(OR(H2204="HMA",H2204="PCC or HMA"),G2204,"") ->  | L2204: =IF(AND(OR(H2204="HMA",H2204="PCC or HMA"),OR(I2204="Left Shoulder",I2204="Right Shoulder")),K2204*100*(18/12),"") ->  | N2204: =IF(AND(OR(I2204="Left Shoulder",I2204="Right Shoulder"),K2204<>""),ROUNDUP(M2204*0.5*0.13,1),IF(I2204<>"","0.0","")) -> 
F2266: =IF(D2266<>"",ABS(D2266-E2266),"") ->  | G2266: =IF(F2266<>"",F2266/100,"") ->  | M2266: =IF(L2266<>"",(L2266/9),"") -> 
J2268: =IF(OR(H2268="PCC",H2268="PCC or HMA"),G2268,"") ->  | K2268: =IF(OR(H2268="HMA",H2268="PCC or HMA"),G2268,"") ->  | L2268: =IF(AND(OR(H2268="HMA",H2268="PCC or HMA"),OR(I2268="Left Shoulder",I2268="Right Shoulder")),K2268*100*(18/12),"") ->  | N2268: =IF(AND(OR(I2268="Left Shoulder",I2268="Right Shoulder"),K2268<>""),ROUNDUP(M2268*0.5*0.13,1),IF(I2268<>"","0.0","")) -> 
F2330: =IF(D2330<>"",ABS(D2330-E2330),"") ->  | G2330: =IF(F2330<>"",F2330/100,"") ->  | M2330: =IF(L2330<>"",(L2330/9),"") -> 
J2332: =IF(OR(H2332="PCC",H2332="PCC or HMA"),G2332,"") ->  | K2332: =IF(OR(H2332="HMA",H2332="PCC or HMA"),G2332,"") ->  | L2332: =IF(AND(OR(H2332="HMA",H2332="PCC or HMA"),OR(I2332="Left Shoulder",I2332="Right Shoulder")),K2332*100*(18/12),"") ->  | N2332: =IF(AND(OR(I2332="Left Shoulder",I2332="Right Shoulder"),K2332<>""),ROUNDUP(M2332*0.5*0.13,1),IF(I2332<>"","0.0","")) -> 
F2394: =IF(D2394<>"",ABS(D2394-E2394),"") ->  | G2394: =IF(F2394<>"",F2394/100,"") ->  | M2394: =IF(L2394<>"",(L2394/9),"") -> 
J2396: =IF(OR(H2396="PCC",H2396="PCC or HMA"),G2396,"") ->  | K2396: =IF(OR(H2396="HMA",H2396="PCC or HMA"),G2396,"") ->  | L2396: =IF(AND(OR(H2396="HMA",H2396="PCC or HMA"),OR(I2396="Left Shoulder",I2396="Right Shoulder")),K2396*100*(18/12),"") ->  | N2396: =IF(AND(OR(I2396="Left Shoulder",I2396="Right Shoulder"),K2396<>""),ROUNDUP(M2396*0.5*0.13,1),IF(I2396<>"","0.0","")) -> 
F2458: =IF(D2458<>"",ABS(D2458-E2458),"") ->  | G2458: =IF(F2458<>"",F2458/100,"") ->  | M2458: =IF(L2458<>"",(L2458/9),"") -> 
J2460: =IF(OR(H2460="PCC",H2460="PCC or HMA"),G2460,"") ->  | K2460: =IF(OR(H2460="HMA",H2460="PCC or HMA"),G2460,"") ->  | L2460: =IF(AND(OR(H2460="HMA",H2460="PCC or HMA"),OR(I2460="Left Shoulder",I2460="Right Shoulder")),K2460*100*(18/12),"") ->  | N2460: =IF(AND(OR(I2460="Left Shoulder",I2460="Right Shoulder"),K2460<>""),ROUNDUP(M2460*0.5*0.13,1),IF(I2460<>"","0.0","")) -> 
F2522: =IF(D2522<>"",ABS(D2522-E2522),"") ->  | G2522: =IF(F2522<>"",F2522/100,"") ->  | M2522: =IF(L2522<>"",(L2522/9),"") -> 
J2524: =IF(OR(H2524="PCC",H2524="PCC or HMA"),G2524,"") ->  | K2524: =IF(OR(H2524="HMA",H2524="PCC or HMA"),G2524,"") ->  | L2524: =IF(AND(OR(H2524="HMA",H2524="PCC or HMA"),OR(I2524="Left Shoulder",I2524="Right Shoulder")),K2524*100*(18/12),"") ->  | N2524: =IF(AND(OR(I2524="Left Shoulder",I2524="Right Shoulder"),K2524<>""),ROUNDUP(M2524*0.5*0.13,1),IF(I2524<>"","0.0","")) -> 
F2586: =IF(D2586<>"",ABS(D2586-E2586),"") ->  | G2586: =IF(F2586<>"",F2586/100,"") ->  | M2586: =IF(L2586<>"",(L2586/9),"") -> 
J2588: =IF(OR(H2588="PCC",H2588="PCC or HMA"),G2588,"") ->  | K2588: =IF(OR(H2588="HMA",H2588="PCC or HMA"),G2588,"") ->  | L2588: =IF(AND(OR(H2588="HMA",H2588="PCC or HMA"),OR(I2588="Left Shoulder",I2588="Right Shoulder")),K2588*100*(18/12),"") ->  | N2588: =IF(AND(OR(I2588="Left Shoulder",I2588="Right Shoulder"),K2588<>""),ROUNDUP(M2588*0.5*0.13,1),IF(I2588<>"","0.0","")) -> 
F2650: =IF(D2650<>"",ABS(D2650-E2650),"") ->  | G2650: =IF(F2650<>"",F2650/100,"") ->  | M2650: =IF(L2650<>"",(L2650/9),"") -> 
J2652: =IF(OR(H2652="PCC",H2652="PCC or HMA"),G2652,"") ->  | K2652: =IF(OR(H2652="HMA",H2652="PCC or HMA"),G2652,"") ->  | L2652: =IF(AND(OR(H2652="HMA",H2652="PCC or HMA"),OR(I2652="Left Shoulder",I2652="Right Shoulder")),K2652*100*(18/12),"") ->  | N2652: =IF(AND(OR(I2652="Left Shoulder",I2652="Right Shoulder"),K2652<>""),ROUNDUP(M2652*0.5*0.13,1),IF(I2652<>"","0.0","")) -> 
F2714: =IF(D2714<>"",ABS(D2714-E2714),"") ->  | G2714: =IF(F2714<>"",F2714/100,"") ->  | M2714: =IF(L2714<>"",(L2714/9),"") -> 
J2716: =IF(OR(H2716="PCC",H2716="PCC or HMA"),G2716,"") ->  | K2716: =IF(OR(H2716="HMA",H2716="PCC or HMA"),G2716,"") ->  | L2716: =IF(AND(OR(H2716="HMA",H2716="PCC or HMA"),OR(I2716="Left Shoulder",I2716="Right Shoulder")),K2716*100*(18/12),"") ->  | N2716: =IF(AND(OR(I2716="Left Shoulder",I2716="Right Shoulder"),K2716<>""),ROUNDUP(M2716*0.5*0.13,1),IF(I2716<>"","0.0","")) -> 
F2778: =IF(D2778<>"",ABS(D2778-E2778),"") ->  | G2778: =IF(F2778<>"",F2778/100,"") ->  | M2778: =IF(L2778<>"",(L2778/9),"") -> 
J2780: =IF(OR(H2780="PCC",H2780="PCC or HMA"),G2780,"") ->  | K2780: =IF(OR(H2780="HMA",H2780="PCC or HMA"),G2780,"") ->  | L2780: =IF(AND(OR(H2780="HMA",H2780="PCC or HMA"),OR(I2780="Left Shoulder",I2780="Right Shoulder")),K2780*100*(18/12),"") ->  | N2780: =IF(AND(OR(I2780="Left Shoulder",I2780="Right Shoulder"),K2780<>""),ROUNDUP(M2780*0.5*0.13,1),IF(I2780<>"","0.0","")) -> 
F2842: =IF(D2842<>"",ABS(D2842-E2842),"") ->  | G2842: =IF(F2842<>"",F2842/100,"") ->  | M2842: =IF(L2842<>"",(L2842/9),"") -> 
J2844: =IF(OR(H2844="PCC",H2844="PCC or HMA"),G2844,"") ->  | K2844: =IF(OR(H2844="HMA",H2844="PCC or HMA"),G2844,"") ->  | L2844: =IF(AND(OR(H2844="HMA",H2844="PCC or HMA"),OR(I2844="Left Shoulder",I2844="Right Shoulder")),K2844*100*(18/12),"") ->  | N2844: =IF(AND(OR(I2844="Left Shoulder",I2844="Right Shoulder"),K2844<>""),ROUNDUP(M2844*0.5*0.13,1),IF(I2844<>"","0.0","")) -> 
F2906: =IF(D2906<>"",ABS(D2906-E2906),"") ->  | G2906: =IF(F2906<>"",F2906/100,"") ->  | M2906: =IF(L2906<>"",(L2906/9),"") -> 
J2908: =IF(OR(H2908="PCC",H2908="PCC or HMA"),G2908,"") ->  | K2908: =IF(OR(H2908="HMA",H2908="PCC or HMA"),G2908,"") ->  | L2908: =IF(AND(OR(H2908="HMA",H2908="PCC or HMA"),OR(I2908="Left Shoulder",I2908="Right Shoulder")),K2908*100*(18/12),"") ->  | N2908: =IF(AND(OR(I2908="Left Shoulder",I2908="Right Shoulder"),K2908<>""),ROUNDUP(M2908*0.5*0.13,1),IF(I2908<>"","0.0","")) -> 
F2970: =IF(D2970<>"",ABS(D2970-E2970),"") ->  | G2970: =IF(F2970<>"",F2970/100,"") ->  | M2970: =IF(L2970<>"",(L2970/9),"") -> 
J2972: =IF(OR(H2972="PCC",H2972="PCC or HMA"),G2972,"") ->  | K2972: =IF(OR(H2972="HMA",H2972="PCC or HMA"),G2972,"") ->  | L2972: =IF(AND(OR(H2972="HMA",H2972="PCC or HMA"),OR(I2972="Left Shoulder",I2972="Right Shoulder")),K2972*100*(18/12),"") ->  | N2972: =IF(AND(OR(I2972="Left Shoulder",I2972="Right Shoulder"),K2972<>""),ROUNDUP(M2972*0.5*0.13,1),IF(I2972<>"","0.0","")) -> 
F3034: =IF(D3034<>"",ABS(D3034-E3034),"") ->  | G3034: =IF(F3034<>"",F3034/100,"") ->  | M3034: =IF(L3034<>"",(L3034/9),"") -> 
J3036: =IF(OR(H3036="PCC",H3036="PCC or HMA"),G3036,"") ->  | K3036: =IF(OR(H3036="HMA",H3036="PCC or HMA"),G3036,"") ->  | L3036: =IF(AND(OR(H3036="HMA",H3036="PCC or HMA"),OR(I3036="Left Shoulder",I3036="Right Shoulder")),K3036*100*(18/12),"") ->  | N3036: =IF(AND(OR(I3036="Left Shoulder",I3036="Right Shoulder"),K3036<>""),ROUNDUP(M3036*0.5*0.13,1),IF(I3036<>"","0.0","")) -> 
F3098: =IF(D3098<>"",ABS(D3098-E3098),"") ->  | G3098: =IF(F3098<>"",F3098/100,"") ->  | M3098: =IF(L3098<>"",(L3098/9),"") -> 
J3100: =IF(OR(H3100="PCC",H3100="PCC or HMA"),G3100,"") ->  | K3100: =IF(OR(H3100="HMA",H3100="PCC or HMA"),G3100,"") ->  | L3100: =IF(AND(OR(H3100="HMA",H3100="PCC or HMA"),OR(I3100="Left Shoulder",I3100="Right Shoulder")),K3100*100*(18/12),"") ->  | N3100: =IF(AND(OR(I3100="Left Shoulder",I3100="Right Shoulder"),K3100<>""),ROUNDUP(M3100*0.5*0.13,1),IF(I3100<>"","0.0","")) -> 
F3162: =IF(D3162<>"",ABS(D3162-E3162),"") ->  | G3162: =IF(F3162<>"",F3162/100,"") ->  | M3162: =IF(L3162<>"",(L3162/9),"") -> 
J3164: =IF(OR(H3164="PCC",H3164="PCC or HMA"),G3164,"") ->  | K3164: =IF(OR(H3164="HMA",H3164="PCC or HMA"),G3164,"") ->  | L3164: =IF(AND(OR(H3164="HMA",H3164="PCC or HMA"),OR(I3164="Left Shoulder",I3164="Right Shoulder")),K3164*100*(18/12),"") ->  | N3164: =IF(AND(OR(I3164="Left Shoulder",I3164="Right Shoulder"),K3164<>""),ROUNDUP(M3164*0.5*0.13,1),IF(I3164<>"","0.0","")) -> 
F3226: =IF(D3226<>"",ABS(D3226-E3226),"") ->  | G3226: =IF(F3226<>"",F3226/100,"") ->  | M3226: =IF(L3226<>"",(L3226/9),"") -> 
J3228: =IF(OR(H3228="PCC",H3228="PCC or HMA"),G3228,"") ->  | K3228: =IF(OR(H3228="HMA",H3228="PCC or HMA"),G3228,"") ->  | L3228: =IF(AND(OR(H3228="HMA",H3228="PCC or HMA"),OR(I3228="Left Shoulder",I3228="Right Shoulder")),K3228*100*(18/12),"") ->  | N3228: =IF(AND(OR(I3228="Left Shoulder",I3228="Right Shoulder"),K3228<>""),ROUNDUP(M3228*0.5*0.13,1),IF(I3228<>"","0.0","")) -> 
F3290: =IF(D3290<>"",ABS(D3290-E3290),"") ->  | G3290: =IF(F3290<>"",F3290/100,"") ->  | M3290: =IF(L3290<>"",(L3290/9),"") -> 
J3292: =IF(OR(H3292="PCC",H3292="PCC or HMA"),G3292,"") ->  | K3292: =IF(OR(H3292="HMA",H3292="PCC or HMA"),G3292,"") ->  | L3292: =IF(AND(OR(H3292="HMA",H3292="PCC or HMA"),OR(I3292="Left Shoulder",I3292="Right Shoulder")),K3292*100*(18/12),"") ->  | N3292: =IF(AND(OR(I3292="Left Shoulder",I3292="Right Shoulder"),K3292<>""),ROUNDUP(M3292*0.5*0.13,1),IF(I3292<>"","0.0","")) -> 
F3354: =IF(D3354<>"",ABS(D3354-E3354),"") ->  | G3354: =IF(F3354<>"",F3354/100,"") ->  | M3354: =IF(L3354<>"",(L3354/9),"") -> 
J3356: =IF(OR(H3356="PCC",H3356="PCC or HMA"),G3356,"") ->  | K3356: =IF(OR(H3356="HMA",H3356="PCC or HMA"),G3356,"") ->  | L3356: =IF(AND(OR(H3356="HMA",H3356="PCC or HMA"),OR(I3356="Left Shoulder",I3356="Right Shoulder")),K3356*100*(18/12),"") ->  | N3356: =IF(AND(OR(I3356="Left Shoulder",I3356="Right Shoulder"),K3356<>""),ROUNDUP(M3356*0.5*0.13,1),IF(I3356<>"","0.0","")) -> 
F3418: =IF(D3418<>"",ABS(D3418-E3418),"") ->  | G3418: =IF(F3418<>"",F3418/100,"") ->  | M3418: =IF(L3418<>"",(L3418/9),"") -> 
J3420: =IF(OR(H3420="PCC",H3420="PCC or HMA"),G3420,"") ->  | K3420: =IF(OR(H3420="HMA",H3420="PCC or HMA"),G3420,"") ->  | L3420: =IF(AND(OR(H3420="HMA",H3420="PCC or HMA"),OR(I3420="Left Shoulder",I3420="Right Shoulder")),K3420*100*(18/12),"") ->  | N3420: =IF(AND(OR(I3420="Left Shoulder",I3420="Right Shoulder"),K3420<>""),ROUNDUP(M3420*0.5*0.13,1),IF(I3420<>"","0.0","")) -> 
F3482: =IF(D3482<>"",ABS(D3482-E3482),"") ->  | G3482: =IF(F3482<>"",F3482/100,"") ->  | M3482: =IF(L3482<>"",(L3482/9),"") -> 
J3484: =IF(OR(H3484="PCC",H3484="PCC or HMA"),G3484,"") ->  | K3484: =IF(OR(H3484="HMA",H3484="PCC or HMA"),G3484,"") ->  | L3484: =IF(AND(OR(H3484="HMA",H3484="PCC or HMA"),OR(I3484="Left Shoulder",I3484="Right Shoulder")),K3484*100*(18/12),"") ->  | N3484: =IF(AND(OR(I3484="Left Shoulder",I3484="Right Shoulder"),K3484<>""),ROUNDUP(M3484*0.5*0.13,1),IF(I3484<>"","0.0","")) -> 
F3546: =IF(D3546<>"",ABS(D3546-E3546),"") ->  | G3546: =IF(F3546<>"",F3546/100,"") ->  | M3546: =IF(L3546<>"",(L3546/9),"") -> 
J3548: =IF(OR(H3548="PCC",H3548="PCC or HMA"),G3548,"") ->  | K3548: =IF(OR(H3548="HMA",H3548="PCC or HMA"),G3548,"") ->  | L3548: =IF(AND(OR(H3548="HMA",H3548="PCC or HMA"),OR(I3548="Left Shoulder",I3548="Right Shoulder")),K3548*100*(18/12),"") ->  | N3548: =IF(AND(OR(I3548="Left Shoulder",I3548="Right Shoulder"),K3548<>""),ROUNDUP(M3548*0.5*0.13,1),IF(I3548<>"","0.0","")) -> 
F3610: =IF(D3610<>"",ABS(D3610-E3610),"") ->  | G3610: =IF(F3610<>"",F3610/100,"") ->  | M3610: =IF(L3610<>"",(L3610/9),"") -> 
J3612: =IF(OR(H3612="PCC",H3612="PCC or HMA"),G3612,"") ->  | K3612: =IF(OR(H3612="HMA",H3612="PCC or HMA"),G3612,"") ->  | L3612: =IF(AND(OR(H3612="HMA",H3612="PCC or HMA"),OR(I3612="Left Shoulder",I3612="Right Shoulder")),K3612*100*(18/12),"") ->  | N3612: =IF(AND(OR(I3612="Left Shoulder",I3612="Right Shoulder"),K3612<>""),ROUNDUP(M3612*0.5*0.13,1),IF(I3612<>"","0.0","")) -> 
F3674: =IF(D3674<>"",ABS(D3674-E3674),"") ->  | G3674: =IF(F3674<>"",F3674/100,"") ->  | M3674: =IF(L3674<>"",(L3674/9),"") -> 
J3676: =IF(OR(H3676="PCC",H3676="PCC or HMA"),G3676,"") ->  | K3676: =IF(OR(H3676="HMA",H3676="PCC or HMA"),G3676,"") ->  | L3676: =IF(AND(OR(H3676="HMA",H3676="PCC or HMA"),OR(I3676="Left Shoulder",I3676="Right Shoulder")),K3676*100*(18/12),"") ->  | N3676: =IF(AND(OR(I3676="Left Shoulder",I3676="Right Shoulder"),K3676<>""),ROUNDUP(M3676*0.5*0.13,1),IF(I3676<>"","0.0","")) -> 
F3738: =IF(D3738<>"",ABS(D3738-E3738),"") ->  | G3738: =IF(F3738<>"",F3738/100,"") ->  | M3738: =IF(L3738<>"",(L3738/9),"") -> 
J3740: =IF(OR(H3740="PCC",H3740="PCC or HMA"),G3740,"") ->  | K3740: =IF(OR(H3740="HMA",H3740="PCC or HMA"),G3740,"") ->  | L3740: =IF(AND(OR(H3740="HMA",H3740="PCC or HMA"),OR(I3740="Left Shoulder",I3740="Right Shoulder")),K3740*100*(18/12),"") ->  | N3740: =IF(AND(OR(I3740="Left Shoulder",I3740="Right Shoulder"),K3740<>""),ROUNDUP(M3740*0.5*0.13,1),IF(I3740<>"","0.0","")) -> 
F3802: =IF(D3802<>"",ABS(D3802-E3802),"") ->  | G3802: =IF(F3802<>"",F3802/100,"") ->  | M3802: =IF(L3802<>"",(L3802/9),"") -> 
J3804: =IF(OR(H3804="PCC",H3804="PCC or HMA"),G3804,"") ->  | K3804: =IF(OR(H3804="HMA",H3804="PCC or HMA"),G3804,"") ->  | L3804: =IF(AND(OR(H3804="HMA",H3804="PCC or HMA"),OR(I3804="Left Shoulder",I3804="Right Shoulder")),K3804*100*(18/12),"") ->  | N3804: =IF(AND(OR(I3804="Left Shoulder",I3804="Right Shoulder"),K3804<>""),ROUNDUP(M3804*0.5*0.13,1),IF(I3804<>"","0.0","")) -> 
F3866: =IF(D3866<>"",ABS(D3866-E3866),"") ->  | G3866: =IF(F3866<>"",F3866/100,"") ->  | M3866: =IF(L3866<>"",(L3866/9),"") -> 
J3868: =IF(OR(H3868="PCC",H3868="PCC or HMA"),G3868,"") ->  | K3868: =IF(OR(H3868="HMA",H3868="PCC or HMA"),G3868,"") ->  | L3868: =IF(AND(OR(H3868="HMA",H3868="PCC or HMA"),OR(I3868="Left Shoulder",I3868="Right Shoulder")),K3868*100*(18/12),"") ->  | N3868: =IF(AND(OR(I3868="Left Shoulder",I3868="Right Shoulder"),K3868<>""),ROUNDUP(M3868*0.5*0.13,1),IF(I3868<>"","0.0","")) -> 
F3930: =IF(D3930<>"",ABS(D3930-E3930),"") ->  | G3930: =IF(F3930<>"",F3930/100,"") ->  | M3930: =IF(L3930<>"",(L3930/9),"") -> 
J3932: =IF(OR(H3932="PCC",H3932="PCC or HMA"),G3932,"") ->  | K3932: =IF(OR(H3932="HMA",H3932="PCC or HMA"),G3932,"") ->  | L3932: =IF(AND(OR(H3932="HMA",H3932="PCC or HMA"),OR(I3932="Left Shoulder",I3932="Right Shoulder")),K3932*100*(18/12),"") ->  | N3932: =IF(AND(OR(I3932="Left Shoulder",I3932="Right Shoulder"),K3932<>""),ROUNDUP(M3932*0.5*0.13,1),IF(I3932<>"","0.0","")) -> 
F3994: =IF(D3994<>"",ABS(D3994-E3994),"") ->  | G3994: =IF(F3994<>"",F3994/100,"") ->  | M3994: =IF(L3994<>"",(L3994/9),"") -> 
J3996: =IF(OR(H3996="PCC",H3996="PCC or HMA"),G3996,"") ->  | K3996: =IF(OR(H3996="HMA",H3996="PCC or HMA"),G3996,"") ->  | L3996: =IF(AND(OR(H3996="HMA",H3996="PCC or HMA"),OR(I3996="Left Shoulder",I3996="Right Shoulder")),K3996*100*(18/12),"") ->  | N3996: =IF(AND(OR(I3996="Left Shoulder",I3996="Right Shoulder"),K3996<>""),ROUNDUP(M3996*0.5*0.13,1),IF(I3996<>"","0.0","")) -> 
